Workbook

Sheet 0_Einführung
B6: Gefördert durch Bundesministerium für Ernährung und Landwirtschaft aufgrund eines Beschlusses des Deutschen Bundestages
A9: HUNTER - Humus-Nährstoff-Treibhausgas-Energie-Rechner
B11: !!Hinweis: dieser Rechner hat keinerlei rechtliche Relevanz bezüglich CC oder DüV. Zentraler Gegenstand ist die fachliche, wissenschaftlich unterstütze Betrachtung von Aspekten der Nachhaltigkeit im Pflanzenbau.
A18: Mit diesem Rechner können Sie Bilanzen im Pflanzenbau berechnen. Er besteht aus 4 Eingabeblättern und 4 Ergebnisblättern.
A19: Für eine vollumfängliche Bilanzierung mit allen Details empfehlen wir das Hinzuziehen Ihres Pflanzenbau- oder Betriebsberaters. Außerdem sind teilweise Daten aus Buchungsabschlüssen oder Ackerschlagkarteien nötig. Für eine schnellere und vereinfachte Bilanzierung für ein Kalenderjahr zur groben Abschätzung brauchen Sie aber nicht unbedingt Daten vorzuhalten.
A20: Für die Humusbilanz und die Nährstoffbilanzen reicht es, Eingabeblatt 1 auszufüllen. Die Eingabeblätter 2 bis 4 sind dann für die Energie- und Treibhausgasbilanz nötig. Ökobetriebe und reine Grünlandbetriebe können dabei das Eingabeblatt 3 schnell abarbeiten, da es hier um chemischen Pflanzenschutz und Mineraldüngung (inklusive Kalkung) geht.
A21: Aufwand
B22: Für eine Gesamtbilanzierung für 1 Jahr können Sie ungefähr folgenden zeitlichen Aufwand annehmen:
B23: Reiner Grünlandbetrieb: 0,5 Stunden
B24: Ackerbaubetrieb ohne Wirtschaftsdüngerzufuhr mit 3- bis 4-gliedriger Fruchtfolge: 1 Stunde
B25: Futterbaubetrieb mit max. 4 verschiedenen Kulturarten: 1,5 Stunden
B26: Gemischtbetrieb mit Viehhaltung und mindestens 5 verschiedenen Kulturarten: 2 Stunden
B27: Betrieb mit mehr als 7 Kulturen, organischen Düngern und stark unterschiedlicher Bodenbearbeitung: 2,5 Stunden
A29: Allgemeine Hinweise zur Eingabe:
B30: In Eingabeblatt 1 sollten Sie jede Kultur nur EINMAL auswählen, da es sonst später zu Zuordnungsschwierigkeiten kommt.
B31: In den Eingabeblättern 2 bis 4 können Sie jede (von Ihnen vorher festgelegte) Kultur bis zu 7 mal mit verschiedenen Einträgen versehen.
B32: Sie haben stets die Wahl, ob Sie den Flächenumfang von Maßnahmen in "ha" oder in "%" eingeben möchten. Wir empfehlen Ihnen "%".
B33: In Eingabeblatt 1 legen Sie sich einmalig fest, ob Sie die Hauptnährstoffe als Element- oder Oxidform berechnen möchten. Denken Sie daran, Nährstoffwerte bei der Düngung ggf. umzurechnen!
B34: Achtung bei den Inhaltsstoffen von Wirtschaftsdüngern: Angabe muss in % Trockenstubstanz erfolgen, NICHT in kg/t Originalsubstanz. Rechnen Sie ggf. um!
B35: Die gelben Felder sind die Eingabefelder, nur hier können Sie Eingaben machen.
B36: An zahlreichen Eingabestellen gibt es "Hilfe"-Buttons.
B37: Durch drücken des Buttons erhalten Sie explizite Eingabehinweise, durch nochmaliges Drücken des Buttons blendet er sich wieder aus.
A39: Allgemeine Hinweise zu den Ergebnissen:
B40: Die 4 Ergebnisblätter teilen sich wie folgt auf: 1 Blatt für Humus und Nährstoffe, jeweils 1 für Energie und Treibhausgase sowie 1 Netzdiagramm, das insgesamt 14 Parameter nebeneinander darstellt.
B41: In den Blättern 6 und 7 wird in den "Punktwolken" ein Vergleich Ihres Betriebs mit zahlreichen Pilotbetrieben vorgenommen. Diese Daten beruhen auf mehrjährigen Ergebnissen, lassen aber eine grobe Einordnung Ihres Betriebs auch bei einjähriger Betrachtung zu!
B42: Die Ergebnisse dienen der groben Einordnung des Betriebes im Vergleich zu anderen Betrieben. Sie stellen KEINE endgültige und umfassende Aussage zur Nachhaltigkeit dar, zumal die Berechnung (bisher) nur für ein Erntejahr gleichzeitig geschieht.
B44: In Blatt 5 erhalten Sie mehrere Einzeltabellen für Humus- und Nährstoffbilanzen. Bei den VDLUFA-Humus-Tabellen wird nach Bewirtschaftungsart unterschieden: Öko-Betriebe erhalten Salden mit mittleren und oberen (d. h. hohen Humusbedarfen) Werten, konventionell wirtschaftende Betriebe bekommen die Tabellen mit unteren und mittleren Werten angezeigt. Die dynamische HE-Tabelle ist für beide obligatorisch.
B45: Im Netzdiagramm auf Blatt 9 sind 14 wichtige Parameter für das berechnete Jahr zusammengefasst. Diese Parameter standen und stehen im Rahmen des Netzwerks Pilotbetriebe im Zentrum der Betrachtung und als Ausgangspunkt für Analysen. Einen Betrieb ohne "Dellen" gibt es bisher nicht!
A46: Hintergrund und Datenherkunft zu HUNTER
B47: Idee zu diesem Tool ist es, eine umfangreiche Beschreibung der Nachhaltigkeit eines Betriebes zu machen, ohne ein eigenes Programm dafür installieren zu müssen. Je nach Wunsch kann die Berechnung mit ungefähren Zahlen eines Betriebes oder mit exakten Zahlen aus einer Schlagkartei oder der Buchführung gemacht werden. Entwickelt wurde das Tool im Rahmen des "Netzwerk Pilotbetriebe". Die Eingabemaske in Blatt 1 baut auf einem Humusrechner auf, den Helmut Frank vorher entwickelt hat. Die anderen Eingabeblätter wurden entsprechend daran angeknüpft.
B50: Die Daten stammen großteils aus Algorithmen und Datenreihen aus REPRO, ergänzt um Zahlen aus der Literatur. Der THG-Teil des Tools läuft weitestgehend nach dem Berechnungsstandard einzelbetrieblicher Klimabilanzen (BEK), der 2017 veröffentlich worden ist. Dieser steht frei unter https://www.ktbl.de/themen/klimagasbilanzen/ zur Verfügung
B53: Der HUNTER wird fortlaufend weiterentwickelt und mit Daten angereichert, sodass dem Nutzer jeweils die aktuellste Version zum Download zur Verfügung steht.
A55: Kontakt
B56: Für Hinweise, Anregungen, Datensätze und Rückmeldungen sind wir stets dankbar!
B58: Ingenieurbüro für Ökologie & Landwirtschaft | I58: Letzter Entwicklungsstand dieser Version: | M58: 5. Juni 2020
B59: Harald Becker
B60: Windhäuser Weg 8, 34123 Kassel
B61: hb@ifoel.de
B62: 0561-701515-12

Sheet 1_Eingabe_Humus
A1: Angaben zu den Kulturen (Anbauumfang, Erträge, Düngung)
CX2: 1
A4: A. Angaben zum Betrieb
C5: Betriebsname | K5: Datum
C6: Betriebstyp | J6: 2 | K6: Bearbeiter
C7: Erntejahr
A11: B. | B11: Fruchtfolgen und Fruchtarten | K11: Anzahl Fruchtfolgen
A12: Nr | B12: FF | C12: Fruchtart (Kultur) | F12: Fläche [ha] | G12: Ackerzahl / Bodenzahl | H12: Ertrag Hauptprodukt | K12: Verwendung Hauptprodukt [% der Anbaufläche] | O12: Verwendung Nebenprodukt [% der Anbaufläche]
H13: dt FM/ha | I13: Vorschlag | K13: Art | L13: Abfuhr | M13: Verbleib | O13: Art | P13: Abfuhr | Q13: Verbleib
A14: 1 | B14: 1 | C14: Ackergras | F14: 20 | G14: 20 | H14: 20 | I14: =IF(C14="","",VLOOKUP(C14,FA_Stamm!B:BH,IF('1_Eingabe_Humus'!$J$6=1,58,59),FALSE)/(VLOOKUP(C14,FA_Stamm!B:H,7,FALSE)/100)) -> 600 | J14: =IF(C14="","",VLOOKUP(C14,FA_Stamm!B:D,3,FALSE)) -> HF | K14: =IF(J14="","",VLOOKUP($C14,FA_Stamm!B:F,5,FALSE)) -> Grünmasse | L14: 20 | M14: =IF(C14="","",IF(L14=100,0,100-L14)) -> 80 | N14: NF | O14: =IF(J14="","",VLOOKUP($C14,FA_Stamm!B:G,6,FALSE)) ->  | Q14: =IF(C14="","",IF(P14=100,0,100-P14)) -> 100
A15: 2 | B15: 1 | I15: =IF(C15="","",VLOOKUP(C15,FA_Stamm!B:BH,IF('1_Eingabe_Humus'!$J$6=1,58,59),FALSE)/(VLOOKUP(C15,FA_Stamm!B:H,7,FALSE)/100)) ->  | J15: =IF(C15="","",VLOOKUP(C15,FA_Stamm!B:D,3,FALSE)) ->  | K15: =IF(J15="","",VLOOKUP($C15,FA_Stamm!B:F,5,FALSE)) ->  | M15: =IF(C15="","",IF(L15=100,0,100-L15)) ->  | N15: NF | O15: =IF(J15="","",VLOOKUP($C15,FA_Stamm!B:G,6,FALSE)) ->  | Q15: =IF(C15="","",IF(P15=100,0,100-P15)) -> 
A16: 3 | B16: 1 | I16: =IF(C16="","",VLOOKUP(C16,FA_Stamm!B:BH,IF('1_Eingabe_Humus'!$J$6=1,58,59),FALSE)/(VLOOKUP(C16,FA_Stamm!B:H,7,FALSE)/100)) ->  | J16: =IF(C16="","",VLOOKUP(C16,FA_Stamm!B:D,3,FALSE)) ->  | K16: =IF(J16="","",VLOOKUP($C16,FA_Stamm!B:F,5,FALSE)) ->  | N16: NF | O16: =IF(J16="","",VLOOKUP($C16,FA_Stamm!B:G,6,FALSE)) -> 
A17: 4 | B17: 1 | I17: =IF(C17="","",VLOOKUP(C17,FA_Stamm!B:BH,IF('1_Eingabe_Humus'!$J$6=1,58,59),FALSE)/(VLOOKUP(C17,FA_Stamm!B:H,7,FALSE)/100)) ->  | J17: =IF(C17="","",VLOOKUP(C17,FA_Stamm!B:D,3,FALSE)) ->  | K17: =IF(J17="","",VLOOKUP($C17,FA_Stamm!B:F,5,FALSE)) ->  | N17: NF | O17: =IF(J17="","",VLOOKUP($C17,FA_Stamm!B:G,6,FALSE)) -> 
A18: 5 | B18: 1 | I18: =IF(C18="","",VLOOKUP(C18,FA_Stamm!B:BH,IF('1_Eingabe_Humus'!$J$6=1,58,59),FALSE)/(VLOOKUP(C18,FA_Stamm!B:H,7,FALSE)/100)) ->  | J18: =IF(C18="","",VLOOKUP(C18,FA_Stamm!B:D,3,FALSE)) ->  | K18: =IF(J18="","",VLOOKUP($C18,FA_Stamm!B:F,5,FALSE)) ->  | N18: NF | O18: =IF(J18="","",VLOOKUP($C18,FA_Stamm!B:G,6,FALSE)) -> 
A19: 6 | B19: 1 | I19: =IF(C19="","",VLOOKUP(C19,FA_Stamm!B:BH,IF('1_Eingabe_Humus'!$J$6=1,58,59),FALSE)/(VLOOKUP(C19,FA_Stamm!B:H,7,FALSE)/100)) ->  | J19: =IF(C19="","",VLOOKUP(C19,FA_Stamm!B:D,3,FALSE)) ->  | K19: =IF(J19="","",VLOOKUP($C19,FA_Stamm!B:F,5,FALSE)) ->  | O19: =IF(J19="","",VLOOKUP($C19,FA_Stamm!B:G,6,FALSE)) -> 
A20: 7 | B20: 1 | I20: =IF(C20="","",VLOOKUP(C20,FA_Stamm!B:BH,IF('1_Eingabe_Humus'!$J$6=1,58,59),FALSE)/(VLOOKUP(C20,FA_Stamm!B:H,7,FALSE)/100)) ->  | J20: =IF(C20="","",VLOOKUP(C20,FA_Stamm!B:D,3,FALSE)) ->  | K20: =IF(J20="","",VLOOKUP($C20,FA_Stamm!B:F,5,FALSE)) ->  | O20: =IF(J20="","",VLOOKUP($C20,FA_Stamm!B:G,6,FALSE)) -> 
A21: 8 | B21: 1 | I21: =IF(C21="","",VLOOKUP(C21,FA_Stamm!B:BH,IF('1_Eingabe_Humus'!$J$6=1,58,59),FALSE)/(VLOOKUP(C21,FA_Stamm!B:H,7,FALSE)/100)) ->  | J21: =IF(C21="","",VLOOKUP(C21,FA_Stamm!B:D,3,FALSE)) ->  | K21: =IF(J21="","",VLOOKUP($C21,FA_Stamm!B:F,5,FALSE)) ->  | O21: =IF(J21="","",VLOOKUP($C21,FA_Stamm!B:G,6,FALSE)) -> 
A22: 9 | B22: 1 | I22: =IF(C22="","",VLOOKUP(C22,FA_Stamm!B:BH,IF('1_Eingabe_Humus'!$J$6=1,58,59),FALSE)/(VLOOKUP(C22,FA_Stamm!B:H,7,FALSE)/100)) ->  | J22: =IF(C22="","",VLOOKUP(C22,FA_Stamm!B:D,3,FALSE)) ->  | K22: =IF(J22="","",VLOOKUP($C22,FA_Stamm!B:F,5,FALSE)) ->  | O22: =IF(J22="","",VLOOKUP($C22,FA_Stamm!B:G,6,FALSE)) -> 
A23: 10 | B23: 1 | I23: =IF(C23="","",VLOOKUP(C23,FA_Stamm!B:BH,IF('1_Eingabe_Humus'!$J$6=1,58,59),FALSE)/(VLOOKUP(C23,FA_Stamm!B:H,7,FALSE)/100)) ->  | J23: =IF(C23="","",VLOOKUP(C23,FA_Stamm!B:D,3,FALSE)) ->  | K23: =IF(J23="","",VLOOKUP($C23,FA_Stamm!B:F,5,FALSE)) ->  | O23: =IF(J23="","",VLOOKUP($C23,FA_Stamm!B:G,6,FALSE)) -> 
A24: 11 | B24: 1 | I24: =IF(C24="","",VLOOKUP(C24,FA_Stamm!B:BH,IF('1_Eingabe_Humus'!$J$6=1,58,59),FALSE)/(VLOOKUP(C24,FA_Stamm!B:H,7,FALSE)/100)) ->  | J24: =IF(C24="","",VLOOKUP(C24,FA_Stamm!B:D,3,FALSE)) ->  | K24: =IF(J24="","",VLOOKUP($C24,FA_Stamm!B:F,5,FALSE)) ->  | O24: =IF(J24="","",VLOOKUP($C24,FA_Stamm!B:G,6,FALSE)) -> 
A25: 12 | B25: 1 | I25: =IF(C25="","",VLOOKUP(C25,FA_Stamm!B:BH,IF('1_Eingabe_Humus'!$J$6=1,58,59),FALSE)/(VLOOKUP(C25,FA_Stamm!B:H,7,FALSE)/100)) ->  | J25: =IF(C25="","",VLOOKUP(C25,FA_Stamm!B:D,3,FALSE)) ->  | K25: =IF(J25="","",VLOOKUP($C25,FA_Stamm!B:F,5,FALSE)) ->  | O25: =IF(J25="","",VLOOKUP($C25,FA_Stamm!B:G,6,FALSE)) -> 
A26: 13 | B26: 1 | I26: =IF(C26="","",VLOOKUP(C26,FA_Stamm!B:BH,IF('1_Eingabe_Humus'!$J$6=1,58,59),FALSE)/(VLOOKUP(C26,FA_Stamm!B:H,7,FALSE)/100)) ->  | J26: =IF(C26="","",VLOOKUP(C26,FA_Stamm!B:D,3,FALSE)) ->  | K26: =IF(J26="","",VLOOKUP($C26,FA_Stamm!B:F,5,FALSE)) ->  | O26: =IF(J26="","",VLOOKUP($C26,FA_Stamm!B:G,6,FALSE)) -> 
A27: 14 | B27: 1 | I27: =IF(C27="","",VLOOKUP(C27,FA_Stamm!B:BH,IF('1_Eingabe_Humus'!$J$6=1,58,59),FALSE)/(VLOOKUP(C27,FA_Stamm!B:H,7,FALSE)/100)) ->  | J27: =IF(C27="","",VLOOKUP(C27,FA_Stamm!B:D,3,FALSE)) ->  | K27: =IF(J27="","",VLOOKUP($C27,FA_Stamm!B:F,5,FALSE)) ->  | O27: =IF(J27="","",VLOOKUP($C27,FA_Stamm!B:G,6,FALSE)) -> 
A28: 15 | B28: 1 | I28: =IF(C28="","",VLOOKUP(C28,FA_Stamm!B:BH,IF('1_Eingabe_Humus'!$J$6=1,58,59),FALSE)/(VLOOKUP(C28,FA_Stamm!B:H,7,FALSE)/100)) ->  | J28: =IF(C28="","",VLOOKUP(C28,FA_Stamm!B:D,3,FALSE)) ->  | K28: =IF(J28="","",VLOOKUP($C28,FA_Stamm!B:F,5,FALSE)) ->  | O28: =IF(J28="","",VLOOKUP($C28,FA_Stamm!B:G,6,FALSE)) -> 
A29: 16 | B29: 1 | I29: =IF(C29="","",VLOOKUP(C29,FA_Stamm!B:BH,IF('1_Eingabe_Humus'!$J$6=1,58,59),FALSE)/(VLOOKUP(C29,FA_Stamm!B:H,7,FALSE)/100)) ->  | J29: =IF(C29="","",VLOOKUP(C29,FA_Stamm!B:D,3,FALSE)) ->  | K29: =IF(J29="","",VLOOKUP($C29,FA_Stamm!B:F,5,FALSE)) ->  | O29: =IF(J29="","",VLOOKUP($C29,FA_Stamm!B:G,6,FALSE)) -> 
A30: 17 | B30: 1 | I30: =IF(C30="","",VLOOKUP(C30,FA_Stamm!B:BH,IF('1_Eingabe_Humus'!$J$6=1,58,59),FALSE)/(VLOOKUP(C30,FA_Stamm!B:H,7,FALSE)/100)) ->  | J30: =IF(C30="","",VLOOKUP(C30,FA_Stamm!B:D,3,FALSE)) ->  | K30: =IF(J30="","",VLOOKUP($C30,FA_Stamm!B:F,5,FALSE)) ->  | O30: =IF(J30="","",VLOOKUP($C30,FA_Stamm!B:G,6,FALSE)) -> 
A31: 18 | B31: 1 | I31: =IF(C31="","",VLOOKUP(C31,FA_Stamm!B:BH,IF('1_Eingabe_Humus'!$J$6=1,58,59),FALSE)/(VLOOKUP(C31,FA_Stamm!B:H,7,FALSE)/100)) ->  | J31: =IF(C31="","",VLOOKUP(C31,FA_Stamm!B:D,3,FALSE)) ->  | K31: =IF(J31="","",VLOOKUP($C31,FA_Stamm!B:F,5,FALSE)) ->  | O31: =IF(J31="","",VLOOKUP($C31,FA_Stamm!B:G,6,FALSE)) -> 
A32: 19 | B32: 1 | I32: =IF(C32="","",VLOOKUP(C32,FA_Stamm!B:BH,IF('1_Eingabe_Humus'!$J$6=1,58,59),FALSE)/(VLOOKUP(C32,FA_Stamm!B:H,7,FALSE)/100)) ->  | J32: =IF(C32="","",VLOOKUP(C32,FA_Stamm!B:D,3,FALSE)) ->  | K32: =IF(J32="","",VLOOKUP($C32,FA_Stamm!B:F,5,FALSE)) ->  | O32: =IF(J32="","",VLOOKUP($C32,FA_Stamm!B:G,6,FALSE)) -> 
A33: 20 | C33: Grünland | I33: =IF(C33="","",VLOOKUP(C33,FA_Stamm!B:BH,IF('1_Eingabe_Humus'!$J$6=1,58,59),FALSE)/(VLOOKUP(C33,FA_Stamm!B:H,7,FALSE)/100)) -> 555.5555556 | J33: =IF(C33="","",VLOOKUP(C33,FA_Stamm!B:D,3,FALSE)) -> HF | K33: =IF(J33="","",VLOOKUP($C33,FA_Stamm!B:F,5,FALSE)) -> Grünmasse | M33: 100 | O33: =IF(J33="","",VLOOKUP($C33,FA_Stamm!B:G,6,FALSE)) ->  | Q33: 100
C34: Gesamtfläche (ohne ZF und US) [ha] | F34: =SUMIF(J14:J33,"HF",F14:F33) -> 20 | G34: =IF(SUM(G14:G33)=0,"",SUMPRODUCT(F14:F33,G14:G33)/SUM(F14:F33)) -> 20
A36: C. | B36: Düngung | E36: Eingabe Nährstoffgehalte ab hier als | I36: 2 | J36: 1 | K36: Hier entscheiden Sie, ob Sie in Element- oder Oxidform rechnen!
A37: C.1 | B37: Definition organischer Dünger | Q37: als P und K | S37: konventionell
A38: Nr. | C38: Düngerart | E38: TS % | F38: % N | G38: =IF($J$36=1,"% P","% P2O5") -> % P | H38: =IF($J$36=1,"% K","% K2O") -> % K | I38: Leer | J38: Leer | K38: eigene Bezeichnung | Q38: als P2O5 und K2O | S38: ökologisch
A39: 1 | D39: =C39 -> 0 | I39: Standardformeln | J39: Leer | P39: zurücksetzen auf Standardwerte
A40: 2 | D40: =C40 -> 0 | I40: Standardformeln | J40: Leer
A41: 3 | D41: 0 | I41: Standardformeln | J41: Leer
A42: 4 | D42: 0 | I42: Standardformeln | J42: Leer
A43: 5 | D43: 0 | I43: Standardformeln | J43: Leer
A44: 6 | D44: 0 | I44: Standardformeln | J44: Leer
A45: 7 | C45: Leer | I45: Leer | J45: Leer | K45: Leer | L45: Leer | M45: Leer | N45: Leer | P45: Leer
C46: Standardformeln | E46: =IF(C46="","",VLOOKUP($C46,Dung_Stamm,IF($J$6=2,8,7),FALSE)) ->  | F46: =IF(C46="","",VLOOKUP($C46,Dung_Stamm,IF($J$6=2,10,9),FALSE)) ->  | G46: =IF(C46="","",VLOOKUP($C46,Dung_Stamm,IF($J$6=2,12,11),FALSE)*IF($J$36=2,2.2914,1)) ->  | H46: =IF(C46="","",VLOOKUP($C46,Dung_Stamm,IF($J$6=2,14,13),FALSE)*IF($J$36=2,1.205,1)) ->  | I46: Standardformeln | J46: Standardformeln | K46: Standardformeln | L46: Standardformeln | M46: Standardformeln | N46: Standardformeln | O46: Standardformeln
A47: C.2 | B47: Düngung | E47: Angaben je ha Anbaufläche | O47: N-Deposition: | Q47: 20 | S47: kg N/ha
A48: Nr. | B48: FF | C48: Fruchtart | E48: Mineraldünger | H48: Organische Düngung (Durchschnitt der Anbaufläche)
E49: kg N | F49: =IF($J$36=1,"kg P","kg P2O5") -> kg P | G49: =IF($J$36=1,"kg K","kg K2O") -> kg K | H49: org. Dünger 1 | K49: t FM/ha | L49: org. Dünger 2 | O49: t FM/ha | P49: org. Dünger 3 | S49: t FM/ha
A50: 1 | B50: =B14 -> 1 | C50: =IF(C14="","",C14) -> Ackergras
A51: 2 | B51: =B15 -> 1 | C51: =IF(C15="","",C15) -> 
A52: 3 | B52: 1
A53: 4 | B53: 1
A54: 5 | B54: 1
A55: 6 | B55: 1
A56: 7 | B56: 1
A57: 8 | B57: 1
A58: 9 | B58: 1
A59: 10 | B59: 1
A60: 11 | B60: 1
A61: 12 | B61: 1
A62: 13 | B62: 1
A63: 14 | B63: 1
A64: 15 | B64: 1
A65: 16 | B65: 1
A66: 17 | B66: 1
A67: 18 | B67: 1
A68: 19 | B68: 1
A69: 20 | C69: Grünland
A70: C.3 | B70: sonstige Düngung und Kalkung
A71: Nr. | B71: FF | C71: Fruchtart | E71: Mineraldünger kg/ha | H71: Weidegang
E72: Mg | F72: Ca | G72: S | H72: Tierkategorie | K72: Tieranzahl | L72: Weidetage | O72: std./Tag | T72: kg N/ha | U72: =F49 -> kg P | V72: =G49 -> kg K
A73: 1 | B73: =B14 -> 1 | C73: =IF(C14="","",C14) -> Ackergras | P73: =IF(AND(ISBLANK(C39),ISBLANK(C40),ISBLANK(C41),ISBLANK(C42),ISBLANK(C43),ISBLANK(C44),SUM($K$73:$O$92)>1),"Bitte unter C.1 'Exkremente' auswählen!!", IF(SUM(R73:R92)>=1,"Achtung, bitte Einträge prüfen!","")) ->  | R73: =IF(AND(C73="",OR(ISNUMBER(K73),ISNUMBER(L73),ISNUMBER(O73))),1,"") ->  | T73: =(VLOOKUP(H73,Dung_Stamm!$C$34:$E$41,2,FALSE)*K73*L73/365*O73/24 *IF(O73<=1,0,IF(O73<=1.5,0.8,IF(O73<=3,0.9,1))) *VLOOKUP(VLOOKUP(H73,Dung_Stamm!$C$34:$E$41,3,FALSE),$C$39:$F$44,4,FALSE)/VLOOKUP(VLOOKUP(H73,Dung_Stamm!$C$34:$E$41,3,FALSE),$C$39:$F$44,3,FALSE)) /F14 ->  | U73: =(VLOOKUP(H73,Dung_Stamm!$C$34:$E$41,2,FALSE)*K73*L73/365*O73/24 *IF(O73<=1,0,IF(O73<=1.5,0.8,IF(O73<=3,0.9,1))) *VLOOKUP(VLOOKUP(H73,Dung_Stamm!$C$34:$E$41,3,FALSE),$C$39:$G$44,5,FALSE)/VLOOKUP(VLOOKUP(H73,Dung_Stamm!$C$34:$E$41,3,FALSE),$C$39:$G$44,3,FALSE)) /F14 ->  | V73: =(VLOOKUP(H73,Dung_Stamm!$C$34:$E$41,2,FALSE)*K73*L73/365*O73/24 *IF(O73<=1,0,IF(O73<=1.5,0.8,IF(O73<=3,0.9,1))) *VLOOKUP(VLOOKUP(H73,Dung_Stamm!$C$34:$E$41,3,FALSE),$C$39:$H$44,6,FALSE)/VLOOKUP(VLOOKUP(H73,Dung_Stamm!$C$34:$E$41,3,FALSE),$C$39:$H$44,3,FALSE)) /F14 -> 
A74: 2 | B74: =B15 -> 1 | C74: =IF(C15="","",C15) ->  | R74: =IF(AND(C74="",OR(ISNUMBER(K74),ISNUMBER(L74),ISNUMBER(O74))),1,"") ->  | T74: =(VLOOKUP(H74,Dung_Stamm!$C$34:$E$41,2,FALSE)*K74*L74/365*O74/24 *IF(O74<=1,0,IF(O74<=1.5,0.8,IF(O74<=3,0.9,1))) *VLOOKUP(VLOOKUP(H74,Dung_Stamm!$C$34:$E$41,3,FALSE),$C$39:$F$44,4,FALSE)/VLOOKUP(VLOOKUP(H74,Dung_Stamm!$C$34:$E$41,3,FALSE),$C$39:$F$44,3,FALSE)) /F15 ->  | U74: =(VLOOKUP(H74,Dung_Stamm!$C$34:$E$41,2,FALSE)*K74*L74/365*O74/24 *IF(O74<=1,0,IF(O74<=1.5,0.8,IF(O74<=3,0.9,1))) *VLOOKUP(VLOOKUP(H74,Dung_Stamm!$C$34:$E$41,3,FALSE),$C$39:$G$44,5,FALSE)/VLOOKUP(VLOOKUP(H74,Dung_Stamm!$C$34:$E$41,3,FALSE),$C$39:$G$44,3,FALSE)) /F15 ->  | V74: =(VLOOKUP(H74,Dung_Stamm!$C$34:$E$41,2,FALSE)*K74*L74/365*O74/24 *IF(O74<=1,0,IF(O74<=1.5,0.8,IF(O74<=3,0.9,1))) *VLOOKUP(VLOOKUP(H74,Dung_Stamm!$C$34:$E$41,3,FALSE),$C$39:$H$44,6,FALSE)/VLOOKUP(VLOOKUP(H74,Dung_Stamm!$C$34:$E$41,3,FALSE),$C$39:$H$44,3,FALSE)) /F15 -> 
A75: 3 | B75: 1 | T75: =(VLOOKUP(H75,Dung_Stamm!$C$34:$E$41,2,FALSE)*K75*L75/365*O75/24 *IF(O75<=1,0,IF(O75<=1.5,0.8,IF(O75<=3,0.9,1))) *VLOOKUP(VLOOKUP(H75,Dung_Stamm!$C$34:$E$41,3,FALSE),$C$39:$F$44,4,FALSE)/VLOOKUP(VLOOKUP(H75,Dung_Stamm!$C$34:$E$41,3,FALSE),$C$39:$F$44,3,FALSE)) /F16 ->  | U75: =(VLOOKUP(H75,Dung_Stamm!$C$34:$E$41,2,FALSE)*K75*L75/365*O75/24 *IF(O75<=1,0,IF(O75<=1.5,0.8,IF(O75<=3,0.9,1))) *VLOOKUP(VLOOKUP(H75,Dung_Stamm!$C$34:$E$41,3,FALSE),$C$39:$G$44,5,FALSE)/VLOOKUP(VLOOKUP(H75,Dung_Stamm!$C$34:$E$41,3,FALSE),$C$39:$G$44,3,FALSE)) /F16 ->  | V75: =(VLOOKUP(H75,Dung_Stamm!$C$34:$E$41,2,FALSE)*K75*L75/365*O75/24 *IF(O75<=1,0,IF(O75<=1.5,0.8,IF(O75<=3,0.9,1))) *VLOOKUP(VLOOKUP(H75,Dung_Stamm!$C$34:$E$41,3,FALSE),$C$39:$H$44,6,FALSE)/VLOOKUP(VLOOKUP(H75,Dung_Stamm!$C$34:$E$41,3,FALSE),$C$39:$H$44,3,FALSE)) /F16 -> 
A76: 4 | B76: 1 | T76: =(VLOOKUP(H76,Dung_Stamm!$C$34:$E$41,2,FALSE)*K76*L76/365*O76/24 *IF(O76<=1,0,IF(O76<=1.5,0.8,IF(O76<=3,0.9,1))) *VLOOKUP(VLOOKUP(H76,Dung_Stamm!$C$34:$E$41,3,FALSE),$C$39:$F$44,4,FALSE)/VLOOKUP(VLOOKUP(H76,Dung_Stamm!$C$34:$E$41,3,FALSE),$C$39:$F$44,3,FALSE)) /F17 ->  | U76: =(VLOOKUP(H76,Dung_Stamm!$C$34:$E$41,2,FALSE)*K76*L76/365*O76/24 *IF(O76<=1,0,IF(O76<=1.5,0.8,IF(O76<=3,0.9,1))) *VLOOKUP(VLOOKUP(H76,Dung_Stamm!$C$34:$E$41,3,FALSE),$C$39:$G$44,5,FALSE)/VLOOKUP(VLOOKUP(H76,Dung_Stamm!$C$34:$E$41,3,FALSE),$C$39:$G$44,3,FALSE)) /F17 ->  | V76: =(VLOOKUP(H76,Dung_Stamm!$C$34:$E$41,2,FALSE)*K76*L76/365*O76/24 *IF(O76<=1,0,IF(O76<=1.5,0.8,IF(O76<=3,0.9,1))) *VLOOKUP(VLOOKUP(H76,Dung_Stamm!$C$34:$E$41,3,FALSE),$C$39:$H$44,6,FALSE)/VLOOKUP(VLOOKUP(H76,Dung_Stamm!$C$34:$E$41,3,FALSE),$C$39:$H$44,3,FALSE)) /F17 -> 
A77: 5 | B77: 1 | T77: =(VLOOKUP(H77,Dung_Stamm!$C$34:$E$41,2,FALSE)*K77*L77/365*O77/24 *IF(O77<=1,0,IF(O77<=1.5,0.8,IF(O77<=3,0.9,1))) *VLOOKUP(VLOOKUP(H77,Dung_Stamm!$C$34:$E$41,3,FALSE),$C$39:$F$44,4,FALSE)/VLOOKUP(VLOOKUP(H77,Dung_Stamm!$C$34:$E$41,3,FALSE),$C$39:$F$44,3,FALSE)) /F18 ->  | U77: =(VLOOKUP(H77,Dung_Stamm!$C$34:$E$41,2,FALSE)*K77*L77/365*O77/24 *IF(O77<=1,0,IF(O77<=1.5,0.8,IF(O77<=3,0.9,1))) *VLOOKUP(VLOOKUP(H77,Dung_Stamm!$C$34:$E$41,3,FALSE),$C$39:$G$44,5,FALSE)/VLOOKUP(VLOOKUP(H77,Dung_Stamm!$C$34:$E$41,3,FALSE),$C$39:$G$44,3,FALSE)) /F18 ->  | V77: =(VLOOKUP(H77,Dung_Stamm!$C$34:$E$41,2,FALSE)*K77*L77/365*O77/24 *IF(O77<=1,0,IF(O77<=1.5,0.8,IF(O77<=3,0.9,1))) *VLOOKUP(VLOOKUP(H77,Dung_Stamm!$C$34:$E$41,3,FALSE),$C$39:$H$44,6,FALSE)/VLOOKUP(VLOOKUP(H77,Dung_Stamm!$C$34:$E$41,3,FALSE),$C$39:$H$44,3,FALSE)) /F18 -> 
A78: 6 | B78: 1 | T78: =(VLOOKUP(H78,Dung_Stamm!$C$34:$E$41,2,FALSE)*K78*L78/365*O78/24 *IF(O78<=1,0,IF(O78<=1.5,0.8,IF(O78<=3,0.9,1))) *VLOOKUP(VLOOKUP(H78,Dung_Stamm!$C$34:$E$41,3,FALSE),$C$39:$F$44,4,FALSE)/VLOOKUP(VLOOKUP(H78,Dung_Stamm!$C$34:$E$41,3,FALSE),$C$39:$F$44,3,FALSE)) /F19 ->  | U78: =(VLOOKUP(H78,Dung_Stamm!$C$34:$E$41,2,FALSE)*K78*L78/365*O78/24 *IF(O78<=1,0,IF(O78<=1.5,0.8,IF(O78<=3,0.9,1))) *VLOOKUP(VLOOKUP(H78,Dung_Stamm!$C$34:$E$41,3,FALSE),$C$39:$G$44,5,FALSE)/VLOOKUP(VLOOKUP(H78,Dung_Stamm!$C$34:$E$41,3,FALSE),$C$39:$G$44,3,FALSE)) /F19 ->  | V78: =(VLOOKUP(H78,Dung_Stamm!$C$34:$E$41,2,FALSE)*K78*L78/365*O78/24 *IF(O78<=1,0,IF(O78<=1.5,0.8,IF(O78<=3,0.9,1))) *VLOOKUP(VLOOKUP(H78,Dung_Stamm!$C$34:$E$41,3,FALSE),$C$39:$H$44,6,FALSE)/VLOOKUP(VLOOKUP(H78,Dung_Stamm!$C$34:$E$41,3,FALSE),$C$39:$H$44,3,FALSE)) /F19 -> 
A79: 7 | B79: 1 | T79: =(VLOOKUP(H79,Dung_Stamm!$C$34:$E$41,2,FALSE)*K79*L79/365*O79/24 *IF(O79<=1,0,IF(O79<=1.5,0.8,IF(O79<=3,0.9,1))) *VLOOKUP(VLOOKUP(H79,Dung_Stamm!$C$34:$E$41,3,FALSE),$C$39:$F$44,4,FALSE)/VLOOKUP(VLOOKUP(H79,Dung_Stamm!$C$34:$E$41,3,FALSE),$C$39:$F$44,3,FALSE)) /F20 ->  | U79: =(VLOOKUP(H79,Dung_Stamm!$C$34:$E$41,2,FALSE)*K79*L79/365*O79/24 *IF(O79<=1,0,IF(O79<=1.5,0.8,IF(O79<=3,0.9,1))) *VLOOKUP(VLOOKUP(H79,Dung_Stamm!$C$34:$E$41,3,FALSE),$C$39:$G$44,5,FALSE)/VLOOKUP(VLOOKUP(H79,Dung_Stamm!$C$34:$E$41,3,FALSE),$C$39:$G$44,3,FALSE)) /F20 ->  | V79: =(VLOOKUP(H79,Dung_Stamm!$C$34:$E$41,2,FALSE)*K79*L79/365*O79/24 *IF(O79<=1,0,IF(O79<=1.5,0.8,IF(O79<=3,0.9,1))) *VLOOKUP(VLOOKUP(H79,Dung_Stamm!$C$34:$E$41,3,FALSE),$C$39:$H$44,6,FALSE)/VLOOKUP(VLOOKUP(H79,Dung_Stamm!$C$34:$E$41,3,FALSE),$C$39:$H$44,3,FALSE)) /F20 -> 
A80: 8 | B80: 1 | T80: =(VLOOKUP(H80,Dung_Stamm!$C$34:$E$41,2,FALSE)*K80*L80/365*O80/24 *IF(O80<=1,0,IF(O80<=1.5,0.8,IF(O80<=3,0.9,1))) *VLOOKUP(VLOOKUP(H80,Dung_Stamm!$C$34:$E$41,3,FALSE),$C$39:$F$44,4,FALSE)/VLOOKUP(VLOOKUP(H80,Dung_Stamm!$C$34:$E$41,3,FALSE),$C$39:$F$44,3,FALSE)) /F21 ->  | U80: =(VLOOKUP(H80,Dung_Stamm!$C$34:$E$41,2,FALSE)*K80*L80/365*O80/24 *IF(O80<=1,0,IF(O80<=1.5,0.8,IF(O80<=3,0.9,1))) *VLOOKUP(VLOOKUP(H80,Dung_Stamm!$C$34:$E$41,3,FALSE),$C$39:$G$44,5,FALSE)/VLOOKUP(VLOOKUP(H80,Dung_Stamm!$C$34:$E$41,3,FALSE),$C$39:$G$44,3,FALSE)) /F21 ->  | V80: =(VLOOKUP(H80,Dung_Stamm!$C$34:$E$41,2,FALSE)*K80*L80/365*O80/24 *IF(O80<=1,0,IF(O80<=1.5,0.8,IF(O80<=3,0.9,1))) *VLOOKUP(VLOOKUP(H80,Dung_Stamm!$C$34:$E$41,3,FALSE),$C$39:$H$44,6,FALSE)/VLOOKUP(VLOOKUP(H80,Dung_Stamm!$C$34:$E$41,3,FALSE),$C$39:$H$44,3,FALSE)) /F21 -> 
A81: 9 | B81: 1 | T81: =(VLOOKUP(H81,Dung_Stamm!$C$34:$E$41,2,FALSE)*K81*L81/365*O81/24 *IF(O81<=1,0,IF(O81<=1.5,0.8,IF(O81<=3,0.9,1))) *VLOOKUP(VLOOKUP(H81,Dung_Stamm!$C$34:$E$41,3,FALSE),$C$39:$F$44,4,FALSE)/VLOOKUP(VLOOKUP(H81,Dung_Stamm!$C$34:$E$41,3,FALSE),$C$39:$F$44,3,FALSE)) /F22 ->  | U81: =(VLOOKUP(H81,Dung_Stamm!$C$34:$E$41,2,FALSE)*K81*L81/365*O81/24 *IF(O81<=1,0,IF(O81<=1.5,0.8,IF(O81<=3,0.9,1))) *VLOOKUP(VLOOKUP(H81,Dung_Stamm!$C$34:$E$41,3,FALSE),$C$39:$G$44,5,FALSE)/VLOOKUP(VLOOKUP(H81,Dung_Stamm!$C$34:$E$41,3,FALSE),$C$39:$G$44,3,FALSE)) /F22 ->  | V81: =(VLOOKUP(H81,Dung_Stamm!$C$34:$E$41,2,FALSE)*K81*L81/365*O81/24 *IF(O81<=1,0,IF(O81<=1.5,0.8,IF(O81<=3,0.9,1))) *VLOOKUP(VLOOKUP(H81,Dung_Stamm!$C$34:$E$41,3,FALSE),$C$39:$H$44,6,FALSE)/VLOOKUP(VLOOKUP(H81,Dung_Stamm!$C$34:$E$41,3,FALSE),$C$39:$H$44,3,FALSE)) /F22 -> 
A82: 10 | B82: 1 | T82: =(VLOOKUP(H82,Dung_Stamm!$C$34:$E$41,2,FALSE)*K82*L82/365*O82/24 *IF(O82<=1,0,IF(O82<=1.5,0.8,IF(O82<=3,0.9,1))) *VLOOKUP(VLOOKUP(H82,Dung_Stamm!$C$34:$E$41,3,FALSE),$C$39:$F$44,4,FALSE)/VLOOKUP(VLOOKUP(H82,Dung_Stamm!$C$34:$E$41,3,FALSE),$C$39:$F$44,3,FALSE)) /F23 ->  | U82: =(VLOOKUP(H82,Dung_Stamm!$C$34:$E$41,2,FALSE)*K82*L82/365*O82/24 *IF(O82<=1,0,IF(O82<=1.5,0.8,IF(O82<=3,0.9,1))) *VLOOKUP(VLOOKUP(H82,Dung_Stamm!$C$34:$E$41,3,FALSE),$C$39:$G$44,5,FALSE)/VLOOKUP(VLOOKUP(H82,Dung_Stamm!$C$34:$E$41,3,FALSE),$C$39:$G$44,3,FALSE)) /F23 ->  | V82: =(VLOOKUP(H82,Dung_Stamm!$C$34:$E$41,2,FALSE)*K82*L82/365*O82/24 *IF(O82<=1,0,IF(O82<=1.5,0.8,IF(O82<=3,0.9,1))) *VLOOKUP(VLOOKUP(H82,Dung_Stamm!$C$34:$E$41,3,FALSE),$C$39:$H$44,6,FALSE)/VLOOKUP(VLOOKUP(H82,Dung_Stamm!$C$34:$E$41,3,FALSE),$C$39:$H$44,3,FALSE)) /F23 -> 
A83: 11 | B83: 1 | T83: =(VLOOKUP(H83,Dung_Stamm!$C$34:$E$41,2,FALSE)*K83*L83/365*O83/24 *IF(O83<=1,0,IF(O83<=1.5,0.8,IF(O83<=3,0.9,1))) *VLOOKUP(VLOOKUP(H83,Dung_Stamm!$C$34:$E$41,3,FALSE),$C$39:$F$44,4,FALSE)/VLOOKUP(VLOOKUP(H83,Dung_Stamm!$C$34:$E$41,3,FALSE),$C$39:$F$44,3,FALSE)) /F24 ->  | U83: =(VLOOKUP(H83,Dung_Stamm!$C$34:$E$41,2,FALSE)*K83*L83/365*O83/24 *IF(O83<=1,0,IF(O83<=1.5,0.8,IF(O83<=3,0.9,1))) *VLOOKUP(VLOOKUP(H83,Dung_Stamm!$C$34:$E$41,3,FALSE),$C$39:$G$44,5,FALSE)/VLOOKUP(VLOOKUP(H83,Dung_Stamm!$C$34:$E$41,3,FALSE),$C$39:$G$44,3,FALSE)) /F24 ->  | V83: =(VLOOKUP(H83,Dung_Stamm!$C$34:$E$41,2,FALSE)*K83*L83/365*O83/24 *IF(O83<=1,0,IF(O83<=1.5,0.8,IF(O83<=3,0.9,1))) *VLOOKUP(VLOOKUP(H83,Dung_Stamm!$C$34:$E$41,3,FALSE),$C$39:$H$44,6,FALSE)/VLOOKUP(VLOOKUP(H83,Dung_Stamm!$C$34:$E$41,3,FALSE),$C$39:$H$44,3,FALSE)) /F24 -> 
A84: 12 | B84: 1 | T84: =(VLOOKUP(H84,Dung_Stamm!$C$34:$E$41,2,FALSE)*K84*L84/365*O84/24 *IF(O84<=1,0,IF(O84<=1.5,0.8,IF(O84<=3,0.9,1))) *VLOOKUP(VLOOKUP(H84,Dung_Stamm!$C$34:$E$41,3,FALSE),$C$39:$F$44,4,FALSE)/VLOOKUP(VLOOKUP(H84,Dung_Stamm!$C$34:$E$41,3,FALSE),$C$39:$F$44,3,FALSE)) /F25 ->  | U84: =(VLOOKUP(H84,Dung_Stamm!$C$34:$E$41,2,FALSE)*K84*L84/365*O84/24 *IF(O84<=1,0,IF(O84<=1.5,0.8,IF(O84<=3,0.9,1))) *VLOOKUP(VLOOKUP(H84,Dung_Stamm!$C$34:$E$41,3,FALSE),$C$39:$G$44,5,FALSE)/VLOOKUP(VLOOKUP(H84,Dung_Stamm!$C$34:$E$41,3,FALSE),$C$39:$G$44,3,FALSE)) /F25 ->  | V84: =(VLOOKUP(H84,Dung_Stamm!$C$34:$E$41,2,FALSE)*K84*L84/365*O84/24 *IF(O84<=1,0,IF(O84<=1.5,0.8,IF(O84<=3,0.9,1))) *VLOOKUP(VLOOKUP(H84,Dung_Stamm!$C$34:$E$41,3,FALSE),$C$39:$H$44,6,FALSE)/VLOOKUP(VLOOKUP(H84,Dung_Stamm!$C$34:$E$41,3,FALSE),$C$39:$H$44,3,FALSE)) /F25 -> 
A85: 13 | B85: 1 | T85: =(VLOOKUP(H85,Dung_Stamm!$C$34:$E$41,2,FALSE)*K85*L85/365*O85/24 *IF(O85<=1,0,IF(O85<=1.5,0.8,IF(O85<=3,0.9,1))) *VLOOKUP(VLOOKUP(H85,Dung_Stamm!$C$34:$E$41,3,FALSE),$C$39:$F$44,4,FALSE)/VLOOKUP(VLOOKUP(H85,Dung_Stamm!$C$34:$E$41,3,FALSE),$C$39:$F$44,3,FALSE)) /F26 ->  | U85: =(VLOOKUP(H85,Dung_Stamm!$C$34:$E$41,2,FALSE)*K85*L85/365*O85/24 *IF(O85<=1,0,IF(O85<=1.5,0.8,IF(O85<=3,0.9,1))) *VLOOKUP(VLOOKUP(H85,Dung_Stamm!$C$34:$E$41,3,FALSE),$C$39:$G$44,5,FALSE)/VLOOKUP(VLOOKUP(H85,Dung_Stamm!$C$34:$E$41,3,FALSE),$C$39:$G$44,3,FALSE)) /F26 ->  | V85: =(VLOOKUP(H85,Dung_Stamm!$C$34:$E$41,2,FALSE)*K85*L85/365*O85/24 *IF(O85<=1,0,IF(O85<=1.5,0.8,IF(O85<=3,0.9,1))) *VLOOKUP(VLOOKUP(H85,Dung_Stamm!$C$34:$E$41,3,FALSE),$C$39:$H$44,6,FALSE)/VLOOKUP(VLOOKUP(H85,Dung_Stamm!$C$34:$E$41,3,FALSE),$C$39:$H$44,3,FALSE)) /F26 -> 
A86: 14 | B86: 1 | T86: =(VLOOKUP(H86,Dung_Stamm!$C$34:$E$41,2,FALSE)*K86*L86/365*O86/24 *IF(O86<=1,0,IF(O86<=1.5,0.8,IF(O86<=3,0.9,1))) *VLOOKUP(VLOOKUP(H86,Dung_Stamm!$C$34:$E$41,3,FALSE),$C$39:$F$44,4,FALSE)/VLOOKUP(VLOOKUP(H86,Dung_Stamm!$C$34:$E$41,3,FALSE),$C$39:$F$44,3,FALSE)) /F27 ->  | U86: =(VLOOKUP(H86,Dung_Stamm!$C$34:$E$41,2,FALSE)*K86*L86/365*O86/24 *IF(O86<=1,0,IF(O86<=1.5,0.8,IF(O86<=3,0.9,1))) *VLOOKUP(VLOOKUP(H86,Dung_Stamm!$C$34:$E$41,3,FALSE),$C$39:$G$44,5,FALSE)/VLOOKUP(VLOOKUP(H86,Dung_Stamm!$C$34:$E$41,3,FALSE),$C$39:$G$44,3,FALSE)) /F27 ->  | V86: =(VLOOKUP(H86,Dung_Stamm!$C$34:$E$41,2,FALSE)*K86*L86/365*O86/24 *IF(O86<=1,0,IF(O86<=1.5,0.8,IF(O86<=3,0.9,1))) *VLOOKUP(VLOOKUP(H86,Dung_Stamm!$C$34:$E$41,3,FALSE),$C$39:$H$44,6,FALSE)/VLOOKUP(VLOOKUP(H86,Dung_Stamm!$C$34:$E$41,3,FALSE),$C$39:$H$44,3,FALSE)) /F27 -> 
A87: 15 | B87: 1 | T87: =(VLOOKUP(H87,Dung_Stamm!$C$34:$E$41,2,FALSE)*K87*L87/365*O87/24 *IF(O87<=1,0,IF(O87<=1.5,0.8,IF(O87<=3,0.9,1))) *VLOOKUP(VLOOKUP(H87,Dung_Stamm!$C$34:$E$41,3,FALSE),$C$39:$F$44,4,FALSE)/VLOOKUP(VLOOKUP(H87,Dung_Stamm!$C$34:$E$41,3,FALSE),$C$39:$F$44,3,FALSE)) /F28 ->  | U87: =(VLOOKUP(H87,Dung_Stamm!$C$34:$E$41,2,FALSE)*K87*L87/365*O87/24 *IF(O87<=1,0,IF(O87<=1.5,0.8,IF(O87<=3,0.9,1))) *VLOOKUP(VLOOKUP(H87,Dung_Stamm!$C$34:$E$41,3,FALSE),$C$39:$G$44,5,FALSE)/VLOOKUP(VLOOKUP(H87,Dung_Stamm!$C$34:$E$41,3,FALSE),$C$39:$G$44,3,FALSE)) /F28 ->  | V87: =(VLOOKUP(H87,Dung_Stamm!$C$34:$E$41,2,FALSE)*K87*L87/365*O87/24 *IF(O87<=1,0,IF(O87<=1.5,0.8,IF(O87<=3,0.9,1))) *VLOOKUP(VLOOKUP(H87,Dung_Stamm!$C$34:$E$41,3,FALSE),$C$39:$H$44,6,FALSE)/VLOOKUP(VLOOKUP(H87,Dung_Stamm!$C$34:$E$41,3,FALSE),$C$39:$H$44,3,FALSE)) /F28 -> 
A88: 16 | B88: 1 | T88: =(VLOOKUP(H88,Dung_Stamm!$C$34:$E$41,2,FALSE)*K88*L88/365*O88/24 *IF(O88<=1,0,IF(O88<=1.5,0.8,IF(O88<=3,0.9,1))) *VLOOKUP(VLOOKUP(H88,Dung_Stamm!$C$34:$E$41,3,FALSE),$C$39:$F$44,4,FALSE)/VLOOKUP(VLOOKUP(H88,Dung_Stamm!$C$34:$E$41,3,FALSE),$C$39:$F$44,3,FALSE)) /F29 ->  | U88: =(VLOOKUP(H88,Dung_Stamm!$C$34:$E$41,2,FALSE)*K88*L88/365*O88/24 *IF(O88<=1,0,IF(O88<=1.5,0.8,IF(O88<=3,0.9,1))) *VLOOKUP(VLOOKUP(H88,Dung_Stamm!$C$34:$E$41,3,FALSE),$C$39:$G$44,5,FALSE)/VLOOKUP(VLOOKUP(H88,Dung_Stamm!$C$34:$E$41,3,FALSE),$C$39:$G$44,3,FALSE)) /F29 ->  | V88: =(VLOOKUP(H88,Dung_Stamm!$C$34:$E$41,2,FALSE)*K88*L88/365*O88/24 *IF(O88<=1,0,IF(O88<=1.5,0.8,IF(O88<=3,0.9,1))) *VLOOKUP(VLOOKUP(H88,Dung_Stamm!$C$34:$E$41,3,FALSE),$C$39:$H$44,6,FALSE)/VLOOKUP(VLOOKUP(H88,Dung_Stamm!$C$34:$E$41,3,FALSE),$C$39:$H$44,3,FALSE)) /F29 -> 
A89: 17 | B89: 1 | T89: =(VLOOKUP(H89,Dung_Stamm!$C$34:$E$41,2,FALSE)*K89*L89/365*O89/24 *IF(O89<=1,0,IF(O89<=1.5,0.8,IF(O89<=3,0.9,1))) *VLOOKUP(VLOOKUP(H89,Dung_Stamm!$C$34:$E$41,3,FALSE),$C$39:$F$44,4,FALSE)/VLOOKUP(VLOOKUP(H89,Dung_Stamm!$C$34:$E$41,3,FALSE),$C$39:$F$44,3,FALSE)) /F30 ->  | U89: =(VLOOKUP(H89,Dung_Stamm!$C$34:$E$41,2,FALSE)*K89*L89/365*O89/24 *IF(O89<=1,0,IF(O89<=1.5,0.8,IF(O89<=3,0.9,1))) *VLOOKUP(VLOOKUP(H89,Dung_Stamm!$C$34:$E$41,3,FALSE),$C$39:$G$44,5,FALSE)/VLOOKUP(VLOOKUP(H89,Dung_Stamm!$C$34:$E$41,3,FALSE),$C$39:$G$44,3,FALSE)) /F30 ->  | V89: =(VLOOKUP(H89,Dung_Stamm!$C$34:$E$41,2,FALSE)*K89*L89/365*O89/24 *IF(O89<=1,0,IF(O89<=1.5,0.8,IF(O89<=3,0.9,1))) *VLOOKUP(VLOOKUP(H89,Dung_Stamm!$C$34:$E$41,3,FALSE),$C$39:$H$44,6,FALSE)/VLOOKUP(VLOOKUP(H89,Dung_Stamm!$C$34:$E$41,3,FALSE),$C$39:$H$44,3,FALSE)) /F30 -> 
A90: 18 | B90: 1 | T90: =(VLOOKUP(H90,Dung_Stamm!$C$34:$E$41,2,FALSE)*K90*L90/365*O90/24 *IF(O90<=1,0,IF(O90<=1.5,0.8,IF(O90<=3,0.9,1))) *VLOOKUP(VLOOKUP(H90,Dung_Stamm!$C$34:$E$41,3,FALSE),$C$39:$F$44,4,FALSE)/VLOOKUP(VLOOKUP(H90,Dung_Stamm!$C$34:$E$41,3,FALSE),$C$39:$F$44,3,FALSE)) /F31 ->  | U90: =(VLOOKUP(H90,Dung_Stamm!$C$34:$E$41,2,FALSE)*K90*L90/365*O90/24 *IF(O90<=1,0,IF(O90<=1.5,0.8,IF(O90<=3,0.9,1))) *VLOOKUP(VLOOKUP(H90,Dung_Stamm!$C$34:$E$41,3,FALSE),$C$39:$G$44,5,FALSE)/VLOOKUP(VLOOKUP(H90,Dung_Stamm!$C$34:$E$41,3,FALSE),$C$39:$G$44,3,FALSE)) /F31 ->  | V90: =(VLOOKUP(H90,Dung_Stamm!$C$34:$E$41,2,FALSE)*K90*L90/365*O90/24 *IF(O90<=1,0,IF(O90<=1.5,0.8,IF(O90<=3,0.9,1))) *VLOOKUP(VLOOKUP(H90,Dung_Stamm!$C$34:$E$41,3,FALSE),$C$39:$H$44,6,FALSE)/VLOOKUP(VLOOKUP(H90,Dung_Stamm!$C$34:$E$41,3,FALSE),$C$39:$H$44,3,FALSE)) /F31 -> 
A91: 19 | B91: 1 | T91: =(VLOOKUP(H91,Dung_Stamm!$C$34:$E$41,2,FALSE)*K91*L91/365*O91/24 *IF(O91<=1,0,IF(O91<=1.5,0.8,IF(O91<=3,0.9,1))) *VLOOKUP(VLOOKUP(H91,Dung_Stamm!$C$34:$E$41,3,FALSE),$C$39:$F$44,4,FALSE)/VLOOKUP(VLOOKUP(H91,Dung_Stamm!$C$34:$E$41,3,FALSE),$C$39:$F$44,3,FALSE)) /F32 ->  | U91: =(VLOOKUP(H91,Dung_Stamm!$C$34:$E$41,2,FALSE)*K91*L91/365*O91/24 *IF(O91<=1,0,IF(O91<=1.5,0.8,IF(O91<=3,0.9,1))) *VLOOKUP(VLOOKUP(H91,Dung_Stamm!$C$34:$E$41,3,FALSE),$C$39:$G$44,5,FALSE)/VLOOKUP(VLOOKUP(H91,Dung_Stamm!$C$34:$E$41,3,FALSE),$C$39:$G$44,3,FALSE)) /F32 ->  | V91: =(VLOOKUP(H91,Dung_Stamm!$C$34:$E$41,2,FALSE)*K91*L91/365*O91/24 *IF(O91<=1,0,IF(O91<=1.5,0.8,IF(O91<=3,0.9,1))) *VLOOKUP(VLOOKUP(H91,Dung_Stamm!$C$34:$E$41,3,FALSE),$C$39:$H$44,6,FALSE)/VLOOKUP(VLOOKUP(H91,Dung_Stamm!$C$34:$E$41,3,FALSE),$C$39:$H$44,3,FALSE)) /F32 -> 
A92: 20 | B92: - | C92: Grünland | T92: =(VLOOKUP(H92,Dung_Stamm!$C$34:$E$41,2,FALSE)*K92*L92/365*O92/24 *IF(O92<=1,0,IF(O92<=1.5,0.8,IF(O92<=3,0.9,1))) *VLOOKUP(VLOOKUP(H92,Dung_Stamm!$C$34:$E$41,3,FALSE),$C$39:$F$44,4,FALSE)/VLOOKUP(VLOOKUP(H92,Dung_Stamm!$C$34:$E$41,3,FALSE),$C$39:$F$44,3,FALSE)) /F33 ->  | U92: =(VLOOKUP(H92,Dung_Stamm!$C$34:$E$41,2,FALSE)*K92*L92/365*O92/24 *IF(O92<=1,0,IF(O92<=1.5,0.8,IF(O92<=3,0.9,1))) *VLOOKUP(VLOOKUP(H92,Dung_Stamm!$C$34:$E$41,3,FALSE),$C$39:$G$44,5,FALSE)/VLOOKUP(VLOOKUP(H92,Dung_Stamm!$C$34:$E$41,3,FALSE),$C$39:$G$44,3,FALSE)) /F33 ->  | V92: =(VLOOKUP(H92,Dung_Stamm!$C$34:$E$41,2,FALSE)*K92*L92/365*O92/24 *IF(O92<=1,0,IF(O92<=1.5,0.8,IF(O92<=3,0.9,1))) *VLOOKUP(VLOOKUP(H92,Dung_Stamm!$C$34:$E$41,3,FALSE),$C$39:$H$44,6,FALSE)/VLOOKUP(VLOOKUP(H92,Dung_Stamm!$C$34:$E$41,3,FALSE),$C$39:$H$44,3,FALSE)) /F33 -> 

Sheet Druckansicht_HuBi (hidden)
A1: Druckansicht
B2: Dynamische Humusbilanz für die landwirtschaftliche Betriebsberatung | O2: =#REF! -> 
O3: =#REF! -> 
C4: Betriebsname | D4: ='1_Eingabe_Humus'!E5 -> 0 | H4: Datum | J4: ='1_Eingabe_Humus'!M5 -> 0
C5: Betriebstyp | D5: =IF('1_Eingabe_Humus'!$J$6=2,"ökologisch","konventionell") -> ökologisch | H5: Bearbeiter | J5: ='1_Eingabe_Humus'!M6 -> 0
C6: Erntejahr | D6: ='1_Eingabe_Humus'!E7 -> 0
B8: FF | C8: kg Humus-C/ha | D8: Fläche (ha) | E8: Acker-zahl | F8: Ertrag (dt FM/ha) | G8: Brutto-bedarf | H8: Mehrer-leistung | I8: Stroh-düngung | J8: Grün-düngung | K8: Netto-bedarf | L8: Stallmist | M8: Gülle | N8: Sonstige | O8: Ersatz-leistung | P8: Humus-saldo | Q8: Humus-saldo CC
A9: 1 | B9: ='1_Eingabe_Humus'!#REF! ->  | C9: ='1_Eingabe_Humus'!#REF! ->  | D9: ='1_Eingabe_Humus'!#REF! ->  | E9: =IF('1_Eingabe_Humus'!G14=0,"",'1_Eingabe_Humus'!G14) -> 20 | F9: =IF('1_Eingabe_Humus'!H14=0,"",'1_Eingabe_Humus'!H14) -> 20 | G9: ='1_Eingabe_Humus'!#REF! ->  | H9: ='1_Eingabe_Humus'!#REF! ->  | I9: ='1_Eingabe_Humus'!#REF! ->  | J9: ='1_Eingabe_Humus'!#REF! ->  | K9: ='1_Eingabe_Humus'!#REF! ->  | L9: ='1_Eingabe_Humus'!#REF! ->  | M9: ='1_Eingabe_Humus'!#REF! ->  | N9: ='1_Eingabe_Humus'!#REF! ->  | O9: ='1_Eingabe_Humus'!#REF! ->  | P9: ='1_Eingabe_Humus'!#REF! ->  | Q9: ='1_Eingabe_Humus'!#REF! -> 
A10: 2 | B10: ='1_Eingabe_Humus'!#REF! ->  | C10: ='1_Eingabe_Humus'!#REF! ->  | D10: ='1_Eingabe_Humus'!#REF! ->  | E10: =IF('1_Eingabe_Humus'!G15=0,"",'1_Eingabe_Humus'!G15) ->  | F10: =IF('1_Eingabe_Humus'!H15=0,"",'1_Eingabe_Humus'!H15) ->  | G10: ='1_Eingabe_Humus'!#REF! ->  | H10: ='1_Eingabe_Humus'!#REF! ->  | I10: ='1_Eingabe_Humus'!#REF! ->  | J10: ='1_Eingabe_Humus'!#REF! ->  | K10: ='1_Eingabe_Humus'!#REF! ->  | L10: ='1_Eingabe_Humus'!#REF! ->  | M10: ='1_Eingabe_Humus'!#REF! ->  | N10: ='1_Eingabe_Humus'!#REF! ->  | O10: ='1_Eingabe_Humus'!#REF! ->  | P10: ='1_Eingabe_Humus'!#REF! ->  | Q10: ='1_Eingabe_Humus'!#REF! -> 
A11: 3 | B11: ='1_Eingabe_Humus'!#REF! ->  | C11: ='1_Eingabe_Humus'!#REF! ->  | D11: ='1_Eingabe_Humus'!#REF! ->  | E11: =IF('1_Eingabe_Humus'!G16=0,"",'1_Eingabe_Humus'!G16) ->  | F11: =IF('1_Eingabe_Humus'!H16=0,"",'1_Eingabe_Humus'!H16) ->  | G11: ='1_Eingabe_Humus'!#REF! ->  | H11: ='1_Eingabe_Humus'!#REF! ->  | I11: ='1_Eingabe_Humus'!#REF! ->  | J11: ='1_Eingabe_Humus'!#REF! ->  | K11: ='1_Eingabe_Humus'!#REF! ->  | L11: ='1_Eingabe_Humus'!#REF! ->  | M11: ='1_Eingabe_Humus'!#REF! ->  | N11: ='1_Eingabe_Humus'!#REF! ->  | O11: ='1_Eingabe_Humus'!#REF! ->  | P11: ='1_Eingabe_Humus'!#REF! ->  | Q11: ='1_Eingabe_Humus'!#REF! -> 
A12: 4 | B12: ='1_Eingabe_Humus'!#REF! ->  | C12: ='1_Eingabe_Humus'!#REF! ->  | D12: ='1_Eingabe_Humus'!#REF! ->  | E12: =IF('1_Eingabe_Humus'!G17=0,"",'1_Eingabe_Humus'!G17) ->  | F12: =IF('1_Eingabe_Humus'!H17=0,"",'1_Eingabe_Humus'!H17) ->  | G12: ='1_Eingabe_Humus'!#REF! ->  | H12: ='1_Eingabe_Humus'!#REF! ->  | I12: ='1_Eingabe_Humus'!#REF! ->  | J12: ='1_Eingabe_Humus'!#REF! ->  | K12: ='1_Eingabe_Humus'!#REF! ->  | L12: ='1_Eingabe_Humus'!#REF! ->  | M12: ='1_Eingabe_Humus'!#REF! ->  | N12: ='1_Eingabe_Humus'!#REF! ->  | O12: ='1_Eingabe_Humus'!#REF! ->  | P12: ='1_Eingabe_Humus'!#REF! ->  | Q12: ='1_Eingabe_Humus'!#REF! -> 
A13: 5 | B13: ='1_Eingabe_Humus'!#REF! ->  | C13: ='1_Eingabe_Humus'!#REF! ->  | D13: ='1_Eingabe_Humus'!#REF! ->  | E13: =IF('1_Eingabe_Humus'!G18=0,"",'1_Eingabe_Humus'!G18) ->  | F13: =IF('1_Eingabe_Humus'!H18=0,"",'1_Eingabe_Humus'!H18) ->  | G13: ='1_Eingabe_Humus'!#REF! ->  | H13: ='1_Eingabe_Humus'!#REF! ->  | I13: ='1_Eingabe_Humus'!#REF! ->  | J13: ='1_Eingabe_Humus'!#REF! ->  | K13: ='1_Eingabe_Humus'!#REF! ->  | L13: ='1_Eingabe_Humus'!#REF! ->  | M13: ='1_Eingabe_Humus'!#REF! ->  | N13: ='1_Eingabe_Humus'!#REF! ->  | O13: ='1_Eingabe_Humus'!#REF! ->  | P13: ='1_Eingabe_Humus'!#REF! ->  | Q13: ='1_Eingabe_Humus'!#REF! -> 
A14: 6 | B14: ='1_Eingabe_Humus'!#REF! ->  | C14: ='1_Eingabe_Humus'!#REF! ->  | D14: ='1_Eingabe_Humus'!#REF! ->  | E14: =IF('1_Eingabe_Humus'!G19=0,"",'1_Eingabe_Humus'!G19) ->  | F14: =IF('1_Eingabe_Humus'!H19=0,"",'1_Eingabe_Humus'!H19) ->  | G14: ='1_Eingabe_Humus'!#REF! ->  | H14: ='1_Eingabe_Humus'!#REF! ->  | I14: ='1_Eingabe_Humus'!#REF! ->  | J14: ='1_Eingabe_Humus'!#REF! ->  | K14: ='1_Eingabe_Humus'!#REF! ->  | L14: ='1_Eingabe_Humus'!#REF! ->  | M14: ='1_Eingabe_Humus'!#REF! ->  | N14: ='1_Eingabe_Humus'!#REF! ->  | O14: ='1_Eingabe_Humus'!#REF! ->  | P14: ='1_Eingabe_Humus'!#REF! ->  | Q14: ='1_Eingabe_Humus'!#REF! -> 
A15: 7 | B15: ='1_Eingabe_Humus'!#REF! ->  | C15: ='1_Eingabe_Humus'!#REF! ->  | D15: ='1_Eingabe_Humus'!#REF! ->  | E15: =IF('1_Eingabe_Humus'!G20=0,"",'1_Eingabe_Humus'!G20) ->  | F15: =IF('1_Eingabe_Humus'!H20=0,"",'1_Eingabe_Humus'!H20) ->  | G15: ='1_Eingabe_Humus'!#REF! ->  | H15: ='1_Eingabe_Humus'!#REF! ->  | I15: ='1_Eingabe_Humus'!#REF! ->  | J15: ='1_Eingabe_Humus'!#REF! ->  | K15: ='1_Eingabe_Humus'!#REF! ->  | L15: ='1_Eingabe_Humus'!#REF! ->  | M15: ='1_Eingabe_Humus'!#REF! ->  | N15: ='1_Eingabe_Humus'!#REF! ->  | O15: ='1_Eingabe_Humus'!#REF! ->  | P15: ='1_Eingabe_Humus'!#REF! ->  | Q15: ='1_Eingabe_Humus'!#REF! -> 
A16: 8 | B16: ='1_Eingabe_Humus'!#REF! ->  | C16: ='1_Eingabe_Humus'!#REF! ->  | D16: ='1_Eingabe_Humus'!#REF! ->  | E16: =IF('1_Eingabe_Humus'!G21=0,"",'1_Eingabe_Humus'!G21) ->  | F16: =IF('1_Eingabe_Humus'!H21=0,"",'1_Eingabe_Humus'!H21) ->  | G16: ='1_Eingabe_Humus'!#REF! ->  | H16: ='1_Eingabe_Humus'!#REF! ->  | I16: ='1_Eingabe_Humus'!#REF! ->  | J16: ='1_Eingabe_Humus'!#REF! ->  | K16: ='1_Eingabe_Humus'!#REF! ->  | L16: ='1_Eingabe_Humus'!#REF! ->  | M16: ='1_Eingabe_Humus'!#REF! ->  | N16: ='1_Eingabe_Humus'!#REF! ->  | O16: ='1_Eingabe_Humus'!#REF! ->  | P16: ='1_Eingabe_Humus'!#REF! ->  | Q16: ='1_Eingabe_Humus'!#REF! -> 
A17: 9 | B17: ='1_Eingabe_Humus'!#REF! ->  | C17: ='1_Eingabe_Humus'!#REF! ->  | D17: ='1_Eingabe_Humus'!#REF! ->  | E17: =IF('1_Eingabe_Humus'!G22=0,"",'1_Eingabe_Humus'!G22) ->  | F17: =IF('1_Eingabe_Humus'!H22=0,"",'1_Eingabe_Humus'!H22) ->  | G17: ='1_Eingabe_Humus'!#REF! ->  | H17: ='1_Eingabe_Humus'!#REF! ->  | I17: ='1_Eingabe_Humus'!#REF! ->  | J17: ='1_Eingabe_Humus'!#REF! ->  | K17: ='1_Eingabe_Humus'!#REF! ->  | L17: ='1_Eingabe_Humus'!#REF! ->  | M17: ='1_Eingabe_Humus'!#REF! ->  | N17: ='1_Eingabe_Humus'!#REF! ->  | O17: ='1_Eingabe_Humus'!#REF! ->  | P17: ='1_Eingabe_Humus'!#REF! ->  | Q17: ='1_Eingabe_Humus'!#REF! -> 
A18: 10 | B18: ='1_Eingabe_Humus'!#REF! ->  | C18: ='1_Eingabe_Humus'!#REF! ->  | D18: ='1_Eingabe_Humus'!#REF! ->  | E18: =IF('1_Eingabe_Humus'!G23=0,"",'1_Eingabe_Humus'!G23) ->  | F18: =IF('1_Eingabe_Humus'!H23=0,"",'1_Eingabe_Humus'!H23) ->  | G18: ='1_Eingabe_Humus'!#REF! ->  | H18: ='1_Eingabe_Humus'!#REF! ->  | I18: ='1_Eingabe_Humus'!#REF! ->  | J18: ='1_Eingabe_Humus'!#REF! ->  | K18: ='1_Eingabe_Humus'!#REF! ->  | L18: ='1_Eingabe_Humus'!#REF! ->  | M18: ='1_Eingabe_Humus'!#REF! ->  | N18: ='1_Eingabe_Humus'!#REF! ->  | O18: ='1_Eingabe_Humus'!#REF! ->  | P18: ='1_Eingabe_Humus'!#REF! ->  | Q18: ='1_Eingabe_Humus'!#REF! -> 
A19: 11 | B19: ='1_Eingabe_Humus'!#REF! ->  | C19: ='1_Eingabe_Humus'!#REF! ->  | D19: ='1_Eingabe_Humus'!#REF! ->  | E19: =IF('1_Eingabe_Humus'!G24=0,"",'1_Eingabe_Humus'!G24) ->  | F19: =IF('1_Eingabe_Humus'!H24=0,"",'1_Eingabe_Humus'!H24) ->  | G19: ='1_Eingabe_Humus'!#REF! ->  | H19: ='1_Eingabe_Humus'!#REF! ->  | I19: ='1_Eingabe_Humus'!#REF! ->  | J19: ='1_Eingabe_Humus'!#REF! ->  | K19: ='1_Eingabe_Humus'!#REF! ->  | L19: ='1_Eingabe_Humus'!#REF! ->  | M19: ='1_Eingabe_Humus'!#REF! ->  | N19: ='1_Eingabe_Humus'!#REF! ->  | O19: ='1_Eingabe_Humus'!#REF! ->  | P19: ='1_Eingabe_Humus'!#REF! ->  | Q19: ='1_Eingabe_Humus'!#REF! -> 
A20: 12 | B20: ='1_Eingabe_Humus'!#REF! ->  | C20: ='1_Eingabe_Humus'!#REF! ->  | D20: ='1_Eingabe_Humus'!#REF! ->  | E20: =IF('1_Eingabe_Humus'!G25=0,"",'1_Eingabe_Humus'!G25) ->  | F20: =IF('1_Eingabe_Humus'!H25=0,"",'1_Eingabe_Humus'!H25) ->  | G20: ='1_Eingabe_Humus'!#REF! ->  | H20: ='1_Eingabe_Humus'!#REF! ->  | I20: ='1_Eingabe_Humus'!#REF! ->  | J20: ='1_Eingabe_Humus'!#REF! ->  | K20: ='1_Eingabe_Humus'!#REF! ->  | L20: ='1_Eingabe_Humus'!#REF! ->  | M20: ='1_Eingabe_Humus'!#REF! ->  | N20: ='1_Eingabe_Humus'!#REF! ->  | O20: ='1_Eingabe_Humus'!#REF! ->  | P20: ='1_Eingabe_Humus'!#REF! ->  | Q20: ='1_Eingabe_Humus'!#REF! -> 
A21: 13 | B21: ='1_Eingabe_Humus'!#REF! ->  | C21: ='1_Eingabe_Humus'!#REF! ->  | D21: ='1_Eingabe_Humus'!#REF! ->  | E21: =IF('1_Eingabe_Humus'!G26=0,"",'1_Eingabe_Humus'!G26) ->  | F21: =IF('1_Eingabe_Humus'!H26=0,"",'1_Eingabe_Humus'!H26) ->  | G21: ='1_Eingabe_Humus'!#REF! ->  | H21: ='1_Eingabe_Humus'!#REF! ->  | I21: ='1_Eingabe_Humus'!#REF! ->  | J21: ='1_Eingabe_Humus'!#REF! ->  | K21: ='1_Eingabe_Humus'!#REF! ->  | L21: ='1_Eingabe_Humus'!#REF! ->  | M21: ='1_Eingabe_Humus'!#REF! ->  | N21: ='1_Eingabe_Humus'!#REF! ->  | O21: ='1_Eingabe_Humus'!#REF! ->  | P21: ='1_Eingabe_Humus'!#REF! ->  | Q21: ='1_Eingabe_Humus'!#REF! -> 
A22: 14 | B22: ='1_Eingabe_Humus'!#REF! ->  | C22: ='1_Eingabe_Humus'!#REF! ->  | D22: ='1_Eingabe_Humus'!#REF! ->  | E22: =IF('1_Eingabe_Humus'!G27=0,"",'1_Eingabe_Humus'!G27) ->  | F22: =IF('1_Eingabe_Humus'!H27=0,"",'1_Eingabe_Humus'!H27) ->  | G22: ='1_Eingabe_Humus'!#REF! ->  | H22: ='1_Eingabe_Humus'!#REF! ->  | I22: ='1_Eingabe_Humus'!#REF! ->  | J22: ='1_Eingabe_Humus'!#REF! ->  | K22: ='1_Eingabe_Humus'!#REF! ->  | L22: ='1_Eingabe_Humus'!#REF! ->  | M22: ='1_Eingabe_Humus'!#REF! ->  | N22: ='1_Eingabe_Humus'!#REF! ->  | O22: ='1_Eingabe_Humus'!#REF! ->  | P22: ='1_Eingabe_Humus'!#REF! ->  | Q22: ='1_Eingabe_Humus'!#REF! -> 
A23: 15 | B23: ='1_Eingabe_Humus'!#REF! ->  | C23: ='1_Eingabe_Humus'!#REF! ->  | D23: ='1_Eingabe_Humus'!#REF! ->  | E23: =IF('1_Eingabe_Humus'!G28=0,"",'1_Eingabe_Humus'!G28) ->  | F23: =IF('1_Eingabe_Humus'!H28=0,"",'1_Eingabe_Humus'!H28) ->  | G23: ='1_Eingabe_Humus'!#REF! ->  | H23: ='1_Eingabe_Humus'!#REF! ->  | I23: ='1_Eingabe_Humus'!#REF! ->  | J23: ='1_Eingabe_Humus'!#REF! ->  | K23: ='1_Eingabe_Humus'!#REF! ->  | L23: ='1_Eingabe_Humus'!#REF! ->  | M23: ='1_Eingabe_Humus'!#REF! ->  | N23: ='1_Eingabe_Humus'!#REF! ->  | O23: ='1_Eingabe_Humus'!#REF! ->  | P23: ='1_Eingabe_Humus'!#REF! ->  | Q23: ='1_Eingabe_Humus'!#REF! -> 
A24: 16 | B24: ='1_Eingabe_Humus'!#REF! ->  | C24: ='1_Eingabe_Humus'!#REF! ->  | D24: ='1_Eingabe_Humus'!#REF! ->  | E24: =IF('1_Eingabe_Humus'!G29=0,"",'1_Eingabe_Humus'!G29) ->  | F24: =IF('1_Eingabe_Humus'!H29=0,"",'1_Eingabe_Humus'!H29) ->  | G24: ='1_Eingabe_Humus'!#REF! ->  | H24: ='1_Eingabe_Humus'!#REF! ->  | I24: ='1_Eingabe_Humus'!#REF! ->  | J24: ='1_Eingabe_Humus'!#REF! ->  | K24: ='1_Eingabe_Humus'!#REF! ->  | L24: ='1_Eingabe_Humus'!#REF! ->  | M24: ='1_Eingabe_Humus'!#REF! ->  | N24: ='1_Eingabe_Humus'!#REF! ->  | O24: ='1_Eingabe_Humus'!#REF! ->  | P24: ='1_Eingabe_Humus'!#REF! ->  | Q24: ='1_Eingabe_Humus'!#REF! -> 
A25: 17 | B25: ='1_Eingabe_Humus'!#REF! ->  | C25: ='1_Eingabe_Humus'!#REF! ->  | D25: ='1_Eingabe_Humus'!#REF! ->  | E25: =IF('1_Eingabe_Humus'!G30=0,"",'1_Eingabe_Humus'!G30) ->  | F25: =IF('1_Eingabe_Humus'!H30=0,"",'1_Eingabe_Humus'!H30) ->  | G25: ='1_Eingabe_Humus'!#REF! ->  | H25: ='1_Eingabe_Humus'!#REF! ->  | I25: ='1_Eingabe_Humus'!#REF! ->  | J25: ='1_Eingabe_Humus'!#REF! ->  | K25: ='1_Eingabe_Humus'!#REF! ->  | L25: ='1_Eingabe_Humus'!#REF! ->  | M25: ='1_Eingabe_Humus'!#REF! ->  | N25: ='1_Eingabe_Humus'!#REF! ->  | O25: ='1_Eingabe_Humus'!#REF! ->  | P25: ='1_Eingabe_Humus'!#REF! ->  | Q25: ='1_Eingabe_Humus'!#REF! -> 
A26: 18 | B26: ='1_Eingabe_Humus'!#REF! ->  | C26: ='1_Eingabe_Humus'!#REF! ->  | D26: ='1_Eingabe_Humus'!#REF! ->  | E26: =IF('1_Eingabe_Humus'!G31=0,"",'1_Eingabe_Humus'!G31) ->  | F26: =IF('1_Eingabe_Humus'!H31=0,"",'1_Eingabe_Humus'!H31) ->  | G26: ='1_Eingabe_Humus'!#REF! ->  | H26: ='1_Eingabe_Humus'!#REF! ->  | I26: ='1_Eingabe_Humus'!#REF! ->  | J26: ='1_Eingabe_Humus'!#REF! ->  | K26: ='1_Eingabe_Humus'!#REF! ->  | L26: ='1_Eingabe_Humus'!#REF! ->  | M26: ='1_Eingabe_Humus'!#REF! ->  | N26: ='1_Eingabe_Humus'!#REF! ->  | O26: ='1_Eingabe_Humus'!#REF! ->  | P26: ='1_Eingabe_Humus'!#REF! ->  | Q26: ='1_Eingabe_Humus'!#REF! -> 
A27: 19 | B27: ='1_Eingabe_Humus'!#REF! ->  | C27: ='1_Eingabe_Humus'!#REF! ->  | D27: ='1_Eingabe_Humus'!#REF! ->  | E27: =IF('1_Eingabe_Humus'!G32=0,"",'1_Eingabe_Humus'!G32) ->  | F27: =IF('1_Eingabe_Humus'!H32=0,"",'1_Eingabe_Humus'!H32) ->  | G27: ='1_Eingabe_Humus'!#REF! ->  | H27: ='1_Eingabe_Humus'!#REF! ->  | I27: ='1_Eingabe_Humus'!#REF! ->  | J27: ='1_Eingabe_Humus'!#REF! ->  | K27: ='1_Eingabe_Humus'!#REF! ->  | L27: ='1_Eingabe_Humus'!#REF! ->  | M27: ='1_Eingabe_Humus'!#REF! ->  | N27: ='1_Eingabe_Humus'!#REF! ->  | O27: ='1_Eingabe_Humus'!#REF! ->  | P27: ='1_Eingabe_Humus'!#REF! ->  | Q27: ='1_Eingabe_Humus'!#REF! -> 
A28: 20 | C28: ='1_Eingabe_Humus'!#REF! ->  | D28: ='1_Eingabe_Humus'!#REF! ->  | E28: =IF('1_Eingabe_Humus'!G33=0,"",'1_Eingabe_Humus'!G33) ->  | F28: =IF('1_Eingabe_Humus'!H33=0,"",'1_Eingabe_Humus'!H33) ->  | G28: ='1_Eingabe_Humus'!#REF! ->  | H28: ='1_Eingabe_Humus'!#REF! ->  | I28: ='1_Eingabe_Humus'!#REF! ->  | J28: ='1_Eingabe_Humus'!#REF! ->  | K28: ='1_Eingabe_Humus'!#REF! ->  | L28: ='1_Eingabe_Humus'!#REF! ->  | M28: ='1_Eingabe_Humus'!#REF! ->  | N28: ='1_Eingabe_Humus'!#REF! ->  | O28: ='1_Eingabe_Humus'!#REF! ->  | P28: ='1_Eingabe_Humus'!#REF! ->  | Q28: ='1_Eingabe_Humus'!#REF! -> 
B29: Humusbilanz Acker | D29: ='1_Eingabe_Humus'!#REF! ->  | G29: ='1_Eingabe_Humus'!#REF! ->  | H29: ='1_Eingabe_Humus'!#REF! ->  | I29: ='1_Eingabe_Humus'!#REF! ->  | J29: ='1_Eingabe_Humus'!#REF! ->  | K29: ='1_Eingabe_Humus'!#REF! ->  | L29: ='1_Eingabe_Humus'!#REF! ->  | M29: ='1_Eingabe_Humus'!#REF! ->  | N29: ='1_Eingabe_Humus'!#REF! ->  | O29: ='1_Eingabe_Humus'!#REF! ->  | P29: ='1_Eingabe_Humus'!#REF! ->  | Q29: ='1_Eingabe_Humus'!#REF! -> 
B30: Versorgungsstufe Acker | P30: ='1_Eingabe_Humus'!#REF! ->  | Q30: ='1_Eingabe_Humus'!#REF! -> 
B31: Humusbilanz Betrieb | D31: ='1_Eingabe_Humus'!#REF! ->  | P31: ='1_Eingabe_Humus'!#REF! ->  | Q31: ='1_Eingabe_Humus'!#REF! -> 
B32: Fruchtfolge 1 | D32: ='1_Eingabe_Humus'!#REF! ->  | G32: ='1_Eingabe_Humus'!#REF! ->  | H32: ='1_Eingabe_Humus'!#REF! ->  | I32: ='1_Eingabe_Humus'!#REF! ->  | J32: ='1_Eingabe_Humus'!#REF! ->  | K32: ='1_Eingabe_Humus'!#REF! ->  | L32: ='1_Eingabe_Humus'!#REF! ->  | M32: ='1_Eingabe_Humus'!#REF! ->  | N32: ='1_Eingabe_Humus'!#REF! ->  | O32: ='1_Eingabe_Humus'!#REF! ->  | P32: ='1_Eingabe_Humus'!#REF! ->  | Q32: ='1_Eingabe_Humus'!#REF! -> 
B33: Fruchtfolge 2 | D33: ='1_Eingabe_Humus'!#REF! ->  | G33: ='1_Eingabe_Humus'!#REF! ->  | H33: ='1_Eingabe_Humus'!#REF! ->  | I33: ='1_Eingabe_Humus'!#REF! ->  | J33: ='1_Eingabe_Humus'!#REF! ->  | K33: ='1_Eingabe_Humus'!#REF! ->  | L33: ='1_Eingabe_Humus'!#REF! ->  | M33: ='1_Eingabe_Humus'!#REF! ->  | N33: ='1_Eingabe_Humus'!#REF! ->  | O33: ='1_Eingabe_Humus'!#REF! ->  | P33: ='1_Eingabe_Humus'!#REF! ->  | Q33: ='1_Eingabe_Humus'!#REF! -> 
B34: Fruchtfolge 3 | D34: ='1_Eingabe_Humus'!#REF! ->  | G34: ='1_Eingabe_Humus'!#REF! ->  | H34: ='1_Eingabe_Humus'!#REF! ->  | I34: ='1_Eingabe_Humus'!#REF! ->  | J34: ='1_Eingabe_Humus'!#REF! ->  | K34: ='1_Eingabe_Humus'!#REF! ->  | L34: ='1_Eingabe_Humus'!#REF! ->  | M34: ='1_Eingabe_Humus'!#REF! ->  | N34: ='1_Eingabe_Humus'!#REF! ->  | O34: ='1_Eingabe_Humus'!#REF! ->  | P34: ='1_Eingabe_Humus'!#REF! ->  | Q34: ='1_Eingabe_Humus'!#REF! -> 

Sheet 2_Bodenbearbeitung
A1: ="Eingabe für Energie- und THG-Bilanzierung des Betriebes "&'1_Eingabe_Humus'!E5&" für das Erntejahr "&'1_Eingabe_Humus'!E7&"" -> Eingabe für Energie- und THG-Bilanzierung des Betriebes für das Erntejahr
A3: Durchschnittliche Hofentfernung [km] | C3: 2
A4: Vorherrschende Bodenart | C4: mittel
A5: Maschinenausstattung | C5: normal
A7: ="1. Kulturen, Erträge, Saatstärken "&'1_Eingabe_Humus'!E7&"" -> 1. Kulturen, Erträge, Saatstärken
A8: Fruchtart / Kultur | B8: Anbauumfang [ha] | C8: durchschnittlicher Ertrag [dt/ha FM] | D8: Saatstärke [kg/ha] | E8: Nebenprodukte abgefahren von … % d. Fläche
A9: =IF('1_Eingabe_Humus'!C14="","",'1_Eingabe_Humus'!C14) -> Ackergras | B9: =IF('1_Eingabe_Humus'!F14>0,'1_Eingabe_Humus'!F14,"") -> 20 | C9: =IF('1_Eingabe_Humus'!H14>0,'1_Eingabe_Humus'!H14,"") -> 20 | D9: =IF(A9="","",VLOOKUP(A9,FA_Stamm!$B:$CD,IF('1_Eingabe_Humus'!$J$6=2,81,80),FALSE)) -> 25 | E9: =IF(A9="","",IF('1_Eingabe_Humus'!P14="",0,'1_Eingabe_Humus'!P14)) -> 0
A10: =IF('1_Eingabe_Humus'!C15="","",'1_Eingabe_Humus'!C15) ->  | B10: =IF('1_Eingabe_Humus'!F15>0,'1_Eingabe_Humus'!F15,"") ->  | C10: =IF('1_Eingabe_Humus'!H15>0,'1_Eingabe_Humus'!H15,"") ->  | D10: =IF(A10="","",VLOOKUP(A10,FA_Stamm!$B:$CD,IF('1_Eingabe_Humus'!$J$6=2,81,80),FALSE)) ->  | E10: =IF(A10="","",IF('1_Eingabe_Humus'!P15="",0,'1_Eingabe_Humus'!P15)) -> 
A11: =IF('1_Eingabe_Humus'!C16="","",'1_Eingabe_Humus'!C16) ->  | B11: =IF('1_Eingabe_Humus'!F16>0,'1_Eingabe_Humus'!F16,"") ->  | C11: =IF('1_Eingabe_Humus'!H16>0,'1_Eingabe_Humus'!H16,"") ->  | D11: =IF(A11="","",VLOOKUP(A11,FA_Stamm!$B:$CD,IF('1_Eingabe_Humus'!$J$6=2,81,80),FALSE)) ->  | E11: =IF(A11="","",IF('1_Eingabe_Humus'!P16="",0,'1_Eingabe_Humus'!P16)) -> 
A12: =IF('1_Eingabe_Humus'!C17="","",'1_Eingabe_Humus'!C17) ->  | B12: =IF('1_Eingabe_Humus'!F17>0,'1_Eingabe_Humus'!F17,"") ->  | C12: =IF('1_Eingabe_Humus'!H17>0,'1_Eingabe_Humus'!H17,"") ->  | D12: =IF(A12="","",VLOOKUP(A12,FA_Stamm!$B:$CD,IF('1_Eingabe_Humus'!$J$6=2,81,80),FALSE)) ->  | E12: =IF(A12="","",IF('1_Eingabe_Humus'!P17="",0,'1_Eingabe_Humus'!P17)) -> 
A13: =IF('1_Eingabe_Humus'!C18="","",'1_Eingabe_Humus'!C18) ->  | B13: =IF('1_Eingabe_Humus'!F18>0,'1_Eingabe_Humus'!F18,"") ->  | C13: =IF('1_Eingabe_Humus'!H18>0,'1_Eingabe_Humus'!H18,"") ->  | D13: =IF(A13="","",VLOOKUP(A13,FA_Stamm!$B:$CD,IF('1_Eingabe_Humus'!$J$6=2,81,80),FALSE)) ->  | E13: =IF(A13="","",IF('1_Eingabe_Humus'!P18="",0,'1_Eingabe_Humus'!P18)) -> 
A14: =IF('1_Eingabe_Humus'!C19="","",'1_Eingabe_Humus'!C19) ->  | B14: =IF('1_Eingabe_Humus'!F19>0,'1_Eingabe_Humus'!F19,"") ->  | C14: =IF('1_Eingabe_Humus'!H19>0,'1_Eingabe_Humus'!H19,"") ->  | D14: =IF(A14="","",VLOOKUP(A14,FA_Stamm!$B:$CD,IF('1_Eingabe_Humus'!$J$6=2,81,80),FALSE)) ->  | E14: =IF(A14="","",IF('1_Eingabe_Humus'!P19="",0,'1_Eingabe_Humus'!P19)) -> 
A15: =IF('1_Eingabe_Humus'!C20="","",'1_Eingabe_Humus'!C20) ->  | B15: =IF('1_Eingabe_Humus'!F20>0,'1_Eingabe_Humus'!F20,"") ->  | C15: =IF('1_Eingabe_Humus'!H20>0,'1_Eingabe_Humus'!H20,"") ->  | D15: =IF(A15="","",VLOOKUP(A15,FA_Stamm!$B:$CD,IF('1_Eingabe_Humus'!$J$6=2,81,80),FALSE)) ->  | E15: =IF(A15="","",IF('1_Eingabe_Humus'!P20="",0,'1_Eingabe_Humus'!P20)) -> 
A16: =IF('1_Eingabe_Humus'!C21="","",'1_Eingabe_Humus'!C21) ->  | B16: =IF('1_Eingabe_Humus'!F21>0,'1_Eingabe_Humus'!F21,"") ->  | C16: =IF('1_Eingabe_Humus'!H21>0,'1_Eingabe_Humus'!H21,"") ->  | D16: =IF(A16="","",VLOOKUP(A16,FA_Stamm!$B:$CD,IF('1_Eingabe_Humus'!$J$6=2,81,80),FALSE)) ->  | E16: =IF(A16="","",IF('1_Eingabe_Humus'!P21="",0,'1_Eingabe_Humus'!P21)) -> 
A17: =IF('1_Eingabe_Humus'!C22="","",'1_Eingabe_Humus'!C22) ->  | B17: =IF('1_Eingabe_Humus'!F22>0,'1_Eingabe_Humus'!F22,"") ->  | C17: =IF('1_Eingabe_Humus'!H22>0,'1_Eingabe_Humus'!H22,"") ->  | D17: =IF(A17="","",VLOOKUP(A17,FA_Stamm!$B:$CD,IF('1_Eingabe_Humus'!$J$6=2,81,80),FALSE)) ->  | E17: =IF(A17="","",IF('1_Eingabe_Humus'!P22="",0,'1_Eingabe_Humus'!P22)) -> 
A18: =IF('1_Eingabe_Humus'!C23="","",'1_Eingabe_Humus'!C23) ->  | B18: =IF('1_Eingabe_Humus'!F23>0,'1_Eingabe_Humus'!F23,"") ->  | C18: =IF('1_Eingabe_Humus'!H23>0,'1_Eingabe_Humus'!H23,"") ->  | D18: =IF(A18="","",VLOOKUP(A18,FA_Stamm!$B:$CD,IF('1_Eingabe_Humus'!$J$6=2,81,80),FALSE)) ->  | E18: =IF(A18="","",IF('1_Eingabe_Humus'!P23="",0,'1_Eingabe_Humus'!P23)) -> 
A19: =IF('1_Eingabe_Humus'!C24="","",'1_Eingabe_Humus'!C24) ->  | B19: =IF('1_Eingabe_Humus'!F24>0,'1_Eingabe_Humus'!F24,"") ->  | C19: =IF('1_Eingabe_Humus'!H24>0,'1_Eingabe_Humus'!H24,"") ->  | D19: =IF(A19="","",VLOOKUP(A19,FA_Stamm!$B:$CD,IF('1_Eingabe_Humus'!$J$6=2,81,80),FALSE)) ->  | E19: =IF(A19="","",IF('1_Eingabe_Humus'!P24="",0,'1_Eingabe_Humus'!P24)) -> 
A20: =IF('1_Eingabe_Humus'!C25="","",'1_Eingabe_Humus'!C25) ->  | B20: =IF('1_Eingabe_Humus'!F25>0,'1_Eingabe_Humus'!F25,"") ->  | C20: =IF('1_Eingabe_Humus'!H25>0,'1_Eingabe_Humus'!H25,"") ->  | D20: =IF(A20="","",VLOOKUP(A20,FA_Stamm!$B:$CD,IF('1_Eingabe_Humus'!$J$6=2,81,80),FALSE)) ->  | E20: =IF(A20="","",IF('1_Eingabe_Humus'!P25="",0,'1_Eingabe_Humus'!P25)) -> 
A21: =IF('1_Eingabe_Humus'!C26="","",'1_Eingabe_Humus'!C26) ->  | B21: =IF('1_Eingabe_Humus'!F26>0,'1_Eingabe_Humus'!F26,"") ->  | C21: =IF('1_Eingabe_Humus'!H26>0,'1_Eingabe_Humus'!H26,"") ->  | D21: =IF(A21="","",VLOOKUP(A21,FA_Stamm!$B:$CD,IF('1_Eingabe_Humus'!$J$6=2,81,80),FALSE)) ->  | E21: =IF(A21="","",IF('1_Eingabe_Humus'!P26="",0,'1_Eingabe_Humus'!P26)) -> 
A22: =IF('1_Eingabe_Humus'!C27="","",'1_Eingabe_Humus'!C27) ->  | B22: =IF('1_Eingabe_Humus'!F27>0,'1_Eingabe_Humus'!F27,"") ->  | C22: =IF('1_Eingabe_Humus'!H27>0,'1_Eingabe_Humus'!H27,"") ->  | D22: =IF(A22="","",VLOOKUP(A22,FA_Stamm!$B:$CD,IF('1_Eingabe_Humus'!$J$6=2,81,80),FALSE)) ->  | E22: =IF(A22="","",IF('1_Eingabe_Humus'!P27="",0,'1_Eingabe_Humus'!P27)) -> 
A23: =IF('1_Eingabe_Humus'!C28="","",'1_Eingabe_Humus'!C28) ->  | B23: =IF('1_Eingabe_Humus'!F28>0,'1_Eingabe_Humus'!F28,"") ->  | C23: =IF('1_Eingabe_Humus'!H28>0,'1_Eingabe_Humus'!H28,"") ->  | D23: =IF(A23="","",VLOOKUP(A23,FA_Stamm!$B:$CD,IF('1_Eingabe_Humus'!$J$6=2,81,80),FALSE)) ->  | E23: =IF(A23="","",IF('1_Eingabe_Humus'!P28="",0,'1_Eingabe_Humus'!P28)) -> 
A24: =IF('1_Eingabe_Humus'!C29="","",'1_Eingabe_Humus'!C29) ->  | B24: =IF('1_Eingabe_Humus'!F29>0,'1_Eingabe_Humus'!F29,"") ->  | C24: =IF('1_Eingabe_Humus'!H29>0,'1_Eingabe_Humus'!H29,"") ->  | D24: =IF(A24="","",VLOOKUP(A24,FA_Stamm!$B:$CD,IF('1_Eingabe_Humus'!$J$6=2,81,80),FALSE)) ->  | E24: =IF(A24="","",IF('1_Eingabe_Humus'!P29="",0,'1_Eingabe_Humus'!P29)) -> 
A25: =IF('1_Eingabe_Humus'!C30="","",'1_Eingabe_Humus'!C30) ->  | B25: =IF('1_Eingabe_Humus'!F30>0,'1_Eingabe_Humus'!F30,"") ->  | C25: =IF('1_Eingabe_Humus'!H30>0,'1_Eingabe_Humus'!H30,"") ->  | D25: =IF(A25="","",VLOOKUP(A25,FA_Stamm!$B:$CD,IF('1_Eingabe_Humus'!$J$6=2,81,80),FALSE)) ->  | E25: =IF(A25="","",IF('1_Eingabe_Humus'!P30="",0,'1_Eingabe_Humus'!P30)) -> 
A26: =IF('1_Eingabe_Humus'!C31="","",'1_Eingabe_Humus'!C31) ->  | B26: =IF('1_Eingabe_Humus'!F31>0,'1_Eingabe_Humus'!F31,"") ->  | C26: =IF('1_Eingabe_Humus'!H31>0,'1_Eingabe_Humus'!H31,"") ->  | D26: =IF(A26="","",VLOOKUP(A26,FA_Stamm!$B:$CD,IF('1_Eingabe_Humus'!$J$6=2,81,80),FALSE)) ->  | E26: =IF(A26="","",IF('1_Eingabe_Humus'!P31="",0,'1_Eingabe_Humus'!P31)) -> 
A27: =IF('1_Eingabe_Humus'!C32="","",'1_Eingabe_Humus'!C32) ->  | B27: =IF('1_Eingabe_Humus'!F32>0,'1_Eingabe_Humus'!F32,"") ->  | C27: =IF('1_Eingabe_Humus'!H32>0,'1_Eingabe_Humus'!H32,"") ->  | D27: =IF(A27="","",VLOOKUP(A27,FA_Stamm!$B:$CD,IF('1_Eingabe_Humus'!$J$6=2,81,80),FALSE)) ->  | E27: =IF(A27="","",IF('1_Eingabe_Humus'!P32="",0,'1_Eingabe_Humus'!P32)) -> 
A28: =IF('1_Eingabe_Humus'!C33="","",'1_Eingabe_Humus'!C33) -> Grünland | B28: =IF('1_Eingabe_Humus'!F33>0,'1_Eingabe_Humus'!F33,"") ->  | C28: =IF('1_Eingabe_Humus'!H33>0,'1_Eingabe_Humus'!H33,"") ->  | D28: =IF(A28="","",VLOOKUP(A28,FA_Stamm!$B:$CD,IF('1_Eingabe_Humus'!$J$6=2,81,80),FALSE)) -> 0 | E28: =IF(A28="","",IF('1_Eingabe_Humus'!P33="",0,'1_Eingabe_Humus'!P33)) -> 0
D29: =IF(A29="","",VLOOKUP(A29,FA_Stamm!$B:$CD,IF('1_Eingabe_Humus'!$J$6=2,81,80),FALSE)) -> 
A30: ="2. Bodenbearbeitung und Pflegemaßnahmen "&'1_Eingabe_Humus'!E7&"" -> 2. Bodenbearbeitung und Pflegemaßnahmen | D30: Flächenangaben: | E30: in %
A32: Fruchtart / Kultur | B32: Stoppelbearbeitung (nach d. Vorfrucht) | D32: Grundbodenbearbeitung | F32: Saatbettbereitung & Bestellung | H32: mech. Unkrautbekämpfung & Pflege
B33: Arbeitsgänge | C33: =IF($E$30="in %","Fläche [%]","Fläche [ha]") -> Fläche [%] | D33: Arbeitsgänge | E33: =IF($E$30="in %","Fläche [%]","Fläche [ha]") -> Fläche [%] | F33: Arbeitsgänge | G33: =IF($E$30="in %","Fläche [%]","Fläche [ha]") -> Fläche [%] | H33: Arbeitsgänge | I33: =IF($E$30="in %","Fläche [%]","Fläche [ha]") -> Fläche [%]
K34: =Auswahl_Kulturen!C1 -> Ackergras
K35: =Auswahl_Kulturen!C2 -> Grünland
K36: =Auswahl_Kulturen!C3 -> 
K37: =Auswahl_Kulturen!C4 -> 
K38: =Auswahl_Kulturen!C5 -> 
K39: =Auswahl_Kulturen!C6 -> 
K40: =Auswahl_Kulturen!C7 -> 
K41: =Auswahl_Kulturen!C8 -> 
K42: =Auswahl_Kulturen!C9 -> 
K43: =Auswahl_Kulturen!C10 -> 
K44: =Auswahl_Kulturen!C11 -> 
K45: =Auswahl_Kulturen!C12 -> 
K46: =Auswahl_Kulturen!C13 -> 
K47: =Auswahl_Kulturen!C14 -> 
K48: =Auswahl_Kulturen!C15 -> 
K49: =Auswahl_Kulturen!C16 -> 
K50: =Auswahl_Kulturen!C17 -> 
K51: =Auswahl_Kulturen!C18 -> 
K52: =Auswahl_Kulturen!C19 -> 
K53: =Auswahl_Kulturen!C20 -> 
D66: =IF(A66="","",VLOOKUP(A66,FA_Stamm!$B:$CD,IF('1_Eingabe_Humus'!$J$6=2,81,80),FALSE)) -> 

Sheet 3_Mineraldüngung_Pflanzenschutz
A1: ="Energie- und THG-Bilanzierung des Betriebes "&'1_Eingabe_Humus'!E5&" für das Erntejahr "&'1_Eingabe_Humus'!E7&"" -> Energie- und THG-Bilanzierung des Betriebes für das Erntejahr
A3: ="3. Mineraldüngung "&'1_Eingabe_Humus'!E7&"" -> 3. Mineraldüngung | C3: Flächenangaben in … | D3: in %
F4: =IF('1_Eingabe_Humus'!J36=2,"Oxidform","Elementform") -> Elementform
A5: Kultur | B5: Verfahren | C5: Düngerart | D5: =D3 -> in % | E5: N [kg/ha] | F5: =IF($F$4="Oxidform","P2O5 (kg/ha)","P (kg/ha)") -> P (kg/ha) | G5: =IF($F$4="Oxidform","K2O (kg/ha)","K (kg/ha)") -> K (kg/ha) | H5: Sonstige Nährstoffe (kg/ha] (Elementform) | I5: Kalk (dt/ha) | J5: CaO-Gehalt (%) bei Kalkdüngern | K5: Gegenprüfung mit Humusbilanz (Differenz in kg/ha!)
K6: =IF(AND(E6="",F6="",G6="",H6="",I6=""),"", "N: "&ROUND('Spiegel-EB'!AK3-VLOOKUP(A6,'1_Eingabe_Humus'!$C$50:$G$69,3,FALSE),0)&"; "&IF($F$4="Oxidform","P2O5","P")&": "&ROUND('Spiegel-EB'!AL3-VLOOKUP(A6,'1_Eingabe_Humus'!$C$50:$G$69,4,FALSE),0)&"; "&IF($F$4="Oxidform","K2O","K")&": "&ROUND('Spiegel-EB'!AM3-VLOOKUP(A6,'1_Eingabe_Humus'!$C$50:$G$69,5,FALSE),0)&"") -> 
K7: =IF(AND(E7="",F7="",G7="",H7="",I7=""),"", "N: "&ROUND('Spiegel-EB'!AK4-VLOOKUP(A7,'1_Eingabe_Humus'!$C$50:$G$69,3,FALSE),0)&"; "&IF($F$4="Oxidform","P2O5","P")&": "&ROUND('Spiegel-EB'!AL4-VLOOKUP(A7,'1_Eingabe_Humus'!$C$50:$G$69,4,FALSE),0)&"; "&IF($F$4="Oxidform","K2O","K")&": "&ROUND('Spiegel-EB'!AM4-VLOOKUP(A7,'1_Eingabe_Humus'!$C$50:$G$69,5,FALSE),0)&"") -> 
K8: =IF(AND(E8="",F8="",G8="",H8="",I8=""),"", "N: "&ROUND('Spiegel-EB'!AK5-VLOOKUP(A8,'1_Eingabe_Humus'!$C$50:$G$69,3,FALSE),0)&"; "&IF($F$4="Oxidform","P2O5","P")&": "&ROUND('Spiegel-EB'!AL5-VLOOKUP(A8,'1_Eingabe_Humus'!$C$50:$G$69,4,FALSE),0)&"; "&IF($F$4="Oxidform","K2O","K")&": "&ROUND('Spiegel-EB'!AM5-VLOOKUP(A8,'1_Eingabe_Humus'!$C$50:$G$69,5,FALSE),0)&"") -> 
K9: =IF(AND(E9="",F9="",G9="",H9="",I9=""),"", "N: "&ROUND('Spiegel-EB'!AK6-VLOOKUP(A9,'1_Eingabe_Humus'!$C$50:$G$69,3,FALSE),0)&"; "&IF($F$4="Oxidform","P2O5","P")&": "&ROUND('Spiegel-EB'!AL6-VLOOKUP(A9,'1_Eingabe_Humus'!$C$50:$G$69,4,FALSE),0)&"; "&IF($F$4="Oxidform","K2O","K")&": "&ROUND('Spiegel-EB'!AM6-VLOOKUP(A9,'1_Eingabe_Humus'!$C$50:$G$69,5,FALSE),0)&"") -> 
K10: =IF(AND(E10="",F10="",G10="",H10="",I10=""),"", "N: "&ROUND('Spiegel-EB'!AK7-VLOOKUP(A10,'1_Eingabe_Humus'!$C$50:$G$69,3,FALSE),0)&"; "&IF($F$4="Oxidform","P2O5","P")&": "&ROUND('Spiegel-EB'!AL7-VLOOKUP(A10,'1_Eingabe_Humus'!$C$50:$G$69,4,FALSE),0)&"; "&IF($F$4="Oxidform","K2O","K")&": "&ROUND('Spiegel-EB'!AM7-VLOOKUP(A10,'1_Eingabe_Humus'!$C$50:$G$69,5,FALSE),0)&"") -> 
K11: =IF(AND(E11="",F11="",G11="",H11="",I11=""),"", "N: "&ROUND('Spiegel-EB'!AK8-VLOOKUP(A11,'1_Eingabe_Humus'!$C$50:$G$69,3,FALSE),0)&"; "&IF($F$4="Oxidform","P2O5","P")&": "&ROUND('Spiegel-EB'!AL8-VLOOKUP(A11,'1_Eingabe_Humus'!$C$50:$G$69,4,FALSE),0)&"; "&IF($F$4="Oxidform","K2O","K")&": "&ROUND('Spiegel-EB'!AM8-VLOOKUP(A11,'1_Eingabe_Humus'!$C$50:$G$69,5,FALSE),0)&"") -> 
K12: =IF(AND(E12="",F12="",G12="",H12="",I12=""),"", "N: "&ROUND('Spiegel-EB'!AK9-VLOOKUP(A12,'1_Eingabe_Humus'!$C$50:$G$69,3,FALSE),0)&"; "&IF($F$4="Oxidform","P2O5","P")&": "&ROUND('Spiegel-EB'!AL9-VLOOKUP(A12,'1_Eingabe_Humus'!$C$50:$G$69,4,FALSE),0)&"; "&IF($F$4="Oxidform","K2O","K")&": "&ROUND('Spiegel-EB'!AM9-VLOOKUP(A12,'1_Eingabe_Humus'!$C$50:$G$69,5,FALSE),0)&"") -> 
K13: =IF(AND(E13="",F13="",G13="",H13="",I13=""),"", "N: "&ROUND('Spiegel-EB'!AK10-VLOOKUP(A13,'1_Eingabe_Humus'!$C$50:$G$69,3,FALSE),0)&"; "&IF($F$4="Oxidform","P2O5","P")&": "&ROUND('Spiegel-EB'!AL10-VLOOKUP(A13,'1_Eingabe_Humus'!$C$50:$G$69,4,FALSE),0)&"; "&IF($F$4="Oxidform","K2O","K")&": "&ROUND('Spiegel-EB'!AM10-VLOOKUP(A13,'1_Eingabe_Humus'!$C$50:$G$69,5,FALSE),0)&"") -> 
K14: =IF(AND(E14="",F14="",G14="",H14="",I14=""),"", "N: "&ROUND('Spiegel-EB'!AK11-VLOOKUP(A14,'1_Eingabe_Humus'!$C$50:$G$69,3,FALSE),0)&"; "&IF($F$4="Oxidform","P2O5","P")&": "&ROUND('Spiegel-EB'!AL11-VLOOKUP(A14,'1_Eingabe_Humus'!$C$50:$G$69,4,FALSE),0)&"; "&IF($F$4="Oxidform","K2O","K")&": "&ROUND('Spiegel-EB'!AM11-VLOOKUP(A14,'1_Eingabe_Humus'!$C$50:$G$69,5,FALSE),0)&"") -> 
K15: =IF(AND(E15="",F15="",G15="",H15="",I15=""),"", "N: "&ROUND('Spiegel-EB'!AK12-VLOOKUP(A15,'1_Eingabe_Humus'!$C$50:$G$69,3,FALSE),0)&"; "&IF($F$4="Oxidform","P2O5","P")&": "&ROUND('Spiegel-EB'!AL12-VLOOKUP(A15,'1_Eingabe_Humus'!$C$50:$G$69,4,FALSE),0)&"; "&IF($F$4="Oxidform","K2O","K")&": "&ROUND('Spiegel-EB'!AM12-VLOOKUP(A15,'1_Eingabe_Humus'!$C$50:$G$69,5,FALSE),0)&"") -> 
K16: =IF(AND(E16="",F16="",G16="",H16="",I16=""),"", "N: "&ROUND('Spiegel-EB'!AK13-VLOOKUP(A16,'1_Eingabe_Humus'!$C$50:$G$69,3,FALSE),0)&"; "&IF($F$4="Oxidform","P2O5","P")&": "&ROUND('Spiegel-EB'!AL13-VLOOKUP(A16,'1_Eingabe_Humus'!$C$50:$G$69,4,FALSE),0)&"; "&IF($F$4="Oxidform","K2O","K")&": "&ROUND('Spiegel-EB'!AM13-VLOOKUP(A16,'1_Eingabe_Humus'!$C$50:$G$69,5,FALSE),0)&"") -> 
K17: =IF(AND(E17="",F17="",G17="",H17="",I17=""),"", "N: "&ROUND('Spiegel-EB'!AK14-VLOOKUP(A17,'1_Eingabe_Humus'!$C$50:$G$69,3,FALSE),0)&"; "&IF($F$4="Oxidform","P2O5","P")&": "&ROUND('Spiegel-EB'!AL14-VLOOKUP(A17,'1_Eingabe_Humus'!$C$50:$G$69,4,FALSE),0)&"; "&IF($F$4="Oxidform","K2O","K")&": "&ROUND('Spiegel-EB'!AM14-VLOOKUP(A17,'1_Eingabe_Humus'!$C$50:$G$69,5,FALSE),0)&"") -> 
K18: =IF(AND(E18="",F18="",G18="",H18="",I18=""),"", "N: "&ROUND('Spiegel-EB'!AK15-VLOOKUP(A18,'1_Eingabe_Humus'!$C$50:$G$69,3,FALSE),0)&"; "&IF($F$4="Oxidform","P2O5","P")&": "&ROUND('Spiegel-EB'!AL15-VLOOKUP(A18,'1_Eingabe_Humus'!$C$50:$G$69,4,FALSE),0)&"; "&IF($F$4="Oxidform","K2O","K")&": "&ROUND('Spiegel-EB'!AM15-VLOOKUP(A18,'1_Eingabe_Humus'!$C$50:$G$69,5,FALSE),0)&"") -> 
K19: =IF(AND(E19="",F19="",G19="",H19="",I19=""),"", "N: "&ROUND('Spiegel-EB'!AK16-VLOOKUP(A19,'1_Eingabe_Humus'!$C$50:$G$69,3,FALSE),0)&"; "&IF($F$4="Oxidform","P2O5","P")&": "&ROUND('Spiegel-EB'!AL16-VLOOKUP(A19,'1_Eingabe_Humus'!$C$50:$G$69,4,FALSE),0)&"; "&IF($F$4="Oxidform","K2O","K")&": "&ROUND('Spiegel-EB'!AM16-VLOOKUP(A19,'1_Eingabe_Humus'!$C$50:$G$69,5,FALSE),0)&"") -> 
K20: =IF(AND(E20="",F20="",G20="",H20="",I20=""),"", "N: "&ROUND('Spiegel-EB'!AK17-VLOOKUP(A20,'1_Eingabe_Humus'!$C$50:$G$69,3,FALSE),0)&"; "&IF($F$4="Oxidform","P2O5","P")&": "&ROUND('Spiegel-EB'!AL17-VLOOKUP(A20,'1_Eingabe_Humus'!$C$50:$G$69,4,FALSE),0)&"; "&IF($F$4="Oxidform","K2O","K")&": "&ROUND('Spiegel-EB'!AM17-VLOOKUP(A20,'1_Eingabe_Humus'!$C$50:$G$69,5,FALSE),0)&"") -> 
K21: =IF(AND(E21="",F21="",G21="",H21="",I21=""),"", "N: "&ROUND('Spiegel-EB'!AK18-VLOOKUP(A21,'1_Eingabe_Humus'!$C$50:$G$69,3,FALSE),0)&"; "&IF($F$4="Oxidform","P2O5","P")&": "&ROUND('Spiegel-EB'!AL18-VLOOKUP(A21,'1_Eingabe_Humus'!$C$50:$G$69,4,FALSE),0)&"; "&IF($F$4="Oxidform","K2O","K")&": "&ROUND('Spiegel-EB'!AM18-VLOOKUP(A21,'1_Eingabe_Humus'!$C$50:$G$69,5,FALSE),0)&"") -> 
K22: =IF(AND(E22="",F22="",G22="",H22="",I22=""),"", "N: "&ROUND('Spiegel-EB'!AK19-VLOOKUP(A22,'1_Eingabe_Humus'!$C$50:$G$69,3,FALSE),0)&"; "&IF($F$4="Oxidform","P2O5","P")&": "&ROUND('Spiegel-EB'!AL19-VLOOKUP(A22,'1_Eingabe_Humus'!$C$50:$G$69,4,FALSE),0)&"; "&IF($F$4="Oxidform","K2O","K")&": "&ROUND('Spiegel-EB'!AM19-VLOOKUP(A22,'1_Eingabe_Humus'!$C$50:$G$69,5,FALSE),0)&"") -> 
K23: =IF(AND(E23="",F23="",G23="",H23="",I23=""),"", "N: "&ROUND('Spiegel-EB'!AK20-VLOOKUP(A23,'1_Eingabe_Humus'!$C$50:$G$69,3,FALSE),0)&"; "&IF($F$4="Oxidform","P2O5","P")&": "&ROUND('Spiegel-EB'!AL20-VLOOKUP(A23,'1_Eingabe_Humus'!$C$50:$G$69,4,FALSE),0)&"; "&IF($F$4="Oxidform","K2O","K")&": "&ROUND('Spiegel-EB'!AM20-VLOOKUP(A23,'1_Eingabe_Humus'!$C$50:$G$69,5,FALSE),0)&"") -> 
K24: =IF(AND(E24="",F24="",G24="",H24="",I24=""),"", "N: "&ROUND('Spiegel-EB'!AK21-VLOOKUP(A24,'1_Eingabe_Humus'!$C$50:$G$69,3,FALSE),0)&"; "&IF($F$4="Oxidform","P2O5","P")&": "&ROUND('Spiegel-EB'!AL21-VLOOKUP(A24,'1_Eingabe_Humus'!$C$50:$G$69,4,FALSE),0)&"; "&IF($F$4="Oxidform","K2O","K")&": "&ROUND('Spiegel-EB'!AM21-VLOOKUP(A24,'1_Eingabe_Humus'!$C$50:$G$69,5,FALSE),0)&"") -> 
K25: =IF(AND(E25="",F25="",G25="",H25="",I25=""),"", "N: "&ROUND('Spiegel-EB'!AK22-VLOOKUP(A25,'1_Eingabe_Humus'!$C$50:$G$69,3,FALSE),0)&"; "&IF($F$4="Oxidform","P2O5","P")&": "&ROUND('Spiegel-EB'!AL22-VLOOKUP(A25,'1_Eingabe_Humus'!$C$50:$G$69,4,FALSE),0)&"; "&IF($F$4="Oxidform","K2O","K")&": "&ROUND('Spiegel-EB'!AM22-VLOOKUP(A25,'1_Eingabe_Humus'!$C$50:$G$69,5,FALSE),0)&"") -> 
K26: =IF(AND(E26="",F26="",G26="",H26="",I26=""),"", "N: "&ROUND('Spiegel-EB'!AK23-VLOOKUP(A26,'1_Eingabe_Humus'!$C$50:$G$69,3,FALSE),0)&"; "&IF($F$4="Oxidform","P2O5","P")&": "&ROUND('Spiegel-EB'!AL23-VLOOKUP(A26,'1_Eingabe_Humus'!$C$50:$G$69,4,FALSE),0)&"; "&IF($F$4="Oxidform","K2O","K")&": "&ROUND('Spiegel-EB'!AM23-VLOOKUP(A26,'1_Eingabe_Humus'!$C$50:$G$69,5,FALSE),0)&"") -> 
K27: =IF(AND(E27="",F27="",G27="",H27="",I27=""),"", "N: "&ROUND('Spiegel-EB'!AK24-VLOOKUP(A27,'1_Eingabe_Humus'!$C$50:$G$69,3,FALSE),0)&"; "&IF($F$4="Oxidform","P2O5","P")&": "&ROUND('Spiegel-EB'!AL24-VLOOKUP(A27,'1_Eingabe_Humus'!$C$50:$G$69,4,FALSE),0)&"; "&IF($F$4="Oxidform","K2O","K")&": "&ROUND('Spiegel-EB'!AM24-VLOOKUP(A27,'1_Eingabe_Humus'!$C$50:$G$69,5,FALSE),0)&"") -> 
A30: ="4. chemischer Pflanzenschutz "&'1_Eingabe_Humus'!E7&"" -> 4. chemischer Pflanzenschutz | C30: Flächenangaben in … | D30: in %
A32: Kultur | B32: Herbizide | D32: Fungizide | F32: Insektizide | H32: Wachstumsregler
B33: =$D$30 -> in % | C33: Ausbringmenge Wirkstoff [kg/ha oder l/ha] | D33: =$D$30 -> in % | E33: Ausbringmenge Wirkstoff [kg/ha oder l/ha] | F33: =$D$30 -> in % | G33: Ausbringmenge Wirkstoff [kg/ha oder l/ha] | H33: =$D$30 -> in % | I33: Ausbringmenge Wirkstoff [kg/ha oder l/ha]
L34: =Auswahl_Kulturen!C1 -> Ackergras
L35: =Auswahl_Kulturen!C2 -> Grünland
L36: =Auswahl_Kulturen!C3 -> 
L37: =Auswahl_Kulturen!C4 -> 
L38: =Auswahl_Kulturen!C5 -> 
L39: =Auswahl_Kulturen!C6 -> 
L40: =Auswahl_Kulturen!C7 -> 
L41: =Auswahl_Kulturen!C8 -> 
L42: =Auswahl_Kulturen!C9 -> 
L43: =Auswahl_Kulturen!C10 -> 
L44: =Auswahl_Kulturen!C11 -> 
L45: =Auswahl_Kulturen!C12 -> 
L46: =Auswahl_Kulturen!C13 -> 
L47: =Auswahl_Kulturen!C14 -> 
L48: =Auswahl_Kulturen!C15 -> 
L49: =Auswahl_Kulturen!C16 -> 
L50: =Auswahl_Kulturen!C17 -> 
L51: =Auswahl_Kulturen!C18 -> 
L52: =Auswahl_Kulturen!C19 -> 
L53: =Auswahl_Kulturen!C20 -> 

Sheet 4_OrganischeDüngung_Ernte
A1: ="Energie- und THG-Bilanzierung des Betriebes "&'1_Eingabe_Humus'!E5&" für das Erntejahr "&'1_Eingabe_Humus'!E7&"" -> Energie- und THG-Bilanzierung des Betriebes für das Erntejahr
A3: ="5. Organische Düngung "&'1_Eingabe_Humus'!E7&"" -> 5. Organische Düngung | D3: Gedüngte Flächen… | E3: in % | G3: =IF('1_Eingabe_Humus'!J36=2,"Oxidform","Elementform") -> Elementform
C4: Flächenangabe | F4: ='3_Mineraldüngung_Pflanzenschutz'!F4 -> Elementform | G4: Mengen der gedüngten Flächen
A5: Kultur | B5: Verfahren | C5: =E3 -> in % | D5: Düngerart | E5: Einarbeitung | F5: Menge [t/ha FM] | G5: N [kg/ha] | H5: =IF($G$3="Oxidform","P2O5 (kg/ha)","P (kg/ha)") -> P (kg/ha) | I5: =IF($G$3="Oxidform","K2O (kg/ha)","K (kg/ha)") -> K (kg/ha) | J5: Gegenprüfung mit Humusbilanz (Differenz in kg/ha!) auf Nährstoffbasis
G6: =IF($D6="","", VLOOKUP(INDEX(Dung_Stamm!$A$3:$A$28,MATCH('4_OrganischeDüngung_Ernte'!D6,Dung_Stamm!$B$3:$B$28,0)),'1_Eingabe_Humus'!$D$39:$I$44,3,FALSE)/ (100/VLOOKUP(INDEX(Dung_Stamm!$A$3:$A$28,MATCH('4_OrganischeDüngung_Ernte'!D6,Dung_Stamm!$B$3:$B$28,0)),'1_Eingabe_Humus'!$D$39:$I$44,2,FALSE)) *F6*10) ->  | H6: =IF($D6="","", VLOOKUP(INDEX(Dung_Stamm!$A$3:$A$28,MATCH('4_OrganischeDüngung_Ernte'!D6,Dung_Stamm!$B$3:$B$28,0)),'1_Eingabe_Humus'!$D$39:$I$44,4,FALSE)/ (100/VLOOKUP(INDEX(Dung_Stamm!$A$3:$A$28,MATCH('4_OrganischeDüngung_Ernte'!D6,Dung_Stamm!$B$3:$B$28,0)),'1_Eingabe_Humus'!$D$39:$I$44,2,FALSE)) *F6*10) ->  | I6: =IF($D6="","", VLOOKUP(INDEX(Dung_Stamm!$A$3:$A$28,MATCH('4_OrganischeDüngung_Ernte'!D6,Dung_Stamm!$B$3:$B$28,0)),'1_Eingabe_Humus'!$D$39:$I$44,5,FALSE)/ (100/VLOOKUP(INDEX(Dung_Stamm!$A$3:$A$28,MATCH('4_OrganischeDüngung_Ernte'!D6,Dung_Stamm!$B$3:$B$28,0)),'1_Eingabe_Humus'!$D$39:$I$44,2,FALSE)) *F6*10) ->  | J6: =IF(AND(G6="",H6="",I6=""),"", "N: "&ROUND('Spiegel-EB'!AU3-(VLOOKUP(A6,Düngung!$D$7:$CG$26,27,FALSE)+VLOOKUP(A6,Düngung!$D$7:$CG$26,53,FALSE)+VLOOKUP(A6,Düngung!$D$7:$CG$26,79,FALSE)), 0)&"; "&IF($F$4="Oxidform","P2O5","P")&": "&ROUND('Spiegel-EB'!AV3-(VLOOKUP(A6,Düngung!$D$7:$CG$26,29,FALSE)+VLOOKUP(A6,Düngung!$D$7:$CG$26,55,FALSE)+VLOOKUP(A6,Düngung!$D$7:$CG$26,81,FALSE)), 0)&"; "&IF($F$4="Oxidform","K2O","K")&": "&ROUND('Spiegel-EB'!AW3-(VLOOKUP(A6,Düngung!$D$7:$CG$26,30,FALSE)+VLOOKUP(A6,Düngung!$D$7:$CG$26,56,FALSE)+VLOOKUP(A6,Düngung!$D$7:$CG$26,82,FALSE)), 0)&"") ->  | N6: =IF(J6="","",IF( COUNTIF('THG-Werte_WD'!E:E, VLOOKUP(D6&" "&B6&" "&E6&"",'THG-Werte_WD'!E:E,1,FALSE))>0,"zulässig","Verfahren prüfen")) -> 
G7: =IF($D7="","", VLOOKUP(INDEX(Dung_Stamm!$A$3:$A$28,MATCH('4_OrganischeDüngung_Ernte'!D7,Dung_Stamm!$B$3:$B$28,0)),'1_Eingabe_Humus'!$D$39:$I$44,3,FALSE)/ (100/VLOOKUP(INDEX(Dung_Stamm!$A$3:$A$28,MATCH('4_OrganischeDüngung_Ernte'!D7,Dung_Stamm!$B$3:$B$28,0)),'1_Eingabe_Humus'!$D$39:$I$44,2,FALSE)) *F7*10) ->  | H7: =IF($D7="","", VLOOKUP(INDEX(Dung_Stamm!$A$3:$A$28,MATCH('4_OrganischeDüngung_Ernte'!D7,Dung_Stamm!$B$3:$B$28,0)),'1_Eingabe_Humus'!$D$39:$I$44,4,FALSE)/ (100/VLOOKUP(INDEX(Dung_Stamm!$A$3:$A$28,MATCH('4_OrganischeDüngung_Ernte'!D7,Dung_Stamm!$B$3:$B$28,0)),'1_Eingabe_Humus'!$D$39:$I$44,2,FALSE)) *F7*10) ->  | I7: =IF($D7="","", VLOOKUP(INDEX(Dung_Stamm!$A$3:$A$28,MATCH('4_OrganischeDüngung_Ernte'!D7,Dung_Stamm!$B$3:$B$28,0)),'1_Eingabe_Humus'!$D$39:$I$44,5,FALSE)/ (100/VLOOKUP(INDEX(Dung_Stamm!$A$3:$A$28,MATCH('4_OrganischeDüngung_Ernte'!D7,Dung_Stamm!$B$3:$B$28,0)),'1_Eingabe_Humus'!$D$39:$I$44,2,FALSE)) *F7*10) ->  | J7: =IF(AND(G7="",H7="",I7=""),"", "N: "&ROUND('Spiegel-EB'!AU4-(VLOOKUP(A7,Düngung!$D$7:$CG$26,27,FALSE)+VLOOKUP(A7,Düngung!$D$7:$CG$26,53,FALSE)+VLOOKUP(A7,Düngung!$D$7:$CG$26,79,FALSE)), 0)&"; "&IF($F$4="Oxidform","P2O5","P")&": "&ROUND('Spiegel-EB'!AV4-(VLOOKUP(A7,Düngung!$D$7:$CG$26,29,FALSE)+VLOOKUP(A7,Düngung!$D$7:$CG$26,55,FALSE)+VLOOKUP(A7,Düngung!$D$7:$CG$26,81,FALSE)), 0)&"; "&IF($F$4="Oxidform","K2O","K")&": "&ROUND('Spiegel-EB'!AW4-(VLOOKUP(A7,Düngung!$D$7:$CG$26,30,FALSE)+VLOOKUP(A7,Düngung!$D$7:$CG$26,56,FALSE)+VLOOKUP(A7,Düngung!$D$7:$CG$26,82,FALSE)), 0)&"") ->  | N7: =IF(J7="","",IF( COUNTIF('THG-Werte_WD'!E:E, VLOOKUP(D7&" "&B7&" "&E7&"",'THG-Werte_WD'!E:E,1,FALSE))>0,"zulässig","Verfahren prüfen")) -> 
G8: =IF($D8="","", VLOOKUP(INDEX(Dung_Stamm!$A$3:$A$28,MATCH('4_OrganischeDüngung_Ernte'!D8,Dung_Stamm!$B$3:$B$28,0)),'1_Eingabe_Humus'!$D$39:$I$44,3,FALSE)/ (100/VLOOKUP(INDEX(Dung_Stamm!$A$3:$A$28,MATCH('4_OrganischeDüngung_Ernte'!D8,Dung_Stamm!$B$3:$B$28,0)),'1_Eingabe_Humus'!$D$39:$I$44,2,FALSE)) *F8*10) ->  | H8: =IF($D8="","", VLOOKUP(INDEX(Dung_Stamm!$A$3:$A$28,MATCH('4_OrganischeDüngung_Ernte'!D8,Dung_Stamm!$B$3:$B$28,0)),'1_Eingabe_Humus'!$D$39:$I$44,4,FALSE)/ (100/VLOOKUP(INDEX(Dung_Stamm!$A$3:$A$28,MATCH('4_OrganischeDüngung_Ernte'!D8,Dung_Stamm!$B$3:$B$28,0)),'1_Eingabe_Humus'!$D$39:$I$44,2,FALSE)) *F8*10) ->  | I8: =IF($D8="","", VLOOKUP(INDEX(Dung_Stamm!$A$3:$A$28,MATCH('4_OrganischeDüngung_Ernte'!D8,Dung_Stamm!$B$3:$B$28,0)),'1_Eingabe_Humus'!$D$39:$I$44,5,FALSE)/ (100/VLOOKUP(INDEX(Dung_Stamm!$A$3:$A$28,MATCH('4_OrganischeDüngung_Ernte'!D8,Dung_Stamm!$B$3:$B$28,0)),'1_Eingabe_Humus'!$D$39:$I$44,2,FALSE)) *F8*10) ->  | J8: =IF(AND(G8="",H8="",I8=""),"", "N: "&ROUND('Spiegel-EB'!AU5-(VLOOKUP(A8,Düngung!$D$7:$CG$26,27,FALSE)+VLOOKUP(A8,Düngung!$D$7:$CG$26,53,FALSE)+VLOOKUP(A8,Düngung!$D$7:$CG$26,79,FALSE)), 0)&"; "&IF($F$4="Oxidform","P2O5","P")&": "&ROUND('Spiegel-EB'!AV5-(VLOOKUP(A8,Düngung!$D$7:$CG$26,29,FALSE)+VLOOKUP(A8,Düngung!$D$7:$CG$26,55,FALSE)+VLOOKUP(A8,Düngung!$D$7:$CG$26,81,FALSE)), 0)&"; "&IF($F$4="Oxidform","K2O","K")&": "&ROUND('Spiegel-EB'!AW5-(VLOOKUP(A8,Düngung!$D$7:$CG$26,30,FALSE)+VLOOKUP(A8,Düngung!$D$7:$CG$26,56,FALSE)+VLOOKUP(A8,Düngung!$D$7:$CG$26,82,FALSE)), 0)&"") ->  | N8: =IF(J8="","",IF( COUNTIF('THG-Werte_WD'!E:E, VLOOKUP(D8&" "&B8&" "&E8&"",'THG-Werte_WD'!E:E,1,FALSE))>0,"zulässig","Verfahren prüfen")) -> 
G9: =IF($D9="","", VLOOKUP(INDEX(Dung_Stamm!$A$3:$A$28,MATCH('4_OrganischeDüngung_Ernte'!D9,Dung_Stamm!$B$3:$B$28,0)),'1_Eingabe_Humus'!$D$39:$I$44,3,FALSE)/ (100/VLOOKUP(INDEX(Dung_Stamm!$A$3:$A$28,MATCH('4_OrganischeDüngung_Ernte'!D9,Dung_Stamm!$B$3:$B$28,0)),'1_Eingabe_Humus'!$D$39:$I$44,2,FALSE)) *F9*10) ->  | H9: =IF($D9="","", VLOOKUP(INDEX(Dung_Stamm!$A$3:$A$28,MATCH('4_OrganischeDüngung_Ernte'!D9,Dung_Stamm!$B$3:$B$28,0)),'1_Eingabe_Humus'!$D$39:$I$44,4,FALSE)/ (100/VLOOKUP(INDEX(Dung_Stamm!$A$3:$A$28,MATCH('4_OrganischeDüngung_Ernte'!D9,Dung_Stamm!$B$3:$B$28,0)),'1_Eingabe_Humus'!$D$39:$I$44,2,FALSE)) *F9*10) ->  | I9: =IF($D9="","", VLOOKUP(INDEX(Dung_Stamm!$A$3:$A$28,MATCH('4_OrganischeDüngung_Ernte'!D9,Dung_Stamm!$B$3:$B$28,0)),'1_Eingabe_Humus'!$D$39:$I$44,5,FALSE)/ (100/VLOOKUP(INDEX(Dung_Stamm!$A$3:$A$28,MATCH('4_OrganischeDüngung_Ernte'!D9,Dung_Stamm!$B$3:$B$28,0)),'1_Eingabe_Humus'!$D$39:$I$44,2,FALSE)) *F9*10) ->  | J9: =IF(AND(G9="",H9="",I9=""),"", "N: "&ROUND('Spiegel-EB'!AU6-(VLOOKUP(A9,Düngung!$D$7:$CG$26,27,FALSE)+VLOOKUP(A9,Düngung!$D$7:$CG$26,53,FALSE)+VLOOKUP(A9,Düngung!$D$7:$CG$26,79,FALSE)), 0)&"; "&IF($F$4="Oxidform","P2O5","P")&": "&ROUND('Spiegel-EB'!AV6-(VLOOKUP(A9,Düngung!$D$7:$CG$26,29,FALSE)+VLOOKUP(A9,Düngung!$D$7:$CG$26,55,FALSE)+VLOOKUP(A9,Düngung!$D$7:$CG$26,81,FALSE)), 0)&"; "&IF($F$4="Oxidform","K2O","K")&": "&ROUND('Spiegel-EB'!AW6-(VLOOKUP(A9,Düngung!$D$7:$CG$26,30,FALSE)+VLOOKUP(A9,Düngung!$D$7:$CG$26,56,FALSE)+VLOOKUP(A9,Düngung!$D$7:$CG$26,82,FALSE)), 0)&"") ->  | N9: =IF(J9="","",IF( COUNTIF('THG-Werte_WD'!E:E, VLOOKUP(D9&" "&B9&" "&E9&"",'THG-Werte_WD'!E:E,1,FALSE))>0,"zulässig","Verfahren prüfen")) -> 
G10: =IF($D10="","", VLOOKUP(INDEX(Dung_Stamm!$A$3:$A$28,MATCH('4_OrganischeDüngung_Ernte'!D10,Dung_Stamm!$B$3:$B$28,0)),'1_Eingabe_Humus'!$D$39:$I$44,3,FALSE)/ (100/VLOOKUP(INDEX(Dung_Stamm!$A$3:$A$28,MATCH('4_OrganischeDüngung_Ernte'!D10,Dung_Stamm!$B$3:$B$28,0)),'1_Eingabe_Humus'!$D$39:$I$44,2,FALSE)) *F10*10) ->  | H10: =IF($D10="","", VLOOKUP(INDEX(Dung_Stamm!$A$3:$A$28,MATCH('4_OrganischeDüngung_Ernte'!D10,Dung_Stamm!$B$3:$B$28,0)),'1_Eingabe_Humus'!$D$39:$I$44,4,FALSE)/ (100/VLOOKUP(INDEX(Dung_Stamm!$A$3:$A$28,MATCH('4_OrganischeDüngung_Ernte'!D10,Dung_Stamm!$B$3:$B$28,0)),'1_Eingabe_Humus'!$D$39:$I$44,2,FALSE)) *F10*10) ->  | I10: =IF($D10="","", VLOOKUP(INDEX(Dung_Stamm!$A$3:$A$28,MATCH('4_OrganischeDüngung_Ernte'!D10,Dung_Stamm!$B$3:$B$28,0)),'1_Eingabe_Humus'!$D$39:$I$44,5,FALSE)/ (100/VLOOKUP(INDEX(Dung_Stamm!$A$3:$A$28,MATCH('4_OrganischeDüngung_Ernte'!D10,Dung_Stamm!$B$3:$B$28,0)),'1_Eingabe_Humus'!$D$39:$I$44,2,FALSE)) *F10*10) ->  | J10: =IF(AND(G10="",H10="",I10=""),"", "N: "&ROUND('Spiegel-EB'!AU7-(VLOOKUP(A10,Düngung!$D$7:$CG$26,27,FALSE)+VLOOKUP(A10,Düngung!$D$7:$CG$26,53,FALSE)+VLOOKUP(A10,Düngung!$D$7:$CG$26,79,FALSE)), 0)&"; "&IF($F$4="Oxidform","P2O5","P")&": "&ROUND('Spiegel-EB'!AV7-(VLOOKUP(A10,Düngung!$D$7:$CG$26,29,FALSE)+VLOOKUP(A10,Düngung!$D$7:$CG$26,55,FALSE)+VLOOKUP(A10,Düngung!$D$7:$CG$26,81,FALSE)), 0)&"; "&IF($F$4="Oxidform","K2O","K")&": "&ROUND('Spiegel-EB'!AW7-(VLOOKUP(A10,Düngung!$D$7:$CG$26,30,FALSE)+VLOOKUP(A10,Düngung!$D$7:$CG$26,56,FALSE)+VLOOKUP(A10,Düngung!$D$7:$CG$26,82,FALSE)), 0)&"") ->  | N10: =IF(J10="","",IF( COUNTIF('THG-Werte_WD'!E:E, VLOOKUP(D10&" "&B10&" "&E10&"",'THG-Werte_WD'!E:E,1,FALSE))>0,"zulässig","Verfahren prüfen")) -> 
G11: =IF($D11="","", VLOOKUP(INDEX(Dung_Stamm!$A$3:$A$28,MATCH('4_OrganischeDüngung_Ernte'!D11,Dung_Stamm!$B$3:$B$28,0)),'1_Eingabe_Humus'!$D$39:$I$44,3,FALSE)/ (100/VLOOKUP(INDEX(Dung_Stamm!$A$3:$A$28,MATCH('4_OrganischeDüngung_Ernte'!D11,Dung_Stamm!$B$3:$B$28,0)),'1_Eingabe_Humus'!$D$39:$I$44,2,FALSE)) *F11*10) ->  | H11: =IF($D11="","", VLOOKUP(INDEX(Dung_Stamm!$A$3:$A$28,MATCH('4_OrganischeDüngung_Ernte'!D11,Dung_Stamm!$B$3:$B$28,0)),'1_Eingabe_Humus'!$D$39:$I$44,4,FALSE)/ (100/VLOOKUP(INDEX(Dung_Stamm!$A$3:$A$28,MATCH('4_OrganischeDüngung_Ernte'!D11,Dung_Stamm!$B$3:$B$28,0)),'1_Eingabe_Humus'!$D$39:$I$44,2,FALSE)) *F11*10) ->  | I11: =IF($D11="","", VLOOKUP(INDEX(Dung_Stamm!$A$3:$A$28,MATCH('4_OrganischeDüngung_Ernte'!D11,Dung_Stamm!$B$3:$B$28,0)),'1_Eingabe_Humus'!$D$39:$I$44,5,FALSE)/ (100/VLOOKUP(INDEX(Dung_Stamm!$A$3:$A$28,MATCH('4_OrganischeDüngung_Ernte'!D11,Dung_Stamm!$B$3:$B$28,0)),'1_Eingabe_Humus'!$D$39:$I$44,2,FALSE)) *F11*10) ->  | J11: =IF(AND(G11="",H11="",I11=""),"", "N: "&ROUND('Spiegel-EB'!AU8-(VLOOKUP(A11,Düngung!$D$7:$CG$26,27,FALSE)+VLOOKUP(A11,Düngung!$D$7:$CG$26,53,FALSE)+VLOOKUP(A11,Düngung!$D$7:$CG$26,79,FALSE)), 0)&"; "&IF($F$4="Oxidform","P2O5","P")&": "&ROUND('Spiegel-EB'!AV8-(VLOOKUP(A11,Düngung!$D$7:$CG$26,29,FALSE)+VLOOKUP(A11,Düngung!$D$7:$CG$26,55,FALSE)+VLOOKUP(A11,Düngung!$D$7:$CG$26,81,FALSE)), 0)&"; "&IF($F$4="Oxidform","K2O","K")&": "&ROUND('Spiegel-EB'!AW8-(VLOOKUP(A11,Düngung!$D$7:$CG$26,30,FALSE)+VLOOKUP(A11,Düngung!$D$7:$CG$26,56,FALSE)+VLOOKUP(A11,Düngung!$D$7:$CG$26,82,FALSE)), 0)&"") ->  | N11: =IF(J11="","",IF( COUNTIF('THG-Werte_WD'!E:E, VLOOKUP(D11&" "&B11&" "&E11&"",'THG-Werte_WD'!E:E,1,FALSE))>0,"zulässig","Verfahren prüfen")) -> 
G12: =IF($D12="","", VLOOKUP(INDEX(Dung_Stamm!$A$3:$A$28,MATCH('4_OrganischeDüngung_Ernte'!D12,Dung_Stamm!$B$3:$B$28,0)),'1_Eingabe_Humus'!$D$39:$I$44,3,FALSE)/ (100/VLOOKUP(INDEX(Dung_Stamm!$A$3:$A$28,MATCH('4_OrganischeDüngung_Ernte'!D12,Dung_Stamm!$B$3:$B$28,0)),'1_Eingabe_Humus'!$D$39:$I$44,2,FALSE)) *F12*10) ->  | H12: =IF($D12="","", VLOOKUP(INDEX(Dung_Stamm!$A$3:$A$28,MATCH('4_OrganischeDüngung_Ernte'!D12,Dung_Stamm!$B$3:$B$28,0)),'1_Eingabe_Humus'!$D$39:$I$44,4,FALSE)/ (100/VLOOKUP(INDEX(Dung_Stamm!$A$3:$A$28,MATCH('4_OrganischeDüngung_Ernte'!D12,Dung_Stamm!$B$3:$B$28,0)),'1_Eingabe_Humus'!$D$39:$I$44,2,FALSE)) *F12*10) ->  | I12: =IF($D12="","", VLOOKUP(INDEX(Dung_Stamm!$A$3:$A$28,MATCH('4_OrganischeDüngung_Ernte'!D12,Dung_Stamm!$B$3:$B$28,0)),'1_Eingabe_Humus'!$D$39:$I$44,5,FALSE)/ (100/VLOOKUP(INDEX(Dung_Stamm!$A$3:$A$28,MATCH('4_OrganischeDüngung_Ernte'!D12,Dung_Stamm!$B$3:$B$28,0)),'1_Eingabe_Humus'!$D$39:$I$44,2,FALSE)) *F12*10) ->  | J12: =IF(AND(G12="",H12="",I12=""),"", "N: "&ROUND('Spiegel-EB'!AU9-(VLOOKUP(A12,Düngung!$D$7:$CG$26,27,FALSE)+VLOOKUP(A12,Düngung!$D$7:$CG$26,53,FALSE)+VLOOKUP(A12,Düngung!$D$7:$CG$26,79,FALSE)), 0)&"; "&IF($F$4="Oxidform","P2O5","P")&": "&ROUND('Spiegel-EB'!AV9-(VLOOKUP(A12,Düngung!$D$7:$CG$26,29,FALSE)+VLOOKUP(A12,Düngung!$D$7:$CG$26,55,FALSE)+VLOOKUP(A12,Düngung!$D$7:$CG$26,81,FALSE)), 0)&"; "&IF($F$4="Oxidform","K2O","K")&": "&ROUND('Spiegel-EB'!AW9-(VLOOKUP(A12,Düngung!$D$7:$CG$26,30,FALSE)+VLOOKUP(A12,Düngung!$D$7:$CG$26,56,FALSE)+VLOOKUP(A12,Düngung!$D$7:$CG$26,82,FALSE)), 0)&"") ->  | N12: =IF(J12="","",IF( COUNTIF('THG-Werte_WD'!E:E, VLOOKUP(D12&" "&B12&" "&E12&"",'THG-Werte_WD'!E:E,1,FALSE))>0,"zulässig","Verfahren prüfen")) -> 
G13: =IF($D13="","", VLOOKUP(INDEX(Dung_Stamm!$A$3:$A$28,MATCH('4_OrganischeDüngung_Ernte'!D13,Dung_Stamm!$B$3:$B$28,0)),'1_Eingabe_Humus'!$D$39:$I$44,3,FALSE)/ (100/VLOOKUP(INDEX(Dung_Stamm!$A$3:$A$28,MATCH('4_OrganischeDüngung_Ernte'!D13,Dung_Stamm!$B$3:$B$28,0)),'1_Eingabe_Humus'!$D$39:$I$44,2,FALSE)) *F13*10) ->  | H13: =IF($D13="","", VLOOKUP(INDEX(Dung_Stamm!$A$3:$A$28,MATCH('4_OrganischeDüngung_Ernte'!D13,Dung_Stamm!$B$3:$B$28,0)),'1_Eingabe_Humus'!$D$39:$I$44,4,FALSE)/ (100/VLOOKUP(INDEX(Dung_Stamm!$A$3:$A$28,MATCH('4_OrganischeDüngung_Ernte'!D13,Dung_Stamm!$B$3:$B$28,0)),'1_Eingabe_Humus'!$D$39:$I$44,2,FALSE)) *F13*10) ->  | I13: =IF($D13="","", VLOOKUP(INDEX(Dung_Stamm!$A$3:$A$28,MATCH('4_OrganischeDüngung_Ernte'!D13,Dung_Stamm!$B$3:$B$28,0)),'1_Eingabe_Humus'!$D$39:$I$44,5,FALSE)/ (100/VLOOKUP(INDEX(Dung_Stamm!$A$3:$A$28,MATCH('4_OrganischeDüngung_Ernte'!D13,Dung_Stamm!$B$3:$B$28,0)),'1_Eingabe_Humus'!$D$39:$I$44,2,FALSE)) *F13*10) ->  | J13: =IF(AND(G13="",H13="",I13=""),"", "N: "&ROUND('Spiegel-EB'!AU10-(VLOOKUP(A13,Düngung!$D$7:$CG$26,27,FALSE)+VLOOKUP(A13,Düngung!$D$7:$CG$26,53,FALSE)+VLOOKUP(A13,Düngung!$D$7:$CG$26,79,FALSE)), 0)&"; "&IF($F$4="Oxidform","P2O5","P")&": "&ROUND('Spiegel-EB'!AV10-(VLOOKUP(A13,Düngung!$D$7:$CG$26,29,FALSE)+VLOOKUP(A13,Düngung!$D$7:$CG$26,55,FALSE)+VLOOKUP(A13,Düngung!$D$7:$CG$26,81,FALSE)), 0)&"; "&IF($F$4="Oxidform","K2O","K")&": "&ROUND('Spiegel-EB'!AW10-(VLOOKUP(A13,Düngung!$D$7:$CG$26,30,FALSE)+VLOOKUP(A13,Düngung!$D$7:$CG$26,56,FALSE)+VLOOKUP(A13,Düngung!$D$7:$CG$26,82,FALSE)), 0)&"") ->  | N13: =IF(J13="","",IF( COUNTIF('THG-Werte_WD'!E:E, VLOOKUP(D13&" "&B13&" "&E13&"",'THG-Werte_WD'!E:E,1,FALSE))>0,"zulässig","Verfahren prüfen")) -> 
G14: =IF($D14="","", VLOOKUP(INDEX(Dung_Stamm!$A$3:$A$28,MATCH('4_OrganischeDüngung_Ernte'!D14,Dung_Stamm!$B$3:$B$28,0)),'1_Eingabe_Humus'!$D$39:$I$44,3,FALSE)/ (100/VLOOKUP(INDEX(Dung_Stamm!$A$3:$A$28,MATCH('4_OrganischeDüngung_Ernte'!D14,Dung_Stamm!$B$3:$B$28,0)),'1_Eingabe_Humus'!$D$39:$I$44,2,FALSE)) *F14*10) ->  | H14: =IF($D14="","", VLOOKUP(INDEX(Dung_Stamm!$A$3:$A$28,MATCH('4_OrganischeDüngung_Ernte'!D14,Dung_Stamm!$B$3:$B$28,0)),'1_Eingabe_Humus'!$D$39:$I$44,4,FALSE)/ (100/VLOOKUP(INDEX(Dung_Stamm!$A$3:$A$28,MATCH('4_OrganischeDüngung_Ernte'!D14,Dung_Stamm!$B$3:$B$28,0)),'1_Eingabe_Humus'!$D$39:$I$44,2,FALSE)) *F14*10) ->  | I14: =IF($D14="","", VLOOKUP(INDEX(Dung_Stamm!$A$3:$A$28,MATCH('4_OrganischeDüngung_Ernte'!D14,Dung_Stamm!$B$3:$B$28,0)),'1_Eingabe_Humus'!$D$39:$I$44,5,FALSE)/ (100/VLOOKUP(INDEX(Dung_Stamm!$A$3:$A$28,MATCH('4_OrganischeDüngung_Ernte'!D14,Dung_Stamm!$B$3:$B$28,0)),'1_Eingabe_Humus'!$D$39:$I$44,2,FALSE)) *F14*10) ->  | J14: =IF(AND(G14="",H14="",I14=""),"", "N: "&ROUND('Spiegel-EB'!AU11-(VLOOKUP(A14,Düngung!$D$7:$CG$26,27,FALSE)+VLOOKUP(A14,Düngung!$D$7:$CG$26,53,FALSE)+VLOOKUP(A14,Düngung!$D$7:$CG$26,79,FALSE)), 0)&"; "&IF($F$4="Oxidform","P2O5","P")&": "&ROUND('Spiegel-EB'!AV11-(VLOOKUP(A14,Düngung!$D$7:$CG$26,29,FALSE)+VLOOKUP(A14,Düngung!$D$7:$CG$26,55,FALSE)+VLOOKUP(A14,Düngung!$D$7:$CG$26,81,FALSE)), 0)&"; "&IF($F$4="Oxidform","K2O","K")&": "&ROUND('Spiegel-EB'!AW11-(VLOOKUP(A14,Düngung!$D$7:$CG$26,30,FALSE)+VLOOKUP(A14,Düngung!$D$7:$CG$26,56,FALSE)+VLOOKUP(A14,Düngung!$D$7:$CG$26,82,FALSE)), 0)&"") ->  | N14: =IF(J14="","",IF( COUNTIF('THG-Werte_WD'!E:E, VLOOKUP(D14&" "&B14&" "&E14&"",'THG-Werte_WD'!E:E,1,FALSE))>0,"zulässig","Verfahren prüfen")) -> 
G15: =IF($D15="","", VLOOKUP(INDEX(Dung_Stamm!$A$3:$A$28,MATCH('4_OrganischeDüngung_Ernte'!D15,Dung_Stamm!$B$3:$B$28,0)),'1_Eingabe_Humus'!$D$39:$I$44,3,FALSE)/ (100/VLOOKUP(INDEX(Dung_Stamm!$A$3:$A$28,MATCH('4_OrganischeDüngung_Ernte'!D15,Dung_Stamm!$B$3:$B$28,0)),'1_Eingabe_Humus'!$D$39:$I$44,2,FALSE)) *F15*10) ->  | H15: =IF($D15="","", VLOOKUP(INDEX(Dung_Stamm!$A$3:$A$28,MATCH('4_OrganischeDüngung_Ernte'!D15,Dung_Stamm!$B$3:$B$28,0)),'1_Eingabe_Humus'!$D$39:$I$44,4,FALSE)/ (100/VLOOKUP(INDEX(Dung_Stamm!$A$3:$A$28,MATCH('4_OrganischeDüngung_Ernte'!D15,Dung_Stamm!$B$3:$B$28,0)),'1_Eingabe_Humus'!$D$39:$I$44,2,FALSE)) *F15*10) ->  | I15: =IF($D15="","", VLOOKUP(INDEX(Dung_Stamm!$A$3:$A$28,MATCH('4_OrganischeDüngung_Ernte'!D15,Dung_Stamm!$B$3:$B$28,0)),'1_Eingabe_Humus'!$D$39:$I$44,5,FALSE)/ (100/VLOOKUP(INDEX(Dung_Stamm!$A$3:$A$28,MATCH('4_OrganischeDüngung_Ernte'!D15,Dung_Stamm!$B$3:$B$28,0)),'1_Eingabe_Humus'!$D$39:$I$44,2,FALSE)) *F15*10) ->  | J15: =IF(AND(G15="",H15="",I15=""),"", "N: "&ROUND('Spiegel-EB'!AU12-(VLOOKUP(A15,Düngung!$D$7:$CG$26,27,FALSE)+VLOOKUP(A15,Düngung!$D$7:$CG$26,53,FALSE)+VLOOKUP(A15,Düngung!$D$7:$CG$26,70,FALSE)), 0)&"; "&IF($F$4="Oxidform","P2O5","P")&": "&ROUND('Spiegel-EB'!AV12-(VLOOKUP(A15,Düngung!$D$7:$CG$26,29,FALSE)+VLOOKUP(A15,Düngung!$D$7:$CG$26,55,FALSE)+VLOOKUP(A15,Düngung!$D$7:$CG$26,72,FALSE)), 0)&"; "&IF($F$4="Oxidform","K2O","K")&": "&ROUND('Spiegel-EB'!AW12-(VLOOKUP(A15,Düngung!$D$7:$CG$26,30,FALSE)+VLOOKUP(A15,Düngung!$D$7:$CG$26,56,FALSE)+VLOOKUP(A15,Düngung!$D$7:$CG$26,73,FALSE)), 0)&"") ->  | N15: =IF(J15="","",IF( COUNTIF('THG-Werte_WD'!E:E, VLOOKUP(D15&" "&B15&" "&E15&"",'THG-Werte_WD'!E:E,1,FALSE))>0,"zulässig","Verfahren prüfen")) -> 
G16: =IF($D16="","", VLOOKUP(INDEX(Dung_Stamm!$A$3:$A$28,MATCH('4_OrganischeDüngung_Ernte'!D16,Dung_Stamm!$B$3:$B$28,0)),'1_Eingabe_Humus'!$D$39:$I$44,3,FALSE)/ (100/VLOOKUP(INDEX(Dung_Stamm!$A$3:$A$28,MATCH('4_OrganischeDüngung_Ernte'!D16,Dung_Stamm!$B$3:$B$28,0)),'1_Eingabe_Humus'!$D$39:$I$44,2,FALSE)) *F16*10) ->  | H16: =IF($D16="","", VLOOKUP(INDEX(Dung_Stamm!$A$3:$A$28,MATCH('4_OrganischeDüngung_Ernte'!D16,Dung_Stamm!$B$3:$B$28,0)),'1_Eingabe_Humus'!$D$39:$I$44,4,FALSE)/ (100/VLOOKUP(INDEX(Dung_Stamm!$A$3:$A$28,MATCH('4_OrganischeDüngung_Ernte'!D16,Dung_Stamm!$B$3:$B$28,0)),'1_Eingabe_Humus'!$D$39:$I$44,2,FALSE)) *F16*10) ->  | I16: =IF($D16="","", VLOOKUP(INDEX(Dung_Stamm!$A$3:$A$28,MATCH('4_OrganischeDüngung_Ernte'!D16,Dung_Stamm!$B$3:$B$28,0)),'1_Eingabe_Humus'!$D$39:$I$44,5,FALSE)/ (100/VLOOKUP(INDEX(Dung_Stamm!$A$3:$A$28,MATCH('4_OrganischeDüngung_Ernte'!D16,Dung_Stamm!$B$3:$B$28,0)),'1_Eingabe_Humus'!$D$39:$I$44,2,FALSE)) *F16*10) ->  | J16: =IF(AND(G16="",H16="",I16=""),"", "N: "&ROUND('Spiegel-EB'!AU13-(VLOOKUP(A16,Düngung!$D$7:$CG$26,27,FALSE)+VLOOKUP(A16,Düngung!$D$7:$CG$26,53,FALSE)+VLOOKUP(A16,Düngung!$D$7:$CG$26,70,FALSE)), 0)&"; "&IF($F$4="Oxidform","P2O5","P")&": "&ROUND('Spiegel-EB'!AV13-(VLOOKUP(A16,Düngung!$D$7:$CG$26,29,FALSE)+VLOOKUP(A16,Düngung!$D$7:$CG$26,55,FALSE)+VLOOKUP(A16,Düngung!$D$7:$CG$26,72,FALSE)), 0)&"; "&IF($F$4="Oxidform","K2O","K")&": "&ROUND('Spiegel-EB'!AW13-(VLOOKUP(A16,Düngung!$D$7:$CG$26,30,FALSE)+VLOOKUP(A16,Düngung!$D$7:$CG$26,56,FALSE)+VLOOKUP(A16,Düngung!$D$7:$CG$26,73,FALSE)), 0)&"") ->  | N16: =IF(J16="","",IF( COUNTIF('THG-Werte_WD'!E:E, VLOOKUP(D16&" "&B16&" "&E16&"",'THG-Werte_WD'!E:E,1,FALSE))>0,"zulässig","Verfahren prüfen")) -> 
G17: =IF($D17="","", VLOOKUP(INDEX(Dung_Stamm!$A$3:$A$28,MATCH('4_OrganischeDüngung_Ernte'!D17,Dung_Stamm!$B$3:$B$28,0)),'1_Eingabe_Humus'!$D$39:$I$44,3,FALSE)/ (100/VLOOKUP(INDEX(Dung_Stamm!$A$3:$A$28,MATCH('4_OrganischeDüngung_Ernte'!D17,Dung_Stamm!$B$3:$B$28,0)),'1_Eingabe_Humus'!$D$39:$I$44,2,FALSE)) *F17*10) ->  | H17: =IF($D17="","", VLOOKUP(INDEX(Dung_Stamm!$A$3:$A$28,MATCH('4_OrganischeDüngung_Ernte'!D17,Dung_Stamm!$B$3:$B$28,0)),'1_Eingabe_Humus'!$D$39:$I$44,4,FALSE)/ (100/VLOOKUP(INDEX(Dung_Stamm!$A$3:$A$28,MATCH('4_OrganischeDüngung_Ernte'!D17,Dung_Stamm!$B$3:$B$28,0)),'1_Eingabe_Humus'!$D$39:$I$44,2,FALSE)) *F17*10) ->  | I17: =IF($D17="","", VLOOKUP(INDEX(Dung_Stamm!$A$3:$A$28,MATCH('4_OrganischeDüngung_Ernte'!D17,Dung_Stamm!$B$3:$B$28,0)),'1_Eingabe_Humus'!$D$39:$I$44,5,FALSE)/ (100/VLOOKUP(INDEX(Dung_Stamm!$A$3:$A$28,MATCH('4_OrganischeDüngung_Ernte'!D17,Dung_Stamm!$B$3:$B$28,0)),'1_Eingabe_Humus'!$D$39:$I$44,2,FALSE)) *F17*10) ->  | J17: =IF(AND(G17="",H17="",I17=""),"", "N: "&ROUND('Spiegel-EB'!AU14-(VLOOKUP(A17,Düngung!$D$7:$CG$26,27,FALSE)+VLOOKUP(A17,Düngung!$D$7:$CG$26,53,FALSE)+VLOOKUP(A17,Düngung!$D$7:$CG$26,70,FALSE)), 0)&"; "&IF($F$4="Oxidform","P2O5","P")&": "&ROUND('Spiegel-EB'!AV14-(VLOOKUP(A17,Düngung!$D$7:$CG$26,29,FALSE)+VLOOKUP(A17,Düngung!$D$7:$CG$26,55,FALSE)+VLOOKUP(A17,Düngung!$D$7:$CG$26,72,FALSE)), 0)&"; "&IF($F$4="Oxidform","K2O","K")&": "&ROUND('Spiegel-EB'!AW14-(VLOOKUP(A17,Düngung!$D$7:$CG$26,30,FALSE)+VLOOKUP(A17,Düngung!$D$7:$CG$26,56,FALSE)+VLOOKUP(A17,Düngung!$D$7:$CG$26,73,FALSE)), 0)&"") ->  | N17: =IF(J17="","",IF( COUNTIF('THG-Werte_WD'!E:E, VLOOKUP(D17&" "&B17&" "&E17&"",'THG-Werte_WD'!E:E,1,FALSE))>0,"zulässig","Verfahren prüfen")) -> 
G18: =IF($D18="","", VLOOKUP(INDEX(Dung_Stamm!$A$3:$A$28,MATCH('4_OrganischeDüngung_Ernte'!D18,Dung_Stamm!$B$3:$B$28,0)),'1_Eingabe_Humus'!$D$39:$I$44,3,FALSE)/ (100/VLOOKUP(INDEX(Dung_Stamm!$A$3:$A$28,MATCH('4_OrganischeDüngung_Ernte'!D18,Dung_Stamm!$B$3:$B$28,0)),'1_Eingabe_Humus'!$D$39:$I$44,2,FALSE)) *F18*10) ->  | H18: =IF($D18="","", VLOOKUP(INDEX(Dung_Stamm!$A$3:$A$28,MATCH('4_OrganischeDüngung_Ernte'!D18,Dung_Stamm!$B$3:$B$28,0)),'1_Eingabe_Humus'!$D$39:$I$44,4,FALSE)/ (100/VLOOKUP(INDEX(Dung_Stamm!$A$3:$A$28,MATCH('4_OrganischeDüngung_Ernte'!D18,Dung_Stamm!$B$3:$B$28,0)),'1_Eingabe_Humus'!$D$39:$I$44,2,FALSE)) *F18*10) ->  | I18: =IF($D18="","", VLOOKUP(INDEX(Dung_Stamm!$A$3:$A$28,MATCH('4_OrganischeDüngung_Ernte'!D18,Dung_Stamm!$B$3:$B$28,0)),'1_Eingabe_Humus'!$D$39:$I$44,5,FALSE)/ (100/VLOOKUP(INDEX(Dung_Stamm!$A$3:$A$28,MATCH('4_OrganischeDüngung_Ernte'!D18,Dung_Stamm!$B$3:$B$28,0)),'1_Eingabe_Humus'!$D$39:$I$44,2,FALSE)) *F18*10) ->  | J18: =IF(AND(G18="",H18="",I18=""),"", "N: "&ROUND('Spiegel-EB'!AU15-(VLOOKUP(A18,Düngung!$D$7:$CG$26,27,FALSE)+VLOOKUP(A18,Düngung!$D$7:$CG$26,53,FALSE)+VLOOKUP(A18,Düngung!$D$7:$CG$26,70,FALSE)), 0)&"; "&IF($F$4="Oxidform","P2O5","P")&": "&ROUND('Spiegel-EB'!AV15-(VLOOKUP(A18,Düngung!$D$7:$CG$26,29,FALSE)+VLOOKUP(A18,Düngung!$D$7:$CG$26,55,FALSE)+VLOOKUP(A18,Düngung!$D$7:$CG$26,72,FALSE)), 0)&"; "&IF($F$4="Oxidform","K2O","K")&": "&ROUND('Spiegel-EB'!AW15-(VLOOKUP(A18,Düngung!$D$7:$CG$26,30,FALSE)+VLOOKUP(A18,Düngung!$D$7:$CG$26,56,FALSE)+VLOOKUP(A18,Düngung!$D$7:$CG$26,73,FALSE)), 0)&"") ->  | N18: =IF(J18="","",IF( COUNTIF('THG-Werte_WD'!E:E, VLOOKUP(D18&" "&B18&" "&E18&"",'THG-Werte_WD'!E:E,1,FALSE))>0,"zulässig","Verfahren prüfen")) -> 
G19: =IF($D19="","", VLOOKUP(INDEX(Dung_Stamm!$A$3:$A$28,MATCH('4_OrganischeDüngung_Ernte'!D19,Dung_Stamm!$B$3:$B$28,0)),'1_Eingabe_Humus'!$D$39:$I$44,3,FALSE)/ (100/VLOOKUP(INDEX(Dung_Stamm!$A$3:$A$28,MATCH('4_OrganischeDüngung_Ernte'!D19,Dung_Stamm!$B$3:$B$28,0)),'1_Eingabe_Humus'!$D$39:$I$44,2,FALSE)) *F19*10) ->  | H19: =IF($D19="","", VLOOKUP(INDEX(Dung_Stamm!$A$3:$A$28,MATCH('4_OrganischeDüngung_Ernte'!D19,Dung_Stamm!$B$3:$B$28,0)),'1_Eingabe_Humus'!$D$39:$I$44,4,FALSE)/ (100/VLOOKUP(INDEX(Dung_Stamm!$A$3:$A$28,MATCH('4_OrganischeDüngung_Ernte'!D19,Dung_Stamm!$B$3:$B$28,0)),'1_Eingabe_Humus'!$D$39:$I$44,2,FALSE)) *F19*10) ->  | I19: =IF($D19="","", VLOOKUP(INDEX(Dung_Stamm!$A$3:$A$28,MATCH('4_OrganischeDüngung_Ernte'!D19,Dung_Stamm!$B$3:$B$28,0)),'1_Eingabe_Humus'!$D$39:$I$44,5,FALSE)/ (100/VLOOKUP(INDEX(Dung_Stamm!$A$3:$A$28,MATCH('4_OrganischeDüngung_Ernte'!D19,Dung_Stamm!$B$3:$B$28,0)),'1_Eingabe_Humus'!$D$39:$I$44,2,FALSE)) *F19*10) ->  | J19: =IF(AND(G19="",H19="",I19=""),"", "N: "&ROUND('Spiegel-EB'!AU16-(VLOOKUP(A19,Düngung!$D$7:$CG$26,27,FALSE)+VLOOKUP(A19,Düngung!$D$7:$CG$26,53,FALSE)+VLOOKUP(A19,Düngung!$D$7:$CG$26,70,FALSE)), 0)&"; "&IF($F$4="Oxidform","P2O5","P")&": "&ROUND('Spiegel-EB'!AV16-(VLOOKUP(A19,Düngung!$D$7:$CG$26,29,FALSE)+VLOOKUP(A19,Düngung!$D$7:$CG$26,55,FALSE)+VLOOKUP(A19,Düngung!$D$7:$CG$26,72,FALSE)), 0)&"; "&IF($F$4="Oxidform","K2O","K")&": "&ROUND('Spiegel-EB'!AW16-(VLOOKUP(A19,Düngung!$D$7:$CG$26,30,FALSE)+VLOOKUP(A19,Düngung!$D$7:$CG$26,56,FALSE)+VLOOKUP(A19,Düngung!$D$7:$CG$26,73,FALSE)), 0)&"") ->  | N19: =IF(J19="","",IF( COUNTIF('THG-Werte_WD'!E:E, VLOOKUP(D19&" "&B19&" "&E19&"",'THG-Werte_WD'!E:E,1,FALSE))>0,"zulässig","Verfahren prüfen")) -> 
G20: =IF($D20="","", VLOOKUP(INDEX(Dung_Stamm!$A$3:$A$28,MATCH('4_OrganischeDüngung_Ernte'!D20,Dung_Stamm!$B$3:$B$28,0)),'1_Eingabe_Humus'!$D$39:$I$44,3,FALSE)/ (100/VLOOKUP(INDEX(Dung_Stamm!$A$3:$A$28,MATCH('4_OrganischeDüngung_Ernte'!D20,Dung_Stamm!$B$3:$B$28,0)),'1_Eingabe_Humus'!$D$39:$I$44,2,FALSE)) *F20*10) ->  | H20: =IF($D20="","", VLOOKUP(INDEX(Dung_Stamm!$A$3:$A$28,MATCH('4_OrganischeDüngung_Ernte'!D20,Dung_Stamm!$B$3:$B$28,0)),'1_Eingabe_Humus'!$D$39:$I$44,4,FALSE)/ (100/VLOOKUP(INDEX(Dung_Stamm!$A$3:$A$28,MATCH('4_OrganischeDüngung_Ernte'!D20,Dung_Stamm!$B$3:$B$28,0)),'1_Eingabe_Humus'!$D$39:$I$44,2,FALSE)) *F20*10) ->  | I20: =IF($D20="","", VLOOKUP(INDEX(Dung_Stamm!$A$3:$A$28,MATCH('4_OrganischeDüngung_Ernte'!D20,Dung_Stamm!$B$3:$B$28,0)),'1_Eingabe_Humus'!$D$39:$I$44,5,FALSE)/ (100/VLOOKUP(INDEX(Dung_Stamm!$A$3:$A$28,MATCH('4_OrganischeDüngung_Ernte'!D20,Dung_Stamm!$B$3:$B$28,0)),'1_Eingabe_Humus'!$D$39:$I$44,2,FALSE)) *F20*10) ->  | J20: =IF(AND(G20="",H20="",I20=""),"", "N: "&ROUND('Spiegel-EB'!AU17-(VLOOKUP(A20,Düngung!$D$7:$CG$26,27,FALSE)+VLOOKUP(A20,Düngung!$D$7:$CG$26,53,FALSE)+VLOOKUP(A20,Düngung!$D$7:$CG$26,70,FALSE)), 0)&"; "&IF($F$4="Oxidform","P2O5","P")&": "&ROUND('Spiegel-EB'!AV17-(VLOOKUP(A20,Düngung!$D$7:$CG$26,29,FALSE)+VLOOKUP(A20,Düngung!$D$7:$CG$26,55,FALSE)+VLOOKUP(A20,Düngung!$D$7:$CG$26,72,FALSE)), 0)&"; "&IF($F$4="Oxidform","K2O","K")&": "&ROUND('Spiegel-EB'!AW17-(VLOOKUP(A20,Düngung!$D$7:$CG$26,30,FALSE)+VLOOKUP(A20,Düngung!$D$7:$CG$26,56,FALSE)+VLOOKUP(A20,Düngung!$D$7:$CG$26,73,FALSE)), 0)&"") ->  | N20: =IF(J20="","",IF( COUNTIF('THG-Werte_WD'!E:E, VLOOKUP(D20&" "&B20&" "&E20&"",'THG-Werte_WD'!E:E,1,FALSE))>0,"zulässig","Verfahren prüfen")) -> 
G21: =IF($D21="","", VLOOKUP(INDEX(Dung_Stamm!$A$3:$A$28,MATCH('4_OrganischeDüngung_Ernte'!D21,Dung_Stamm!$B$3:$B$28,0)),'1_Eingabe_Humus'!$D$39:$I$44,3,FALSE)/ (100/VLOOKUP(INDEX(Dung_Stamm!$A$3:$A$28,MATCH('4_OrganischeDüngung_Ernte'!D21,Dung_Stamm!$B$3:$B$28,0)),'1_Eingabe_Humus'!$D$39:$I$44,2,FALSE)) *F21*10) ->  | H21: =IF($D21="","", VLOOKUP(INDEX(Dung_Stamm!$A$3:$A$28,MATCH('4_OrganischeDüngung_Ernte'!D21,Dung_Stamm!$B$3:$B$28,0)),'1_Eingabe_Humus'!$D$39:$I$44,4,FALSE)/ (100/VLOOKUP(INDEX(Dung_Stamm!$A$3:$A$28,MATCH('4_OrganischeDüngung_Ernte'!D21,Dung_Stamm!$B$3:$B$28,0)),'1_Eingabe_Humus'!$D$39:$I$44,2,FALSE)) *F21*10) ->  | I21: =IF($D21="","", VLOOKUP(INDEX(Dung_Stamm!$A$3:$A$28,MATCH('4_OrganischeDüngung_Ernte'!D21,Dung_Stamm!$B$3:$B$28,0)),'1_Eingabe_Humus'!$D$39:$I$44,5,FALSE)/ (100/VLOOKUP(INDEX(Dung_Stamm!$A$3:$A$28,MATCH('4_OrganischeDüngung_Ernte'!D21,Dung_Stamm!$B$3:$B$28,0)),'1_Eingabe_Humus'!$D$39:$I$44,2,FALSE)) *F21*10) ->  | J21: =IF(AND(G21="",H21="",I21=""),"", "N: "&ROUND('Spiegel-EB'!AU18-(VLOOKUP(A21,Düngung!$D$7:$CG$26,27,FALSE)+VLOOKUP(A21,Düngung!$D$7:$CG$26,53,FALSE)+VLOOKUP(A21,Düngung!$D$7:$CG$26,70,FALSE)), 0)&"; "&IF($F$4="Oxidform","P2O5","P")&": "&ROUND('Spiegel-EB'!AV18-(VLOOKUP(A21,Düngung!$D$7:$CG$26,29,FALSE)+VLOOKUP(A21,Düngung!$D$7:$CG$26,55,FALSE)+VLOOKUP(A21,Düngung!$D$7:$CG$26,72,FALSE)), 0)&"; "&IF($F$4="Oxidform","K2O","K")&": "&ROUND('Spiegel-EB'!AW18-(VLOOKUP(A21,Düngung!$D$7:$CG$26,30,FALSE)+VLOOKUP(A21,Düngung!$D$7:$CG$26,56,FALSE)+VLOOKUP(A21,Düngung!$D$7:$CG$26,73,FALSE)), 0)&"") ->  | N21: =IF(J21="","",IF( COUNTIF('THG-Werte_WD'!E:E, VLOOKUP(D21&" "&B21&" "&E21&"",'THG-Werte_WD'!E:E,1,FALSE))>0,"zulässig","Verfahren prüfen")) -> 
G22: =IF($D22="","", VLOOKUP(INDEX(Dung_Stamm!$A$3:$A$28,MATCH('4_OrganischeDüngung_Ernte'!D22,Dung_Stamm!$B$3:$B$28,0)),'1_Eingabe_Humus'!$D$39:$I$44,3,FALSE)/ (100/VLOOKUP(INDEX(Dung_Stamm!$A$3:$A$28,MATCH('4_OrganischeDüngung_Ernte'!D22,Dung_Stamm!$B$3:$B$28,0)),'1_Eingabe_Humus'!$D$39:$I$44,2,FALSE)) *F22*10) ->  | H22: =IF($D22="","", VLOOKUP(INDEX(Dung_Stamm!$A$3:$A$28,MATCH('4_OrganischeDüngung_Ernte'!D22,Dung_Stamm!$B$3:$B$28,0)),'1_Eingabe_Humus'!$D$39:$I$44,4,FALSE)/ (100/VLOOKUP(INDEX(Dung_Stamm!$A$3:$A$28,MATCH('4_OrganischeDüngung_Ernte'!D22,Dung_Stamm!$B$3:$B$28,0)),'1_Eingabe_Humus'!$D$39:$I$44,2,FALSE)) *F22*10) ->  | I22: =IF($D22="","", VLOOKUP(INDEX(Dung_Stamm!$A$3:$A$28,MATCH('4_OrganischeDüngung_Ernte'!D22,Dung_Stamm!$B$3:$B$28,0)),'1_Eingabe_Humus'!$D$39:$I$44,5,FALSE)/ (100/VLOOKUP(INDEX(Dung_Stamm!$A$3:$A$28,MATCH('4_OrganischeDüngung_Ernte'!D22,Dung_Stamm!$B$3:$B$28,0)),'1_Eingabe_Humus'!$D$39:$I$44,2,FALSE)) *F22*10) ->  | J22: =IF(AND(G22="",H22="",I22=""),"", "N: "&ROUND('Spiegel-EB'!AU19-(VLOOKUP(A22,Düngung!$D$7:$CG$26,27,FALSE)+VLOOKUP(A22,Düngung!$D$7:$CG$26,53,FALSE)+VLOOKUP(A22,Düngung!$D$7:$CG$26,70,FALSE)), 0)&"; "&IF($F$4="Oxidform","P2O5","P")&": "&ROUND('Spiegel-EB'!AV19-(VLOOKUP(A22,Düngung!$D$7:$CG$26,29,FALSE)+VLOOKUP(A22,Düngung!$D$7:$CG$26,55,FALSE)+VLOOKUP(A22,Düngung!$D$7:$CG$26,72,FALSE)), 0)&"; "&IF($F$4="Oxidform","K2O","K")&": "&ROUND('Spiegel-EB'!AW19-(VLOOKUP(A22,Düngung!$D$7:$CG$26,30,FALSE)+VLOOKUP(A22,Düngung!$D$7:$CG$26,56,FALSE)+VLOOKUP(A22,Düngung!$D$7:$CG$26,73,FALSE)), 0)&"") ->  | N22: =IF(J22="","",IF( COUNTIF('THG-Werte_WD'!E:E, VLOOKUP(D22&" "&B22&" "&E22&"",'THG-Werte_WD'!E:E,1,FALSE))>0,"zulässig","Verfahren prüfen")) -> 
G23: =IF($D23="","", VLOOKUP(INDEX(Dung_Stamm!$A$3:$A$28,MATCH('4_OrganischeDüngung_Ernte'!D23,Dung_Stamm!$B$3:$B$28,0)),'1_Eingabe_Humus'!$D$39:$I$44,3,FALSE)/ (100/VLOOKUP(INDEX(Dung_Stamm!$A$3:$A$28,MATCH('4_OrganischeDüngung_Ernte'!D23,Dung_Stamm!$B$3:$B$28,0)),'1_Eingabe_Humus'!$D$39:$I$44,2,FALSE)) *F23*10) ->  | H23: =IF($D23="","", VLOOKUP(INDEX(Dung_Stamm!$A$3:$A$28,MATCH('4_OrganischeDüngung_Ernte'!D23,Dung_Stamm!$B$3:$B$28,0)),'1_Eingabe_Humus'!$D$39:$I$44,4,FALSE)/ (100/VLOOKUP(INDEX(Dung_Stamm!$A$3:$A$28,MATCH('4_OrganischeDüngung_Ernte'!D23,Dung_Stamm!$B$3:$B$28,0)),'1_Eingabe_Humus'!$D$39:$I$44,2,FALSE)) *F23*10) ->  | I23: =IF($D23="","", VLOOKUP(INDEX(Dung_Stamm!$A$3:$A$28,MATCH('4_OrganischeDüngung_Ernte'!D23,Dung_Stamm!$B$3:$B$28,0)),'1_Eingabe_Humus'!$D$39:$I$44,5,FALSE)/ (100/VLOOKUP(INDEX(Dung_Stamm!$A$3:$A$28,MATCH('4_OrganischeDüngung_Ernte'!D23,Dung_Stamm!$B$3:$B$28,0)),'1_Eingabe_Humus'!$D$39:$I$44,2,FALSE)) *F23*10) ->  | J23: =IF(AND(G23="",H23="",I23=""),"", "N: "&ROUND('Spiegel-EB'!AU20-(VLOOKUP(A23,Düngung!$D$7:$CG$26,27,FALSE)+VLOOKUP(A23,Düngung!$D$7:$CG$26,53,FALSE)+VLOOKUP(A23,Düngung!$D$7:$CG$26,70,FALSE)), 0)&"; "&IF($F$4="Oxidform","P2O5","P")&": "&ROUND('Spiegel-EB'!AV20-(VLOOKUP(A23,Düngung!$D$7:$CG$26,29,FALSE)+VLOOKUP(A23,Düngung!$D$7:$CG$26,55,FALSE)+VLOOKUP(A23,Düngung!$D$7:$CG$26,72,FALSE)), 0)&"; "&IF($F$4="Oxidform","K2O","K")&": "&ROUND('Spiegel-EB'!AW20-(VLOOKUP(A23,Düngung!$D$7:$CG$26,30,FALSE)+VLOOKUP(A23,Düngung!$D$7:$CG$26,56,FALSE)+VLOOKUP(A23,Düngung!$D$7:$CG$26,73,FALSE)), 0)&"") ->  | N23: =IF(J23="","",IF( COUNTIF('THG-Werte_WD'!E:E, VLOOKUP(D23&" "&B23&" "&E23&"",'THG-Werte_WD'!E:E,1,FALSE))>0,"zulässig","Verfahren prüfen")) -> 
G24: =IF($D24="","", VLOOKUP(INDEX(Dung_Stamm!$A$3:$A$28,MATCH('4_OrganischeDüngung_Ernte'!D24,Dung_Stamm!$B$3:$B$28,0)),'1_Eingabe_Humus'!$D$39:$I$44,3,FALSE)/ (100/VLOOKUP(INDEX(Dung_Stamm!$A$3:$A$28,MATCH('4_OrganischeDüngung_Ernte'!D24,Dung_Stamm!$B$3:$B$28,0)),'1_Eingabe_Humus'!$D$39:$I$44,2,FALSE)) *F24*10) ->  | H24: =IF($D24="","", VLOOKUP(INDEX(Dung_Stamm!$A$3:$A$28,MATCH('4_OrganischeDüngung_Ernte'!D24,Dung_Stamm!$B$3:$B$28,0)),'1_Eingabe_Humus'!$D$39:$I$44,4,FALSE)/ (100/VLOOKUP(INDEX(Dung_Stamm!$A$3:$A$28,MATCH('4_OrganischeDüngung_Ernte'!D24,Dung_Stamm!$B$3:$B$28,0)),'1_Eingabe_Humus'!$D$39:$I$44,2,FALSE)) *F24*10) ->  | I24: =IF($D24="","", VLOOKUP(INDEX(Dung_Stamm!$A$3:$A$28,MATCH('4_OrganischeDüngung_Ernte'!D24,Dung_Stamm!$B$3:$B$28,0)),'1_Eingabe_Humus'!$D$39:$I$44,5,FALSE)/ (100/VLOOKUP(INDEX(Dung_Stamm!$A$3:$A$28,MATCH('4_OrganischeDüngung_Ernte'!D24,Dung_Stamm!$B$3:$B$28,0)),'1_Eingabe_Humus'!$D$39:$I$44,2,FALSE)) *F24*10) ->  | J24: =IF(AND(G24="",H24="",I24=""),"", "N: "&ROUND('Spiegel-EB'!AU21-(VLOOKUP(A24,Düngung!$D$7:$CG$26,27,FALSE)+VLOOKUP(A24,Düngung!$D$7:$CG$26,53,FALSE)+VLOOKUP(A24,Düngung!$D$7:$CG$26,70,FALSE)), 0)&"; "&IF($F$4="Oxidform","P2O5","P")&": "&ROUND('Spiegel-EB'!AV21-(VLOOKUP(A24,Düngung!$D$7:$CG$26,29,FALSE)+VLOOKUP(A24,Düngung!$D$7:$CG$26,55,FALSE)+VLOOKUP(A24,Düngung!$D$7:$CG$26,72,FALSE)), 0)&"; "&IF($F$4="Oxidform","K2O","K")&": "&ROUND('Spiegel-EB'!AW21-(VLOOKUP(A24,Düngung!$D$7:$CG$26,30,FALSE)+VLOOKUP(A24,Düngung!$D$7:$CG$26,56,FALSE)+VLOOKUP(A24,Düngung!$D$7:$CG$26,73,FALSE)), 0)&"") ->  | N24: =IF(J24="","",IF( COUNTIF('THG-Werte_WD'!E:E, VLOOKUP(D24&" "&B24&" "&E24&"",'THG-Werte_WD'!E:E,1,FALSE))>0,"zulässig","Verfahren prüfen")) -> 
G25: =IF($D25="","", VLOOKUP(INDEX(Dung_Stamm!$A$3:$A$28,MATCH('4_OrganischeDüngung_Ernte'!D25,Dung_Stamm!$B$3:$B$28,0)),'1_Eingabe_Humus'!$D$39:$I$44,3,FALSE)/ (100/VLOOKUP(INDEX(Dung_Stamm!$A$3:$A$28,MATCH('4_OrganischeDüngung_Ernte'!D25,Dung_Stamm!$B$3:$B$28,0)),'1_Eingabe_Humus'!$D$39:$I$44,2,FALSE)) *F25*10) ->  | H25: =IF($D25="","", VLOOKUP(INDEX(Dung_Stamm!$A$3:$A$28,MATCH('4_OrganischeDüngung_Ernte'!D25,Dung_Stamm!$B$3:$B$28,0)),'1_Eingabe_Humus'!$D$39:$I$44,4,FALSE)/ (100/VLOOKUP(INDEX(Dung_Stamm!$A$3:$A$28,MATCH('4_OrganischeDüngung_Ernte'!D25,Dung_Stamm!$B$3:$B$28,0)),'1_Eingabe_Humus'!$D$39:$I$44,2,FALSE)) *F25*10) ->  | I25: =IF($D25="","", VLOOKUP(INDEX(Dung_Stamm!$A$3:$A$28,MATCH('4_OrganischeDüngung_Ernte'!D25,Dung_Stamm!$B$3:$B$28,0)),'1_Eingabe_Humus'!$D$39:$I$44,5,FALSE)/ (100/VLOOKUP(INDEX(Dung_Stamm!$A$3:$A$28,MATCH('4_OrganischeDüngung_Ernte'!D25,Dung_Stamm!$B$3:$B$28,0)),'1_Eingabe_Humus'!$D$39:$I$44,2,FALSE)) *F25*10) ->  | J25: =IF(AND(G25="",H25="",I25=""),"", "N: "&ROUND('Spiegel-EB'!AU22-(VLOOKUP(A25,Düngung!$D$7:$CG$26,27,FALSE)+VLOOKUP(A25,Düngung!$D$7:$CG$26,53,FALSE)+VLOOKUP(A25,Düngung!$D$7:$CG$26,70,FALSE)), 0)&"; "&IF($F$4="Oxidform","P2O5","P")&": "&ROUND('Spiegel-EB'!AV22-(VLOOKUP(A25,Düngung!$D$7:$CG$26,29,FALSE)+VLOOKUP(A25,Düngung!$D$7:$CG$26,55,FALSE)+VLOOKUP(A25,Düngung!$D$7:$CG$26,72,FALSE)), 0)&"; "&IF($F$4="Oxidform","K2O","K")&": "&ROUND('Spiegel-EB'!AW22-(VLOOKUP(A25,Düngung!$D$7:$CG$26,30,FALSE)+VLOOKUP(A25,Düngung!$D$7:$CG$26,56,FALSE)+VLOOKUP(A25,Düngung!$D$7:$CG$26,73,FALSE)), 0)&"") ->  | N25: =IF(J25="","",IF( COUNTIF('THG-Werte_WD'!E:E, VLOOKUP(D25&" "&B25&" "&E25&"",'THG-Werte_WD'!E:E,1,FALSE))>0,"zulässig","Verfahren prüfen")) -> 
G26: =IF($D26="","", VLOOKUP(INDEX(Dung_Stamm!$A$3:$A$28,MATCH('4_OrganischeDüngung_Ernte'!D26,Dung_Stamm!$B$3:$B$28,0)),'1_Eingabe_Humus'!$D$39:$I$44,3,FALSE)/ (100/VLOOKUP(INDEX(Dung_Stamm!$A$3:$A$28,MATCH('4_OrganischeDüngung_Ernte'!D26,Dung_Stamm!$B$3:$B$28,0)),'1_Eingabe_Humus'!$D$39:$I$44,2,FALSE)) *F26*10) ->  | H26: =IF($D26="","", VLOOKUP(INDEX(Dung_Stamm!$A$3:$A$28,MATCH('4_OrganischeDüngung_Ernte'!D26,Dung_Stamm!$B$3:$B$28,0)),'1_Eingabe_Humus'!$D$39:$I$44,4,FALSE)/ (100/VLOOKUP(INDEX(Dung_Stamm!$A$3:$A$28,MATCH('4_OrganischeDüngung_Ernte'!D26,Dung_Stamm!$B$3:$B$28,0)),'1_Eingabe_Humus'!$D$39:$I$44,2,FALSE)) *F26*10) ->  | I26: =IF($D26="","", VLOOKUP(INDEX(Dung_Stamm!$A$3:$A$28,MATCH('4_OrganischeDüngung_Ernte'!D26,Dung_Stamm!$B$3:$B$28,0)),'1_Eingabe_Humus'!$D$39:$I$44,5,FALSE)/ (100/VLOOKUP(INDEX(Dung_Stamm!$A$3:$A$28,MATCH('4_OrganischeDüngung_Ernte'!D26,Dung_Stamm!$B$3:$B$28,0)),'1_Eingabe_Humus'!$D$39:$I$44,2,FALSE)) *F26*10) ->  | J26: =IF(AND(G26="",H26="",I26=""),"", "N: "&ROUND('Spiegel-EB'!AU23-(VLOOKUP(A26,Düngung!$D$7:$CG$26,27,FALSE)+VLOOKUP(A26,Düngung!$D$7:$CG$26,53,FALSE)+VLOOKUP(A26,Düngung!$D$7:$CG$26,70,FALSE)), 0)&"; "&IF($F$4="Oxidform","P2O5","P")&": "&ROUND('Spiegel-EB'!AV23-(VLOOKUP(A26,Düngung!$D$7:$CG$26,29,FALSE)+VLOOKUP(A26,Düngung!$D$7:$CG$26,55,FALSE)+VLOOKUP(A26,Düngung!$D$7:$CG$26,72,FALSE)), 0)&"; "&IF($F$4="Oxidform","K2O","K")&": "&ROUND('Spiegel-EB'!AW23-(VLOOKUP(A26,Düngung!$D$7:$CG$26,30,FALSE)+VLOOKUP(A26,Düngung!$D$7:$CG$26,56,FALSE)+VLOOKUP(A26,Düngung!$D$7:$CG$26,73,FALSE)), 0)&"") ->  | N26: =IF(J26="","",IF( COUNTIF('THG-Werte_WD'!E:E, VLOOKUP(D26&" "&B26&" "&E26&"",'THG-Werte_WD'!E:E,1,FALSE))>0,"zulässig","Verfahren prüfen")) -> 
G27: =IF($D27="","", VLOOKUP(INDEX(Dung_Stamm!$A$3:$A$28,MATCH('4_OrganischeDüngung_Ernte'!D27,Dung_Stamm!$B$3:$B$28,0)),'1_Eingabe_Humus'!$D$39:$I$44,3,FALSE)/ (100/VLOOKUP(INDEX(Dung_Stamm!$A$3:$A$28,MATCH('4_OrganischeDüngung_Ernte'!D27,Dung_Stamm!$B$3:$B$28,0)),'1_Eingabe_Humus'!$D$39:$I$44,2,FALSE)) *F27*10) ->  | H27: =IF($D27="","", VLOOKUP(INDEX(Dung_Stamm!$A$3:$A$28,MATCH('4_OrganischeDüngung_Ernte'!D27,Dung_Stamm!$B$3:$B$28,0)),'1_Eingabe_Humus'!$D$39:$I$44,4,FALSE)/ (100/VLOOKUP(INDEX(Dung_Stamm!$A$3:$A$28,MATCH('4_OrganischeDüngung_Ernte'!D27,Dung_Stamm!$B$3:$B$28,0)),'1_Eingabe_Humus'!$D$39:$I$44,2,FALSE)) *F27*10) ->  | I27: =IF($D27="","", VLOOKUP(INDEX(Dung_Stamm!$A$3:$A$28,MATCH('4_OrganischeDüngung_Ernte'!D27,Dung_Stamm!$B$3:$B$28,0)),'1_Eingabe_Humus'!$D$39:$I$44,5,FALSE)/ (100/VLOOKUP(INDEX(Dung_Stamm!$A$3:$A$28,MATCH('4_OrganischeDüngung_Ernte'!D27,Dung_Stamm!$B$3:$B$28,0)),'1_Eingabe_Humus'!$D$39:$I$44,2,FALSE)) *F27*10) ->  | J27: =IF(AND(G27="",H27="",I27=""),"", "N: "&ROUND('Spiegel-EB'!AU24-(VLOOKUP(A27,Düngung!$D$7:$CG$26,27,FALSE)+VLOOKUP(A27,Düngung!$D$7:$CG$26,53,FALSE)+VLOOKUP(A27,Düngung!$D$7:$CG$26,70,FALSE)), 0)&"; "&IF($F$4="Oxidform","P2O5","P")&": "&ROUND('Spiegel-EB'!AV24-(VLOOKUP(A27,Düngung!$D$7:$CG$26,29,FALSE)+VLOOKUP(A27,Düngung!$D$7:$CG$26,55,FALSE)+VLOOKUP(A27,Düngung!$D$7:$CG$26,72,FALSE)), 0)&"; "&IF($F$4="Oxidform","K2O","K")&": "&ROUND('Spiegel-EB'!AW24-(VLOOKUP(A27,Düngung!$D$7:$CG$26,30,FALSE)+VLOOKUP(A27,Düngung!$D$7:$CG$26,56,FALSE)+VLOOKUP(A27,Düngung!$D$7:$CG$26,73,FALSE)), 0)&"") ->  | N27: =IF(J27="","",IF( COUNTIF('THG-Werte_WD'!E:E, VLOOKUP(D27&" "&B27&" "&E27&"",'THG-Werte_WD'!E:E,1,FALSE))>0,"zulässig","Verfahren prüfen")) -> 
A29: ="6. Ernteverfahren "&'1_Eingabe_Humus'!E7&"" -> 6. Ernteverfahren | C29: beerntete Fläche
A30: Kultur | B30: Verfahren | C30: in %
E34: =IF(AND(SUM('Berechnung-EB'!$P$3:$Q$22)=0,SUM('Berechnung-THG'!$T$3:$U$22)=0), "Die Diagramme können erstellt werden.","Achtung, Dateneingabe unvollständig oder unlogisch! Fehlt irgendwo was?") -> Die Diagramme können erstellt werden. | L34: =Auswahl_Kulturen!C1 -> Ackergras
L35: =Auswahl_Kulturen!C2 -> Grünland
L36: =Auswahl_Kulturen!C3 -> 
L37: =Auswahl_Kulturen!C4 -> 
L38: =Auswahl_Kulturen!C5 -> 
L39: =Auswahl_Kulturen!C6 -> 
L40: =Auswahl_Kulturen!C7 -> 
L41: =Auswahl_Kulturen!C8 -> 
L42: =Auswahl_Kulturen!C9 -> 
L43: =Auswahl_Kulturen!C10 -> 
L44: =Auswahl_Kulturen!C11 -> 
L45: =Auswahl_Kulturen!C12 -> 
L46: =Auswahl_Kulturen!C13 -> 
L47: =Auswahl_Kulturen!C14 -> 
L48: =Auswahl_Kulturen!C15 -> 
L49: =Auswahl_Kulturen!C16 -> 
L50: =Auswahl_Kulturen!C17 -> 
L51: =Auswahl_Kulturen!C18 -> 
L52: =Auswahl_Kulturen!C19 -> 
L53: =Auswahl_Kulturen!C20 -> 

Sheet 5_Ergebnis_Humus_Nährstoff
A3: ="Humusbilanz (HE-Methode, dynamisch) für den Betrieb "&'1_Eingabe_Humus'!E5&" im Jahr "&'1_Eingabe_Humus'!E7&"" -> Humusbilanz (HE-Methode, dynamisch) für den Betrieb im Jahr
A4: HE Humusbilanz [kg Hu-C/ha]
A5: Nr. | B5: FF | C5: Fruchtart | D5: Fläche [ha] | E5: Humus-bedarf | F5: Ersatz-leistung | G5: Mehrer-leistung | H5: Stroh-düngung | I5: Grün-düngung | J5: Stallmist | K5: Gülle | L5: Sonst. org. Dünger | M5: Humus-saldo
A6: 1 | B6: =HuBil!B7 -> 1 | C6: =HuBil!D7 -> Ackergras | D6: =IF(C6="","",HuBil!F7) -> 20 | E6: =IF(D6="","",HuBil!AW7*580) -> 0 | F6: =IF(SUM(G6:L6)>0,SUM(G6:L6),"") -> 279.56 | G6: =IF(HuBil!AZ7*580>0,HuBil!AZ7*580,"") -> 261 | H6: =IF(HuBil!BA7*580>0,HuBil!BA7*580,"") ->  | I6: =IF(HuBil!BB7*580>0,HuBil!BB7*580,"") -> 18.56 | J6: =IF(HuBil!BD7*580>0,HuBil!BD7*580,"") ->  | K6: =IF(HuBil!BE7*580>0,HuBil!BE7*580,"") ->  | L6: =IF(HuBil!BF7*580>0,HuBil!BF7*580,"") ->  | M6: =IF(C6="","",HuBil!BH7*580) -> 279.56
A7: 2 | B7: =HuBil!B8 -> 1 | C7: =HuBil!D8 ->  | D7: =IF(C7="","",HuBil!F8) ->  | E7: =IF(D7="","",HuBil!AW8*580) ->  | F7: =IF(SUM(G7:L7)>0,SUM(G7:L7),"") ->  | G7: =IF(HuBil!AZ8*580>0,HuBil!AZ8*580,"") ->  | H7: =IF(HuBil!BA8*580>0,HuBil!BA8*580,"") ->  | I7: =IF(HuBil!BB8*580>0,HuBil!BB8*580,"") ->  | J7: =IF(HuBil!BD8*580>0,HuBil!BD8*580,"") ->  | K7: =IF(HuBil!BE8*580>0,HuBil!BE8*580,"") ->  | L7: =IF(HuBil!BF8*580>0,HuBil!BF8*580,"") ->  | M7: =IF(C7="","",HuBil!BH8*580) -> 
A8: 3 | B8: =HuBil!B9 -> 1 | C8: =HuBil!D9 ->  | D8: =IF(C8="","",HuBil!F9) ->  | E8: =IF(D8="","",HuBil!AW9*580) ->  | G8: =IF(HuBil!AZ9*580>0,HuBil!AZ9*580,"") ->  | H8: =IF(HuBil!BA9*580>0,HuBil!BA9*580,"") ->  | I8: =IF(HuBil!BB9*580>0,HuBil!BB9*580,"") ->  | J8: =IF(HuBil!BD9*580>0,HuBil!BD9*580,"") ->  | K8: =IF(HuBil!BE9*580>0,HuBil!BE9*580,"") ->  | L8: =IF(HuBil!BF9*580>0,HuBil!BF9*580,"") ->  | M8: =IF(C8="","",HuBil!BH9*580) -> 
A9: 4 | B9: =HuBil!B10 -> 1 | C9: =HuBil!D10 ->  | D9: =IF(C9="","",HuBil!F10) ->  | E9: =IF(D9="","",HuBil!AW10*580) ->  | G9: =IF(HuBil!AZ10*580>0,HuBil!AZ10*580,"") ->  | H9: =IF(HuBil!BA10*580>0,HuBil!BA10*580,"") ->  | I9: =IF(HuBil!BB10*580>0,HuBil!BB10*580,"") ->  | J9: =IF(HuBil!BD10*580>0,HuBil!BD10*580,"") ->  | K9: =IF(HuBil!BE10*580>0,HuBil!BE10*580,"") ->  | L9: =IF(HuBil!BF10*580>0,HuBil!BF10*580,"") ->  | M9: =IF(C9="","",HuBil!BH10*580) -> 
A10: 5 | B10: =HuBil!B11 -> 1 | C10: =HuBil!D11 ->  | D10: =IF(C10="","",HuBil!F11) ->  | E10: =IF(D10="","",HuBil!AW11*580) ->  | G10: =IF(HuBil!AZ11*580>0,HuBil!AZ11*580,"") ->  | H10: =IF(HuBil!BA11*580>0,HuBil!BA11*580,"") ->  | I10: =IF(HuBil!BB11*580>0,HuBil!BB11*580,"") ->  | J10: =IF(HuBil!BD11*580>0,HuBil!BD11*580,"") ->  | K10: =IF(HuBil!BE11*580>0,HuBil!BE11*580,"") ->  | L10: =IF(HuBil!BF11*580>0,HuBil!BF11*580,"") ->  | M10: =IF(C10="","",HuBil!BH11*580) -> 
A11: 6 | B11: =HuBil!B12 -> 1 | C11: =HuBil!D12 ->  | D11: =IF(C11="","",HuBil!F12) ->  | E11: =IF(D11="","",HuBil!AW12*580) ->  | G11: =IF(HuBil!AZ12*580>0,HuBil!AZ12*580,"") ->  | H11: =IF(HuBil!BA12*580>0,HuBil!BA12*580,"") ->  | I11: =IF(HuBil!BB12*580>0,HuBil!BB12*580,"") ->  | J11: =IF(HuBil!BD12*580>0,HuBil!BD12*580,"") ->  | K11: =IF(HuBil!BE12*580>0,HuBil!BE12*580,"") ->  | L11: =IF(HuBil!BF12*580>0,HuBil!BF12*580,"") ->  | M11: =IF(C11="","",HuBil!BH12*580) -> 
A12: 7 | B12: =HuBil!B13 -> 1 | C12: =HuBil!D13 ->  | D12: =IF(C12="","",HuBil!F13) ->  | E12: =IF(D12="","",HuBil!AW13*580) ->  | G12: =IF(HuBil!AZ13*580>0,HuBil!AZ13*580,"") ->  | H12: =IF(HuBil!BA13*580>0,HuBil!BA13*580,"") ->  | I12: =IF(HuBil!BB13*580>0,HuBil!BB13*580,"") ->  | J12: =IF(HuBil!BD13*580>0,HuBil!BD13*580,"") ->  | K12: =IF(HuBil!BE13*580>0,HuBil!BE13*580,"") ->  | L12: =IF(HuBil!BF13*580>0,HuBil!BF13*580,"") ->  | M12: =IF(C12="","",HuBil!BH13*580) -> 
A13: 8 | B13: =HuBil!B14 -> 1 | C13: =HuBil!D14 ->  | D13: =IF(C13="","",HuBil!F14) ->  | E13: =IF(D13="","",HuBil!AW14*580) ->  | G13: =IF(HuBil!AZ14*580>0,HuBil!AZ14*580,"") ->  | H13: =IF(HuBil!BA14*580>0,HuBil!BA14*580,"") ->  | I13: =IF(HuBil!BB14*580>0,HuBil!BB14*580,"") ->  | J13: =IF(HuBil!BD14*580>0,HuBil!BD14*580,"") ->  | K13: =IF(HuBil!BE14*580>0,HuBil!BE14*580,"") ->  | L13: =IF(HuBil!BF14*580>0,HuBil!BF14*580,"") ->  | M13: =IF(C13="","",HuBil!BH14*580) -> 
A14: 9 | B14: =HuBil!B15 -> 1 | C14: =HuBil!D15 ->  | D14: =IF(C14="","",HuBil!F15) ->  | E14: =IF(D14="","",HuBil!AW15*580) ->  | G14: =IF(HuBil!AZ15*580>0,HuBil!AZ15*580,"") ->  | H14: =IF(HuBil!BA15*580>0,HuBil!BA15*580,"") ->  | I14: =IF(HuBil!BB15*580>0,HuBil!BB15*580,"") ->  | J14: =IF(HuBil!BD15*580>0,HuBil!BD15*580,"") ->  | K14: =IF(HuBil!BE15*580>0,HuBil!BE15*580,"") ->  | L14: =IF(HuBil!BF15*580>0,HuBil!BF15*580,"") ->  | M14: =IF(C14="","",HuBil!BH15*580) -> 
A15: 10 | B15: =HuBil!B16 -> 1 | C15: =HuBil!D16 ->  | D15: =IF(C15="","",HuBil!F16) ->  | E15: =IF(D15="","",HuBil!AW16*580) ->  | G15: =IF(HuBil!AZ16*580>0,HuBil!AZ16*580,"") ->  | H15: =IF(HuBil!BA16*580>0,HuBil!BA16*580,"") ->  | I15: =IF(HuBil!BB16*580>0,HuBil!BB16*580,"") ->  | J15: =IF(HuBil!BD16*580>0,HuBil!BD16*580,"") ->  | K15: =IF(HuBil!BE16*580>0,HuBil!BE16*580,"") ->  | L15: =IF(HuBil!BF16*580>0,HuBil!BF16*580,"") ->  | M15: =IF(C15="","",HuBil!BH16*580) -> 
A16: 11 | B16: =HuBil!B17 -> 1 | C16: =HuBil!D17 ->  | D16: =IF(C16="","",HuBil!F17) ->  | E16: =IF(D16="","",HuBil!AW17*580) ->  | G16: =IF(HuBil!AZ17*580>0,HuBil!AZ17*580,"") ->  | H16: =IF(HuBil!BA17*580>0,HuBil!BA17*580,"") ->  | I16: =IF(HuBil!BB17*580>0,HuBil!BB17*580,"") ->  | J16: =IF(HuBil!BD17*580>0,HuBil!BD17*580,"") ->  | K16: =IF(HuBil!BE17*580>0,HuBil!BE17*580,"") ->  | L16: =IF(HuBil!BF17*580>0,HuBil!BF17*580,"") ->  | M16: =IF(C16="","",HuBil!BH17*580) -> 
A17: 12 | B17: =HuBil!B18 -> 1 | C17: =HuBil!D18 ->  | D17: =IF(C17="","",HuBil!F18) ->  | E17: =IF(D17="","",HuBil!AW18*580) ->  | G17: =IF(HuBil!AZ18*580>0,HuBil!AZ18*580,"") ->  | H17: =IF(HuBil!BA18*580>0,HuBil!BA18*580,"") ->  | I17: =IF(HuBil!BB18*580>0,HuBil!BB18*580,"") ->  | J17: =IF(HuBil!BD18*580>0,HuBil!BD18*580,"") ->  | K17: =IF(HuBil!BE18*580>0,HuBil!BE18*580,"") ->  | L17: =IF(HuBil!BF18*580>0,HuBil!BF18*580,"") ->  | M17: =IF(C17="","",HuBil!BH18*580) -> 
A18: 13 | B18: =HuBil!B19 -> 1 | C18: =HuBil!D19 ->  | D18: =IF(C18="","",HuBil!F19) ->  | E18: =IF(D18="","",HuBil!AW19*580) ->  | G18: =IF(HuBil!AZ19*580>0,HuBil!AZ19*580,"") ->  | H18: =IF(HuBil!BA19*580>0,HuBil!BA19*580,"") ->  | I18: =IF(HuBil!BB19*580>0,HuBil!BB19*580,"") ->  | J18: =IF(HuBil!BD19*580>0,HuBil!BD19*580,"") ->  | K18: =IF(HuBil!BE19*580>0,HuBil!BE19*580,"") ->  | L18: =IF(HuBil!BF19*580>0,HuBil!BF19*580,"") ->  | M18: =IF(C18="","",HuBil!BH19*580) -> 
A19: 14 | B19: =HuBil!B20 -> 1 | C19: =HuBil!D20 ->  | D19: =IF(C19="","",HuBil!F20) ->  | E19: =IF(D19="","",HuBil!AW20*580) ->  | G19: =IF(HuBil!AZ20*580>0,HuBil!AZ20*580,"") ->  | H19: =IF(HuBil!BA20*580>0,HuBil!BA20*580,"") ->  | I19: =IF(HuBil!BB20*580>0,HuBil!BB20*580,"") ->  | J19: =IF(HuBil!BD20*580>0,HuBil!BD20*580,"") ->  | K19: =IF(HuBil!BE20*580>0,HuBil!BE20*580,"") ->  | L19: =IF(HuBil!BF20*580>0,HuBil!BF20*580,"") ->  | M19: =IF(C19="","",HuBil!BH20*580) -> 
A20: 15 | B20: =HuBil!B21 -> 1 | C20: =HuBil!D21 ->  | D20: =IF(C20="","",HuBil!F21) ->  | E20: =IF(D20="","",HuBil!AW21*580) ->  | G20: =IF(HuBil!AZ21*580>0,HuBil!AZ21*580,"") ->  | H20: =IF(HuBil!BA21*580>0,HuBil!BA21*580,"") ->  | I20: =IF(HuBil!BB21*580>0,HuBil!BB21*580,"") ->  | J20: =IF(HuBil!BD21*580>0,HuBil!BD21*580,"") ->  | K20: =IF(HuBil!BE21*580>0,HuBil!BE21*580,"") ->  | L20: =IF(HuBil!BF21*580>0,HuBil!BF21*580,"") ->  | M20: =IF(C20="","",HuBil!BH21*580) -> 
A21: 16 | B21: =HuBil!B22 -> 1 | C21: =HuBil!D22 ->  | D21: =IF(C21="","",HuBil!F22) ->  | E21: =IF(D21="","",HuBil!AW22*580) ->  | G21: =IF(HuBil!AZ22*580>0,HuBil!AZ22*580,"") ->  | H21: =IF(HuBil!BA22*580>0,HuBil!BA22*580,"") ->  | I21: =IF(HuBil!BB22*580>0,HuBil!BB22*580,"") ->  | J21: =IF(HuBil!BD22*580>0,HuBil!BD22*580,"") ->  | K21: =IF(HuBil!BE22*580>0,HuBil!BE22*580,"") ->  | L21: =IF(HuBil!BF22*580>0,HuBil!BF22*580,"") ->  | M21: =IF(C21="","",HuBil!BH22*580) -> 
A22: 17 | B22: =HuBil!B23 -> 1 | C22: =HuBil!D23 ->  | D22: =IF(C22="","",HuBil!F23) ->  | E22: =IF(D22="","",HuBil!AW23*580) ->  | G22: =IF(HuBil!AZ23*580>0,HuBil!AZ23*580,"") ->  | H22: =IF(HuBil!BA23*580>0,HuBil!BA23*580,"") ->  | I22: =IF(HuBil!BB23*580>0,HuBil!BB23*580,"") ->  | J22: =IF(HuBil!BD23*580>0,HuBil!BD23*580,"") ->  | K22: =IF(HuBil!BE23*580>0,HuBil!BE23*580,"") ->  | L22: =IF(HuBil!BF23*580>0,HuBil!BF23*580,"") ->  | M22: =IF(C22="","",HuBil!BH23*580) -> 
A23: 18 | B23: =HuBil!B24 -> 1 | C23: =HuBil!D24 ->  | D23: =IF(C23="","",HuBil!F24) ->  | E23: =IF(D23="","",HuBil!AW24*580) ->  | G23: =IF(HuBil!AZ24*580>0,HuBil!AZ24*580,"") ->  | H23: =IF(HuBil!BA24*580>0,HuBil!BA24*580,"") ->  | I23: =IF(HuBil!BB24*580>0,HuBil!BB24*580,"") ->  | J23: =IF(HuBil!BD24*580>0,HuBil!BD24*580,"") ->  | K23: =IF(HuBil!BE24*580>0,HuBil!BE24*580,"") ->  | L23: =IF(HuBil!BF24*580>0,HuBil!BF24*580,"") ->  | M23: =IF(C23="","",HuBil!BH24*580) -> 
A24: 19 | B24: =HuBil!B25 -> 1 | C24: =HuBil!D25 ->  | D24: =IF(C24="","",HuBil!F25) ->  | E24: =IF(D24="","",HuBil!AW25*580) ->  | G24: =IF(HuBil!AZ25*580>0,HuBil!AZ25*580,"") ->  | H24: =IF(HuBil!BA25*580>0,HuBil!BA25*580,"") ->  | I24: =IF(HuBil!BB25*580>0,HuBil!BB25*580,"") ->  | J24: =IF(HuBil!BD25*580>0,HuBil!BD25*580,"") ->  | K24: =IF(HuBil!BE25*580>0,HuBil!BE25*580,"") ->  | L24: =IF(HuBil!BF25*580>0,HuBil!BF25*580,"") ->  | M24: =IF(C24="","",HuBil!BH25*580) -> 
A25: 20 | B25: =HuBil!B26 -> 0 | C25: =HuBil!D26 -> Grünland | D25: =IF(C25="","",HuBil!F26) -> 0 | E25: =IF(D25="","",HuBil!AW26*580) -> 0 | G25: =IF(HuBil!AZ26*580>0,HuBil!AZ26*580,"") ->  | H25: =IF(HuBil!BA26*580>0,HuBil!BA26*580,"") ->  | I25: =IF(HuBil!BB26*580>0,HuBil!BB26*580,"") ->  | J25: =IF(HuBil!BD26*580>0,HuBil!BD26*580,"") ->  | K25: =IF(HuBil!BE26*580>0,HuBil!BE26*580,"") ->  | L25: =IF(HuBil!BF26*580>0,HuBil!BF26*580,"") ->  | M25: =IF(C25="","",HuBil!BH26*580) -> 0
A26: Humusbilanz | C26: Acker | D26: =HuBil!F27 -> 20 | E26: =HuBil!AW27*580 -> 0 | F26: =SUM(G26:L26) -> 279.56 | G26: =HuBil!AZ27*580 -> 261 | H26: =HuBil!BA27*580 -> 0 | I26: =HuBil!BB27*580 -> 18.56 | J26: =HuBil!BD27*580 -> 0 | K26: =HuBil!BE27*580 -> 0 | L26: =HuBil!BF27*580 -> 0 | M26: =SUMPRODUCT(M6:M24,D6:D24)/$D$26 -> 279.56
A27: Versorgungsgrad Acker (%) | M27: =IF(E26=0,"n. b.", -100/E26*F26) -> n. b.
A28: Versorgungsstufe Acker | M28: =IF(HuBil!$D$1=2,HuBil!CG6,HuBil!CG5) -> C
A29: Humusbilanz | C29: Betrieb | D29: =HuBil!F28 -> 20 | E29: =HuBil!AW28*580 -> 0 | F29: =SUM(G29:L29) -> 279.56 | G29: =HuBil!AZ28*580 -> 261 | H29: =HuBil!BA28*580 -> 0 | I29: =HuBil!BB28*580 -> 18.56 | J29: =HuBil!BD28*580 -> 0 | K29: =HuBil!BE28*580 -> 0 | L29: =HuBil!BF28*580 -> 0 | M29: =HuBil!BH28*580 -> 279.56
A30: =HuBil!B30 -> 1 | B30: Fruchtfolge 1 | C30: Fruchtfolge 1 | D30: =HuBil!F30 -> 20 | E30: =IF(D30=0,"",HuBil!AW30*580) -> 0 | F30: =IF(D30=0,"",SUM(G30:L30)) -> 279.56 | G30: =IF(D30=0,"",HuBil!AZ30*580) -> 261 | H30: =IF(D30=0,"",HuBil!BA30*580) -> 0 | I30: =IF(D30=0,"",HuBil!BB30*580) -> 18.56 | J30: =IF(D30=0,"",HuBil!BD30*580) -> 0 | K30: =IF(D30=0,"",HuBil!BE30*580) -> 0 | L30: =IF(D30=0,"",HuBil!BF30*580) -> 0 | M30: =IF(D30=0,"",HuBil!BH30*580) -> 279.56
A31: =HuBil!B31 -> 2 | B31: Fruchtfolge 2 | C31: Fruchtfolge 2 | D31: =HuBil!F31 -> 0 | E31: =IF(D31=0,"",HuBil!AW31*580) ->  | F31: =IF(D31=0,"",SUM(G31:L31)) ->  | G31: =IF(D31=0,"",HuBil!AZ31*580) ->  | H31: =IF(D31=0,"",HuBil!BA31*580) ->  | I31: =IF(D31=0,"",HuBil!BB31*580) ->  | J31: =IF(D31=0,"",HuBil!BD31*580) ->  | K31: =IF(D31=0,"",HuBil!BE31*580) ->  | L31: =IF(D31=0,"",HuBil!BF31*580) ->  | M31: =IF(D31=0,"",HuBil!BH31*580) -> 
A32: =HuBil!B32 -> 3 | B32: Fruchtfolge 3 | C32: Fruchtfolge 3 | D32: =HuBil!F32 -> 0 | E32: =IF(D32=0,"",HuBil!AW32*580) ->  | F32: =IF(D32=0,"",SUM(G32:L32)) ->  | G32: =IF(D32=0,"",HuBil!AZ32*580) ->  | H32: =IF(D32=0,"",HuBil!BA32*580) ->  | I32: =IF(D32=0,"",HuBil!BB32*580) ->  | J32: =IF(D32=0,"",HuBil!BD32*580) ->  | K32: =IF(D32=0,"",HuBil!BE32*580) ->  | L32: =IF(D32=0,"",HuBil!BF32*580) ->  | M32: =IF(D32=0,"",HuBil!BH32*580) -> 
A34: =IF(HuBil!$D$1=2, "Humusbilanz (nach VDLUFA, obere Werte) für den Betrieb "&'1_Eingabe_Humus'!E5&" im Jahr "&'1_Eingabe_Humus'!E7&""," Humusbilanz (nach VDLUFA, untere Werte) für den Betrieb "&'1_Eingabe_Humus'!E5&" im Jahr "&'1_Eingabe_Humus'!E7&"") -> Humusbilanz (nach VDLUFA, obere Werte) für den Betrieb im Jahr
C35: Anbauverhältnisse | E35: Humusbilanz [kg Hu-C/ha]
A36: Nr. | B36: FF | C36: Fruchtart | D36: Fläche [ha] | E36: Humus-bedarf | F36: Ersatz-leistung | G36: Mehrer-leistung | H36: Stroh-düngung | I36: Grün-düngung | J36: Stallmist | K36: Gülle | L36: Sonst. org. Dünger | M36: Humus-saldo
A37: 1 | B37: =HuBil!B7 -> 1 | C37: =HuBil!D7 -> Ackergras | D37: =IF(C37="","",HuBil!F7) -> 20 | E37: =IF(D37="","",IF(HuBil!$D$1=2,HuBil!BI7,HuBil!BK7)) -> 0 | F37: =IF(SUM(G37:L37)=0,"",SUM(G37:L37)) -> 625.6 | G37: =IF(HuBil!BN7>0,HuBil!BN7,"") -> 600 | H37: =IF(HuBil!BP7>0,HuBil!BP7,"") ->  | I37: =IF(HuBil!BO7>0,HuBil!BO7,"") -> 25.6 | J37: =IF(HuBil!BQ7>0,HuBil!BQ7,"") ->  | K37: =IF(HuBil!BR7>0,HuBil!BR7,"") ->  | L37: =IF(HuBil!BS7>0,HuBil!BS7,"") ->  | M37: =IF(C6="","",IF(HuBil!$D$1=2,HuBil!BV7,HuBil!BX7)) -> 625.6
A38: 2 | B38: =HuBil!B8 -> 1 | C38: =HuBil!D8 ->  | D38: =IF(C38="","",HuBil!F8) ->  | E38: =IF(D38="","",IF(HuBil!$D$1=2,HuBil!BI8,HuBil!BK8)) ->  | F38: =IF(SUM(G38:L38)=0,"",SUM(G38:L38)) ->  | G38: =IF(HuBil!BN8>0,HuBil!BN8,"") ->  | H38: =IF(HuBil!BP8>0,HuBil!BP8,"") ->  | I38: =IF(HuBil!BO8>0,HuBil!BO8,"") ->  | J38: =IF(HuBil!BQ8>0,HuBil!BQ8,"") ->  | K38: =IF(HuBil!BR8>0,HuBil!BR8,"") ->  | L38: =IF(HuBil!BS8>0,HuBil!BS8,"") ->  | M38: =IF(C7="","",IF(HuBil!$D$1=2,HuBil!BV8,HuBil!BX8)) -> 
A39: 3 | B39: =HuBil!B9 -> 1 | C39: =HuBil!D9 ->  | D39: =IF(C39="","",HuBil!F9) ->  | E39: =IF(D39="","",IF(HuBil!$D$1=2,HuBil!BI9,HuBil!BK9)) ->  | G39: =IF(HuBil!BN9>0,HuBil!BN9,"") ->  | H39: =IF(HuBil!BP9>0,HuBil!BP9,"") ->  | I39: =IF(HuBil!BO9>0,HuBil!BO9,"") ->  | J39: =IF(HuBil!BQ9>0,HuBil!BQ9,"") ->  | K39: =IF(HuBil!BR9>0,HuBil!BR9,"") ->  | L39: =IF(HuBil!BS9>0,HuBil!BS9,"") ->  | M39: =IF(C8="","",IF(HuBil!$D$1=2,HuBil!BV9,HuBil!BX9)) -> 
A40: 4 | B40: =HuBil!B10 -> 1 | C40: =HuBil!D10 ->  | D40: =IF(C40="","",HuBil!F10) ->  | E40: =IF(D40="","",IF(HuBil!$D$1=2,HuBil!BI10,HuBil!BK10)) ->  | G40: =IF(HuBil!BN10>0,HuBil!BN10,"") ->  | H40: =IF(HuBil!BP10>0,HuBil!BP10,"") ->  | I40: =IF(HuBil!BO10>0,HuBil!BO10,"") ->  | J40: =IF(HuBil!BQ10>0,HuBil!BQ10,"") ->  | K40: =IF(HuBil!BR10>0,HuBil!BR10,"") ->  | L40: =IF(HuBil!BS10>0,HuBil!BS10,"") ->  | M40: =IF(C9="","",IF(HuBil!$D$1=2,HuBil!BV10,HuBil!BX10)) -> 
A41: 5 | B41: =HuBil!B11 -> 1 | C41: =HuBil!D11 ->  | D41: =IF(C41="","",HuBil!F11) ->  | E41: =IF(D41="","",IF(HuBil!$D$1=2,HuBil!BI11,HuBil!BK11)) ->  | G41: =IF(HuBil!BN11>0,HuBil!BN11,"") ->  | H41: =IF(HuBil!BP11>0,HuBil!BP11,"") ->  | I41: =IF(HuBil!BO11>0,HuBil!BO11,"") ->  | J41: =IF(HuBil!BQ11>0,HuBil!BQ11,"") ->  | K41: =IF(HuBil!BR11>0,HuBil!BR11,"") ->  | L41: =IF(HuBil!BS11>0,HuBil!BS11,"") ->  | M41: =IF(C10="","",IF(HuBil!$D$1=2,HuBil!BV11,HuBil!BX11)) -> 
A42: 6 | B42: =HuBil!B12 -> 1 | C42: =HuBil!D12 ->  | D42: =IF(C42="","",HuBil!F12) ->  | E42: =IF(D42="","",IF(HuBil!$D$1=2,HuBil!BI12,HuBil!BK12)) ->  | G42: =IF(HuBil!BN12>0,HuBil!BN12,"") ->  | H42: =IF(HuBil!BP12>0,HuBil!BP12,"") ->  | I42: =IF(HuBil!BO12>0,HuBil!BO12,"") ->  | J42: =IF(HuBil!BQ12>0,HuBil!BQ12,"") ->  | K42: =IF(HuBil!BR12>0,HuBil!BR12,"") ->  | L42: =IF(HuBil!BS12>0,HuBil!BS12,"") ->  | M42: =IF(C11="","",IF(HuBil!$D$1=2,HuBil!BV12,HuBil!BX12)) -> 
A43: 7 | B43: =HuBil!B13 -> 1 | C43: =HuBil!D13 ->  | D43: =IF(C43="","",HuBil!F13) ->  | E43: =IF(D43="","",IF(HuBil!$D$1=2,HuBil!BI13,HuBil!BK13)) ->  | G43: =IF(HuBil!BN13>0,HuBil!BN13,"") ->  | H43: =IF(HuBil!BP13>0,HuBil!BP13,"") ->  | I43: =IF(HuBil!BO13>0,HuBil!BO13,"") ->  | J43: =IF(HuBil!BQ13>0,HuBil!BQ13,"") ->  | K43: =IF(HuBil!BR13>0,HuBil!BR13,"") ->  | L43: =IF(HuBil!BS13>0,HuBil!BS13,"") ->  | M43: =IF(C12="","",IF(HuBil!$D$1=2,HuBil!BV13,HuBil!BX13)) -> 
A44: 8 | B44: =HuBil!B14 -> 1 | C44: =HuBil!D14 ->  | D44: =IF(C44="","",HuBil!F14) ->  | E44: =IF(D44="","",IF(HuBil!$D$1=2,HuBil!BI14,HuBil!BK14)) ->  | G44: =IF(HuBil!BN14>0,HuBil!BN14,"") ->  | H44: =IF(HuBil!BP14>0,HuBil!BP14,"") ->  | I44: =IF(HuBil!BO14>0,HuBil!BO14,"") ->  | J44: =IF(HuBil!BQ14>0,HuBil!BQ14,"") ->  | K44: =IF(HuBil!BR14>0,HuBil!BR14,"") ->  | L44: =IF(HuBil!BS14>0,HuBil!BS14,"") ->  | M44: =IF(C13="","",IF(HuBil!$D$1=2,HuBil!BV14,HuBil!BX14)) -> 
A45: 9 | B45: =HuBil!B15 -> 1 | C45: =HuBil!D15 ->  | D45: =IF(C45="","",HuBil!F15) ->  | E45: =IF(D45="","",IF(HuBil!$D$1=2,HuBil!BI15,HuBil!BK15)) ->  | G45: =IF(HuBil!BN15>0,HuBil!BN15,"") ->  | H45: =IF(HuBil!BP15>0,HuBil!BP15,"") ->  | I45: =IF(HuBil!BO15>0,HuBil!BO15,"") ->  | J45: =IF(HuBil!BQ15>0,HuBil!BQ15,"") ->  | K45: =IF(HuBil!BR15>0,HuBil!BR15,"") ->  | L45: =IF(HuBil!BS15>0,HuBil!BS15,"") ->  | M45: =IF(C14="","",IF(HuBil!$D$1=2,HuBil!BV15,HuBil!BX15)) -> 
A46: 10 | B46: =HuBil!B16 -> 1 | C46: =HuBil!D16 ->  | D46: =IF(C46="","",HuBil!F16) ->  | E46: =IF(D46="","",IF(HuBil!$D$1=2,HuBil!BI16,HuBil!BK16)) ->  | G46: =IF(HuBil!BN16>0,HuBil!BN16,"") ->  | H46: =IF(HuBil!BP16>0,HuBil!BP16,"") ->  | I46: =IF(HuBil!BO16>0,HuBil!BO16,"") ->  | J46: =IF(HuBil!BQ16>0,HuBil!BQ16,"") ->  | K46: =IF(HuBil!BR16>0,HuBil!BR16,"") ->  | L46: =IF(HuBil!BS16>0,HuBil!BS16,"") ->  | M46: =IF(C15="","",IF(HuBil!$D$1=2,HuBil!BV16,HuBil!BX16)) -> 
A47: 11 | B47: =HuBil!B17 -> 1 | C47: =HuBil!D17 ->  | D47: =IF(C47="","",HuBil!F17) ->  | E47: =IF(D47="","",IF(HuBil!$D$1=2,HuBil!BI17,HuBil!BK17)) ->  | G47: =IF(HuBil!BN17>0,HuBil!BN17,"") ->  | H47: =IF(HuBil!BP17>0,HuBil!BP17,"") ->  | I47: =IF(HuBil!BO17>0,HuBil!BO17,"") ->  | J47: =IF(HuBil!BQ17>0,HuBil!BQ17,"") ->  | K47: =IF(HuBil!BR17>0,HuBil!BR17,"") ->  | L47: =IF(HuBil!BS17>0,HuBil!BS17,"") ->  | M47: =IF(C16="","",IF(HuBil!$D$1=2,HuBil!BV17,HuBil!BX17)) -> 
A48: 12 | B48: =HuBil!B18 -> 1 | C48: =HuBil!D18 ->  | D48: =IF(C48="","",HuBil!F18) ->  | E48: =IF(D48="","",IF(HuBil!$D$1=2,HuBil!BI18,HuBil!BK18)) ->  | G48: =IF(HuBil!BN18>0,HuBil!BN18,"") ->  | H48: =IF(HuBil!BP18>0,HuBil!BP18,"") ->  | I48: =IF(HuBil!BO18>0,HuBil!BO18,"") ->  | J48: =IF(HuBil!BQ18>0,HuBil!BQ18,"") ->  | K48: =IF(HuBil!BR18>0,HuBil!BR18,"") ->  | L48: =IF(HuBil!BS18>0,HuBil!BS18,"") ->  | M48: =IF(C17="","",IF(HuBil!$D$1=2,HuBil!BV18,HuBil!BX18)) -> 
A49: 13 | B49: =HuBil!B19 -> 1 | C49: =HuBil!D19 ->  | D49: =IF(C49="","",HuBil!F19) ->  | E49: =IF(D49="","",IF(HuBil!$D$1=2,HuBil!BI19,HuBil!BK19)) ->  | G49: =IF(HuBil!BN19>0,HuBil!BN19,"") ->  | H49: =IF(HuBil!BP19>0,HuBil!BP19,"") ->  | I49: =IF(HuBil!BO19>0,HuBil!BO19,"") ->  | J49: =IF(HuBil!BQ19>0,HuBil!BQ19,"") ->  | K49: =IF(HuBil!BR19>0,HuBil!BR19,"") ->  | L49: =IF(HuBil!BS19>0,HuBil!BS19,"") ->  | M49: =IF(C18="","",IF(HuBil!$D$1=2,HuBil!BV19,HuBil!BX19)) -> 
A50: 14 | B50: =HuBil!B20 -> 1 | C50: =HuBil!D20 ->  | D50: =IF(C50="","",HuBil!F20) ->  | E50: =IF(D50="","",IF(HuBil!$D$1=2,HuBil!BI20,HuBil!BK20)) ->  | G50: =IF(HuBil!BN20>0,HuBil!BN20,"") ->  | H50: =IF(HuBil!BP20>0,HuBil!BP20,"") ->  | I50: =IF(HuBil!BO20>0,HuBil!BO20,"") ->  | J50: =IF(HuBil!BQ20>0,HuBil!BQ20,"") ->  | K50: =IF(HuBil!BR20>0,HuBil!BR20,"") ->  | L50: =IF(HuBil!BS20>0,HuBil!BS20,"") ->  | M50: =IF(C19="","",IF(HuBil!$D$1=2,HuBil!BV20,HuBil!BX20)) -> 
A51: 15 | B51: =HuBil!B21 -> 1 | C51: =HuBil!D21 ->  | D51: =IF(C51="","",HuBil!F21) ->  | E51: =IF(D51="","",IF(HuBil!$D$1=2,HuBil!BI21,HuBil!BK21)) ->  | G51: =IF(HuBil!BN21>0,HuBil!BN21,"") ->  | H51: =IF(HuBil!BP21>0,HuBil!BP21,"") ->  | I51: =IF(HuBil!BO21>0,HuBil!BO21,"") ->  | J51: =IF(HuBil!BQ21>0,HuBil!BQ21,"") ->  | K51: =IF(HuBil!BR21>0,HuBil!BR21,"") ->  | L51: =IF(HuBil!BS21>0,HuBil!BS21,"") ->  | M51: =IF(C20="","",IF(HuBil!$D$1=2,HuBil!BV21,HuBil!BX21)) -> 
A52: 16 | B52: =HuBil!B22 -> 1 | C52: =HuBil!D22 ->  | D52: =IF(C52="","",HuBil!F22) ->  | E52: =IF(D52="","",IF(HuBil!$D$1=2,HuBil!BI22,HuBil!BK22)) ->  | G52: =IF(HuBil!BN22>0,HuBil!BN22,"") ->  | H52: =IF(HuBil!BP22>0,HuBil!BP22,"") ->  | I52: =IF(HuBil!BO22>0,HuBil!BO22,"") ->  | J52: =IF(HuBil!BQ22>0,HuBil!BQ22,"") ->  | K52: =IF(HuBil!BR22>0,HuBil!BR22,"") ->  | L52: =IF(HuBil!BS22>0,HuBil!BS22,"") ->  | M52: =IF(C21="","",IF(HuBil!$D$1=2,HuBil!BV22,HuBil!BX22)) -> 
A53: 17 | B53: =HuBil!B23 -> 1 | C53: =HuBil!D23 ->  | D53: =IF(C53="","",HuBil!F23) ->  | E53: =IF(D53="","",IF(HuBil!$D$1=2,HuBil!BI23,HuBil!BK23)) ->  | G53: =IF(HuBil!BN23>0,HuBil!BN23,"") ->  | H53: =IF(HuBil!BP23>0,HuBil!BP23,"") ->  | I53: =IF(HuBil!BO23>0,HuBil!BO23,"") ->  | J53: =IF(HuBil!BQ23>0,HuBil!BQ23,"") ->  | K53: =IF(HuBil!BR23>0,HuBil!BR23,"") ->  | L53: =IF(HuBil!BS23>0,HuBil!BS23,"") ->  | M53: =IF(C22="","",IF(HuBil!$D$1=2,HuBil!BV23,HuBil!BX23)) -> 
A54: 18 | B54: =HuBil!B24 -> 1 | C54: =HuBil!D24 ->  | D54: =IF(C54="","",HuBil!F24) ->  | E54: =IF(D54="","",IF(HuBil!$D$1=2,HuBil!BI24,HuBil!BK24)) ->  | G54: =IF(HuBil!BN24>0,HuBil!BN24,"") ->  | H54: =IF(HuBil!BP24>0,HuBil!BP24,"") ->  | I54: =IF(HuBil!BO24>0,HuBil!BO24,"") ->  | J54: =IF(HuBil!BQ24>0,HuBil!BQ24,"") ->  | K54: =IF(HuBil!BR24>0,HuBil!BR24,"") ->  | L54: =IF(HuBil!BS24>0,HuBil!BS24,"") ->  | M54: =IF(C23="","",IF(HuBil!$D$1=2,HuBil!BV24,HuBil!BX24)) -> 
A55: 19 | B55: =HuBil!B25 -> 1 | C55: =HuBil!D25 ->  | D55: =IF(C55="","",HuBil!F25) ->  | E55: =IF(D55="","",IF(HuBil!$D$1=2,HuBil!BI25,HuBil!BK25)) ->  | G55: =IF(HuBil!BN25>0,HuBil!BN25,"") ->  | H55: =IF(HuBil!BP25>0,HuBil!BP25,"") ->  | I55: =IF(HuBil!BO25>0,HuBil!BO25,"") ->  | J55: =IF(HuBil!BQ25>0,HuBil!BQ25,"") ->  | K55: =IF(HuBil!BR25>0,HuBil!BR25,"") ->  | L55: =IF(HuBil!BS25>0,HuBil!BS25,"") ->  | M55: =IF(C24="","",IF(HuBil!$D$1=2,HuBil!BV25,HuBil!BX25)) -> 
A56: 20 | B56: =HuBil!B26 -> 0 | C56: =HuBil!D26 -> Grünland | D56: =IF(C56="","",HuBil!F26) -> 0 | E56: =IF(D56="","",IF(HuBil!$D$1=2,HuBil!BI26,HuBil!BK26)) -> 0 | G56: =IF(HuBil!BN26>0,HuBil!BN26,"") ->  | H56: =IF(HuBil!BP26>0,HuBil!BP26,"") ->  | I56: =IF(HuBil!BO26>0,HuBil!BO26,"") ->  | J56: =IF(HuBil!BQ26>0,HuBil!BQ26,"") ->  | K56: =IF(HuBil!BR26>0,HuBil!BR26,"") ->  | L56: =IF(HuBil!BS26>0,HuBil!BS26,"") ->  | M56: =IF(C25="","",IF(HuBil!$D$1=2,HuBil!BV26,HuBil!BX26)) -> 0
A57: Humusbilanz Acker | D57: =HuBil!F27 -> 20 | E57: =IF(HuBil!$D$1=2,HuBil!BI27,HuBil!BK27) -> 0 | F57: =SUM(G57:L57) -> 625.6 | G57: =HuBil!BN27 -> 600 | H57: =HuBil!BP27 -> 0 | I57: =HuBil!BO27 -> 25.6 | J57: =HuBil!BQ27 -> 0 | K57: =HuBil!BR27 -> 0 | L57: =HuBil!BS27 -> 0 | M57: =IF(HuBil!$D$1=2,HuBil!BV27,HuBil!BX27) -> 625.6
A58: Versorgungsstufe Acker | M58: =IF(HuBil!$D$1=2,HuBil!CG9,HuBil!CG7) -> E
A59: Humusbilanz Betrieb | D59: =HuBil!F28 -> 20 | E59: =IF(HuBil!$D$1=2,HuBil!BI28,HuBil!BK28) -> 0 | F59: =SUM(G59:L59) -> 625.6 | G59: =HuBil!BN28 -> 600 | H59: =HuBil!BP28 -> 0 | I59: =HuBil!BO28 -> 25.6 | J59: =HuBil!BQ28 -> 0 | K59: =HuBil!BR28 -> 0 | L59: =HuBil!BS28 -> 0 | M59: =IF(HuBil!$D$1=2,HuBil!BV28,HuBil!BX28) -> 625.6
A60: =HuBil!B30 -> 1 | B60: Fruchtfolge 1 | D60: =HuBil!F30 -> 20 | E60: =IF(D60=0,"",IF(HuBil!$D$1=2,HuBil!BI30,HuBil!BK30)) -> 0 | F60: =IF(D60=0,"",SUM(G60:L60)) -> 625.6 | G60: =IF(D60=0,"",HuBil!BN30) -> 600 | H60: =IF(D60=0,"",HuBil!BP30) -> 0 | I60: =IF(D60=0,"",HuBil!BO30) -> 25.6 | J60: =IF(D60=0,"",HuBil!BQ30) -> 0 | K60: =IF(D60=0,"",HuBil!BR30) -> 0 | L60: =IF(D60=0,"",HuBil!BS30) -> 0 | M60: =IF(D60=0,"",IF(HuBil!$D$1=2,HuBil!BV30,HuBil!BX30)) -> 625.6
A61: =HuBil!B31 -> 2 | B61: Fruchtfolge 2 | D61: =HuBil!F31 -> 0 | E61: =IF(D61=0,"",IF(HuBil!$D$1=2,HuBil!BI31,HuBil!BK31)) ->  | F61: =IF(D61=0,"",SUM(G61:L61)) ->  | G61: =IF(D61=0,"",HuBil!BN31) ->  | H61: =IF(D61=0,"",HuBil!BP31) ->  | I61: =IF(D61=0,"",HuBil!BO31) ->  | J61: =IF(D61=0,"",HuBil!BQ31) ->  | K61: =IF(D61=0,"",HuBil!BR31) ->  | L61: =IF(D61=0,"",HuBil!BS31) ->  | M61: =IF(D61=0,"",IF(HuBil!$D$1=2,HuBil!BV31,HuBil!BX31)) -> 
A62: =HuBil!B32 -> 3 | B62: Fruchtfolge 3 | D62: =HuBil!F32 -> 0 | E62: =IF(D62=0,"",IF(HuBil!$D$1=2,HuBil!BI32,HuBil!BK32)) ->  | F62: =IF(D62=0,"",SUM(G62:L62)) ->  | G62: =IF(D62=0,"",HuBil!BN32) ->  | H62: =IF(D62=0,"",HuBil!BP32) ->  | I62: =IF(D62=0,"",HuBil!BO32) ->  | J62: =IF(D62=0,"",HuBil!BQ32) ->  | K62: =IF(D62=0,"",HuBil!BR32) ->  | L62: =IF(D62=0,"",HuBil!BS32) ->  | M62: =IF(D62=0,"",IF(HuBil!$D$1=2,HuBil!BV32,HuBil!BX32)) -> 
A64: ="2.2 Humusbilanz (nach VDLUFA, mittlerer Wert) für den Betrieb "&'1_Eingabe_Humus'!E5&" im Jahr "&'1_Eingabe_Humus'!E7&"" -> 2.2 Humusbilanz (nach VDLUFA, mittlerer Wert) für den Betrieb im Jahr
C65: Anbauverhältnisse | E65: Humusbilanz [kg Hu-C/ha]
A66: Nr. | B66: FF | C66: Fruchtart | D66: Fläche [ha] | E66: Humusbedarf | F66: Ersatzleistung | G66: Mehrer-leistung | H66: Stroh-düngung | I66: Grün-düngung | J66: Stallmist | K66: Gülle | L66: Sonst. org. Dünger | M66: Humus-saldo [kg/ha]
A67: 1 | B67: =HuBil!B7 -> 1 | C67: =HuBil!D7 -> Ackergras | D67: =IF(C67="","",HuBil!F7) -> 20 | E67: =IF(D67="","",HuBil!BJ7) -> 0 | F67: =IF(SUM(G67:L67)>0,SUM(G67:L67),"") -> 625.6 | G67: =IF(HuBil!BN7>0,HuBil!BN7,"") -> 600 | H67: =IF(HuBil!BP7>0,HuBil!BP7,"") ->  | I67: =IF(HuBil!BO7>0,HuBil!BO7,"") -> 25.6 | J67: =IF(HuBil!BQ7>0,HuBil!BQ7,"") ->  | K67: =IF(HuBil!BR7>0,HuBil!BR7,"") ->  | L67: =IF(HuBil!BS7>0,HuBil!BS7,"") ->  | M67: =IF(C67="","",HuBil!BW7) -> 625.6
A68: 2 | B68: =HuBil!B8 -> 1 | C68: =HuBil!D8 ->  | D68: =IF(C68="","",HuBil!F8) ->  | E68: =IF(D68="","",HuBil!BJ8) ->  | F68: =IF(SUM(G68:L68)>0,SUM(G68:L68),"") ->  | G68: =IF(HuBil!BN8>0,HuBil!BN8,"") ->  | H68: =IF(HuBil!BP8>0,HuBil!BP8,"") ->  | I68: =IF(HuBil!BO8>0,HuBil!BO8,"") ->  | J68: =IF(HuBil!BQ8>0,HuBil!BQ8,"") ->  | K68: =IF(HuBil!BR8>0,HuBil!BR8,"") ->  | L68: =IF(HuBil!BS8>0,HuBil!BS8,"") ->  | M68: =IF(C68="","",HuBil!BW8) -> 
A69: 3 | B69: =HuBil!B9 -> 1 | C69: =HuBil!D9 ->  | D69: =IF(C69="","",HuBil!F9) ->  | E69: =IF(D69="","",HuBil!BJ9) ->  | G69: =IF(HuBil!BN9>0,HuBil!BN9,"") ->  | H69: =IF(HuBil!BP9>0,HuBil!BP9,"") ->  | I69: =IF(HuBil!BO9>0,HuBil!BO9,"") ->  | J69: =IF(HuBil!BQ9>0,HuBil!BQ9,"") ->  | K69: =IF(HuBil!BR9>0,HuBil!BR9,"") ->  | L69: =IF(HuBil!BS9>0,HuBil!BS9,"") ->  | M69: =IF(C69="","",HuBil!BW9) -> 
A70: 4 | B70: =HuBil!B10 -> 1 | C70: =HuBil!D10 ->  | D70: =IF(C70="","",HuBil!F10) ->  | E70: =IF(D70="","",HuBil!BJ10) ->  | G70: =IF(HuBil!BN10>0,HuBil!BN10,"") ->  | H70: =IF(HuBil!BP10>0,HuBil!BP10,"") ->  | I70: =IF(HuBil!BO10>0,HuBil!BO10,"") ->  | J70: =IF(HuBil!BQ10>0,HuBil!BQ10,"") ->  | K70: =IF(HuBil!BR10>0,HuBil!BR10,"") ->  | L70: =IF(HuBil!BS10>0,HuBil!BS10,"") ->  | M70: =IF(C70="","",HuBil!BW10) -> 
A71: 5 | B71: =HuBil!B11 -> 1 | C71: =HuBil!D11 ->  | D71: =IF(C71="","",HuBil!F11) ->  | E71: =IF(D71="","",HuBil!BJ11) ->  | G71: =IF(HuBil!BN11>0,HuBil!BN11,"") ->  | H71: =IF(HuBil!BP11>0,HuBil!BP11,"") ->  | I71: =IF(HuBil!BO11>0,HuBil!BO11,"") ->  | J71: =IF(HuBil!BQ11>0,HuBil!BQ11,"") ->  | K71: =IF(HuBil!BR11>0,HuBil!BR11,"") ->  | L71: =IF(HuBil!BS11>0,HuBil!BS11,"") ->  | M71: =IF(C71="","",HuBil!BW11) -> 
A72: 6 | B72: =HuBil!B12 -> 1 | C72: =HuBil!D12 ->  | D72: =IF(C72="","",HuBil!F12) ->  | E72: =IF(D72="","",HuBil!BJ12) ->  | G72: =IF(HuBil!BN12>0,HuBil!BN12,"") ->  | H72: =IF(HuBil!BP12>0,HuBil!BP12,"") ->  | I72: =IF(HuBil!BO12>0,HuBil!BO12,"") ->  | J72: =IF(HuBil!BQ12>0,HuBil!BQ12,"") ->  | K72: =IF(HuBil!BR12>0,HuBil!BR12,"") ->  | L72: =IF(HuBil!BS12>0,HuBil!BS12,"") ->  | M72: =IF(C72="","",HuBil!BW12) -> 
A73: 7 | B73: =HuBil!B13 -> 1 | C73: =HuBil!D13 ->  | D73: =IF(C73="","",HuBil!F13) ->  | E73: =IF(D73="","",HuBil!BJ13) ->  | G73: =IF(HuBil!BN13>0,HuBil!BN13,"") ->  | H73: =IF(HuBil!BP13>0,HuBil!BP13,"") ->  | I73: =IF(HuBil!BO13>0,HuBil!BO13,"") ->  | J73: =IF(HuBil!BQ13>0,HuBil!BQ13,"") ->  | K73: =IF(HuBil!BR13>0,HuBil!BR13,"") ->  | L73: =IF(HuBil!BS13>0,HuBil!BS13,"") ->  | M73: =IF(C73="","",HuBil!BW13) -> 
A74: 8 | B74: =HuBil!B14 -> 1 | C74: =HuBil!D14 ->  | D74: =IF(C74="","",HuBil!F14) ->  | E74: =IF(D74="","",HuBil!BJ14) ->  | G74: =IF(HuBil!BN14>0,HuBil!BN14,"") ->  | H74: =IF(HuBil!BP14>0,HuBil!BP14,"") ->  | I74: =IF(HuBil!BO14>0,HuBil!BO14,"") ->  | J74: =IF(HuBil!BQ14>0,HuBil!BQ14,"") ->  | K74: =IF(HuBil!BR14>0,HuBil!BR14,"") ->  | L74: =IF(HuBil!BS14>0,HuBil!BS14,"") ->  | M74: =IF(C74="","",HuBil!BW14) -> 
A75: 9 | B75: =HuBil!B15 -> 1 | C75: =HuBil!D15 ->  | D75: =IF(C75="","",HuBil!F15) ->  | E75: =IF(D75="","",HuBil!BJ15) ->  | G75: =IF(HuBil!BN15>0,HuBil!BN15,"") ->  | H75: =IF(HuBil!BP15>0,HuBil!BP15,"") ->  | I75: =IF(HuBil!BO15>0,HuBil!BO15,"") ->  | J75: =IF(HuBil!BQ15>0,HuBil!BQ15,"") ->  | K75: =IF(HuBil!BR15>0,HuBil!BR15,"") ->  | L75: =IF(HuBil!BS15>0,HuBil!BS15,"") ->  | M75: =IF(C75="","",HuBil!BW15) -> 
A76: 10 | B76: =HuBil!B16 -> 1 | C76: =HuBil!D16 ->  | D76: =IF(C76="","",HuBil!F16) ->  | E76: =IF(D76="","",HuBil!BJ16) ->  | G76: =IF(HuBil!BN16>0,HuBil!BN16,"") ->  | H76: =IF(HuBil!BP16>0,HuBil!BP16,"") ->  | I76: =IF(HuBil!BO16>0,HuBil!BO16,"") ->  | J76: =IF(HuBil!BQ16>0,HuBil!BQ16,"") ->  | K76: =IF(HuBil!BR16>0,HuBil!BR16,"") ->  | L76: =IF(HuBil!BS16>0,HuBil!BS16,"") ->  | M76: =IF(C76="","",HuBil!BW16) -> 
A77: 11 | B77: =HuBil!B17 -> 1 | C77: =HuBil!D17 ->  | D77: =IF(C77="","",HuBil!F17) ->  | E77: =IF(D77="","",HuBil!BJ17) ->  | G77: =IF(HuBil!BN17>0,HuBil!BN17,"") ->  | H77: =IF(HuBil!BP17>0,HuBil!BP17,"") ->  | I77: =IF(HuBil!BO17>0,HuBil!BO17,"") ->  | J77: =IF(HuBil!BQ17>0,HuBil!BQ17,"") ->  | K77: =IF(HuBil!BR17>0,HuBil!BR17,"") ->  | L77: =IF(HuBil!BS17>0,HuBil!BS17,"") ->  | M77: =IF(C77="","",HuBil!BW17) -> 
A78: 12 | B78: =HuBil!B18 -> 1 | C78: =HuBil!D18 ->  | D78: =IF(C78="","",HuBil!F18) ->  | E78: =IF(D78="","",HuBil!BJ18) ->  | G78: =IF(HuBil!BN18>0,HuBil!BN18,"") ->  | H78: =IF(HuBil!BP18>0,HuBil!BP18,"") ->  | I78: =IF(HuBil!BO18>0,HuBil!BO18,"") ->  | J78: =IF(HuBil!BQ18>0,HuBil!BQ18,"") ->  | K78: =IF(HuBil!BR18>0,HuBil!BR18,"") ->  | L78: =IF(HuBil!BS18>0,HuBil!BS18,"") ->  | M78: =IF(C78="","",HuBil!BW18) -> 
A79: 13 | B79: =HuBil!B19 -> 1 | C79: =HuBil!D19 ->  | D79: =IF(C79="","",HuBil!F19) ->  | E79: =IF(D79="","",HuBil!BJ19) ->  | G79: =IF(HuBil!BN19>0,HuBil!BN19,"") ->  | H79: =IF(HuBil!BP19>0,HuBil!BP19,"") ->  | I79: =IF(HuBil!BO19>0,HuBil!BO19,"") ->  | J79: =IF(HuBil!BQ19>0,HuBil!BQ19,"") ->  | K79: =IF(HuBil!BR19>0,HuBil!BR19,"") ->  | L79: =IF(HuBil!BS19>0,HuBil!BS19,"") ->  | M79: =IF(C79="","",HuBil!BW19) -> 
A80: 14 | B80: =HuBil!B20 -> 1 | C80: =HuBil!D20 ->  | D80: =IF(C80="","",HuBil!F20) ->  | E80: =IF(D80="","",HuBil!BJ20) ->  | G80: =IF(HuBil!BN20>0,HuBil!BN20,"") ->  | H80: =IF(HuBil!BP20>0,HuBil!BP20,"") ->  | I80: =IF(HuBil!BO20>0,HuBil!BO20,"") ->  | J80: =IF(HuBil!BQ20>0,HuBil!BQ20,"") ->  | K80: =IF(HuBil!BR20>0,HuBil!BR20,"") ->  | L80: =IF(HuBil!BS20>0,HuBil!BS20,"") ->  | M80: =IF(C80="","",HuBil!BW20) -> 
A81: 15 | B81: =HuBil!B21 -> 1 | C81: =HuBil!D21 ->  | D81: =IF(C81="","",HuBil!F21) ->  | E81: =IF(D81="","",HuBil!BJ21) ->  | G81: =IF(HuBil!BN21>0,HuBil!BN21,"") ->  | H81: =IF(HuBil!BP21>0,HuBil!BP21,"") ->  | I81: =IF(HuBil!BO21>0,HuBil!BO21,"") ->  | J81: =IF(HuBil!BQ21>0,HuBil!BQ21,"") ->  | K81: =IF(HuBil!BR21>0,HuBil!BR21,"") ->  | L81: =IF(HuBil!BS21>0,HuBil!BS21,"") ->  | M81: =IF(C81="","",HuBil!BW21) -> 
A82: 16 | B82: =HuBil!B22 -> 1 | C82: =HuBil!D22 ->  | D82: =IF(C82="","",HuBil!F22) ->  | E82: =IF(D82="","",HuBil!BJ22) ->  | G82: =IF(HuBil!BN22>0,HuBil!BN22,"") ->  | H82: =IF(HuBil!BP22>0,HuBil!BP22,"") ->  | I82: =IF(HuBil!BO22>0,HuBil!BO22,"") ->  | J82: =IF(HuBil!BQ22>0,HuBil!BQ22,"") ->  | K82: =IF(HuBil!BR22>0,HuBil!BR22,"") ->  | L82: =IF(HuBil!BS22>0,HuBil!BS22,"") ->  | M82: =IF(C82="","",HuBil!BW22) -> 
A83: 17 | B83: =HuBil!B23 -> 1 | C83: =HuBil!D23 ->  | D83: =IF(C83="","",HuBil!F23) ->  | E83: =IF(D83="","",HuBil!BJ23) ->  | G83: =IF(HuBil!BN23>0,HuBil!BN23,"") ->  | H83: =IF(HuBil!BP23>0,HuBil!BP23,"") ->  | I83: =IF(HuBil!BO23>0,HuBil!BO23,"") ->  | J83: =IF(HuBil!BQ23>0,HuBil!BQ23,"") ->  | K83: =IF(HuBil!BR23>0,HuBil!BR23,"") ->  | L83: =IF(HuBil!BS23>0,HuBil!BS23,"") ->  | M83: =IF(C83="","",HuBil!BW23) -> 
A84: 18 | B84: =HuBil!B24 -> 1 | C84: =HuBil!D24 ->  | D84: =IF(C84="","",HuBil!F24) ->  | E84: =IF(D84="","",HuBil!BJ24) ->  | G84: =IF(HuBil!BN24>0,HuBil!BN24,"") ->  | H84: =IF(HuBil!BP24>0,HuBil!BP24,"") ->  | I84: =IF(HuBil!BO24>0,HuBil!BO24,"") ->  | J84: =IF(HuBil!BQ24>0,HuBil!BQ24,"") ->  | K84: =IF(HuBil!BR24>0,HuBil!BR24,"") ->  | L84: =IF(HuBil!BS24>0,HuBil!BS24,"") ->  | M84: =IF(C84="","",HuBil!BW24) -> 
A85: 19 | B85: =HuBil!B25 -> 1 | C85: =HuBil!D25 ->  | D85: =IF(C85="","",HuBil!F25) ->  | E85: =IF(D85="","",HuBil!BJ25) ->  | G85: =IF(HuBil!BN25>0,HuBil!BN25,"") ->  | H85: =IF(HuBil!BP25>0,HuBil!BP25,"") ->  | I85: =IF(HuBil!BO25>0,HuBil!BO25,"") ->  | J85: =IF(HuBil!BQ25>0,HuBil!BQ25,"") ->  | K85: =IF(HuBil!BR25>0,HuBil!BR25,"") ->  | L85: =IF(HuBil!BS25>0,HuBil!BS25,"") ->  | M85: =IF(C85="","",HuBil!BW25) -> 
A86: 20 | B86: =HuBil!B26 -> 0 | C86: =HuBil!D26 -> Grünland | D86: =IF(C86="","",HuBil!F26) -> 0 | E86: =IF(D86="","",HuBil!BJ26) -> 0 | G86: =IF(HuBil!BN26>0,HuBil!BN26,"") ->  | H86: =IF(HuBil!BP26>0,HuBil!BP26,"") ->  | I86: =IF(HuBil!BO26>0,HuBil!BO26,"") ->  | J86: =IF(HuBil!BQ26>0,HuBil!BQ26,"") ->  | K86: =IF(HuBil!BR26>0,HuBil!BR26,"") ->  | L86: =IF(HuBil!BS26>0,HuBil!BS26,"") ->  | M86: =IF(C86="","",HuBil!BW26) -> 0
A87: Humusbilanz Acker | D87: =HuBil!F27 -> 20 | E87: =HuBil!BJ27 -> 0 | F87: =SUM(G87:L87) -> 625.6 | G87: =HuBil!BN27 -> 600 | H87: =HuBil!BP27 -> 0 | I87: =HuBil!BO27 -> 25.6 | J87: =HuBil!BQ27 -> 0 | K87: =HuBil!BR27 -> 0 | L87: =HuBil!BS27 -> 0 | M87: =HuBil!BW27 -> 625.6
A88: Versorgungsstufe Acker | M88: =HuBil!CG8 -> E
A89: Humusbilanz Betrieb | D89: =HuBil!F28 -> 20 | E89: =HuBil!BJ28 -> 0 | F89: =SUM(G89:L89) -> 625.6 | G89: =HuBil!BN28 -> 600 | H89: =HuBil!BP28 -> 0 | I89: =HuBil!BO28 -> 25.6 | J89: =HuBil!BQ28 -> 0 | K89: =HuBil!BR28 -> 0 | L89: =HuBil!BS28 -> 0 | M89: =HuBil!BW28 -> 625.6
A90: =HuBil!B30 -> 1 | B90: Fruchtfolge 1 | D90: =HuBil!F30 -> 20 | E90: =HuBil!BJ30 -> 0 | F90: =SUM(G90:L90) -> 625.6 | G90: =HuBil!BN30 -> 600 | H90: =HuBil!BP30 -> 0 | I90: =HuBil!BO30 -> 25.6 | J90: =HuBil!BQ30 -> 0 | K90: =HuBil!BR30 -> 0 | L90: =HuBil!BS30 -> 0 | M90: =HuBil!BW30 -> 625.6
A91: =HuBil!B31 -> 2 | B91: Fruchtfolge 2 | D91: =HuBil!F31 -> 0 | E91: =HuBil!BJ31 -> 0 | F91: =SUM(G91:L91) -> 0 | G91: =HuBil!BN31 -> 0 | H91: =HuBil!BP31 -> 0 | I91: =HuBil!BO31 -> 0 | J91: =HuBil!BQ31 -> 0 | K91: =HuBil!BR31 -> 0 | L91: =HuBil!BS31 -> 0 | M91: =HuBil!BW31 -> 0
A92: =HuBil!B32 -> 3 | B92: Fruchtfolge 3 | D92: =HuBil!F32 -> 0 | E92: =HuBil!BJ32 -> 0 | F92: =SUM(G92:L92) -> 0 | G92: =HuBil!BN32 -> 0 | H92: =HuBil!BP32 -> 0 | I92: =HuBil!BO32 -> 0 | J92: =HuBil!BQ32 -> 0 | K92: =HuBil!BR32 -> 0 | L92: =HuBil!BS32 -> 0 | M92: =HuBil!BW32 -> 0
A95: ="Stickstoffbilanz (brutto, flächenbezogen) für den Betrieb "&'1_Eingabe_Humus'!E5&" im Jahr "&'1_Eingabe_Humus'!E7&"" -> Stickstoffbilanz (brutto, flächenbezogen) für den Betrieb im Jahr
A96: Stickstoffbilanz [kg N/ha]
A97: Nr. | B97: FF | C97: Fruchtart | D97: Fläche [ha] | E97: N-Entzug | F97: N-Zufuhr | G97: Saatgut u. Immission | H97: N-Fixierung | I97: Mineral-düngung | J97: org. Dünger (+ Weide) | K97: Stroh-/Grün-düngung | L97: ∆ N Boden | M97: N-Saldo | N97: N-Saldo (+ ∆ N Bd.)
A98: 1 | B98: =HuBil!B7 -> 1 | C98: =HuBil!D7 -> Ackergras | D98: =IF(HuBil!F7>0,HuBil!F7,"") -> 20 | E98: =IF(D98="","",NBil!O7) -> 9.6 | F98: =NBil!AE7 -> 28.0885 | G98: =IF(D98="","",NBil!T7+NBil!AA7) -> 20.4085 | H98: =IF(D98="","",IF(NBil!S7=0,"",NBil!S7)) ->  | I98: =IF(NBil!U7>0,NBil!U7,"") ->  | J98: =IF(NBil!Y7>0,NBil!Y7,"") ->  | K98: =IF(D98="","",IF(OR(NBil!AB7>0,NBil!AC7>0),NBil!AB7+NBil!AC7,"")) -> 7.68 | L98: =IF(NBil!AF7=0,"",NBil!AF7) -> 26.51 | M98: =IF(NBil!AG7=0,"",NBil!AG7) -> 18.4885 | N98: =IF(NBil!AH7=0,"",NBil!AH7) -> -8.0215
A99: 2 | B99: =HuBil!B8 -> 1 | C99: =HuBil!D8 ->  | D99: =IF(HuBil!F8>0,HuBil!F8,"") ->  | E99: =IF(D99="","",NBil!O8) ->  | F99: =NBil!AE8 ->  | G99: =IF(D99="","",NBil!T8+NBil!AA8) ->  | H99: =IF(D99="","",IF(NBil!S8=0,"",NBil!S8)) ->  | I99: =IF(NBil!U8>0,NBil!U8,"") ->  | J99: =IF(NBil!Y8>0,NBil!Y8,"") ->  | K99: =IF(D99="","",IF(OR(NBil!AB8>0,NBil!AC8>0),NBil!AB8+NBil!AC8,"")) ->  | L99: =IF(NBil!AF8=0,"",NBil!AF8) ->  | M99: =IF(NBil!AG8=0,"",NBil!AG8) ->  | N99: =IF(NBil!AH8=0,"",NBil!AH8) -> 
A100: 3 | B100: =HuBil!B9 -> 1 | C100: =HuBil!D9 ->  | D100: =IF(HuBil!F9>0,HuBil!F9,"") ->  | E100: =IF(D100="","",NBil!O9) ->  | F100: =NBil!AE9 ->  | G100: =IF(D100="","",NBil!T9+NBil!AA9) ->  | H100: =IF(D100="","",IF(NBil!S9=0,"",NBil!S9)) ->  | I100: =IF(NBil!U9>0,NBil!U9,"") ->  | J100: =IF(NBil!Y9>0,NBil!Y9,"") ->  | K100: =IF(D100="","",IF(OR(NBil!AB9>0,NBil!AC9>0),NBil!AB9+NBil!AC9,"")) ->  | L100: =IF(NBil!AF9=0,"",NBil!AF9) ->  | M100: =IF(NBil!AG9=0,"",NBil!AG9) ->  | N100: =IF(NBil!AH9=0,"",NBil!AH9) -> 
A101: 4 | B101: =HuBil!B10 -> 1 | C101: =HuBil!D10 ->  | D101: =IF(HuBil!F10>0,HuBil!F10,"") ->  | E101: =IF(D101="","",NBil!O10) ->  | F101: =NBil!AE10 ->  | G101: =IF(D101="","",NBil!T10+NBil!AA10) ->  | H101: =IF(D101="","",IF(NBil!S10=0,"",NBil!S10)) ->  | I101: =IF(NBil!U10>0,NBil!U10,"") ->  | J101: =IF(NBil!Y10>0,NBil!Y10,"") ->  | K101: =IF(D101="","",IF(OR(NBil!AB10>0,NBil!AC10>0),NBil!AB10+NBil!AC10,"")) ->  | L101: =IF(NBil!AF10=0,"",NBil!AF10) ->  | M101: =IF(NBil!AG10=0,"",NBil!AG10) ->  | N101: =IF(NBil!AH10=0,"",NBil!AH10) -> 
A102: 5 | B102: =HuBil!B11 -> 1 | C102: =HuBil!D11 ->  | D102: =IF(HuBil!F11>0,HuBil!F11,"") ->  | E102: =IF(D102="","",NBil!O11) ->  | F102: =NBil!AE11 ->  | G102: =IF(D102="","",NBil!T11+NBil!AA11) ->  | H102: =IF(D102="","",IF(NBil!S11=0,"",NBil!S11)) ->  | I102: =IF(NBil!U11>0,NBil!U11,"") ->  | J102: =IF(NBil!Y11>0,NBil!Y11,"") ->  | K102: =IF(D102="","",IF(OR(NBil!AB11>0,NBil!AC11>0),NBil!AB11+NBil!AC11,"")) ->  | L102: =IF(NBil!AF11=0,"",NBil!AF11) ->  | M102: =IF(NBil!AG11=0,"",NBil!AG11) ->  | N102: =IF(NBil!AH11=0,"",NBil!AH11) -> 
A103: 6 | B103: =HuBil!B12 -> 1 | C103: =HuBil!D12 ->  | D103: =IF(HuBil!F12>0,HuBil!F12,"") ->  | E103: =IF(D103="","",NBil!O12) ->  | F103: =NBil!AE12 ->  | G103: =IF(D103="","",NBil!T12+NBil!AA12) ->  | H103: =IF(D103="","",IF(NBil!S12=0,"",NBil!S12)) ->  | I103: =IF(NBil!U12>0,NBil!U12,"") ->  | J103: =IF(NBil!Y12>0,NBil!Y12,"") ->  | K103: =IF(D103="","",IF(OR(NBil!AB12>0,NBil!AC12>0),NBil!AB12+NBil!AC12,"")) ->  | L103: =IF(NBil!AF12=0,"",NBil!AF12) ->  | M103: =IF(NBil!AG12=0,"",NBil!AG12) ->  | N103: =IF(NBil!AH12=0,"",NBil!AH12) -> 
A104: 7 | B104: =HuBil!B13 -> 1 | C104: =HuBil!D13 ->  | D104: =IF(HuBil!F13>0,HuBil!F13,"") ->  | E104: =IF(D104="","",NBil!O13) ->  | F104: =NBil!AE13 ->  | G104: =IF(D104="","",NBil!T13+NBil!AA13) ->  | H104: =IF(D104="","",IF(NBil!S13=0,"",NBil!S13)) ->  | I104: =IF(NBil!U13>0,NBil!U13,"") ->  | J104: =IF(NBil!Y13>0,NBil!Y13,"") ->  | K104: =IF(D104="","",IF(OR(NBil!AB13>0,NBil!AC13>0),NBil!AB13+NBil!AC13,"")) ->  | L104: =IF(NBil!AF13=0,"",NBil!AF13) ->  | M104: =IF(NBil!AG13=0,"",NBil!AG13) ->  | N104: =IF(NBil!AH13=0,"",NBil!AH13) -> 
A105: 8 | B105: =HuBil!B14 -> 1 | C105: =HuBil!D14 ->  | D105: =IF(HuBil!F14>0,HuBil!F14,"") ->  | E105: =IF(D105="","",NBil!O14) ->  | F105: =NBil!AE14 ->  | G105: =IF(D105="","",NBil!T14+NBil!AA14) ->  | H105: =IF(D105="","",IF(NBil!S14=0,"",NBil!S14)) ->  | I105: =IF(NBil!U14>0,NBil!U14,"") ->  | J105: =IF(NBil!Y14>0,NBil!Y14,"") ->  | K105: =IF(D105="","",IF(OR(NBil!AB14>0,NBil!AC14>0),NBil!AB14+NBil!AC14,"")) ->  | L105: =IF(NBil!AF14=0,"",NBil!AF14) ->  | M105: =IF(NBil!AG14=0,"",NBil!AG14) ->  | N105: =IF(NBil!AH14=0,"",NBil!AH14) -> 
A106: 9 | B106: =HuBil!B15 -> 1 | C106: =HuBil!D15 ->  | D106: =IF(HuBil!F15>0,HuBil!F15,"") ->  | E106: =IF(D106="","",NBil!O15) ->  | F106: =NBil!AE15 ->  | G106: =IF(D106="","",NBil!T15+NBil!AA15) ->  | H106: =IF(D106="","",IF(NBil!S15=0,"",NBil!S15)) ->  | I106: =IF(NBil!U15>0,NBil!U15,"") ->  | J106: =IF(NBil!Y15>0,NBil!Y15,"") ->  | K106: =IF(D106="","",IF(OR(NBil!AB15>0,NBil!AC15>0),NBil!AB15+NBil!AC15,"")) ->  | L106: =IF(NBil!AF15=0,"",NBil!AF15) ->  | M106: =IF(NBil!AG15=0,"",NBil!AG15) ->  | N106: =IF(NBil!AH15=0,"",NBil!AH15) -> 
A107: 10 | B107: =HuBil!B16 -> 1 | C107: =HuBil!D16 ->  | D107: =IF(HuBil!F16>0,HuBil!F16,"") ->  | E107: =IF(D107="","",NBil!O16) ->  | F107: =NBil!AE16 ->  | G107: =IF(D107="","",NBil!T16+NBil!AA16) ->  | H107: =IF(D107="","",IF(NBil!S16=0,"",NBil!S16)) ->  | I107: =IF(NBil!U16>0,NBil!U16,"") ->  | J107: =IF(NBil!Y16>0,NBil!Y16,"") ->  | K107: =IF(D107="","",IF(OR(NBil!AB16>0,NBil!AC16>0),NBil!AB16+NBil!AC16,"")) ->  | L107: =IF(NBil!AF16=0,"",NBil!AF16) ->  | M107: =IF(NBil!AG16=0,"",NBil!AG16) ->  | N107: =IF(NBil!AH16=0,"",NBil!AH16) -> 
A108: 11 | B108: =HuBil!B17 -> 1 | C108: =HuBil!D17 ->  | D108: =IF(HuBil!F17>0,HuBil!F17,"") ->  | E108: =IF(D108="","",NBil!O17) ->  | F108: =NBil!AE17 ->  | G108: =IF(D108="","",NBil!T17+NBil!AA17) ->  | H108: =IF(D108="","",IF(NBil!S17=0,"",NBil!S17)) ->  | I108: =IF(NBil!U17>0,NBil!U17,"") ->  | J108: =IF(NBil!Y17>0,NBil!Y17,"") ->  | K108: =IF(D108="","",IF(OR(NBil!AB17>0,NBil!AC17>0),NBil!AB17+NBil!AC17,"")) ->  | L108: =IF(NBil!AF17=0,"",NBil!AF17) ->  | M108: =IF(NBil!AG17=0,"",NBil!AG17) ->  | N108: =IF(NBil!AH17=0,"",NBil!AH17) -> 
A109: 12 | B109: =HuBil!B18 -> 1 | C109: =HuBil!D18 ->  | D109: =IF(HuBil!F18>0,HuBil!F18,"") ->  | E109: =IF(D109="","",NBil!O18) ->  | F109: =NBil!AE18 ->  | G109: =IF(D109="","",NBil!T18+NBil!AA18) ->  | H109: =IF(D109="","",IF(NBil!S18=0,"",NBil!S18)) ->  | I109: =IF(NBil!U18>0,NBil!U18,"") ->  | J109: =IF(NBil!Y18>0,NBil!Y18,"") ->  | K109: =IF(D109="","",IF(OR(NBil!AB18>0,NBil!AC18>0),NBil!AB18+NBil!AC18,"")) ->  | L109: =IF(NBil!AF18=0,"",NBil!AF18) ->  | M109: =IF(NBil!AG18=0,"",NBil!AG18) ->  | N109: =IF(NBil!AH18=0,"",NBil!AH18) -> 
A110: 13 | B110: =HuBil!B19 -> 1 | C110: =HuBil!D19 ->  | D110: =IF(HuBil!F19>0,HuBil!F19,"") ->  | E110: =IF(D110="","",NBil!O19) ->  | F110: =NBil!AE19 ->  | G110: =IF(D110="","",NBil!T19+NBil!AA19) ->  | H110: =IF(D110="","",IF(NBil!S19=0,"",NBil!S19)) ->  | I110: =IF(NBil!U19>0,NBil!U19,"") ->  | J110: =IF(NBil!Y19>0,NBil!Y19,"") ->  | K110: =IF(D110="","",IF(OR(NBil!AB19>0,NBil!AC19>0),NBil!AB19+NBil!AC19,"")) ->  | L110: =IF(NBil!AF19=0,"",NBil!AF19) ->  | M110: =IF(NBil!AG19=0,"",NBil!AG19) ->  | N110: =IF(NBil!AH19=0,"",NBil!AH19) -> 
A111: 14 | B111: =HuBil!B20 -> 1 | C111: =HuBil!D20 ->  | D111: =IF(HuBil!F20>0,HuBil!F20,"") ->  | E111: =IF(D111="","",NBil!O20) ->  | F111: =NBil!AE20 ->  | G111: =IF(D111="","",NBil!T20+NBil!AA20) ->  | H111: =IF(D111="","",IF(NBil!S20=0,"",NBil!S20)) ->  | I111: =IF(NBil!U20>0,NBil!U20,"") ->  | J111: =IF(NBil!Y20>0,NBil!Y20,"") ->  | K111: =IF(D111="","",IF(OR(NBil!AB20>0,NBil!AC20>0),NBil!AB20+NBil!AC20,"")) ->  | L111: =IF(NBil!AF20=0,"",NBil!AF20) ->  | M111: =IF(NBil!AG20=0,"",NBil!AG20) ->  | N111: =IF(NBil!AH20=0,"",NBil!AH20) -> 
A112: 15 | B112: =HuBil!B21 -> 1 | C112: =HuBil!D21 ->  | D112: =IF(HuBil!F21>0,HuBil!F21,"") ->  | E112: =IF(D112="","",NBil!O21) ->  | F112: =NBil!AE21 ->  | G112: =IF(D112="","",NBil!T21+NBil!AA21) ->  | H112: =IF(D112="","",IF(NBil!S21=0,"",NBil!S21)) ->  | I112: =IF(NBil!U21>0,NBil!U21,"") ->  | J112: =IF(NBil!Y21>0,NBil!Y21,"") ->  | K112: =IF(D112="","",IF(OR(NBil!AB21>0,NBil!AC21>0),NBil!AB21+NBil!AC21,"")) ->  | L112: =IF(NBil!AF21=0,"",NBil!AF21) ->  | M112: =IF(NBil!AG21=0,"",NBil!AG21) ->  | N112: =IF(NBil!AH21=0,"",NBil!AH21) -> 
A113: 16 | B113: =HuBil!B22 -> 1 | C113: =HuBil!D22 ->  | D113: =IF(HuBil!F22>0,HuBil!F22,"") ->  | E113: =IF(D113="","",NBil!O22) ->  | F113: =NBil!AE22 ->  | G113: =IF(D113="","",NBil!T22+NBil!AA22) ->  | H113: =IF(D113="","",IF(NBil!S22=0,"",NBil!S22)) ->  | I113: =IF(NBil!U22>0,NBil!U22,"") ->  | J113: =IF(NBil!Y22>0,NBil!Y22,"") ->  | K113: =IF(D113="","",IF(OR(NBil!AB22>0,NBil!AC22>0),NBil!AB22+NBil!AC22,"")) ->  | L113: =IF(NBil!AF22=0,"",NBil!AF22) ->  | M113: =IF(NBil!AG22=0,"",NBil!AG22) ->  | N113: =IF(NBil!AH22=0,"",NBil!AH22) -> 
A114: 17 | B114: =HuBil!B23 -> 1 | C114: =HuBil!D23 ->  | D114: =IF(HuBil!F23>0,HuBil!F23,"") ->  | E114: =IF(D114="","",NBil!O23) ->  | F114: =NBil!AE23 ->  | G114: =IF(D114="","",NBil!T23+NBil!AA23) ->  | H114: =IF(D114="","",IF(NBil!S23=0,"",NBil!S23)) ->  | I114: =IF(NBil!U23>0,NBil!U23,"") ->  | J114: =IF(NBil!Y23>0,NBil!Y23,"") ->  | K114: =IF(D114="","",IF(OR(NBil!AB23>0,NBil!AC23>0),NBil!AB23+NBil!AC23,"")) ->  | L114: =IF(NBil!AF23=0,"",NBil!AF23) ->  | M114: =IF(NBil!AG23=0,"",NBil!AG23) ->  | N114: =IF(NBil!AH23=0,"",NBil!AH23) -> 
A115: 18 | B115: =HuBil!B24 -> 1 | C115: =HuBil!D24 ->  | D115: =IF(HuBil!F24>0,HuBil!F24,"") ->  | E115: =IF(D115="","",NBil!O24) ->  | F115: =NBil!AE24 ->  | G115: =IF(D115="","",NBil!T24+NBil!AA24) ->  | H115: =IF(D115="","",IF(NBil!S24=0,"",NBil!S24)) ->  | I115: =IF(NBil!U24>0,NBil!U24,"") ->  | J115: =IF(NBil!Y24>0,NBil!Y24,"") ->  | K115: =IF(D115="","",IF(OR(NBil!AB24>0,NBil!AC24>0),NBil!AB24+NBil!AC24,"")) ->  | L115: =IF(NBil!AF24=0,"",NBil!AF24) ->  | M115: =IF(NBil!AG24=0,"",NBil!AG24) ->  | N115: =IF(NBil!AH24=0,"",NBil!AH24) -> 
A116: 19 | B116: =HuBil!B25 -> 1 | C116: =HuBil!D25 ->  | D116: =IF(HuBil!F25>0,HuBil!F25,"") ->  | E116: =IF(D116="","",NBil!O25) ->  | F116: =NBil!AE25 ->  | G116: =IF(D116="","",NBil!T25+NBil!AA25) ->  | H116: =IF(D116="","",IF(NBil!S25=0,"",NBil!S25)) ->  | I116: =IF(NBil!U25>0,NBil!U25,"") ->  | J116: =IF(NBil!Y25>0,NBil!Y25,"") ->  | K116: =IF(D116="","",IF(OR(NBil!AB25>0,NBil!AC25>0),NBil!AB25+NBil!AC25,"")) ->  | L116: =IF(NBil!AF25=0,"",NBil!AF25) ->  | M116: =IF(NBil!AG25=0,"",NBil!AG25) ->  | N116: =IF(NBil!AH25=0,"",NBil!AH25) -> 
A117: 20 | B117: =HuBil!B26 -> 0 | C117: =HuBil!D26 -> Grünland | D117: =IF(HuBil!F26>0,HuBil!F26,"") ->  | E117: =IF(D117="","",NBil!O26) ->  | F117: =NBil!AE26 -> 0 | G117: =IF(D117="","",NBil!T26+NBil!AA26) ->  | H117: =IF(D117="","",IF(NBil!S26=0,"",NBil!S26)) ->  | I117: =IF(NBil!U26>0,NBil!U26,"") ->  | J117: =IF(NBil!Y26>0,NBil!Y26,"") ->  | K117: =IF(D117="","",IF(OR(NBil!AB26>0,NBil!AC26>0),NBil!AB26+NBil!AC26,"")) ->  | L117: =IF(NBil!AF26=0,"",NBil!AF26) ->  | M117: =IF(NBil!AG26=0,"",NBil!AG26) ->  | N117: =IF(NBil!AH26=0,"",NBil!AH26) -> 
A118: Stickstoffbilanz Betrieb | D118: =HuBil!F28 -> 20 | E118: =NBil!O28 -> 9.6 | F118: =NBil!AE28 -> 28.0885 | G118: =IF(D118="","",NBil!T28+NBil!AA28) -> 20.4085 | H118: =IF(D118="","",NBil!S28) -> 0 | I118: =IF(NBil!U28>0,NBil!U28,"") ->  | J118: =IF(NBil!Y28>0,NBil!Y28,"") ->  | K118: =IF(D118="","",NBil!AB28+NBil!AC28) -> 7.68 | L118: =IF(D118>0,NBil!AF28,"") -> 26.51 | M118: =IF(D118>0,NBil!AG28,"") -> 18.4885 | N118: =IF(D118>0,NBil!AH28,"") -> -8.0215
A119: Stickstoffbilanz Acker | D119: =HuBil!F27 -> 20 | E119: =NBil!O27 -> 9.6 | F119: =NBil!AE27 -> 28.0885 | G119: =IF(D119="","",NBil!T27+NBil!AA27) -> 20.4085 | H119: =IF(D119="","",NBil!S27) -> 0 | I119: =IF(NBil!U27>0,NBil!U27,"") ->  | J119: =IF(NBil!Y27>0,NBil!Y27,"") ->  | K119: =IF(D119="","",NBil!AB27+NBil!AC27) -> 7.68 | L119: =IF(D119>0,NBil!AF27,"") -> 26.51 | M119: =IF(D119="","",NBil!AG27) -> 18.4885 | N119: =IF(D119>0,NBil!AH27,"") -> -8.0215
A120: =HuBil!B30 -> 1 | B120: Fruchtfolge 1 | D120: =IF(HuBil!F30=0,"",HuBil!F30) -> 20 | E120: =NBil!O30 -> 9.6 | F120: =NBil!AE30 -> 28.0885 | G120: =IF(D120="","",NBil!T30+NBil!AA30) -> 20.4085 | H120: =IF(D120="","",NBil!S30) -> 0 | I120: =IF(NBil!U30>0,NBil!U30,"") ->  | J120: =IF(NBil!Y30>0,NBil!Y30,"") ->  | K120: =IF(D120="","",NBil!AB30+NBil!AC30) -> 7.68 | L120: =IF(D120>0,NBil!AF30,"") -> 26.51 | M120: =IF(D120>0,NBil!AG30,"") -> 18.4885 | N120: =IF(D120>0,NBil!AH30,"") -> -8.0215
A121: =HuBil!B31 -> 2 | B121: Fruchtfolge 2 | D121: =IF(HuBil!F31=0,"",HuBil!F31) ->  | E121: =NBil!O31 ->  | F121: =NBil!AE31 ->  | G121: =IF(D121="","",NBil!T31+NBil!AA31) ->  | H121: =IF(D121="","",NBil!S31) ->  | I121: =IF(NBil!U31>0,NBil!U31,"") ->  | J121: =IF(NBil!Y31>0,NBil!Y31,"") ->  | K121: =IF(D121="","",NBil!AB31+NBil!AC31) ->  | L121: =IF(D121>0,NBil!AF31,"") ->  | M121: =IF(D121>0,NBil!AG31,"") ->  | N121: =IF(D121>0,NBil!AH31,"") -> 
A122: =HuBil!B32 -> 3 | B122: Fruchtfolge 3 | D122: =IF(HuBil!F32=0,"",HuBil!F32) ->  | E122: =NBil!O32 ->  | F122: =NBil!AE32 ->  | G122: =IF(D122="","",NBil!T32+NBil!AA32) ->  | H122: =IF(D122="","",NBil!S32) ->  | I122: =IF(NBil!U32>0,NBil!U32,"") ->  | J122: =IF(NBil!Y32>0,NBil!Y32,"") ->  | K122: =IF(D122="","",NBil!AB32+NBil!AC32) ->  | L122: =IF(D122>0,NBil!AF32,"") ->  | M122: =IF(D122>0,NBil!AG32,"") ->  | N122: =IF(D122>0,NBil!AH32,"") -> 
A153: ="Phosphor- und Kaliumbilanz (brutto, flächenbezogen) für den Betrieb "&'1_Eingabe_Humus'!E5&" im Jahr "&'1_Eingabe_Humus'!E7&"" -> Phosphor- und Kaliumbilanz (brutto, flächenbezogen) für den Betrieb im Jahr
E154: =IF('1_Eingabe_Humus'!$J$36=2,"Phosphat (P2O5) [kg/ha]","PHOSPHOR [kg/ha]") -> PHOSPHOR [kg/ha] | K154: =IF('1_Eingabe_Humus'!$J$36=2,"Kaliumoxid (K2O) [kg/ha]","KALIUM [kg/ha]") -> KALIUM [kg/ha]
A155: Nr. | B155: FF | C155: Fruchtart | D155: Fläche [ha] | E155: P-Entzug | F155: P-Zufuhr | G155: Mineral-düngung | H155: org. Dünger (+ Weide) | I155: Stroh-/Grün-düngung | J155: P-Saldo | K155: K-Entzug | L155: K-Zufuhr | M155: Mineral-düngung | N155: org. Dünger (+ Weide) | O155: Stroh-/Grün-düngung | P155: K-Saldo
A156: 1 | B156: =HuBil!B7 -> 1 | C156: =HuBil!D7 -> Ackergras | D156: =IF(HuBil!F7=0,"",HuBil!F7) -> 20 | E156: =IF(D156="","",NBil!AL7*IF($E$154="PHOSPHOR [kg/ha]",1,2.2914)) -> 1.4 | F156: =IF(D156="","",NBil!AW7*IF($E$154="PHOSPHOR [kg/ha]",1,2.2914)) -> 1.18235 | G156: =IF(D156="","",NBil!AN7*IF($E$154="PHOSPHOR [kg/ha]",1,2.2914)) -> 0 | H156: =IF(D156="","",NBil!AR7*IF($E$154="PHOSPHOR [kg/ha]",1,2.2914)) -> 0 | I156: =IF(D156="","",NBil!AV7*IF($E$154="PHOSPHOR [kg/ha]",1,2.2914)) -> 1.12 | J156: =IF(D156="","",NBil!AX7*IF($E$154="PHOSPHOR [kg/ha]",1,2.2914)) -> -0.21765 | K156: =IF(D156="","",NBil!BB7*IF($K$154="KALIUM [kg/ha]",1,1.205)) -> 9.2 | L156: =IF(NBil!BM7>0,NBil!BM7*IF($K$154="KALIUM [kg/ha]",1,1.205),"") -> 7.46105 | M156: =IF(NBil!BD7>0,NBil!BD7*IF($K$154="KALIUM [kg/ha]",1,1.205),"") ->  | N156: =IF(D156="","",NBil!BH7*IF($K$154="KALIUM [kg/ha]",1,1.205)) -> 0 | O156: =IF(D156="","",NBil!BL7*IF($K$154="KALIUM [kg/ha]",1,1.205)) -> 7.36 | P156: =IF(D156="","",NBil!BN7*IF($K$154="KALIUM [kg/ha]",1,1.205)) -> -1.73895
A157: 2 | B157: =HuBil!B8 -> 1 | C157: =HuBil!D8 ->  | D157: =IF(HuBil!F8=0,"",HuBil!F8) ->  | E157: =IF(D157="","",NBil!AL8*IF($E$154="PHOSPHOR [kg/ha]",1,2.2914)) ->  | F157: =IF(D157="","",NBil!AW8*IF($E$154="PHOSPHOR [kg/ha]",1,2.2914)) ->  | G157: =IF(D157="","",NBil!AN8*IF($E$154="PHOSPHOR [kg/ha]",1,2.2914)) ->  | H157: =IF(D157="","",NBil!AR8*IF($E$154="PHOSPHOR [kg/ha]",1,2.2914)) ->  | I157: =IF(D157="","",NBil!AV8*IF($E$154="PHOSPHOR [kg/ha]",1,2.2914)) ->  | J157: =IF(D157="","",NBil!AX8*IF($E$154="PHOSPHOR [kg/ha]",1,2.2914)) ->  | K157: =IF(D157="","",NBil!BB8*IF($K$154="KALIUM [kg/ha]",1,1.205)) ->  | L157: =IF(NBil!BM8>0,NBil!BM8*IF($K$154="KALIUM [kg/ha]",1,1.205),"") ->  | M157: =IF(NBil!BD8>0,NBil!BD8*IF($K$154="KALIUM [kg/ha]",1,1.205),"") ->  | N157: =IF(D157="","",NBil!BH8*IF($K$154="KALIUM [kg/ha]",1,1.205)) ->  | O157: =IF(D157="","",NBil!BL8*IF($K$154="KALIUM [kg/ha]",1,1.205)) ->  | P157: =IF(D157="","",NBil!BN8*IF($K$154="KALIUM [kg/ha]",1,1.205)) -> 
A158: 3 | B158: =HuBil!B9 -> 1 | C158: =HuBil!D9 ->  | D158: =IF(HuBil!F9=0,"",HuBil!F9) ->  | E158: =IF(D158="","",NBil!AL9*IF($E$154="PHOSPHOR [kg/ha]",1,2.2914)) ->  | F158: =IF(D158="","",NBil!AW9*IF($E$154="PHOSPHOR [kg/ha]",1,2.2914)) ->  | G158: =IF(D158="","",NBil!AN9*IF($E$154="PHOSPHOR [kg/ha]",1,2.2914)) ->  | H158: =IF(D158="","",NBil!AR9*IF($E$154="PHOSPHOR [kg/ha]",1,2.2914)) ->  | I158: =IF(D158="","",NBil!AV9*IF($E$154="PHOSPHOR [kg/ha]",1,2.2914)) ->  | J158: =IF(D158="","",NBil!AX9*IF($E$154="PHOSPHOR [kg/ha]",1,2.2914)) ->  | K158: =IF(D158="","",NBil!BB9*IF($K$154="KALIUM [kg/ha]",1,1.205)) ->  | L158: =IF(NBil!BM9>0,NBil!BM9*IF($K$154="KALIUM [kg/ha]",1,1.205),"") ->  | M158: =IF(NBil!BD9>0,NBil!BD9*IF($K$154="KALIUM [kg/ha]",1,1.205),"") ->  | N158: =IF(D158="","",NBil!BH9*IF($K$154="KALIUM [kg/ha]",1,1.205)) ->  | O158: =IF(D158="","",NBil!BL9*IF($K$154="KALIUM [kg/ha]",1,1.205)) ->  | P158: =IF(D158="","",NBil!BN9*IF($K$154="KALIUM [kg/ha]",1,1.205)) -> 
A159: 4 | B159: =HuBil!B10 -> 1 | C159: =HuBil!D10 ->  | D159: =IF(HuBil!F10=0,"",HuBil!F10) ->  | E159: =IF(D159="","",NBil!AL10*IF($E$154="PHOSPHOR [kg/ha]",1,2.2914)) ->  | F159: =IF(D159="","",NBil!AW10*IF($E$154="PHOSPHOR [kg/ha]",1,2.2914)) ->  | G159: =IF(D159="","",NBil!AN10*IF($E$154="PHOSPHOR [kg/ha]",1,2.2914)) ->  | H159: =IF(D159="","",NBil!AR10*IF($E$154="PHOSPHOR [kg/ha]",1,2.2914)) ->  | I159: =IF(D159="","",NBil!AV10*IF($E$154="PHOSPHOR [kg/ha]",1,2.2914)) ->  | J159: =IF(D159="","",NBil!AX10*IF($E$154="PHOSPHOR [kg/ha]",1,2.2914)) ->  | K159: =IF(D159="","",NBil!BB10*IF($K$154="KALIUM [kg/ha]",1,1.205)) ->  | L159: =IF(NBil!BM10>0,NBil!BM10*IF($K$154="KALIUM [kg/ha]",1,1.205),"") ->  | M159: =IF(NBil!BD10>0,NBil!BD10*IF($K$154="KALIUM [kg/ha]",1,1.205),"") ->  | N159: =IF(D159="","",NBil!BH10*IF($K$154="KALIUM [kg/ha]",1,1.205)) ->  | O159: =IF(D159="","",NBil!BL10*IF($K$154="KALIUM [kg/ha]",1,1.205)) ->  | P159: =IF(D159="","",NBil!BN10*IF($K$154="KALIUM [kg/ha]",1,1.205)) -> 
A160: 5 | B160: =HuBil!B11 -> 1 | C160: =HuBil!D11 ->  | D160: =IF(HuBil!F11=0,"",HuBil!F11) ->  | E160: =IF(D160="","",NBil!AL11*IF($E$154="PHOSPHOR [kg/ha]",1,2.2914)) ->  | F160: =IF(D160="","",NBil!AW11*IF($E$154="PHOSPHOR [kg/ha]",1,2.2914)) ->  | G160: =IF(D160="","",NBil!AN11*IF($E$154="PHOSPHOR [kg/ha]",1,2.2914)) ->  | H160: =IF(D160="","",NBil!AR11*IF($E$154="PHOSPHOR [kg/ha]",1,2.2914)) ->  | I160: =IF(D160="","",NBil!AV11*IF($E$154="PHOSPHOR [kg/ha]",1,2.2914)) ->  | J160: =IF(D160="","",NBil!AX11*IF($E$154="PHOSPHOR [kg/ha]",1,2.2914)) ->  | K160: =IF(D160="","",NBil!BB11*IF($K$154="KALIUM [kg/ha]",1,1.205)) ->  | L160: =IF(NBil!BM11>0,NBil!BM11*IF($K$154="KALIUM [kg/ha]",1,1.205),"") ->  | M160: =IF(NBil!BD11>0,NBil!BD11*IF($K$154="KALIUM [kg/ha]",1,1.205),"") ->  | N160: =IF(D160="","",NBil!BH11*IF($K$154="KALIUM [kg/ha]",1,1.205)) ->  | O160: =IF(D160="","",NBil!BL11*IF($K$154="KALIUM [kg/ha]",1,1.205)) ->  | P160: =IF(D160="","",NBil!BN11*IF($K$154="KALIUM [kg/ha]",1,1.205)) -> 
A161: 6 | B161: =HuBil!B12 -> 1 | C161: =HuBil!D12 ->  | D161: =IF(HuBil!F12=0,"",HuBil!F12) ->  | E161: =IF(D161="","",NBil!AL12*IF($E$154="PHOSPHOR [kg/ha]",1,2.2914)) ->  | F161: =IF(D161="","",NBil!AW12*IF($E$154="PHOSPHOR [kg/ha]",1,2.2914)) ->  | G161: =IF(D161="","",NBil!AN12*IF($E$154="PHOSPHOR [kg/ha]",1,2.2914)) ->  | H161: =IF(D161="","",NBil!AR12*IF($E$154="PHOSPHOR [kg/ha]",1,2.2914)) ->  | I161: =IF(D161="","",NBil!AV12*IF($E$154="PHOSPHOR [kg/ha]",1,2.2914)) ->  | J161: =IF(D161="","",NBil!AX12*IF($E$154="PHOSPHOR [kg/ha]",1,2.2914)) ->  | K161: =IF(D161="","",NBil!BB12*IF($K$154="KALIUM [kg/ha]",1,1.205)) ->  | L161: =IF(NBil!BM12>0,NBil!BM12*IF($K$154="KALIUM [kg/ha]",1,1.205),"") ->  | M161: =IF(NBil!BD12>0,NBil!BD12*IF($K$154="KALIUM [kg/ha]",1,1.205),"") ->  | N161: =IF(D161="","",NBil!BH12*IF($K$154="KALIUM [kg/ha]",1,1.205)) ->  | O161: =IF(D161="","",NBil!BL12*IF($K$154="KALIUM [kg/ha]",1,1.205)) ->  | P161: =IF(D161="","",NBil!BN12*IF($K$154="KALIUM [kg/ha]",1,1.205)) -> 
A162: 7 | B162: =HuBil!B13 -> 1 | C162: =HuBil!D13 ->  | D162: =IF(HuBil!F13=0,"",HuBil!F13) ->  | E162: =IF(D162="","",NBil!AL13*IF($E$154="PHOSPHOR [kg/ha]",1,2.2914)) ->  | F162: =IF(D162="","",NBil!AW13*IF($E$154="PHOSPHOR [kg/ha]",1,2.2914)) ->  | G162: =IF(D162="","",NBil!AN13*IF($E$154="PHOSPHOR [kg/ha]",1,2.2914)) ->  | H162: =IF(D162="","",NBil!AR13*IF($E$154="PHOSPHOR [kg/ha]",1,2.2914)) ->  | I162: =IF(D162="","",NBil!AV13*IF($E$154="PHOSPHOR [kg/ha]",1,2.2914)) ->  | J162: =IF(D162="","",NBil!AX13*IF($E$154="PHOSPHOR [kg/ha]",1,2.2914)) ->  | K162: =IF(D162="","",NBil!BB13*IF($K$154="KALIUM [kg/ha]",1,1.205)) ->  | L162: =IF(NBil!BM13>0,NBil!BM13*IF($K$154="KALIUM [kg/ha]",1,1.205),"") ->  | M162: =IF(NBil!BD13>0,NBil!BD13*IF($K$154="KALIUM [kg/ha]",1,1.205),"") ->  | N162: =IF(D162="","",NBil!BH13*IF($K$154="KALIUM [kg/ha]",1,1.205)) ->  | O162: =IF(D162="","",NBil!BL13*IF($K$154="KALIUM [kg/ha]",1,1.205)) ->  | P162: =IF(D162="","",NBil!BN13*IF($K$154="KALIUM [kg/ha]",1,1.205)) -> 
A163: 8 | B163: =HuBil!B14 -> 1 | C163: =HuBil!D14 ->  | D163: =IF(HuBil!F14=0,"",HuBil!F14) ->  | E163: =IF(D163="","",NBil!AL14*IF($E$154="PHOSPHOR [kg/ha]",1,2.2914)) ->  | F163: =IF(D163="","",NBil!AW14*IF($E$154="PHOSPHOR [kg/ha]",1,2.2914)) ->  | G163: =IF(D163="","",NBil!AN14*IF($E$154="PHOSPHOR [kg/ha]",1,2.2914)) ->  | H163: =IF(D163="","",NBil!AR14*IF($E$154="PHOSPHOR [kg/ha]",1,2.2914)) ->  | I163: =IF(D163="","",NBil!AV14*IF($E$154="PHOSPHOR [kg/ha]",1,2.2914)) ->  | J163: =IF(D163="","",NBil!AX14*IF($E$154="PHOSPHOR [kg/ha]",1,2.2914)) ->  | K163: =IF(D163="","",NBil!BB14*IF($K$154="KALIUM [kg/ha]",1,1.205)) ->  | L163: =IF(NBil!BM14>0,NBil!BM14*IF($K$154="KALIUM [kg/ha]",1,1.205),"") ->  | M163: =IF(NBil!BD14>0,NBil!BD14*IF($K$154="KALIUM [kg/ha]",1,1.205),"") ->  | N163: =IF(D163="","",NBil!BH14*IF($K$154="KALIUM [kg/ha]",1,1.205)) ->  | O163: =IF(D163="","",NBil!BL14*IF($K$154="KALIUM [kg/ha]",1,1.205)) ->  | P163: =IF(D163="","",NBil!BN14*IF($K$154="KALIUM [kg/ha]",1,1.205)) -> 
A164: 9 | B164: =HuBil!B15 -> 1 | C164: =HuBil!D15 ->  | D164: =IF(HuBil!F15=0,"",HuBil!F15) ->  | E164: =IF(D164="","",NBil!AL15*IF($E$154="PHOSPHOR [kg/ha]",1,2.2914)) ->  | F164: =IF(D164="","",NBil!AW15*IF($E$154="PHOSPHOR [kg/ha]",1,2.2914)) ->  | G164: =IF(D164="","",NBil!AN15*IF($E$154="PHOSPHOR [kg/ha]",1,2.2914)) ->  | H164: =IF(D164="","",NBil!AR15*IF($E$154="PHOSPHOR [kg/ha]",1,2.2914)) ->  | I164: =IF(D164="","",NBil!AV15*IF($E$154="PHOSPHOR [kg/ha]",1,2.2914)) ->  | J164: =IF(D164="","",NBil!AX15*IF($E$154="PHOSPHOR [kg/ha]",1,2.2914)) ->  | K164: =IF(D164="","",NBil!BB15*IF($K$154="KALIUM [kg/ha]",1,1.205)) ->  | L164: =IF(NBil!BM15>0,NBil!BM15*IF($K$154="KALIUM [kg/ha]",1,1.205),"") ->  | M164: =IF(NBil!BD15>0,NBil!BD15*IF($K$154="KALIUM [kg/ha]",1,1.205),"") ->  | N164: =IF(D164="","",NBil!BH15*IF($K$154="KALIUM [kg/ha]",1,1.205)) ->  | O164: =IF(D164="","",NBil!BL15*IF($K$154="KALIUM [kg/ha]",1,1.205)) ->  | P164: =IF(D164="","",NBil!BN15*IF($K$154="KALIUM [kg/ha]",1,1.205)) -> 
A165: 10 | B165: =HuBil!B16 -> 1 | C165: =HuBil!D16 ->  | D165: =IF(HuBil!F16=0,"",HuBil!F16) ->  | E165: =IF(D165="","",NBil!AL16*IF($E$154="PHOSPHOR [kg/ha]",1,2.2914)) ->  | F165: =IF(D165="","",NBil!AW16*IF($E$154="PHOSPHOR [kg/ha]",1,2.2914)) ->  | G165: =IF(D165="","",NBil!AN16*IF($E$154="PHOSPHOR [kg/ha]",1,2.2914)) ->  | H165: =IF(D165="","",NBil!AR16*IF($E$154="PHOSPHOR [kg/ha]",1,2.2914)) ->  | I165: =IF(D165="","",NBil!AV16*IF($E$154="PHOSPHOR [kg/ha]",1,2.2914)) ->  | J165: =IF(D165="","",NBil!AX16*IF($E$154="PHOSPHOR [kg/ha]",1,2.2914)) ->  | K165: =IF(D165="","",NBil!BB16*IF($K$154="KALIUM [kg/ha]",1,1.205)) ->  | L165: =IF(NBil!BM16>0,NBil!BM16*IF($K$154="KALIUM [kg/ha]",1,1.205),"") ->  | M165: =IF(NBil!BD16>0,NBil!BD16*IF($K$154="KALIUM [kg/ha]",1,1.205),"") ->  | N165: =IF(D165="","",NBil!BH16*IF($K$154="KALIUM [kg/ha]",1,1.205)) ->  | O165: =IF(D165="","",NBil!BL16*IF($K$154="KALIUM [kg/ha]",1,1.205)) ->  | P165: =IF(D165="","",NBil!BN16*IF($K$154="KALIUM [kg/ha]",1,1.205)) -> 
A166: 11 | B166: =HuBil!B17 -> 1 | C166: =HuBil!D17 ->  | D166: =IF(HuBil!F17=0,"",HuBil!F17) ->  | E166: =IF(D166="","",NBil!AL17*IF($E$154="PHOSPHOR [kg/ha]",1,2.2914)) ->  | F166: =IF(D166="","",NBil!AW17*IF($E$154="PHOSPHOR [kg/ha]",1,2.2914)) ->  | G166: =IF(D166="","",NBil!AN17*IF($E$154="PHOSPHOR [kg/ha]",1,2.2914)) ->  | H166: =IF(D166="","",NBil!AR17*IF($E$154="PHOSPHOR [kg/ha]",1,2.2914)) ->  | I166: =IF(D166="","",NBil!AV17*IF($E$154="PHOSPHOR [kg/ha]",1,2.2914)) ->  | J166: =IF(D166="","",NBil!AX17*IF($E$154="PHOSPHOR [kg/ha]",1,2.2914)) ->  | K166: =IF(D166="","",NBil!BB17*IF($K$154="KALIUM [kg/ha]",1,1.205)) ->  | L166: =IF(NBil!BM17>0,NBil!BM17*IF($K$154="KALIUM [kg/ha]",1,1.205),"") ->  | M166: =IF(NBil!BD17>0,NBil!BD17*IF($K$154="KALIUM [kg/ha]",1,1.205),"") ->  | N166: =IF(D166="","",NBil!BH17*IF($K$154="KALIUM [kg/ha]",1,1.205)) ->  | O166: =IF(D166="","",NBil!BL17*IF($K$154="KALIUM [kg/ha]",1,1.205)) ->  | P166: =IF(D166="","",NBil!BN17*IF($K$154="KALIUM [kg/ha]",1,1.205)) -> 
A167: 12 | B167: =HuBil!B18 -> 1 | C167: =HuBil!D18 ->  | D167: =IF(HuBil!F18=0,"",HuBil!F18) ->  | E167: =IF(D167="","",NBil!AL18*IF($E$154="PHOSPHOR [kg/ha]",1,2.2914)) ->  | F167: =IF(D167="","",NBil!AW18*IF($E$154="PHOSPHOR [kg/ha]",1,2.2914)) ->  | G167: =IF(D167="","",NBil!AN18*IF($E$154="PHOSPHOR [kg/ha]",1,2.2914)) ->  | H167: =IF(D167="","",NBil!AR18*IF($E$154="PHOSPHOR [kg/ha]",1,2.2914)) ->  | I167: =IF(D167="","",NBil!AV18*IF($E$154="PHOSPHOR [kg/ha]",1,2.2914)) ->  | J167: =IF(D167="","",NBil!AX18*IF($E$154="PHOSPHOR [kg/ha]",1,2.2914)) ->  | K167: =IF(D167="","",NBil!BB18*IF($K$154="KALIUM [kg/ha]",1,1.205)) ->  | L167: =IF(NBil!BM18>0,NBil!BM18*IF($K$154="KALIUM [kg/ha]",1,1.205),"") ->  | M167: =IF(NBil!BD18>0,NBil!BD18*IF($K$154="KALIUM [kg/ha]",1,1.205),"") ->  | N167: =IF(D167="","",NBil!BH18*IF($K$154="KALIUM [kg/ha]",1,1.205)) ->  | O167: =IF(D167="","",NBil!BL18*IF($K$154="KALIUM [kg/ha]",1,1.205)) ->  | P167: =IF(D167="","",NBil!BN18*IF($K$154="KALIUM [kg/ha]",1,1.205)) -> 
A168: 13 | B168: =HuBil!B19 -> 1 | C168: =HuBil!D19 ->  | D168: =IF(HuBil!F19=0,"",HuBil!F19) ->  | E168: =IF(D168="","",NBil!AL19*IF($E$154="PHOSPHOR [kg/ha]",1,2.2914)) ->  | F168: =IF(D168="","",NBil!AW19*IF($E$154="PHOSPHOR [kg/ha]",1,2.2914)) ->  | G168: =IF(D168="","",NBil!AN19*IF($E$154="PHOSPHOR [kg/ha]",1,2.2914)) ->  | H168: =IF(D168="","",NBil!AR19*IF($E$154="PHOSPHOR [kg/ha]",1,2.2914)) ->  | I168: =IF(D168="","",NBil!AV19*IF($E$154="PHOSPHOR [kg/ha]",1,2.2914)) ->  | J168: =IF(D168="","",NBil!AX19*IF($E$154="PHOSPHOR [kg/ha]",1,2.2914)) ->  | K168: =IF(D168="","",NBil!BB19*IF($K$154="KALIUM [kg/ha]",1,1.205)) ->  | L168: =IF(NBil!BM19>0,NBil!BM19*IF($K$154="KALIUM [kg/ha]",1,1.205),"") ->  | M168: =IF(NBil!BD19>0,NBil!BD19*IF($K$154="KALIUM [kg/ha]",1,1.205),"") ->  | N168: =IF(D168="","",NBil!BH19*IF($K$154="KALIUM [kg/ha]",1,1.205)) ->  | O168: =IF(D168="","",NBil!BL19*IF($K$154="KALIUM [kg/ha]",1,1.205)) ->  | P168: =IF(D168="","",NBil!BN19*IF($K$154="KALIUM [kg/ha]",1,1.205)) -> 
A169: 14 | B169: =HuBil!B20 -> 1 | C169: =HuBil!D20 ->  | D169: =IF(HuBil!F20=0,"",HuBil!F20) ->  | E169: =IF(D169="","",NBil!AL20*IF($E$154="PHOSPHOR [kg/ha]",1,2.2914)) ->  | F169: =IF(D169="","",NBil!AW20*IF($E$154="PHOSPHOR [kg/ha]",1,2.2914)) ->  | G169: =IF(D169="","",NBil!AN20*IF($E$154="PHOSPHOR [kg/ha]",1,2.2914)) ->  | H169: =IF(D169="","",NBil!AR20*IF($E$154="PHOSPHOR [kg/ha]",1,2.2914)) ->  | I169: =IF(D169="","",NBil!AV20*IF($E$154="PHOSPHOR [kg/ha]",1,2.2914)) ->  | J169: =IF(D169="","",NBil!AX20*IF($E$154="PHOSPHOR [kg/ha]",1,2.2914)) ->  | K169: =IF(D169="","",NBil!BB20*IF($K$154="KALIUM [kg/ha]",1,1.205)) ->  | L169: =IF(NBil!BM20>0,NBil!BM20*IF($K$154="KALIUM [kg/ha]",1,1.205),"") ->  | M169: =IF(NBil!BD20>0,NBil!BD20*IF($K$154="KALIUM [kg/ha]",1,1.205),"") ->  | N169: =IF(D169="","",NBil!BH20*IF($K$154="KALIUM [kg/ha]",1,1.205)) ->  | O169: =IF(D169="","",NBil!BL20*IF($K$154="KALIUM [kg/ha]",1,1.205)) ->  | P169: =IF(D169="","",NBil!BN20*IF($K$154="KALIUM [kg/ha]",1,1.205)) -> 
A170: 15 | B170: =HuBil!B21 -> 1 | C170: =HuBil!D21 ->  | D170: =IF(HuBil!F21=0,"",HuBil!F21) ->  | E170: =IF(D170="","",NBil!AL21*IF($E$154="PHOSPHOR [kg/ha]",1,2.2914)) ->  | F170: =IF(D170="","",NBil!AW21*IF($E$154="PHOSPHOR [kg/ha]",1,2.2914)) ->  | G170: =IF(D170="","",NBil!AN21*IF($E$154="PHOSPHOR [kg/ha]",1,2.2914)) ->  | H170: =IF(D170="","",NBil!AR21*IF($E$154="PHOSPHOR [kg/ha]",1,2.2914)) ->  | I170: =IF(D170="","",NBil!AV21*IF($E$154="PHOSPHOR [kg/ha]",1,2.2914)) ->  | J170: =IF(D170="","",NBil!AX21*IF($E$154="PHOSPHOR [kg/ha]",1,2.2914)) ->  | K170: =IF(D170="","",NBil!BB21*IF($K$154="KALIUM [kg/ha]",1,1.205)) ->  | L170: =IF(NBil!BM21>0,NBil!BM21*IF($K$154="KALIUM [kg/ha]",1,1.205),"") ->  | M170: =IF(NBil!BD21>0,NBil!BD21*IF($K$154="KALIUM [kg/ha]",1,1.205),"") ->  | N170: =IF(D170="","",NBil!BH21*IF($K$154="KALIUM [kg/ha]",1,1.205)) ->  | O170: =IF(D170="","",NBil!BL21*IF($K$154="KALIUM [kg/ha]",1,1.205)) ->  | P170: =IF(D170="","",NBil!BN21*IF($K$154="KALIUM [kg/ha]",1,1.205)) -> 
A171: 16 | B171: =HuBil!B22 -> 1 | C171: =HuBil!D22 ->  | D171: =IF(HuBil!F22=0,"",HuBil!F22) ->  | E171: =IF(D171="","",NBil!AL22*IF($E$154="PHOSPHOR [kg/ha]",1,2.2914)) ->  | F171: =IF(D171="","",NBil!AW22*IF($E$154="PHOSPHOR [kg/ha]",1,2.2914)) ->  | G171: =IF(D171="","",NBil!AN22*IF($E$154="PHOSPHOR [kg/ha]",1,2.2914)) ->  | H171: =IF(D171="","",NBil!AR22*IF($E$154="PHOSPHOR [kg/ha]",1,2.2914)) ->  | I171: =IF(D171="","",NBil!AV22*IF($E$154="PHOSPHOR [kg/ha]",1,2.2914)) ->  | J171: =IF(D171="","",NBil!AX22*IF($E$154="PHOSPHOR [kg/ha]",1,2.2914)) ->  | K171: =IF(D171="","",NBil!BB22*IF($K$154="KALIUM [kg/ha]",1,1.205)) ->  | L171: =IF(NBil!BM22>0,NBil!BM22*IF($K$154="KALIUM [kg/ha]",1,1.205),"") ->  | M171: =IF(NBil!BD22>0,NBil!BD22*IF($K$154="KALIUM [kg/ha]",1,1.205),"") ->  | N171: =IF(D171="","",NBil!BH22*IF($K$154="KALIUM [kg/ha]",1,1.205)) ->  | O171: =IF(D171="","",NBil!BL22*IF($K$154="KALIUM [kg/ha]",1,1.205)) ->  | P171: =IF(D171="","",NBil!BN22*IF($K$154="KALIUM [kg/ha]",1,1.205)) -> 
A172: 17 | B172: =HuBil!B23 -> 1 | C172: =HuBil!D23 ->  | D172: =IF(HuBil!F23=0,"",HuBil!F23) ->  | E172: =IF(D172="","",NBil!AL23*IF($E$154="PHOSPHOR [kg/ha]",1,2.2914)) ->  | F172: =IF(D172="","",NBil!AW23*IF($E$154="PHOSPHOR [kg/ha]",1,2.2914)) ->  | G172: =IF(D172="","",NBil!AN23*IF($E$154="PHOSPHOR [kg/ha]",1,2.2914)) ->  | H172: =IF(D172="","",NBil!AR23*IF($E$154="PHOSPHOR [kg/ha]",1,2.2914)) ->  | I172: =IF(D172="","",NBil!AV23*IF($E$154="PHOSPHOR [kg/ha]",1,2.2914)) ->  | J172: =IF(D172="","",NBil!AX23*IF($E$154="PHOSPHOR [kg/ha]",1,2.2914)) ->  | K172: =IF(D172="","",NBil!BB23*IF($K$154="KALIUM [kg/ha]",1,1.205)) ->  | L172: =IF(NBil!BM23>0,NBil!BM23*IF($K$154="KALIUM [kg/ha]",1,1.205),"") ->  | M172: =IF(NBil!BD23>0,NBil!BD23*IF($K$154="KALIUM [kg/ha]",1,1.205),"") ->  | N172: =IF(D172="","",NBil!BH23*IF($K$154="KALIUM [kg/ha]",1,1.205)) ->  | O172: =IF(D172="","",NBil!BL23*IF($K$154="KALIUM [kg/ha]",1,1.205)) ->  | P172: =IF(D172="","",NBil!BN23*IF($K$154="KALIUM [kg/ha]",1,1.205)) -> 
A173: 18 | B173: =HuBil!B24 -> 1 | C173: =HuBil!D24 ->  | D173: =IF(HuBil!F24=0,"",HuBil!F24) ->  | E173: =IF(D173="","",NBil!AL24*IF($E$154="PHOSPHOR [kg/ha]",1,2.2914)) ->  | F173: =IF(D173="","",NBil!AW24*IF($E$154="PHOSPHOR [kg/ha]",1,2.2914)) ->  | G173: =IF(D173="","",NBil!AN24*IF($E$154="PHOSPHOR [kg/ha]",1,2.2914)) ->  | H173: =IF(D173="","",NBil!AR24*IF($E$154="PHOSPHOR [kg/ha]",1,2.2914)) ->  | I173: =IF(D173="","",NBil!AV24*IF($E$154="PHOSPHOR [kg/ha]",1,2.2914)) ->  | J173: =IF(D173="","",NBil!AX24*IF($E$154="PHOSPHOR [kg/ha]",1,2.2914)) ->  | K173: =IF(D173="","",NBil!BB24*IF($K$154="KALIUM [kg/ha]",1,1.205)) ->  | L173: =IF(NBil!BM24>0,NBil!BM24*IF($K$154="KALIUM [kg/ha]",1,1.205),"") ->  | M173: =IF(NBil!BD24>0,NBil!BD24*IF($K$154="KALIUM [kg/ha]",1,1.205),"") ->  | N173: =IF(D173="","",NBil!BH24*IF($K$154="KALIUM [kg/ha]",1,1.205)) ->  | O173: =IF(D173="","",NBil!BL24*IF($K$154="KALIUM [kg/ha]",1,1.205)) ->  | P173: =IF(D173="","",NBil!BN24*IF($K$154="KALIUM [kg/ha]",1,1.205)) -> 
A174: 19 | B174: =HuBil!B25 -> 1 | C174: =HuBil!D25 ->  | D174: =IF(HuBil!F25=0,"",HuBil!F25) ->  | E174: =IF(D174="","",NBil!AL25*IF($E$154="PHOSPHOR [kg/ha]",1,2.2914)) ->  | F174: =IF(D174="","",NBil!AW25*IF($E$154="PHOSPHOR [kg/ha]",1,2.2914)) ->  | G174: =IF(D174="","",NBil!AN25*IF($E$154="PHOSPHOR [kg/ha]",1,2.2914)) ->  | H174: =IF(D174="","",NBil!AR25*IF($E$154="PHOSPHOR [kg/ha]",1,2.2914)) ->  | I174: =IF(D174="","",NBil!AV25*IF($E$154="PHOSPHOR [kg/ha]",1,2.2914)) ->  | J174: =IF(D174="","",NBil!AX25*IF($E$154="PHOSPHOR [kg/ha]",1,2.2914)) ->  | K174: =IF(D174="","",NBil!BB25*IF($K$154="KALIUM [kg/ha]",1,1.205)) ->  | L174: =IF(NBil!BM25>0,NBil!BM25*IF($K$154="KALIUM [kg/ha]",1,1.205),"") ->  | M174: =IF(NBil!BD25>0,NBil!BD25*IF($K$154="KALIUM [kg/ha]",1,1.205),"") ->  | N174: =IF(D174="","",NBil!BH25*IF($K$154="KALIUM [kg/ha]",1,1.205)) ->  | O174: =IF(D174="","",NBil!BL25*IF($K$154="KALIUM [kg/ha]",1,1.205)) ->  | P174: =IF(D174="","",NBil!BN25*IF($K$154="KALIUM [kg/ha]",1,1.205)) -> 
A175: 20 | B175: =HuBil!B26 -> 0 | C175: =HuBil!D26 -> Grünland | D175: =IF(HuBil!F26=0,"",HuBil!F26) ->  | E175: =IF(D175="","",NBil!AL26*IF($E$154="PHOSPHOR [kg/ha]",1,2.2914)) ->  | F175: =IF(D175="","",NBil!AW26*IF($E$154="PHOSPHOR [kg/ha]",1,2.2914)) ->  | G175: =IF(D175="","",NBil!AN26*IF($E$154="PHOSPHOR [kg/ha]",1,2.2914)) ->  | H175: =IF(D175="","",NBil!AR26*IF($E$154="PHOSPHOR [kg/ha]",1,2.2914)) ->  | I175: =IF(D175="","",NBil!AV26*IF($E$154="PHOSPHOR [kg/ha]",1,2.2914)) ->  | J175: =IF(D175="","",NBil!AX26*IF($E$154="PHOSPHOR [kg/ha]",1,2.2914)) ->  | K175: =IF(D175="","",NBil!BB26*IF($K$154="KALIUM [kg/ha]",1,1.205)) ->  | L175: =IF(NBil!BM26>0,NBil!BM26*IF($K$154="KALIUM [kg/ha]",1,1.205),"") ->  | M175: =IF(NBil!BD26>0,NBil!BD26*IF($K$154="KALIUM [kg/ha]",1,1.205),"") ->  | N175: =IF(D175="","",NBil!BH26*IF($K$154="KALIUM [kg/ha]",1,1.205)) ->  | O175: =IF(D175="","",NBil!BL26*IF($K$154="KALIUM [kg/ha]",1,1.205)) ->  | P175: =IF(D175="","",NBil!BN26*IF($K$154="KALIUM [kg/ha]",1,1.205)) -> 
A176: Bilanz Betrieb | D176: =IF(HuBil!F28=0,"",HuBil!F28) -> 20 | E176: =NBil!AL28*IF($E$154="PHOSPHOR [kg/ha]",1,2.2914) -> 1.4 | F176: =NBil!AW28*IF($E$154="PHOSPHOR [kg/ha]",1,2.2914) -> 1.18235 | G176: =NBil!AN28*IF($E$154="PHOSPHOR [kg/ha]",1,2.2914) -> 0 | H176: =IF(D176>0,NBil!AR28*IF($E$154="PHOSPHOR [kg/ha]",1,2.2914),"") -> 0 | I176: =NBil!AV28*IF($E$154="PHOSPHOR [kg/ha]",1,2.2914) -> 1.12 | J176: =NBil!AX28*IF($E$154="PHOSPHOR [kg/ha]",1,2.2914) -> -0.21765 | K176: =NBil!BB28*IF($K$154="KALIUM [kg/ha]",1,1.205) -> 9.2 | L176: =IF(NBil!BM28>0,NBil!BM28*IF($K$154="KALIUM [kg/ha]",1,1.205),"") -> 7.46105 | M176: =IF(NBil!BD28>0,NBil!BD28*IF($K$154="KALIUM [kg/ha]",1,1.205),"") ->  | N176: =NBil!BH28*IF($K$154="KALIUM [kg/ha]",1,1.205) -> 0 | O176: =NBil!BL28*IF($K$154="KALIUM [kg/ha]",1,1.205) -> 7.36 | P176: =IF(D176>0,NBil!BN28*IF($K$154="KALIUM [kg/ha]",1,1.205),"") -> -1.73895
A177: Bilanz Acker | D177: =IF(HuBil!F27=0,"",HuBil!F27) -> 20 | E177: =NBil!AL27*IF($E$154="PHOSPHOR [kg/ha]",1,2.2914) -> 1.4 | F177: =NBil!AW27*IF($E$154="PHOSPHOR [kg/ha]",1,2.2914) -> 1.18235 | G177: =NBil!AN27*IF($E$154="PHOSPHOR [kg/ha]",1,2.2914) -> 0 | H177: =IF(D177>0,NBil!AR27,"")*IF($E$154="PHOSPHOR [kg/ha]",1,2.2914) -> 0 | I177: =NBil!AV27*IF($E$154="PHOSPHOR [kg/ha]",1,2.2914) -> 1.12 | J177: =NBil!AX27*IF($E$154="PHOSPHOR [kg/ha]",1,2.2914) -> -0.21765 | K177: =NBil!BB27*IF($K$154="KALIUM [kg/ha]",1,1.205) -> 9.2 | L177: =IF(NBil!BM27>0,NBil!BM27*IF($K$154="KALIUM [kg/ha]",1,1.205),"") -> 7.46105 | M177: =IF(NBil!BD27>0,NBil!BD27*IF($K$154="KALIUM [kg/ha]",1,1.205),"") ->  | N177: =NBil!BH27*IF($K$154="KALIUM [kg/ha]",1,1.205) -> 0 | O177: =NBil!BL27*IF($K$154="KALIUM [kg/ha]",1,1.205) -> 7.36 | P177: =IF(D177="","",NBil!BN27*IF($K$154="KALIUM [kg/ha]",1,1.205)) -> -1.73895
A178: 1 | B178: Fruchtfolge 1 | D178: =IF(HuBil!F30=0,"",HuBil!F30) -> 20 | E178: =IF(D178="","",NBil!AL30*IF($E$154="PHOSPHOR [kg/ha]",1,2.2914)) -> 1.4 | F178: =IF(D178="","",NBil!AW30*IF($E$154="PHOSPHOR [kg/ha]",1,2.2914)) -> 1.18235 | G178: =IF(D178="","",NBil!AN30*IF($E$154="PHOSPHOR [kg/ha]",1,2.2914)) -> 0 | H178: =IF(D178="","",NBil!AR30*IF($E$154="PHOSPHOR [kg/ha]",1,2.2914)) -> 0 | I178: =IF(D178="","",NBil!AV30*IF($E$154="PHOSPHOR [kg/ha]",1,2.2914)) -> 1.12 | J178: =IF(D178="","",NBil!AX30*IF($E$154="PHOSPHOR [kg/ha]",1,2.2914)) -> -0.21765 | K178: =IF(D178="","",NBil!BB30*IF($K$154="KALIUM [kg/ha]",1,1.205)) -> 9.2 | L178: =IF(NBil!BM30="","",NBil!BM30*IF($K$154="KALIUM [kg/ha]",1,1.205)) -> 7.46105 | M178: =IF(NBil!BD30="","",NBil!BD30*IF($K$154="KALIUM [kg/ha]",1,1.205)) -> 0 | N178: =IF(D178="","",NBil!BH30*IF($K$154="KALIUM [kg/ha]",1,1.205)) -> 0 | O178: =IF(D178="","",NBil!BL30*IF($K$154="KALIUM [kg/ha]",1,1.205)) -> 7.36 | P178: =IF(D178="","",NBil!BN30*IF($K$154="KALIUM [kg/ha]",1,1.205)) -> -1.73895
A179: 2 | B179: Fruchtfolge 2 | D179: =IF(HuBil!F31=0,"",HuBil!F31) ->  | E179: =IF(D179="","",NBil!AL31*IF($E$154="PHOSPHOR [kg/ha]",1,2.2914)) ->  | F179: =IF(D179="","",NBil!AW31*IF($E$154="PHOSPHOR [kg/ha]",1,2.2914)) ->  | G179: =IF(D179="","",NBil!AN31*IF($E$154="PHOSPHOR [kg/ha]",1,2.2914)) ->  | H179: =IF(D179="","",NBil!AR31*IF($E$154="PHOSPHOR [kg/ha]",1,2.2914)) ->  | I179: =IF(D179="","",NBil!AV31*IF($E$154="PHOSPHOR [kg/ha]",1,2.2914)) ->  | J179: =IF(D179="","",NBil!AX31*IF($E$154="PHOSPHOR [kg/ha]",1,2.2914)) ->  | K179: =IF(D179="","",NBil!BB31*IF($K$154="KALIUM [kg/ha]",1,1.205)) ->  | L179: =IF(NBil!BM31="","",NBil!BM31*IF($K$154="KALIUM [kg/ha]",1,1.205)) ->  | M179: =IF(NBil!BD31="","",NBil!BD31*IF($K$154="KALIUM [kg/ha]",1,1.205)) ->  | N179: =IF(D179="","",NBil!BH31*IF($K$154="KALIUM [kg/ha]",1,1.205)) ->  | O179: =IF(D179="","",NBil!BL31*IF($K$154="KALIUM [kg/ha]",1,1.205)) ->  | P179: =IF(D179="","",NBil!BN31*IF($K$154="KALIUM [kg/ha]",1,1.205)) -> 
A180: 3 | B180: Fruchtfolge 3 | D180: =IF(HuBil!F32=0,"",HuBil!F32) ->  | E180: =IF(D180="","",NBil!AL32*IF($E$154="PHOSPHOR [kg/ha]",1,2.2914)) ->  | F180: =IF(D180="","",NBil!AW32*IF($E$154="PHOSPHOR [kg/ha]",1,2.2914)) ->  | G180: =IF(D180="","",NBil!AN32*IF($E$154="PHOSPHOR [kg/ha]",1,2.2914)) ->  | H180: =IF(D180="","",NBil!AR32*IF($E$154="PHOSPHOR [kg/ha]",1,2.2914)) ->  | I180: =IF(D180="","",NBil!AV32*IF($E$154="PHOSPHOR [kg/ha]",1,2.2914)) ->  | J180: =IF(D180="","",NBil!AX32*IF($E$154="PHOSPHOR [kg/ha]",1,2.2914)) ->  | K180: =IF(D180="","",NBil!BB32*IF($K$154="KALIUM [kg/ha]",1,1.205)) ->  | L180: =IF(NBil!BM32="","",NBil!BM32*IF($K$154="KALIUM [kg/ha]",1,1.205)) ->  | M180: =IF(NBil!BD32="","",NBil!BD32*IF($K$154="KALIUM [kg/ha]",1,1.205)) ->  | N180: =IF(D180="","",NBil!BH32*IF($K$154="KALIUM [kg/ha]",1,1.205)) ->  | O180: =IF(D180="","",NBil!BL32*IF($K$154="KALIUM [kg/ha]",1,1.205)) ->  | P180: =IF(D180="","",NBil!BN32*IF($K$154="KALIUM [kg/ha]",1,1.205)) -> 

Sheet NBil (hidden)
C1: Typ | D1: ='1_Eingabe_Humus'!J6 -> 2 | E1: 1= konv | M1: STICKSTOFF | AJ1: PHOSPHOR | AZ1: KALIUM | BP1: SCHWEFEL | CF1: MAGNESIUM | CV1: CALCIUM
E2: 2= oeko
I3: Ertrag | M3: N-Aufnahme | T3: N-Zufuhr | AF3: N Bod. | AG3: N-Saldo | AJ3: P-Aufnahme und Entzug | AN3: P-Zufuhr | AX3: P-Saldo | AZ3: K-Aufnahme & Entzug | BD3: K-Zufuhr | BN3: K-Saldo | BP3: S-Aufnahme & Entzug | BT3: S-Zufuhr | CD3: S-Saldo | CF3: Mg-Aufnahme & Entzug | CJ3: Mg-Zufuhr | CT3: Mg-Saldo | CV3: Ca-Aufnahme & Entzug | CZ3: Ca-Zufuhr | DJ3: Ca-Saldo
AF4: über: 1 HE = 55 kg N
A5: Zeile | B5: FF | C5: FANr | D5: Fruchtart | E5: Typ | F5: Anbaufläche | G5: HP | H5: NP | I5: Abfuhr HP | J5: Abfuhr NP | K5: NP_Strod | L5: Gründ_ges | M5: HP | N5: NP | O5: Ges. Entzug | P5: Abfuhr | Q5: N-Fix E | R5: N-Fix EWR | S5: N-Fix Ges | T5: Immission | U5: MD | V5: Stallmist | W5: Gülle | X5: Sonst | Y5: OD Ges | Z5: N-Fix | AA5: N Saatg | AB5: Strohd. | AC5: Gründ. | AD5: Stroh-Gründ. Ges. | AE5: Zufuhr ges. | AF5: Änderung Bodenvorrat | AG5: ohne Bd. | AH5: mit Bd. | AI5: Verw. | AJ5: HP | AK5: NP | AL5: Ges. ENTZUG | AM5: Abfuhr | AN5: MD | AO5: Stallmist | AP5: Gülle | AQ5: Sonst | AR5: OD Ges | AS5: P Saatg | AT5: Strohd. | AU5: Gründ. | AV5: Stroh-Gründ. Ges. | AW5: Zufuhr ges. | AX5: Saldo | AY5: Verw. | AZ5: HP | BA5: NP | BB5: Ges. ENTZUG | BC5: Abfuhr | BD5: MD | BE5: Stallmist | BF5: Gülle | BG5: Sonst | BH5: OD Ges | BI5: K Saatg | BJ5: Strohd. | BK5: Gründ. | BL5: Stroh-Gründ. Ges. | BM5: Zufuhr ges. | BN5: Saldo | BO5: Verw. | BP5: HP | BQ5: NP | BR5: Ges. | BS5: Abfuhr | BT5: MD | BU5: Stallmist | BV5: Gülle | BW5: Sonst | BX5: OD Ges | BY5: S Saatg | BZ5: Strohd. | CA5: Gründ. | CB5: Stroh-Gründ. Ges. | CC5: Zufuhr ges. | CD5: Saldo | CE5: Verw. | CF5: HP | CG5: NP | CH5: Ges. Entzug | CI5: Abfuhr | CJ5: MD | CK5: Stallmist | CL5: Gülle | CM5: Sonstige | CN5: OD Gesamt | CO5: Mg Saatgut | CP5: Strohd. | CQ5: Gründ. | CR5: Stroh + Gründ. Ges. | CS5: Zufuhr ges. | CT5: Saldo | CU5: Verw. | CV5: HP | CW5: NP | CX5: Ges. Entzug | CY5: Abfuhr | CZ5: MD | DA5: Stallmist | DB5: Gülle | DC5: Sonstige | DD5: OD Gesamt | DE5: Ca Saatgut | DF5: Strohd. | DG5: Gründ. | DH5: Stroh + Gründ. Ges. | DI5: Zufuhr ges. | DJ5: Saldo | DK5: Verw. | DL5: Fläche anzurechnen? [ha]
D6: Auswahl | F6: ha | G6: dt TM/ha | H6: dt TM/ha | I6: dt TM/ha | J6: dt TM/ha | K6: dt TM/ha | L6: dt TM/ha | M6: kg N/ha | N6: kg N/ha | O6: kg N/ha | P6: kg N/ha | Q6: kg N/ha | R6: kg N/ha | S6: kg N/ha | T6: kg N/ha | U6: kg N/ha | V6: kg N/ha | W6: kg N/ha | X6: kg N/ha | Y6: kg N/ha | Z6: kg N/ha | AA6: kg N/ha | AB6: kg N/ha | AC6: kg N/ha | AD6: kg N/ha | AE6: kg N/ha | AF6: kg N/ha | AG6: kg N/ha | AH6: kg N/ha | AI6: % | AJ6: kg P/ha | AK6: kg P/ha | AL6: kg P/ha | AM6: kg P/ha | AN6: kg P/ha | AO6: kg P/ha | AP6: kg P/ha | AQ6: kg P/ha | AR6: kg P/ha | AS6: kg P/ha | AT6: kg P/ha | AU6: kg P/ha | AV6: kg P/ha | AW6: kg P/ha | AX6: kg P/ha | AY6: % | AZ6: kg K/ha | BA6: kg K/ha | BB6: kg K/ha | BC6: kg K/ha | BD6: kg K/ha | BE6: kg K/ha | BF6: kg K/ha | BG6: kg K/ha | BH6: kg K/ha | BI6: kg K/ha | BJ6: kg K/ha | BK6: kg K/ha | BL6: kg K/ha | BM6: kg K/ha | BN6: kg K/ha | BO6: % | BP6: kg S/ha | BQ6: kg S/ha | BR6: kg S/ha | BS6: kg S/ha | BT6: kg S/ha | BU6: kg S/ha | BV6: kg S/ha | BW6: kg S/ha | BX6: kg S/ha | BY6: kg S/ha | BZ6: kg S/ha | CA6: kg S/ha | CB6: kg S/ha | CC6: kg S/ha | CD6: kg S/ha | CE6: % | CF6: kg Mg/ha | CG6: kg Mg/ha | CH6: kg Mg/ha | CI6: kg Mg/ha | CJ6: kg Mg/ha | CK6: kg Mg/ha | CL6: kg Mg/ha | CM6: kg Mg/ha | CN6: kg Mg/ha | CO6: kg Mg/ha | CP6: kg Mg/ha | CQ6: kg Mg/ha | CR6: kg Mg/ha | CS6: kg Mg/ha | CT6: kg Mg/ha | CU6: % | CV6: kg Ca/ha | CW6: kg Ca/ha | CX6: kg Ca/ha | CY6: kg Ca/ha | CZ6: kg Ca/ha | DA6: kg Ca/ha | DB6: kg Ca/ha | DC6: kg Ca/ha | DD6: kg Ca/ha | DE6: kg Ca/ha | DF6: kg Ca/ha | DG6: kg Ca/ha | DH6: kg Ca/ha | DI6: kg Ca/ha | DJ6: kg Ca/ha | DK6: %
A7: 1 | B7: ='1_Eingabe_Humus'!B14 -> 1 | C7: =IF(D7="","",INDEX(FA_Stamm!A:A,MATCH(D7,FA_Stamm!B:B,0))) -> 3 | D7: =IF('1_Eingabe_Humus'!C14="","",'1_Eingabe_Humus'!C14) -> Ackergras | E7: ='1_Eingabe_Humus'!J14 -> HF | F7: ='1_Eingabe_Humus'!F14 -> 20 | G7: =HuBil!W7 -> 4 | H7: =HuBil!Y7 -> 0 | I7: =IF(D7="","",HuBil!W7-HuBil!X7) -> 0.8 | J7: =IF(D7="","",HuBil!Y7-HuBil!Z7-HuBil!AA7) -> 0 | K7: =HuBil!Z7 -> 0 | L7: =HuBil!AB7 -> 3.2 | M7: =HuBil!AC7 -> 9.6 | N7: =HuBil!AD7 -> 0 | O7: =SUM(M7:N7) -> 9.6 | P7: =IF(F7>0,O7-AD7,"") -> 1.92 | Q7: =IF(F7>0,HuBil!AF7,"") -> 0 | R7: =HuBil!AG7 -> 0 | S7: =SUM(Q7:R7) -> 0 | T7: =HuBil!AI7 -> 20 | U7: =Düngung!G7 -> 0 | V7: =Düngung!CP7 -> 0 | W7: =Düngung!DB7 -> 0 | X7: =Düngung!DN7 -> 0 | Y7: =V7+W7+X7 -> 0 | Z7: =S7 -> 0 | AA7: =HuBil!AP7 -> 0.4085 | AB7: =IF(D7="","",HuBil!V7*HuBil!Z7) -> 0 | AC7: =IF(D7="","",(HuBil!V7*HuBil!AA7)+(HuBil!U7*HuBil!X7)) -> 7.68 | AD7: =IF(D7="","",AB7+AC7) -> 7.68 | AE7: =IF(D7="","",T7+U7+Y7+Z7+AA7+AD7) -> 28.0885 | AF7: =HuBil!BH7*55 -> 26.51 | AG7: =IF(F7>0,AE7-O7,0) -> 18.4885 | AH7: =AG7-AF7 -> -8.0215 | AI7: =IF(F7>0,P7/AE7*100,"") -> 6.835537676 | AJ7: =IF(F7>0,VLOOKUP(C7,FA_Stamm!A:Y,IF($D$1=2,25,24),FALSE)*G7,"") -> 1.4 | AK7: =IF(F7>0,VLOOKUP(C7,FA_Stamm!A:AA,IF($D$1=2,27,26),FALSE)*H7,"") -> 0 | AL7: =IF(F7>0,AJ7+AK7,"") -> 1.4 | AM7: =IF(F7>0,AL7-AU7,"") -> 0.28 | AN7: ='1_Eingabe_Humus'!F50*IF('1_Eingabe_Humus'!$J$36=2,0.4364,1) -> 0 | AO7: =IF(F7>0,Düngung!CR7*IF('1_Eingabe_Humus'!$J$36=2,0.4364,1),"") -> 0 | AP7: =IF(F7>0,Düngung!DD7*IF('1_Eingabe_Humus'!$J$36=2,0.4364,1),"") -> 0 | AQ7: =IF(F7>0,Düngung!DP7*IF('1_Eingabe_Humus'!$J$36=2,0.4364,1),"") -> 0 | AR7: =IF(F7>0,AO7+AP7+AQ7,"") -> 0 | AS7: =IF(F7>0,(VLOOKUP($C7,FA_Stamm,IF($D$1=2,82,81),FALSE))*(VLOOKUP($C7,FA_Stamm,IF($D$1=2,68,67),FALSE)/100)*(VLOOKUP($C7,FA_Stamm,IF($D$1=2,78,77),FALSE)/100),"") -> 0.06235 | AT7: =IF(F7>0,HuBil!Z7*VLOOKUP($C7,FA_Stamm,IF($D$1=2,27,26),FALSE),"") -> 0 | AU7: =IF(F7>0, (HuBil!X7*VLOOKUP($C7,FA_Stamm,IF($D$1=2,25,24),FALSE))+(HuBil!AA7*VLOOKUP($C7,FA_Stamm,IF($D$1=2,27,26),FALSE)),"") -> 1.12 | AV7: =IF(F7>0,AT7+AU7,"") -> 1.12 | AW7: =IF(F7>0,AV7+AS7+AR7+AN7,"") -> 1.18235 | AX7: =IF(F7>0,AW7-AL7,"") -> -0.21765 | AY7: =IF(AND(F7>0,AW7>0),AM7/AW7*100,"") -> 23.68165095 | AZ7: =IF(F7>0,VLOOKUP(C7,FA_Stamm!A:AE,IF($D$1=2,29,28),FALSE)*G7,"") -> 9.2 | BA7: =IF(F7>0,VLOOKUP(C7,FA_Stamm!A:AE,IF($D$1=2,31,30),FALSE)*H7,"") -> 0 | BB7: =IF(F7>0,AZ7+BA7,"") -> 9.2 | BC7: =IF(F7>0,BB7-BK7,"") -> 1.84 | BD7: ='1_Eingabe_Humus'!G50*IF('1_Eingabe_Humus'!$J$36=2,0.83,1) -> 0 | BE7: =Düngung!CS7*IF('1_Eingabe_Humus'!$J$36=2,0.83,1) -> 0 | BF7: =Düngung!DE7*IF('1_Eingabe_Humus'!$J$36=2,0.83,1) -> 0 | BG7: =Düngung!DQ7*IF('1_Eingabe_Humus'!$J$36=2,0.83,1) -> 0 | BH7: =IF(F7>0,BE7+BF7+BG7,"") -> 0 | BI7: =IF(F7>0,(VLOOKUP($C7,FA_Stamm,IF($D$1=2,82,81),FALSE))*(VLOOKUP($C7,FA_Stamm,IF($D$1=2,68,67),FALSE)/100)*(VLOOKUP($C7,FA_Stamm,IF($D$1=2,80,79),FALSE)/100),"") -> 0.10105 | BJ7: =IF(F7>0,HuBil!Z7*VLOOKUP($C7,FA_Stamm,IF($D$1=2,31,30),FALSE),"") -> 0 | BK7: =IF(F7>0, (HuBil!X7*VLOOKUP($C7,FA_Stamm,IF($D$1=2,29,28),FALSE))+(HuBil!AA7*VLOOKUP($C7,FA_Stamm,IF($D$1=2,31,30),FALSE)),"") -> 7.36 | BL7: =IF(F7>0,BJ7+BK7,"") -> 7.36 | BM7: =IF(F7>0,BL7+BI7+BH7+BD7,0) -> 7.46105 | BN7: =IF(F7>0,BM7-BB7,0) -> -1.73895 | BO7: =IF(F7>0,BC7/BM7*100,"") -> 24.66140825 | BP7: =IF(F7>0,VLOOKUP(C7,FA_Stamm,61,FALSE)*G7,"") -> 0.9714285714 | BQ7: =IF(F7>0,VLOOKUP(C7,FA_Stamm,62,FALSE)*H7,"") -> 0 | BR7: =IF(F7>0,BP7+BQ7,"") -> 0.9714285714 | BS7: =IF(F7>0,BR7-CA7,"") -> 0.1942857143 | BT7: ='1_Eingabe_Humus'!#REF! ->  | BU7: =Düngung!CT7 -> 0 | BV7: =Düngung!DF7 -> 0 | BW7: =Düngung!DR7 -> 0 | BX7: =IF(F7>0,BU7+BV7+BW7,"") -> 0 | BY7: =IF(F7>0,(VLOOKUP($C7,FA_Stamm,IF($D$1=2,82,81),FALSE))*(VLOOKUP($C7,FA_Stamm,IF($D$1=2,68,67),FALSE)/100)*(VLOOKUP($C7,FA_Stamm,61,FALSE)/100),"") -> 0.05221428571 | BZ7: =IF(F7>0,HuBil!Z7*VLOOKUP($C7,FA_Stamm,62,FALSE),"") -> 0 | CA7: =IF(F7>0, (HuBil!X7*VLOOKUP($C7,FA_Stamm,61,FALSE))+(HuBil!AA7*VLOOKUP($C7,FA_Stamm,62,FALSE)),"") -> 0.7771428571 | CB7: =IF(F7>0,BZ7+CA7,"") -> 0.7771428571 | CC7: =IF(F7>0,CB7+BY7+BX7+BT7,0) ->  | CD7: =IF(F7>0,CC7-BS7,0) ->  | CE7: =IF(F7>0,BS7/CC7*100,"") ->  | CF7: =IF(F7>0,VLOOKUP(C7,FA_Stamm,63,FALSE)*G7,"") -> 1 | CG7: =IF(F7>0,VLOOKUP(C7,FA_Stamm,64,FALSE)*H7,"") -> 0 | CH7: =IF(F7>0,CF7+CG7,"") -> 1 | CI7: =IF(F7>0,CH7-CQ7,"") -> 0.2 | CJ7: 0 | CK7: =Düngung!CU7 -> 0 | CL7: =Düngung!DG7 -> 0 | CM7: =Düngung!DS7 -> 0 | CN7: =IF(F7>0,CK7+CL7+CM7,"") -> 0 | CO7: =IF(F7>0,(VLOOKUP($C7,FA_Stamm,IF($D$1=2,82,81),FALSE))*(VLOOKUP($C7,FA_Stamm,IF($D$1=2,68,67),FALSE)/100)*(VLOOKUP($C7,FA_Stamm,63,FALSE)/100),"") -> 0.05375 | CP7: =IF(F7>0,HuBil!Z7*VLOOKUP($C7,FA_Stamm,64,FALSE),"") -> 0 | CQ7: =IF(F7>0, (HuBil!X7*VLOOKUP($C7,FA_Stamm,63,FALSE))+(HuBil!AA7*VLOOKUP($C7,FA_Stamm,64,FALSE)),"") -> 0.8 | CR7: =IF(F7>0,CP7+CQ7,"") -> 0.8 | CS7: =IF(F7>0,CR7+CO7+CN7+CJ7,0) -> 0.85375 | CT7: =IF(F7>0,CS7-CI7,0) -> 0.65375 | CU7: =IF(F7>0,CI7/CS7*100,"") -> 23.42606149 | CV7: =IF(F7>0,VLOOKUP(C7,FA_Stamm,65,FALSE)*G7,"") -> 0 | CW7: =IF(F7>0,VLOOKUP(C7,FA_Stamm,66,FALSE)*H7,"") -> 0 | CX7: =IF(F7>0,CV7+CW7,"") -> 0 | CY7: =IF(F7>0,CX7-DG7,"") -> 0 | CZ7: =IF(ISNA(IF(INDEX('3_Mineraldüngung_Pflanzenschutz'!$I$6:$I$27,MATCH(D7,'3_Mineraldüngung_Pflanzenschutz'!$A$6:$A$27,0))="",0)),0, IF(INDEX('3_Mineraldüngung_Pflanzenschutz'!$I$6:$I$27,MATCH(D7,'3_Mineraldüngung_Pflanzenschutz'!$A$6:$A$27,0))="",0, (LARGE(INDEX('3_Mineraldüngung_Pflanzenschutz'!$I$6:$I$27,MATCH(D7,'3_Mineraldüngung_Pflanzenschutz'!$A$6:$A$27,0)),1)*'3_Mineraldüngung_Pflanzenschutz'!$J$5*0.588235294*IF('3_Mineraldüngung_Pflanzenschutz'!$D$5="in ha",VLOOKUP(D7,'3_Mineraldüngung_Pflanzenschutz'!$A$6:$D$27,4,FALSE)/F7,VLOOKUP(D7,'3_Mineraldüngung_Pflanzenschutz'!$A$6:$D$27,4,FALSE)/100)))) -> 0 | DA7: =Düngung!CV7 -> 0 | DB7: =Düngung!DH7 -> 0 | DC7: =Düngung!DT7 -> 0 | DD7: =IF(F7>0,DA7+DB7+DC7,"") -> 0 | DE7: =IF(F7>0,(VLOOKUP($C7,FA_Stamm,IF($D$1=2,82,81),FALSE))*(VLOOKUP($C7,FA_Stamm,IF($D$1=2,68,67),FALSE)/100)*(VLOOKUP($C7,FA_Stamm,65,FALSE)/100),"") -> 0 | DF7: =IF(F7>0,HuBil!Z7*VLOOKUP($C7,FA_Stamm,66,FALSE),"") -> 0 | DG7: =IF(F7>0, (HuBil!X7*VLOOKUP($C7,FA_Stamm,65,FALSE))+(HuBil!AA7*VLOOKUP($C7,FA_Stamm,66,FALSE)),"") -> 0 | DH7: =IF(F7>0,DF7+DG7,"") -> 0 | DI7: =IF(F7>0,DH7+DE7+DD7+CZ7,0) -> 0 | DJ7: =IF(F7>0,DI7-CY7,0) -> 0 | DK7: =IF(F7>0,CY7/DI7*100,"") ->  | DL7: =IF('1_Eingabe_Humus'!J14="HF",F7,0) -> 20
A8: 2 | B8: ='1_Eingabe_Humus'!B15 -> 1 | C8: =IF(D8="","",INDEX(FA_Stamm!A:A,MATCH(D8,FA_Stamm!B:B,0))) ->  | D8: =IF('1_Eingabe_Humus'!C15="","",'1_Eingabe_Humus'!C15) ->  | E8: ='1_Eingabe_Humus'!J15 ->  | F8: ='1_Eingabe_Humus'!F15 -> 0 | G8: =HuBil!W8 ->  | H8: =HuBil!Y8 ->  | I8: =IF(D8="","",HuBil!W8-HuBil!X8) ->  | J8: =IF(D8="","",HuBil!Y8-HuBil!Z8-HuBil!AA8) ->  | K8: =HuBil!Z8 -> 0 | L8: =HuBil!AB8 ->  | M8: =HuBil!AC8 ->  | N8: =HuBil!AD8 ->  | O8: =SUM(M8:N8) -> 0 | P8: =IF(F8>0,O8-AD8,"") ->  | Q8: =IF(F8>0,HuBil!AF8,"") ->  | R8: =HuBil!AG8 ->  | S8: =SUM(Q8:R8) -> 0 | T8: =HuBil!AI8 -> 0 | U8: =Düngung!G8 -> 0 | V8: =Düngung!CP8 -> 0 | W8: =Düngung!DB8 -> 0 | X8: =Düngung!DN8 -> 0 | Y8: =V8+W8+X8 -> 0 | Z8: =S8 -> 0 | AA8: =HuBil!AP8 ->  | AB8: =IF(D8="","",HuBil!V8*HuBil!Z8) ->  | AC8: =IF(D8="","",(HuBil!V8*HuBil!AA8)+(HuBil!U8*HuBil!X8)) ->  | AD8: =IF(D8="","",AB8+AC8) ->  | AE8: =IF(D8="","",T8+U8+Y8+Z8+AA8+AD8) ->  | AF8: =HuBil!BH8*55 -> 0 | AG8: =IF(F8>0,AE8-O8,0) -> 0 | AH8: =AG8-AF8 -> 0 | AI8: =IF(F8>0,P8/AE8*100,"") ->  | AJ8: =IF(F8>0,VLOOKUP(C8,FA_Stamm!A:Y,IF($D$1=2,25,24),FALSE)*G8,"") ->  | AK8: =IF(F8>0,VLOOKUP(C8,FA_Stamm!A:AA,IF($D$1=2,27,26),FALSE)*H8,"") ->  | AL8: =IF(F8>0,AJ8+AK8,"") ->  | AM8: =IF(F8>0,AL8-AU8,"") ->  | AN8: ='1_Eingabe_Humus'!F51*IF('1_Eingabe_Humus'!$J$36=2,0.4364,1) -> 0 | AO8: =IF(F8>0,Düngung!CR8*IF('1_Eingabe_Humus'!$J$36=2,0.4364,1),"") ->  | AP8: =IF(F8>0,Düngung!DD8*IF('1_Eingabe_Humus'!$J$36=2,0.4364,1),"") ->  | AQ8: =IF(F8>0,Düngung!DP8*IF('1_Eingabe_Humus'!$J$36=2,0.4364,1),"") ->  | AR8: =IF(F8>0,AO8+AP8+AQ8,"") ->  | AS8: =IF(F8>0,(VLOOKUP($C8,FA_Stamm,IF($D$1=2,82,81),FALSE))*(VLOOKUP($C8,FA_Stamm,IF($D$1=2,68,67),FALSE)/100)*(VLOOKUP($C8,FA_Stamm,IF($D$1=2,78,77),FALSE)/100),"") ->  | AT8: =IF(F8>0,HuBil!Z8*VLOOKUP($C8,FA_Stamm,IF($D$1=2,27,26),FALSE),"") ->  | AU8: =IF(F8>0, (HuBil!X8*VLOOKUP($C8,FA_Stamm,IF($D$1=2,25,24),FALSE))+(HuBil!AA8*VLOOKUP($C8,FA_Stamm,IF($D$1=2,27,26),FALSE)),"") ->  | AV8: =IF(F8>0,AT8+AU8,"") ->  | AW8: =IF(F8>0,AV8+AS8+AR8+AN8,"") ->  | AX8: =IF(F8>0,AW8-AL8,"") ->  | AY8: =IF(AND(F8>0,AW8>0),AM8/AW8*100,"") ->  | AZ8: =IF(F8>0,VLOOKUP(C8,FA_Stamm!A:AE,IF($D$1=2,29,28),FALSE)*G8,"") ->  | BA8: =IF(F8>0,VLOOKUP(C8,FA_Stamm!A:AE,IF($D$1=2,31,30),FALSE)*H8,"") ->  | BB8: =IF(F8>0,AZ8+BA8,"") ->  | BC8: =IF(F8>0,BB8-BK8,"") ->  | BD8: ='1_Eingabe_Humus'!G51*IF('1_Eingabe_Humus'!$J$36=2,0.83,1) -> 0 | BE8: =Düngung!CS8*IF('1_Eingabe_Humus'!$J$36=2,0.83,1) -> 0 | BF8: =Düngung!DE8*IF('1_Eingabe_Humus'!$J$36=2,0.83,1) -> 0 | BG8: =Düngung!DQ8*IF('1_Eingabe_Humus'!$J$36=2,0.83,1) -> 0 | BH8: =IF(F8>0,BE8+BF8+BG8,"") ->  | BJ8: =IF(F8>0,HuBil!Z8*VLOOKUP($C8,FA_Stamm,IF($D$1=2,31,30),FALSE),"") ->  | BK8: =IF(F8>0, (HuBil!X8*VLOOKUP($C8,FA_Stamm,IF($D$1=2,29,28),FALSE))+(HuBil!AA8*VLOOKUP($C8,FA_Stamm,IF($D$1=2,31,30),FALSE)),"") ->  | BL8: =IF(F8>0,BJ8+BK8,"") ->  | BM8: =IF(F8>0,BL8+BI8+BH8+BD8,0) -> 0 | BN8: =IF(F8>0,BM8-BB8,0) -> 0 | BO8: =IF(F8>0,BC8/BM8*100,"") ->  | BR8: =IF(F8>0,BP8+BQ8,"") ->  | BS8: =IF(F8>0,BR8-CA8,"") ->  | BT8: ='1_Eingabe_Humus'!#REF! ->  | BU8: =Düngung!CT8 -> 0 | BV8: =Düngung!DF8 -> 0 | BW8: =Düngung!DR8 -> 0 | BX8: =IF(F8>0,BU8+BV8+BW8,"") ->  | BZ8: =IF(F8>0,HuBil!Z8*VLOOKUP($C8,FA_Stamm,62,FALSE),"") ->  | CA8: =IF(F8>0, (HuBil!X8*VLOOKUP($C8,FA_Stamm,61,FALSE))+(HuBil!AA8*VLOOKUP($C8,FA_Stamm,62,FALSE)),"") ->  | CB8: =IF(F8>0,BZ8+CA8,"") ->  | CC8: =IF(F8>0,CB8+BY8+BX8+BT8,0) -> 0 | CD8: =IF(F8>0,CC8-BS8,0) -> 0 | CE8: =IF(F8>0,BS8/CC8*100,"") ->  | CH8: =IF(F8>0,CF8+CG8,"") ->  | CI8: =IF(F8>0,CH8-CQ8,"") ->  | CJ8: 0 | CK8: =Düngung!CU8 -> 0 | CL8: =Düngung!DG8 -> 0 | CM8: =Düngung!DS8 -> 0 | CN8: =IF(F8>0,CK8+CL8+CM8,"") ->  | CP8: =IF(F8>0,HuBil!Z8*VLOOKUP($C8,FA_Stamm,64,FALSE),"") ->  | CQ8: =IF(F8>0, (HuBil!X8*VLOOKUP($C8,FA_Stamm,63,FALSE))+(HuBil!AA8*VLOOKUP($C8,FA_Stamm,64,FALSE)),"") ->  | CR8: =IF(F8>0,CP8+CQ8,"") ->  | CS8: =IF(F8>0,CR8+CO8+CN8+CJ8,0) -> 0 | CT8: =IF(V8>0,CS8-CI8,0) -> 0 | CU8: =IF(F8>0,CI8/CS8*100,"") ->  | CX8: =IF(F8>0,CV8+CW8,"") ->  | CY8: =IF(F8>0,CX8-DG8,"") ->  | CZ8: =IF(ISNA(IF(INDEX('3_Mineraldüngung_Pflanzenschutz'!$I$6:$I$27,MATCH(D8,'3_Mineraldüngung_Pflanzenschutz'!$A$6:$A$27,0))="",0)),0, IF(INDEX('3_Mineraldüngung_Pflanzenschutz'!$I$6:$I$27,MATCH(D8,'3_Mineraldüngung_Pflanzenschutz'!$A$6:$A$27,0))="",0, (LARGE(INDEX('3_Mineraldüngung_Pflanzenschutz'!$I$6:$I$27,MATCH(D8,'3_Mineraldüngung_Pflanzenschutz'!$A$6:$A$27,0)),1)*'3_Mineraldüngung_Pflanzenschutz'!$J$5*0.588235294*IF('3_Mineraldüngung_Pflanzenschutz'!$D$5="in ha",VLOOKUP(D8,'3_Mineraldüngung_Pflanzenschutz'!$A$6:$D$27,4,FALSE)/F8,VLOOKUP(D8,'3_Mineraldüngung_Pflanzenschutz'!$A$6:$D$27,4,FALSE)/100)))) -> 0 | DA8: =Düngung!CV8 -> 0 | DB8: =Düngung!DH8 -> 0 | DC8: =Düngung!DT8 -> 0 | DD8: =IF(F8>0,DA8+DB8+DC8,"") ->  | DF8: =IF(F8>0,HuBil!Z8*VLOOKUP($C8,FA_Stamm,66,FALSE),"") ->  | DG8: =IF(F8>0, (HuBil!X8*VLOOKUP($C8,FA_Stamm,65,FALSE))+(HuBil!AA8*VLOOKUP($C8,FA_Stamm,66,FALSE)),"") ->  | DH8: =IF(F8>0,DF8+DG8,"") ->  | DI8: =IF(F8>0,DH8+DE8+DD8+CZ8,0) -> 0 | DJ8: =IF(F8>0,DI8-CY8,0) -> 0 | DK8: =IF(F8>0,CY8/DI8*100,"") ->  | DL8: =IF('1_Eingabe_Humus'!J15="HF",F8,0) -> 0
A9: 3 | B9: ='1_Eingabe_Humus'!B16 -> 1 | C9: =IF(D9="","",INDEX(FA_Stamm!A:A,MATCH(D9,FA_Stamm!B:B,0))) ->  | D9: =IF('1_Eingabe_Humus'!C16="","",'1_Eingabe_Humus'!C16) ->  | E9: ='1_Eingabe_Humus'!J16 ->  | F9: ='1_Eingabe_Humus'!F16 -> 0 | G9: =HuBil!W9 ->  | H9: =HuBil!Y9 ->  | I9: =IF(D9="","",HuBil!W9-HuBil!X9) ->  | J9: =IF(D9="","",HuBil!Y9-HuBil!Z9-HuBil!AA9) ->  | K9: =HuBil!Z9 -> 0 | L9: =HuBil!AB9 ->  | M9: =HuBil!AC9 ->  | N9: =HuBil!AD9 ->  | O9: 0 | Q9: =IF(F9>0,HuBil!AF9,"") ->  | R9: =HuBil!AG9 ->  | S9: 0 | T9: =HuBil!AI9 -> 0 | U9: =Düngung!G9 -> 0 | V9: =Düngung!CP9 -> 0 | W9: =Düngung!DB9 -> 0 | X9: =Düngung!DN9 -> 0 | Y9: 0 | Z9: 0 | AA9: =HuBil!AP9 ->  | AB9: =IF(D9="","",HuBil!V9*HuBil!Z9) ->  | AC9: =IF(D9="","",(HuBil!V9*HuBil!AA9)+(HuBil!U9*HuBil!X9)) ->  | AF9: =HuBil!BH9*55 -> 0 | AG9: 0 | AH9: 0 | AJ9: =IF(F9>0,VLOOKUP(C9,FA_Stamm!A:Y,IF($D$1=2,25,24),FALSE)*G9,"") ->  | AK9: =IF(F9>0,VLOOKUP(C9,FA_Stamm!A:AA,IF($D$1=2,27,26),FALSE)*H9,"") ->  | AN9: ='1_Eingabe_Humus'!F52*IF('1_Eingabe_Humus'!$J$36=2,0.4364,1) -> 0 | AO9: =IF(F9>0,Düngung!CR9*IF('1_Eingabe_Humus'!$J$36=2,0.4364,1),"") ->  | AP9: =IF(F9>0,Düngung!DD9*IF('1_Eingabe_Humus'!$J$36=2,0.4364,1),"") ->  | AQ9: =IF(F9>0,Düngung!DP9*IF('1_Eingabe_Humus'!$J$36=2,0.4364,1),"") ->  | AT9: =IF(F9>0,HuBil!Z9*VLOOKUP($C9,FA_Stamm,IF($D$1=2,27,26),FALSE),"") ->  | AU9: =IF(F9>0, (HuBil!X9*VLOOKUP($C9,FA_Stamm,IF($D$1=2,25,24),FALSE))+(HuBil!AA9*VLOOKUP($C9,FA_Stamm,IF($D$1=2,27,26),FALSE)),"") ->  | AZ9: =IF(F9>0,VLOOKUP(C9,FA_Stamm!A:AE,IF($D$1=2,29,28),FALSE)*G9,"") ->  | BA9: =IF(F9>0,VLOOKUP(C9,FA_Stamm!A:AE,IF($D$1=2,31,30),FALSE)*H9,"") ->  | BD9: ='1_Eingabe_Humus'!G52*IF('1_Eingabe_Humus'!$J$36=2,0.83,1) -> 0 | BE9: =Düngung!CS9*IF('1_Eingabe_Humus'!$J$36=2,0.83,1) -> 0 | BF9: =Düngung!DE9*IF('1_Eingabe_Humus'!$J$36=2,0.83,1) -> 0 | BG9: =Düngung!DQ9*IF('1_Eingabe_Humus'!$J$36=2,0.83,1) -> 0 | BJ9: =IF(F9>0,HuBil!Z9*VLOOKUP($C9,FA_Stamm,IF($D$1=2,31,30),FALSE),"") ->  | BK9: =IF(F9>0, (HuBil!X9*VLOOKUP($C9,FA_Stamm,IF($D$1=2,29,28),FALSE))+(HuBil!AA9*VLOOKUP($C9,FA_Stamm,IF($D$1=2,31,30),FALSE)),"") ->  | BM9: 0 | BN9: 0 | BT9: ='1_Eingabe_Humus'!#REF! ->  | BU9: =Düngung!CT9 -> 0 | BV9: =Düngung!DF9 -> 0 | BW9: =Düngung!DR9 -> 0 | BZ9: =IF(F9>0,HuBil!Z9*VLOOKUP($C9,FA_Stamm,62,FALSE),"") ->  | CA9: =IF(F9>0, (HuBil!X9*VLOOKUP($C9,FA_Stamm,61,FALSE))+(HuBil!AA9*VLOOKUP($C9,FA_Stamm,62,FALSE)),"") ->  | CC9: 0 | CD9: 0 | CJ9: 0 | CK9: =Düngung!CU9 -> 0 | CL9: =Düngung!DG9 -> 0 | CM9: =Düngung!DS9 -> 0 | CP9: =IF(F9>0,HuBil!Z9*VLOOKUP($C9,FA_Stamm,64,FALSE),"") ->  | CQ9: =IF(F9>0, (HuBil!X9*VLOOKUP($C9,FA_Stamm,63,FALSE))+(HuBil!AA9*VLOOKUP($C9,FA_Stamm,64,FALSE)),"") ->  | CS9: 0 | CT9: 0 | CZ9: =IF(ISNA(IF(INDEX('3_Mineraldüngung_Pflanzenschutz'!$I$6:$I$27,MATCH(D9,'3_Mineraldüngung_Pflanzenschutz'!$A$6:$A$27,0))="",0)),0, IF(INDEX('3_Mineraldüngung_Pflanzenschutz'!$I$6:$I$27,MATCH(D9,'3_Mineraldüngung_Pflanzenschutz'!$A$6:$A$27,0))="",0, (LARGE(INDEX('3_Mineraldüngung_Pflanzenschutz'!$I$6:$I$27,MATCH(D9,'3_Mineraldüngung_Pflanzenschutz'!$A$6:$A$27,0)),1)*'3_Mineraldüngung_Pflanzenschutz'!$J$5*0.588235294*IF('3_Mineraldüngung_Pflanzenschutz'!$D$5="in ha",VLOOKUP(D9,'3_Mineraldüngung_Pflanzenschutz'!$A$6:$D$27,4,FALSE)/F9,VLOOKUP(D9,'3_Mineraldüngung_Pflanzenschutz'!$A$6:$D$27,4,FALSE)/100)))) -> 0 | DA9: =Düngung!CV9 -> 0 | DB9: =Düngung!DH9 -> 0 | DC9: =Düngung!DT9 -> 0 | DF9: =IF(F9>0,HuBil!Z9*VLOOKUP($C9,FA_Stamm,66,FALSE),"") ->  | DG9: =IF(F9>0, (HuBil!X9*VLOOKUP($C9,FA_Stamm,65,FALSE))+(HuBil!AA9*VLOOKUP($C9,FA_Stamm,66,FALSE)),"") ->  | DI9: 0 | DJ9: 0 | DL9: =IF('1_Eingabe_Humus'!J16="HF",F9,0) -> 0
A10: 4 | B10: ='1_Eingabe_Humus'!B17 -> 1 | C10: =IF(D10="","",INDEX(FA_Stamm!A:A,MATCH(D10,FA_Stamm!B:B,0))) ->  | D10: =IF('1_Eingabe_Humus'!C17="","",'1_Eingabe_Humus'!C17) ->  | E10: ='1_Eingabe_Humus'!J17 ->  | F10: ='1_Eingabe_Humus'!F17 -> 0 | G10: =HuBil!W10 ->  | H10: =HuBil!Y10 ->  | I10: =IF(D10="","",HuBil!W10-HuBil!X10) ->  | J10: =IF(D10="","",HuBil!Y10-HuBil!Z10-HuBil!AA10) ->  | K10: =HuBil!Z10 -> 0 | L10: =HuBil!AB10 ->  | M10: =HuBil!AC10 ->  | N10: =HuBil!AD10 ->  | O10: 0 | Q10: =IF(F10>0,HuBil!AF10,"") ->  | R10: =HuBil!AG10 ->  | S10: 0 | T10: =HuBil!AI10 -> 0 | U10: =Düngung!G10 -> 0 | V10: =Düngung!CP10 -> 0 | W10: =Düngung!DB10 -> 0 | X10: =Düngung!DN10 -> 0 | Y10: 0 | Z10: 0 | AA10: =HuBil!AP10 ->  | AB10: =IF(D10="","",HuBil!V10*HuBil!Z10) ->  | AC10: =IF(D10="","",(HuBil!V10*HuBil!AA10)+(HuBil!U10*HuBil!X10)) ->  | AF10: =HuBil!BH10*55 -> 0 | AG10: 0 | AH10: 0 | AJ10: =IF(F10>0,VLOOKUP(C10,FA_Stamm!A:Y,IF($D$1=2,25,24),FALSE)*G10,"") ->  | AK10: =IF(F10>0,VLOOKUP(C10,FA_Stamm!A:AA,IF($D$1=2,27,26),FALSE)*H10,"") ->  | AN10: ='1_Eingabe_Humus'!F53*IF('1_Eingabe_Humus'!$J$36=2,0.4364,1) -> 0 | AO10: =IF(F10>0,Düngung!CR10*IF('1_Eingabe_Humus'!$J$36=2,0.4364,1),"") ->  | AP10: =IF(F10>0,Düngung!DD10*IF('1_Eingabe_Humus'!$J$36=2,0.4364,1),"") ->  | AQ10: =IF(F10>0,Düngung!DP10*IF('1_Eingabe_Humus'!$J$36=2,0.4364,1),"") ->  | AT10: =IF(F10>0,HuBil!Z10*VLOOKUP($C10,FA_Stamm,IF($D$1=2,27,26),FALSE),"") ->  | AU10: =IF(F10>0, (HuBil!X10*VLOOKUP($C10,FA_Stamm,IF($D$1=2,25,24),FALSE))+(HuBil!AA10*VLOOKUP($C10,FA_Stamm,IF($D$1=2,27,26),FALSE)),"") ->  | AZ10: =IF(F10>0,VLOOKUP(C10,FA_Stamm!A:AE,IF($D$1=2,29,28),FALSE)*G10,"") ->  | BA10: =IF(F10>0,VLOOKUP(C10,FA_Stamm!A:AE,IF($D$1=2,31,30),FALSE)*H10,"") ->  | BD10: ='1_Eingabe_Humus'!G53*IF('1_Eingabe_Humus'!$J$36=2,0.83,1) -> 0 | BE10: =Düngung!CS10*IF('1_Eingabe_Humus'!$J$36=2,0.83,1) -> 0 | BF10: =Düngung!DE10*IF('1_Eingabe_Humus'!$J$36=2,0.83,1) -> 0 | BG10: =Düngung!DQ10*IF('1_Eingabe_Humus'!$J$36=2,0.83,1) -> 0 | BJ10: =IF(F10>0,HuBil!Z10*VLOOKUP($C10,FA_Stamm,IF($D$1=2,31,30),FALSE),"") ->  | BK10: =IF(F10>0, (HuBil!X10*VLOOKUP($C10,FA_Stamm,IF($D$1=2,29,28),FALSE))+(HuBil!AA10*VLOOKUP($C10,FA_Stamm,IF($D$1=2,31,30),FALSE)),"") ->  | BM10: 0 | BN10: 0 | BT10: ='1_Eingabe_Humus'!#REF! ->  | BU10: =Düngung!CT10 -> 0 | BV10: =Düngung!DF10 -> 0 | BW10: =Düngung!DR10 -> 0 | BZ10: =IF(F10>0,HuBil!Z10*VLOOKUP($C10,FA_Stamm,62,FALSE),"") ->  | CA10: =IF(F10>0, (HuBil!X10*VLOOKUP($C10,FA_Stamm,61,FALSE))+(HuBil!AA10*VLOOKUP($C10,FA_Stamm,62,FALSE)),"") ->  | CC10: 0 | CD10: 0 | CJ10: 0 | CK10: =Düngung!CU10 -> 0 | CL10: =Düngung!DG10 -> 0 | CM10: =Düngung!DS10 -> 0 | CP10: =IF(F10>0,HuBil!Z10*VLOOKUP($C10,FA_Stamm,64,FALSE),"") ->  | CQ10: =IF(F10>0, (HuBil!X10*VLOOKUP($C10,FA_Stamm,63,FALSE))+(HuBil!AA10*VLOOKUP($C10,FA_Stamm,64,FALSE)),"") ->  | CS10: 0 | CT10: 0 | CZ10: =IF(ISNA(IF(INDEX('3_Mineraldüngung_Pflanzenschutz'!$I$6:$I$27,MATCH(D10,'3_Mineraldüngung_Pflanzenschutz'!$A$6:$A$27,0))="",0)),0, IF(INDEX('3_Mineraldüngung_Pflanzenschutz'!$I$6:$I$27,MATCH(D10,'3_Mineraldüngung_Pflanzenschutz'!$A$6:$A$27,0))="",0, (LARGE(INDEX('3_Mineraldüngung_Pflanzenschutz'!$I$6:$I$27,MATCH(D10,'3_Mineraldüngung_Pflanzenschutz'!$A$6:$A$27,0)),1)*'3_Mineraldüngung_Pflanzenschutz'!$J$5*0.588235294*IF('3_Mineraldüngung_Pflanzenschutz'!$D$5="in ha",VLOOKUP(D10,'3_Mineraldüngung_Pflanzenschutz'!$A$6:$D$27,4,FALSE)/F10,VLOOKUP(D10,'3_Mineraldüngung_Pflanzenschutz'!$A$6:$D$27,4,FALSE)/100)))) -> 0 | DA10: =Düngung!CV10 -> 0 | DB10: =Düngung!DH10 -> 0 | DC10: =Düngung!DT10 -> 0 | DF10: =IF(F10>0,HuBil!Z10*VLOOKUP($C10,FA_Stamm,66,FALSE),"") ->  | DG10: =IF(F10>0, (HuBil!X10*VLOOKUP($C10,FA_Stamm,65,FALSE))+(HuBil!AA10*VLOOKUP($C10,FA_Stamm,66,FALSE)),"") ->  | DI10: 0 | DJ10: 0 | DK10: =IF(F10>0,CY10/DI10*100,"") ->  | DL10: =IF('1_Eingabe_Humus'!J17="HF",F10,0) -> 0
A11: 5 | B11: ='1_Eingabe_Humus'!B18 -> 1 | C11: =IF(D11="","",INDEX(FA_Stamm!A:A,MATCH(D11,FA_Stamm!B:B,0))) ->  | D11: =IF('1_Eingabe_Humus'!C18="","",'1_Eingabe_Humus'!C18) ->  | E11: ='1_Eingabe_Humus'!J18 ->  | F11: ='1_Eingabe_Humus'!F18 -> 0 | G11: =HuBil!W11 ->  | H11: =HuBil!Y11 ->  | I11: =IF(D11="","",HuBil!W11-HuBil!X11) ->  | J11: =IF(D11="","",HuBil!Y11-HuBil!Z11-HuBil!AA11) ->  | K11: =HuBil!Z11 -> 0 | L11: =HuBil!AB11 ->  | M11: =HuBil!AC11 ->  | N11: =HuBil!AD11 ->  | O11: 0 | Q11: =IF(F11>0,HuBil!AF11,"") ->  | R11: =HuBil!AG11 ->  | S11: 0 | T11: =HuBil!AI11 -> 0 | U11: =Düngung!G11 -> 0 | V11: =Düngung!CP11 -> 0 | W11: =Düngung!DB11 -> 0 | X11: =Düngung!DN11 -> 0 | Y11: 0 | Z11: 0 | AA11: =HuBil!AP11 ->  | AB11: =IF(D11="","",HuBil!V11*HuBil!Z11) ->  | AC11: =IF(D11="","",(HuBil!V11*HuBil!AA11)+(HuBil!U11*HuBil!X11)) ->  | AE11: =IF(D11="","",T11+U11+Y11+Z11+AA11+AD11) ->  | AF11: =HuBil!BH11*55 -> 0 | AG11: 0 | AH11: 0 | AJ11: =IF(F11>0,VLOOKUP(C11,FA_Stamm!A:Y,IF($D$1=2,25,24),FALSE)*G11,"") ->  | AK11: =IF(F11>0,VLOOKUP(C11,FA_Stamm!A:AA,IF($D$1=2,27,26),FALSE)*H11,"") ->  | AN11: ='1_Eingabe_Humus'!F54*IF('1_Eingabe_Humus'!$J$36=2,0.4364,1) -> 0 | AO11: =IF(F11>0,Düngung!CR11*IF('1_Eingabe_Humus'!$J$36=2,0.4364,1),"") ->  | AP11: =IF(F11>0,Düngung!DD11*IF('1_Eingabe_Humus'!$J$36=2,0.4364,1),"") ->  | AQ11: =IF(F11>0,Düngung!DP11*IF('1_Eingabe_Humus'!$J$36=2,0.4364,1),"") ->  | AT11: =IF(F11>0,HuBil!Z11*VLOOKUP($C11,FA_Stamm,IF($D$1=2,27,26),FALSE),"") ->  | AU11: =IF(F11>0, (HuBil!X11*VLOOKUP($C11,FA_Stamm,IF($D$1=2,25,24),FALSE))+(HuBil!AA11*VLOOKUP($C11,FA_Stamm,IF($D$1=2,27,26),FALSE)),"") ->  | AZ11: =IF(F11>0,VLOOKUP(C11,FA_Stamm!A:AE,IF($D$1=2,29,28),FALSE)*G11,"") ->  | BA11: =IF(F11>0,VLOOKUP(C11,FA_Stamm!A:AE,IF($D$1=2,31,30),FALSE)*H11,"") ->  | BD11: ='1_Eingabe_Humus'!G54*IF('1_Eingabe_Humus'!$J$36=2,0.83,1) -> 0 | BE11: =Düngung!CS11*IF('1_Eingabe_Humus'!$J$36=2,0.83,1) -> 0 | BF11: =Düngung!DE11*IF('1_Eingabe_Humus'!$J$36=2,0.83,1) -> 0 | BG11: =Düngung!DQ11*IF('1_Eingabe_Humus'!$J$36=2,0.83,1) -> 0 | BJ11: =IF(F11>0,HuBil!Z11*VLOOKUP($C11,FA_Stamm,IF($D$1=2,31,30),FALSE),"") ->  | BK11: =IF(F11>0, (HuBil!X11*VLOOKUP($C11,FA_Stamm,IF($D$1=2,29,28),FALSE))+(HuBil!AA11*VLOOKUP($C11,FA_Stamm,IF($D$1=2,31,30),FALSE)),"") ->  | BM11: 0 | BN11: 0 | BT11: ='1_Eingabe_Humus'!#REF! ->  | BU11: =Düngung!CT11 -> 0 | BV11: =Düngung!DF11 -> 0 | BW11: =Düngung!DR11 -> 0 | BZ11: =IF(F11>0,HuBil!Z11*VLOOKUP($C11,FA_Stamm,62,FALSE),"") ->  | CA11: =IF(F11>0, (HuBil!X11*VLOOKUP($C11,FA_Stamm,61,FALSE))+(HuBil!AA11*VLOOKUP($C11,FA_Stamm,62,FALSE)),"") ->  | CC11: 0 | CD11: 0 | CJ11: 0 | CK11: =Düngung!CU11 -> 0 | CL11: =Düngung!DG11 -> 0 | CM11: =Düngung!DS11 -> 0 | CP11: =IF(F11>0,HuBil!Z11*VLOOKUP($C11,FA_Stamm,64,FALSE),"") ->  | CQ11: =IF(F11>0, (HuBil!X11*VLOOKUP($C11,FA_Stamm,63,FALSE))+(HuBil!AA11*VLOOKUP($C11,FA_Stamm,64,FALSE)),"") ->  | CS11: 0 | CT11: 0 | CZ11: =IF(ISNA(IF(INDEX('3_Mineraldüngung_Pflanzenschutz'!$I$6:$I$27,MATCH(D11,'3_Mineraldüngung_Pflanzenschutz'!$A$6:$A$27,0))="",0)),0, IF(INDEX('3_Mineraldüngung_Pflanzenschutz'!$I$6:$I$27,MATCH(D11,'3_Mineraldüngung_Pflanzenschutz'!$A$6:$A$27,0))="",0, (LARGE(INDEX('3_Mineraldüngung_Pflanzenschutz'!$I$6:$I$27,MATCH(D11,'3_Mineraldüngung_Pflanzenschutz'!$A$6:$A$27,0)),1)*'3_Mineraldüngung_Pflanzenschutz'!$J$5*0.588235294*IF('3_Mineraldüngung_Pflanzenschutz'!$D$5="in ha",VLOOKUP(D11,'3_Mineraldüngung_Pflanzenschutz'!$A$6:$D$27,4,FALSE)/F11,VLOOKUP(D11,'3_Mineraldüngung_Pflanzenschutz'!$A$6:$D$27,4,FALSE)/100)))) -> 0 | DA11: =Düngung!CV11 -> 0 | DB11: =Düngung!DH11 -> 0 | DC11: =Düngung!DT11 -> 0 | DF11: =IF(F11>0,HuBil!Z11*VLOOKUP($C11,FA_Stamm,66,FALSE),"") ->  | DG11: =IF(F11>0, (HuBil!X11*VLOOKUP($C11,FA_Stamm,65,FALSE))+(HuBil!AA11*VLOOKUP($C11,FA_Stamm,66,FALSE)),"") ->  | DI11: 0 | DJ11: 0 | DL11: =IF('1_Eingabe_Humus'!J18="HF",F11,0) -> 0
A12: 6 | B12: ='1_Eingabe_Humus'!B19 -> 1 | C12: =IF(D12="","",INDEX(FA_Stamm!A:A,MATCH(D12,FA_Stamm!B:B,0))) ->  | D12: =IF('1_Eingabe_Humus'!C19="","",'1_Eingabe_Humus'!C19) ->  | E12: ='1_Eingabe_Humus'!J19 ->  | F12: ='1_Eingabe_Humus'!F19 -> 0 | G12: =HuBil!W12 ->  | H12: =HuBil!Y12 ->  | I12: =IF(D12="","",HuBil!W12-HuBil!X12) ->  | J12: =IF(D12="","",HuBil!Y12-HuBil!Z12-HuBil!AA12) ->  | K12: =HuBil!Z12 -> 0 | L12: =HuBil!AB12 ->  | M12: =HuBil!AC12 ->  | N12: =HuBil!AD12 ->  | O12: 0 | Q12: =IF(F12>0,HuBil!AF12,"") ->  | R12: =HuBil!AG12 ->  | S12: 0 | T12: =HuBil!AI12 -> 0 | U12: =Düngung!G12 -> 0 | V12: =Düngung!CP12 -> 0 | W12: =Düngung!DB12 -> 0 | X12: =Düngung!DN12 -> 0 | Y12: 0 | Z12: 0 | AA12: =HuBil!AP12 ->  | AB12: =IF(D12="","",HuBil!V12*HuBil!Z12) ->  | AC12: =IF(D12="","",(HuBil!V12*HuBil!AA12)+(HuBil!U12*HuBil!X12)) ->  | AF12: =HuBil!BH12*55 -> 0 | AG12: 0 | AH12: 0 | AJ12: =IF(F12>0,VLOOKUP(C12,FA_Stamm!A:Y,IF($D$1=2,25,24),FALSE)*G12,"") ->  | AK12: =IF(F12>0,VLOOKUP(C12,FA_Stamm!A:AA,IF($D$1=2,27,26),FALSE)*H12,"") ->  | AN12: ='1_Eingabe_Humus'!F55*IF('1_Eingabe_Humus'!$J$36=2,0.4364,1) -> 0 | AO12: =IF(F12>0,Düngung!CR12*IF('1_Eingabe_Humus'!$J$36=2,0.4364,1),"") ->  | AP12: =IF(F12>0,Düngung!DD12*IF('1_Eingabe_Humus'!$J$36=2,0.4364,1),"") ->  | AQ12: =IF(F12>0,Düngung!DP12*IF('1_Eingabe_Humus'!$J$36=2,0.4364,1),"") ->  | AT12: =IF(F12>0,HuBil!Z12*VLOOKUP($C12,FA_Stamm,IF($D$1=2,27,26),FALSE),"") ->  | AU12: =IF(F12>0, (HuBil!X12*VLOOKUP($C12,FA_Stamm,IF($D$1=2,25,24),FALSE))+(HuBil!AA12*VLOOKUP($C12,FA_Stamm,IF($D$1=2,27,26),FALSE)),"") ->  | AZ12: =IF(F12>0,VLOOKUP(C12,FA_Stamm!A:AE,IF($D$1=2,29,28),FALSE)*G12,"") ->  | BA12: =IF(F12>0,VLOOKUP(C12,FA_Stamm!A:AE,IF($D$1=2,31,30),FALSE)*H12,"") ->  | BD12: ='1_Eingabe_Humus'!G55*IF('1_Eingabe_Humus'!$J$36=2,0.83,1) -> 0 | BE12: =Düngung!CS12*IF('1_Eingabe_Humus'!$J$36=2,0.83,1) -> 0 | BF12: =Düngung!DE12*IF('1_Eingabe_Humus'!$J$36=2,0.83,1) -> 0 | BG12: =Düngung!DQ12*IF('1_Eingabe_Humus'!$J$36=2,0.83,1) -> 0 | BJ12: =IF(F12>0,HuBil!Z12*VLOOKUP($C12,FA_Stamm,IF($D$1=2,31,30),FALSE),"") ->  | BK12: =IF(F12>0, (HuBil!X12*VLOOKUP($C12,FA_Stamm,IF($D$1=2,29,28),FALSE))+(HuBil!AA12*VLOOKUP($C12,FA_Stamm,IF($D$1=2,31,30),FALSE)),"") ->  | BM12: 0 | BN12: 0 | BT12: ='1_Eingabe_Humus'!#REF! ->  | BU12: =Düngung!CT12 -> 0 | BV12: =Düngung!DF12 -> 0 | BW12: =Düngung!DR12 -> 0 | BZ12: =IF(F12>0,HuBil!Z12*VLOOKUP($C12,FA_Stamm,62,FALSE),"") ->  | CA12: =IF(F12>0, (HuBil!X12*VLOOKUP($C12,FA_Stamm,61,FALSE))+(HuBil!AA12*VLOOKUP($C12,FA_Stamm,62,FALSE)),"") ->  | CC12: 0 | CD12: 0 | CJ12: 0 | CK12: =Düngung!CU12 -> 0 | CL12: =Düngung!DG12 -> 0 | CM12: =Düngung!DS12 -> 0 | CP12: =IF(F12>0,HuBil!Z12*VLOOKUP($C12,FA_Stamm,64,FALSE),"") ->  | CQ12: =IF(F12>0, (HuBil!X12*VLOOKUP($C12,FA_Stamm,63,FALSE))+(HuBil!AA12*VLOOKUP($C12,FA_Stamm,64,FALSE)),"") ->  | CS12: 0 | CT12: 0 | CZ12: =IF(ISNA(IF(INDEX('3_Mineraldüngung_Pflanzenschutz'!$I$6:$I$27,MATCH(D12,'3_Mineraldüngung_Pflanzenschutz'!$A$6:$A$27,0))="",0)),0, IF(INDEX('3_Mineraldüngung_Pflanzenschutz'!$I$6:$I$27,MATCH(D12,'3_Mineraldüngung_Pflanzenschutz'!$A$6:$A$27,0))="",0, (LARGE(INDEX('3_Mineraldüngung_Pflanzenschutz'!$I$6:$I$27,MATCH(D12,'3_Mineraldüngung_Pflanzenschutz'!$A$6:$A$27,0)),1)*'3_Mineraldüngung_Pflanzenschutz'!$J$5*0.588235294*IF('3_Mineraldüngung_Pflanzenschutz'!$D$5="in ha",VLOOKUP(D12,'3_Mineraldüngung_Pflanzenschutz'!$A$6:$D$27,4,FALSE)/F12,VLOOKUP(D12,'3_Mineraldüngung_Pflanzenschutz'!$A$6:$D$27,4,FALSE)/100)))) -> 0 | DA12: =Düngung!CV12 -> 0 | DB12: =Düngung!DH12 -> 0 | DC12: =Düngung!DT12 -> 0 | DF12: =IF(F12>0,HuBil!Z12*VLOOKUP($C12,FA_Stamm,66,FALSE),"") ->  | DG12: =IF(F12>0, (HuBil!X12*VLOOKUP($C12,FA_Stamm,65,FALSE))+(HuBil!AA12*VLOOKUP($C12,FA_Stamm,66,FALSE)),"") ->  | DI12: 0 | DJ12: 0 | DL12: =IF('1_Eingabe_Humus'!J19="HF",F12,0) -> 0
A13: 7 | B13: ='1_Eingabe_Humus'!B20 -> 1 | C13: =IF(D13="","",INDEX(FA_Stamm!A:A,MATCH(D13,FA_Stamm!B:B,0))) ->  | D13: =IF('1_Eingabe_Humus'!C20="","",'1_Eingabe_Humus'!C20) ->  | E13: ='1_Eingabe_Humus'!J20 ->  | F13: ='1_Eingabe_Humus'!F20 -> 0 | G13: =HuBil!W13 ->  | H13: =HuBil!Y13 ->  | I13: =IF(D13="","",HuBil!W13-HuBil!X13) ->  | J13: =IF(D13="","",HuBil!Y13-HuBil!Z13-HuBil!AA13) ->  | K13: =HuBil!Z13 -> 0 | L13: =HuBil!AB13 ->  | M13: =HuBil!AC13 ->  | N13: =HuBil!AD13 ->  | O13: =SUM(M13:N13) -> 0 | Q13: =IF(F13>0,HuBil!AF13,"") ->  | R13: =HuBil!AG13 ->  | S13: 0 | T13: =HuBil!AI13 -> 0 | U13: =Düngung!G13 -> 0 | V13: =Düngung!CP13 -> 0 | W13: =Düngung!DB13 -> 0 | X13: =Düngung!DN13 -> 0 | Y13: 0 | Z13: 0 | AA13: =HuBil!AP13 ->  | AB13: =IF(D13="","",HuBil!V13*HuBil!Z13) ->  | AC13: =IF(D13="","",(HuBil!V13*HuBil!AA13)+(HuBil!U13*HuBil!X13)) ->  | AF13: =HuBil!BH13*55 -> 0 | AG13: 0 | AH13: 0 | AJ13: =IF(F13>0,VLOOKUP(C13,FA_Stamm!A:Y,IF($D$1=2,25,24),FALSE)*G13,"") ->  | AK13: =IF(F13>0,VLOOKUP(C13,FA_Stamm!A:AA,IF($D$1=2,27,26),FALSE)*H13,"") ->  | AN13: ='1_Eingabe_Humus'!F56*IF('1_Eingabe_Humus'!$J$36=2,0.4364,1) -> 0 | AO13: =IF(F13>0,Düngung!CR13*IF('1_Eingabe_Humus'!$J$36=2,0.4364,1),"") ->  | AP13: =IF(F13>0,Düngung!DD13*IF('1_Eingabe_Humus'!$J$36=2,0.4364,1),"") ->  | AQ13: =IF(F13>0,Düngung!DP13*IF('1_Eingabe_Humus'!$J$36=2,0.4364,1),"") ->  | AT13: =IF(F13>0,HuBil!Z13*VLOOKUP($C13,FA_Stamm,IF($D$1=2,27,26),FALSE),"") ->  | AU13: =IF(F13>0, (HuBil!X13*VLOOKUP($C13,FA_Stamm,IF($D$1=2,25,24),FALSE))+(HuBil!AA13*VLOOKUP($C13,FA_Stamm,IF($D$1=2,27,26),FALSE)),"") ->  | AZ13: =IF(F13>0,VLOOKUP(C13,FA_Stamm!A:AE,IF($D$1=2,29,28),FALSE)*G13,"") ->  | BA13: =IF(F13>0,VLOOKUP(C13,FA_Stamm!A:AE,IF($D$1=2,31,30),FALSE)*H13,"") ->  | BD13: ='1_Eingabe_Humus'!G56*IF('1_Eingabe_Humus'!$J$36=2,0.83,1) -> 0 | BE13: =Düngung!CS13*IF('1_Eingabe_Humus'!$J$36=2,0.83,1) -> 0 | BF13: =Düngung!DE13*IF('1_Eingabe_Humus'!$J$36=2,0.83,1) -> 0 | BG13: =Düngung!DQ13*IF('1_Eingabe_Humus'!$J$36=2,0.83,1) -> 0 | BJ13: =IF(F13>0,HuBil!Z13*VLOOKUP($C13,FA_Stamm,IF($D$1=2,31,30),FALSE),"") ->  | BK13: =IF(F13>0, (HuBil!X13*VLOOKUP($C13,FA_Stamm,IF($D$1=2,29,28),FALSE))+(HuBil!AA13*VLOOKUP($C13,FA_Stamm,IF($D$1=2,31,30),FALSE)),"") ->  | BM13: 0 | BN13: 0 | BT13: ='1_Eingabe_Humus'!#REF! ->  | BU13: =Düngung!CT13 -> 0 | BV13: =Düngung!DF13 -> 0 | BW13: =Düngung!DR13 -> 0 | BZ13: =IF(F13>0,HuBil!Z13*VLOOKUP($C13,FA_Stamm,62,FALSE),"") ->  | CA13: =IF(F13>0, (HuBil!X13*VLOOKUP($C13,FA_Stamm,61,FALSE))+(HuBil!AA13*VLOOKUP($C13,FA_Stamm,62,FALSE)),"") ->  | CC13: 0 | CD13: 0 | CJ13: 0 | CK13: =Düngung!CU13 -> 0 | CL13: =Düngung!DG13 -> 0 | CM13: =Düngung!DS13 -> 0 | CP13: =IF(F13>0,HuBil!Z13*VLOOKUP($C13,FA_Stamm,64,FALSE),"") ->  | CQ13: =IF(F13>0, (HuBil!X13*VLOOKUP($C13,FA_Stamm,63,FALSE))+(HuBil!AA13*VLOOKUP($C13,FA_Stamm,64,FALSE)),"") ->  | CS13: 0 | CT13: 0 | CZ13: =IF(ISNA(IF(INDEX('3_Mineraldüngung_Pflanzenschutz'!$I$6:$I$27,MATCH(D13,'3_Mineraldüngung_Pflanzenschutz'!$A$6:$A$27,0))="",0)),0, IF(INDEX('3_Mineraldüngung_Pflanzenschutz'!$I$6:$I$27,MATCH(D13,'3_Mineraldüngung_Pflanzenschutz'!$A$6:$A$27,0))="",0, (LARGE(INDEX('3_Mineraldüngung_Pflanzenschutz'!$I$6:$I$27,MATCH(D13,'3_Mineraldüngung_Pflanzenschutz'!$A$6:$A$27,0)),1)*'3_Mineraldüngung_Pflanzenschutz'!$J$5*0.588235294*IF('3_Mineraldüngung_Pflanzenschutz'!$D$5="in ha",VLOOKUP(D13,'3_Mineraldüngung_Pflanzenschutz'!$A$6:$D$27,4,FALSE)/F13,VLOOKUP(D13,'3_Mineraldüngung_Pflanzenschutz'!$A$6:$D$27,4,FALSE)/100)))) -> 0 | DA13: =Düngung!CV13 -> 0 | DB13: =Düngung!DH13 -> 0 | DC13: =Düngung!DT13 -> 0 | DF13: =IF(F13>0,HuBil!Z13*VLOOKUP($C13,FA_Stamm,66,FALSE),"") ->  | DG13: =IF(F13>0, (HuBil!X13*VLOOKUP($C13,FA_Stamm,65,FALSE))+(HuBil!AA13*VLOOKUP($C13,FA_Stamm,66,FALSE)),"") ->  | DI13: 0 | DJ13: 0 | DL13: =IF('1_Eingabe_Humus'!J20="HF",F13,0) -> 0
A14: 8 | B14: ='1_Eingabe_Humus'!B21 -> 1 | C14: =IF(D14="","",INDEX(FA_Stamm!A:A,MATCH(D14,FA_Stamm!B:B,0))) ->  | D14: =IF('1_Eingabe_Humus'!C21="","",'1_Eingabe_Humus'!C21) ->  | E14: ='1_Eingabe_Humus'!J21 ->  | F14: ='1_Eingabe_Humus'!F21 -> 0 | G14: =HuBil!W14 ->  | H14: =HuBil!Y14 ->  | I14: =IF(D14="","",HuBil!W14-HuBil!X14) ->  | J14: =IF(D14="","",HuBil!Y14-HuBil!Z14-HuBil!AA14) ->  | K14: =HuBil!Z14 -> 0 | L14: =HuBil!AB14 ->  | M14: =HuBil!AC14 ->  | N14: =HuBil!AD14 ->  | O14: 0 | Q14: =IF(F14>0,HuBil!AF14,"") ->  | R14: =HuBil!AG14 ->  | S14: 0 | T14: =HuBil!AI14 -> 0 | U14: =Düngung!G14 -> 0 | V14: =Düngung!CP14 -> 0 | W14: =Düngung!DB14 -> 0 | X14: =Düngung!DN14 -> 0 | Y14: 0 | Z14: 0 | AA14: =HuBil!AP14 ->  | AB14: =IF(D14="","",HuBil!V14*HuBil!Z14) ->  | AC14: =IF(D14="","",(HuBil!V14*HuBil!AA14)+(HuBil!U14*HuBil!X14)) ->  | AF14: =HuBil!BH14*55 -> 0 | AG14: 0 | AH14: 0 | AJ14: =IF(F14>0,VLOOKUP(C14,FA_Stamm!A:Y,IF($D$1=2,25,24),FALSE)*G14,"") ->  | AK14: =IF(F14>0,VLOOKUP(C14,FA_Stamm!A:AA,IF($D$1=2,27,26),FALSE)*H14,"") ->  | AN14: ='1_Eingabe_Humus'!F57*IF('1_Eingabe_Humus'!$J$36=2,0.4364,1) -> 0 | AO14: =IF(F14>0,Düngung!CR14*IF('1_Eingabe_Humus'!$J$36=2,0.4364,1),"") ->  | AP14: =IF(F14>0,Düngung!DD14*IF('1_Eingabe_Humus'!$J$36=2,0.4364,1),"") ->  | AQ14: =IF(F14>0,Düngung!DP14*IF('1_Eingabe_Humus'!$J$36=2,0.4364,1),"") ->  | AT14: =IF(F14>0,HuBil!Z14*VLOOKUP($C14,FA_Stamm,IF($D$1=2,27,26),FALSE),"") ->  | AU14: =IF(F14>0, (HuBil!X14*VLOOKUP($C14,FA_Stamm,IF($D$1=2,25,24),FALSE))+(HuBil!AA14*VLOOKUP($C14,FA_Stamm,IF($D$1=2,27,26),FALSE)),"") ->  | AZ14: =IF(F14>0,VLOOKUP(C14,FA_Stamm!A:AE,IF($D$1=2,29,28),FALSE)*G14,"") ->  | BA14: =IF(F14>0,VLOOKUP(C14,FA_Stamm!A:AE,IF($D$1=2,31,30),FALSE)*H14,"") ->  | BD14: ='1_Eingabe_Humus'!G57*IF('1_Eingabe_Humus'!$J$36=2,0.83,1) -> 0 | BE14: =Düngung!CS14*IF('1_Eingabe_Humus'!$J$36=2,0.83,1) -> 0 | BF14: =Düngung!DE14*IF('1_Eingabe_Humus'!$J$36=2,0.83,1) -> 0 | BG14: =Düngung!DQ14*IF('1_Eingabe_Humus'!$J$36=2,0.83,1) -> 0 | BJ14: =IF(F14>0,HuBil!Z14*VLOOKUP($C14,FA_Stamm,IF($D$1=2,31,30),FALSE),"") ->  | BK14: =IF(F14>0, (HuBil!X14*VLOOKUP($C14,FA_Stamm,IF($D$1=2,29,28),FALSE))+(HuBil!AA14*VLOOKUP($C14,FA_Stamm,IF($D$1=2,31,30),FALSE)),"") ->  | BM14: 0 | BN14: 0 | BT14: ='1_Eingabe_Humus'!#REF! ->  | BU14: =Düngung!CT14 -> 0 | BV14: =Düngung!DF14 -> 0 | BW14: =Düngung!DR14 -> 0 | BZ14: =IF(F14>0,HuBil!Z14*VLOOKUP($C14,FA_Stamm,62,FALSE),"") ->  | CA14: =IF(F14>0, (HuBil!X14*VLOOKUP($C14,FA_Stamm,61,FALSE))+(HuBil!AA14*VLOOKUP($C14,FA_Stamm,62,FALSE)),"") ->  | CC14: 0 | CD14: 0 | CJ14: 0 | CK14: =Düngung!CU14 -> 0 | CL14: =Düngung!DG14 -> 0 | CM14: =Düngung!DS14 -> 0 | CP14: =IF(F14>0,HuBil!Z14*VLOOKUP($C14,FA_Stamm,64,FALSE),"") ->  | CQ14: =IF(F14>0, (HuBil!X14*VLOOKUP($C14,FA_Stamm,63,FALSE))+(HuBil!AA14*VLOOKUP($C14,FA_Stamm,64,FALSE)),"") ->  | CS14: 0 | CT14: 0 | CZ14: =IF(ISNA(IF(INDEX('3_Mineraldüngung_Pflanzenschutz'!$I$6:$I$27,MATCH(D14,'3_Mineraldüngung_Pflanzenschutz'!$A$6:$A$27,0))="",0)),0, IF(INDEX('3_Mineraldüngung_Pflanzenschutz'!$I$6:$I$27,MATCH(D14,'3_Mineraldüngung_Pflanzenschutz'!$A$6:$A$27,0))="",0, (LARGE(INDEX('3_Mineraldüngung_Pflanzenschutz'!$I$6:$I$27,MATCH(D14,'3_Mineraldüngung_Pflanzenschutz'!$A$6:$A$27,0)),1)*'3_Mineraldüngung_Pflanzenschutz'!$J$5*0.588235294*IF('3_Mineraldüngung_Pflanzenschutz'!$D$5="in ha",VLOOKUP(D14,'3_Mineraldüngung_Pflanzenschutz'!$A$6:$D$27,4,FALSE)/F14,VLOOKUP(D14,'3_Mineraldüngung_Pflanzenschutz'!$A$6:$D$27,4,FALSE)/100)))) -> 0 | DA14: =Düngung!CV14 -> 0 | DB14: =Düngung!DH14 -> 0 | DC14: =Düngung!DT14 -> 0 | DF14: =IF(F14>0,HuBil!Z14*VLOOKUP($C14,FA_Stamm,66,FALSE),"") ->  | DG14: =IF(F14>0, (HuBil!X14*VLOOKUP($C14,FA_Stamm,65,FALSE))+(HuBil!AA14*VLOOKUP($C14,FA_Stamm,66,FALSE)),"") ->  | DI14: 0 | DJ14: 0 | DL14: =IF('1_Eingabe_Humus'!J21="HF",F14,0) -> 0
A15: 9 | B15: ='1_Eingabe_Humus'!B22 -> 1 | C15: =IF(D15="","",INDEX(FA_Stamm!A:A,MATCH(D15,FA_Stamm!B:B,0))) ->  | D15: =IF('1_Eingabe_Humus'!C22="","",'1_Eingabe_Humus'!C22) ->  | E15: ='1_Eingabe_Humus'!J22 ->  | F15: ='1_Eingabe_Humus'!F22 -> 0 | G15: =HuBil!W15 ->  | H15: =HuBil!Y15 ->  | I15: =IF(D15="","",HuBil!W15-HuBil!X15) ->  | J15: =IF(D15="","",HuBil!Y15-HuBil!Z15-HuBil!AA15) ->  | K15: =HuBil!Z15 -> 0 | L15: =HuBil!AB15 ->  | M15: =HuBil!AC15 ->  | N15: =HuBil!AD15 ->  | O15: 0 | Q15: =IF(F15>0,HuBil!AF15,"") ->  | R15: =HuBil!AG15 ->  | S15: 0 | T15: =HuBil!AI15 -> 0 | U15: =Düngung!G15 -> 0 | V15: =Düngung!CP15 -> 0 | W15: =Düngung!DB15 -> 0 | X15: =Düngung!DN15 -> 0 | Y15: 0 | Z15: 0 | AA15: =HuBil!AP15 ->  | AB15: =IF(D15="","",HuBil!V15*HuBil!Z15) ->  | AC15: =IF(D15="","",(HuBil!V15*HuBil!AA15)+(HuBil!U15*HuBil!X15)) ->  | AF15: =HuBil!BH15*55 -> 0 | AG15: 0 | AH15: 0 | AJ15: =IF(F15>0,VLOOKUP(C15,FA_Stamm!A:Y,IF($D$1=2,25,24),FALSE)*G15,"") ->  | AK15: =IF(F15>0,VLOOKUP(C15,FA_Stamm!A:AA,IF($D$1=2,27,26),FALSE)*H15,"") ->  | AN15: ='1_Eingabe_Humus'!F58*IF('1_Eingabe_Humus'!$J$36=2,0.4364,1) -> 0 | AO15: =IF(F15>0,Düngung!CR15*IF('1_Eingabe_Humus'!$J$36=2,0.4364,1),"") ->  | AP15: =IF(F15>0,Düngung!DD15*IF('1_Eingabe_Humus'!$J$36=2,0.4364,1),"") ->  | AQ15: =IF(F15>0,Düngung!DP15*IF('1_Eingabe_Humus'!$J$36=2,0.4364,1),"") ->  | AT15: =IF(F15>0,HuBil!Z15*VLOOKUP($C15,FA_Stamm,IF($D$1=2,27,26),FALSE),"") ->  | AU15: =IF(F15>0, (HuBil!X15*VLOOKUP($C15,FA_Stamm,IF($D$1=2,25,24),FALSE))+(HuBil!AA15*VLOOKUP($C15,FA_Stamm,IF($D$1=2,27,26),FALSE)),"") ->  | AZ15: =IF(F15>0,VLOOKUP(C15,FA_Stamm!A:AE,IF($D$1=2,29,28),FALSE)*G15,"") ->  | BA15: =IF(F15>0,VLOOKUP(C15,FA_Stamm!A:AE,IF($D$1=2,31,30),FALSE)*H15,"") ->  | BD15: ='1_Eingabe_Humus'!G58*IF('1_Eingabe_Humus'!$J$36=2,0.83,1) -> 0 | BE15: =Düngung!CS15*IF('1_Eingabe_Humus'!$J$36=2,0.83,1) -> 0 | BF15: =Düngung!DE15*IF('1_Eingabe_Humus'!$J$36=2,0.83,1) -> 0 | BG15: =Düngung!DQ15*IF('1_Eingabe_Humus'!$J$36=2,0.83,1) -> 0 | BJ15: =IF(F15>0,HuBil!Z15*VLOOKUP($C15,FA_Stamm,IF($D$1=2,31,30),FALSE),"") ->  | BK15: =IF(F15>0, (HuBil!X15*VLOOKUP($C15,FA_Stamm,IF($D$1=2,29,28),FALSE))+(HuBil!AA15*VLOOKUP($C15,FA_Stamm,IF($D$1=2,31,30),FALSE)),"") ->  | BM15: 0 | BN15: 0 | BT15: ='1_Eingabe_Humus'!#REF! ->  | BU15: =Düngung!CT15 -> 0 | BV15: =Düngung!DF15 -> 0 | BW15: =Düngung!DR15 -> 0 | BZ15: =IF(F15>0,HuBil!Z15*VLOOKUP($C15,FA_Stamm,62,FALSE),"") ->  | CA15: =IF(F15>0, (HuBil!X15*VLOOKUP($C15,FA_Stamm,61,FALSE))+(HuBil!AA15*VLOOKUP($C15,FA_Stamm,62,FALSE)),"") ->  | CC15: 0 | CD15: 0 | CJ15: 0 | CK15: =Düngung!CU15 -> 0 | CL15: =Düngung!DG15 -> 0 | CM15: =Düngung!DS15 -> 0 | CP15: =IF(F15>0,HuBil!Z15*VLOOKUP($C15,FA_Stamm,64,FALSE),"") ->  | CQ15: =IF(F15>0, (HuBil!X15*VLOOKUP($C15,FA_Stamm,63,FALSE))+(HuBil!AA15*VLOOKUP($C15,FA_Stamm,64,FALSE)),"") ->  | CS15: 0 | CT15: 0 | CZ15: =IF(ISNA(IF(INDEX('3_Mineraldüngung_Pflanzenschutz'!$I$6:$I$27,MATCH(D15,'3_Mineraldüngung_Pflanzenschutz'!$A$6:$A$27,0))="",0)),0, IF(INDEX('3_Mineraldüngung_Pflanzenschutz'!$I$6:$I$27,MATCH(D15,'3_Mineraldüngung_Pflanzenschutz'!$A$6:$A$27,0))="",0, (LARGE(INDEX('3_Mineraldüngung_Pflanzenschutz'!$I$6:$I$27,MATCH(D15,'3_Mineraldüngung_Pflanzenschutz'!$A$6:$A$27,0)),1)*'3_Mineraldüngung_Pflanzenschutz'!$J$5*0.588235294*IF('3_Mineraldüngung_Pflanzenschutz'!$D$5="in ha",VLOOKUP(D15,'3_Mineraldüngung_Pflanzenschutz'!$A$6:$D$27,4,FALSE)/F15,VLOOKUP(D15,'3_Mineraldüngung_Pflanzenschutz'!$A$6:$D$27,4,FALSE)/100)))) -> 0 | DA15: =Düngung!CV15 -> 0 | DB15: =Düngung!DH15 -> 0 | DC15: =Düngung!DT15 -> 0 | DF15: =IF(F15>0,HuBil!Z15*VLOOKUP($C15,FA_Stamm,66,FALSE),"") ->  | DG15: =IF(F15>0, (HuBil!X15*VLOOKUP($C15,FA_Stamm,65,FALSE))+(HuBil!AA15*VLOOKUP($C15,FA_Stamm,66,FALSE)),"") ->  | DI15: 0 | DJ15: 0 | DL15: =IF('1_Eingabe_Humus'!J22="HF",F15,0) -> 0
A16: 10 | B16: ='1_Eingabe_Humus'!B23 -> 1 | C16: =IF(D16="","",INDEX(FA_Stamm!A:A,MATCH(D16,FA_Stamm!B:B,0))) ->  | D16: =IF('1_Eingabe_Humus'!C23="","",'1_Eingabe_Humus'!C23) ->  | E16: ='1_Eingabe_Humus'!J23 ->  | F16: ='1_Eingabe_Humus'!F23 -> 0 | G16: =HuBil!W16 ->  | H16: =HuBil!Y16 ->  | I16: =IF(D16="","",HuBil!W16-HuBil!X16) ->  | J16: =IF(D16="","",HuBil!Y16-HuBil!Z16-HuBil!AA16) ->  | K16: =HuBil!Z16 -> 0 | L16: =HuBil!AB16 ->  | M16: =HuBil!AC16 ->  | N16: =HuBil!AD16 ->  | O16: 0 | Q16: =IF(F16>0,HuBil!AF16,"") ->  | R16: =HuBil!AG16 ->  | S16: 0 | T16: =HuBil!AI16 -> 0 | U16: =Düngung!G16 -> 0 | V16: =Düngung!CP16 -> 0 | W16: =Düngung!DB16 -> 0 | X16: =Düngung!DN16 -> 0 | Y16: 0 | Z16: 0 | AA16: =HuBil!AP16 ->  | AB16: =IF(D16="","",HuBil!V16*HuBil!Z16) ->  | AC16: =IF(D16="","",(HuBil!V16*HuBil!AA16)+(HuBil!U16*HuBil!X16)) ->  | AF16: =HuBil!BH16*55 -> 0 | AG16: 0 | AH16: 0 | AJ16: =IF(F16>0,VLOOKUP(C16,FA_Stamm!A:Y,IF($D$1=2,25,24),FALSE)*G16,"") ->  | AK16: =IF(F16>0,VLOOKUP(C16,FA_Stamm!A:AA,IF($D$1=2,27,26),FALSE)*H16,"") ->  | AN16: ='1_Eingabe_Humus'!F59*IF('1_Eingabe_Humus'!$J$36=2,0.4364,1) -> 0 | AO16: =IF(F16>0,Düngung!CR16*IF('1_Eingabe_Humus'!$J$36=2,0.4364,1),"") ->  | AP16: =IF(F16>0,Düngung!DD16*IF('1_Eingabe_Humus'!$J$36=2,0.4364,1),"") ->  | AQ16: =IF(F16>0,Düngung!DP16*IF('1_Eingabe_Humus'!$J$36=2,0.4364,1),"") ->  | AT16: =IF(F16>0,HuBil!Z16*VLOOKUP($C16,FA_Stamm,IF($D$1=2,27,26),FALSE),"") ->  | AU16: =IF(F16>0, (HuBil!X16*VLOOKUP($C16,FA_Stamm,IF($D$1=2,25,24),FALSE))+(HuBil!AA16*VLOOKUP($C16,FA_Stamm,IF($D$1=2,27,26),FALSE)),"") ->  | AZ16: =IF(F16>0,VLOOKUP(C16,FA_Stamm!A:AE,IF($D$1=2,29,28),FALSE)*G16,"") ->  | BA16: =IF(F16>0,VLOOKUP(C16,FA_Stamm!A:AE,IF($D$1=2,31,30),FALSE)*H16,"") ->  | BD16: ='1_Eingabe_Humus'!G59*IF('1_Eingabe_Humus'!$J$36=2,0.83,1) -> 0 | BE16: =Düngung!CS16*IF('1_Eingabe_Humus'!$J$36=2,0.83,1) -> 0 | BF16: =Düngung!DE16*IF('1_Eingabe_Humus'!$J$36=2,0.83,1) -> 0 | BG16: =Düngung!DQ16*IF('1_Eingabe_Humus'!$J$36=2,0.83,1) -> 0 | BJ16: =IF(F16>0,HuBil!Z16*VLOOKUP($C16,FA_Stamm,IF($D$1=2,31,30),FALSE),"") ->  | BK16: =IF(F16>0, (HuBil!X16*VLOOKUP($C16,FA_Stamm,IF($D$1=2,29,28),FALSE))+(HuBil!AA16*VLOOKUP($C16,FA_Stamm,IF($D$1=2,31,30),FALSE)),"") ->  | BM16: 0 | BN16: 0 | BT16: ='1_Eingabe_Humus'!#REF! ->  | BU16: =Düngung!CT16 -> 0 | BV16: =Düngung!DF16 -> 0 | BW16: =Düngung!DR16 -> 0 | BZ16: =IF(F16>0,HuBil!Z16*VLOOKUP($C16,FA_Stamm,62,FALSE),"") ->  | CA16: =IF(F16>0, (HuBil!X16*VLOOKUP($C16,FA_Stamm,61,FALSE))+(HuBil!AA16*VLOOKUP($C16,FA_Stamm,62,FALSE)),"") ->  | CC16: 0 | CD16: 0 | CJ16: 0 | CK16: =Düngung!CU16 -> 0 | CL16: =Düngung!DG16 -> 0 | CM16: =Düngung!DS16 -> 0 | CP16: =IF(F16>0,HuBil!Z16*VLOOKUP($C16,FA_Stamm,64,FALSE),"") ->  | CQ16: =IF(F16>0, (HuBil!X16*VLOOKUP($C16,FA_Stamm,63,FALSE))+(HuBil!AA16*VLOOKUP($C16,FA_Stamm,64,FALSE)),"") ->  | CS16: 0 | CT16: 0 | CZ16: =IF(ISNA(IF(INDEX('3_Mineraldüngung_Pflanzenschutz'!$I$6:$I$27,MATCH(D16,'3_Mineraldüngung_Pflanzenschutz'!$A$6:$A$27,0))="",0)),0, IF(INDEX('3_Mineraldüngung_Pflanzenschutz'!$I$6:$I$27,MATCH(D16,'3_Mineraldüngung_Pflanzenschutz'!$A$6:$A$27,0))="",0, (LARGE(INDEX('3_Mineraldüngung_Pflanzenschutz'!$I$6:$I$27,MATCH(D16,'3_Mineraldüngung_Pflanzenschutz'!$A$6:$A$27,0)),1)*'3_Mineraldüngung_Pflanzenschutz'!$J$5*0.588235294*IF('3_Mineraldüngung_Pflanzenschutz'!$D$5="in ha",VLOOKUP(D16,'3_Mineraldüngung_Pflanzenschutz'!$A$6:$D$27,4,FALSE)/F16,VLOOKUP(D16,'3_Mineraldüngung_Pflanzenschutz'!$A$6:$D$27,4,FALSE)/100)))) -> 0 | DA16: =Düngung!CV16 -> 0 | DB16: =Düngung!DH16 -> 0 | DC16: =Düngung!DT16 -> 0 | DF16: =IF(F16>0,HuBil!Z16*VLOOKUP($C16,FA_Stamm,66,FALSE),"") ->  | DG16: =IF(F16>0, (HuBil!X16*VLOOKUP($C16,FA_Stamm,65,FALSE))+(HuBil!AA16*VLOOKUP($C16,FA_Stamm,66,FALSE)),"") ->  | DI16: 0 | DJ16: 0 | DL16: =IF('1_Eingabe_Humus'!J23="HF",F16,0) -> 0
A17: 11 | B17: ='1_Eingabe_Humus'!B24 -> 1 | C17: =IF(D17="","",INDEX(FA_Stamm!A:A,MATCH(D17,FA_Stamm!B:B,0))) ->  | D17: =IF('1_Eingabe_Humus'!C24="","",'1_Eingabe_Humus'!C24) ->  | E17: ='1_Eingabe_Humus'!J24 ->  | F17: ='1_Eingabe_Humus'!F24 -> 0 | G17: =HuBil!W17 ->  | H17: =HuBil!Y17 ->  | I17: =IF(D17="","",HuBil!W17-HuBil!X17) ->  | J17: =IF(D17="","",HuBil!Y17-HuBil!Z17-HuBil!AA17) ->  | K17: =HuBil!Z17 -> 0 | L17: =HuBil!AB17 ->  | M17: =HuBil!AC17 ->  | N17: =HuBil!AD17 ->  | O17: 0 | Q17: =IF(F17>0,HuBil!AF17,"") ->  | R17: =HuBil!AG17 ->  | S17: 0 | T17: =HuBil!AI17 -> 0 | U17: =Düngung!G17 -> 0 | V17: =Düngung!CP17 -> 0 | W17: =Düngung!DB17 -> 0 | X17: =Düngung!DN17 -> 0 | Y17: 0 | Z17: 0 | AA17: =HuBil!AP17 ->  | AB17: =IF(D17="","",HuBil!V17*HuBil!Z17) ->  | AC17: =IF(D17="","",(HuBil!V17*HuBil!AA17)+(HuBil!U17*HuBil!X17)) ->  | AF17: =HuBil!BH17*55 -> 0 | AG17: 0 | AH17: 0 | AJ17: =IF(F17>0,VLOOKUP(C17,FA_Stamm!A:Y,IF($D$1=2,25,24),FALSE)*G17,"") ->  | AK17: =IF(F17>0,VLOOKUP(C17,FA_Stamm!A:AA,IF($D$1=2,27,26),FALSE)*H17,"") ->  | AN17: ='1_Eingabe_Humus'!F60*IF('1_Eingabe_Humus'!$J$36=2,0.4364,1) -> 0 | AO17: =IF(F17>0,Düngung!CR17*IF('1_Eingabe_Humus'!$J$36=2,0.4364,1),"") ->  | AP17: =IF(F17>0,Düngung!DD17*IF('1_Eingabe_Humus'!$J$36=2,0.4364,1),"") ->  | AQ17: =IF(F17>0,Düngung!DP17*IF('1_Eingabe_Humus'!$J$36=2,0.4364,1),"") ->  | AT17: =IF(F17>0,HuBil!Z17*VLOOKUP($C17,FA_Stamm,IF($D$1=2,27,26),FALSE),"") ->  | AU17: =IF(F17>0, (HuBil!X17*VLOOKUP($C17,FA_Stamm,IF($D$1=2,25,24),FALSE))+(HuBil!AA17*VLOOKUP($C17,FA_Stamm,IF($D$1=2,27,26),FALSE)),"") ->  | AZ17: =IF(F17>0,VLOOKUP(C17,FA_Stamm!A:AE,IF($D$1=2,29,28),FALSE)*G17,"") ->  | BA17: =IF(F17>0,VLOOKUP(C17,FA_Stamm!A:AE,IF($D$1=2,31,30),FALSE)*H17,"") ->  | BD17: ='1_Eingabe_Humus'!G60*IF('1_Eingabe_Humus'!$J$36=2,0.83,1) -> 0 | BE17: =Düngung!CS17*IF('1_Eingabe_Humus'!$J$36=2,0.83,1) -> 0 | BF17: =Düngung!DE17*IF('1_Eingabe_Humus'!$J$36=2,0.83,1) -> 0 | BG17: =Düngung!DQ17*IF('1_Eingabe_Humus'!$J$36=2,0.83,1) -> 0 | BJ17: =IF(F17>0,HuBil!Z17*VLOOKUP($C17,FA_Stamm,IF($D$1=2,31,30),FALSE),"") ->  | BK17: =IF(F17>0, (HuBil!X17*VLOOKUP($C17,FA_Stamm,IF($D$1=2,29,28),FALSE))+(HuBil!AA17*VLOOKUP($C17,FA_Stamm,IF($D$1=2,31,30),FALSE)),"") ->  | BM17: 0 | BN17: 0 | BT17: ='1_Eingabe_Humus'!#REF! ->  | BU17: =Düngung!CT17 -> 0 | BV17: =Düngung!DF17 -> 0 | BW17: =Düngung!DR17 -> 0 | BZ17: =IF(F17>0,HuBil!Z17*VLOOKUP($C17,FA_Stamm,62,FALSE),"") ->  | CA17: =IF(F17>0, (HuBil!X17*VLOOKUP($C17,FA_Stamm,61,FALSE))+(HuBil!AA17*VLOOKUP($C17,FA_Stamm,62,FALSE)),"") ->  | CC17: 0 | CD17: 0 | CJ17: 0 | CK17: =Düngung!CU17 -> 0 | CL17: =Düngung!DG17 -> 0 | CM17: =Düngung!DS17 -> 0 | CP17: =IF(F17>0,HuBil!Z17*VLOOKUP($C17,FA_Stamm,64,FALSE),"") ->  | CQ17: =IF(F17>0, (HuBil!X17*VLOOKUP($C17,FA_Stamm,63,FALSE))+(HuBil!AA17*VLOOKUP($C17,FA_Stamm,64,FALSE)),"") ->  | CS17: 0 | CT17: 0 | CZ17: =IF(ISNA(IF(INDEX('3_Mineraldüngung_Pflanzenschutz'!$I$6:$I$27,MATCH(D17,'3_Mineraldüngung_Pflanzenschutz'!$A$6:$A$27,0))="",0)),0, IF(INDEX('3_Mineraldüngung_Pflanzenschutz'!$I$6:$I$27,MATCH(D17,'3_Mineraldüngung_Pflanzenschutz'!$A$6:$A$27,0))="",0, (LARGE(INDEX('3_Mineraldüngung_Pflanzenschutz'!$I$6:$I$27,MATCH(D17,'3_Mineraldüngung_Pflanzenschutz'!$A$6:$A$27,0)),1)*'3_Mineraldüngung_Pflanzenschutz'!$J$5*0.588235294*IF('3_Mineraldüngung_Pflanzenschutz'!$D$5="in ha",VLOOKUP(D17,'3_Mineraldüngung_Pflanzenschutz'!$A$6:$D$27,4,FALSE)/F17,VLOOKUP(D17,'3_Mineraldüngung_Pflanzenschutz'!$A$6:$D$27,4,FALSE)/100)))) -> 0 | DA17: =Düngung!CV17 -> 0 | DB17: =Düngung!DH17 -> 0 | DC17: =Düngung!DT17 -> 0 | DF17: =IF(F17>0,HuBil!Z17*VLOOKUP($C17,FA_Stamm,66,FALSE),"") ->  | DG17: =IF(F17>0, (HuBil!X17*VLOOKUP($C17,FA_Stamm,65,FALSE))+(HuBil!AA17*VLOOKUP($C17,FA_Stamm,66,FALSE)),"") ->  | DI17: 0 | DJ17: 0 | DL17: =IF('1_Eingabe_Humus'!J24="HF",F17,0) -> 0
A18: 12 | B18: ='1_Eingabe_Humus'!B25 -> 1 | C18: =IF(D18="","",INDEX(FA_Stamm!A:A,MATCH(D18,FA_Stamm!B:B,0))) ->  | D18: =IF('1_Eingabe_Humus'!C25="","",'1_Eingabe_Humus'!C25) ->  | E18: ='1_Eingabe_Humus'!J25 ->  | F18: ='1_Eingabe_Humus'!F25 -> 0 | G18: =HuBil!W18 ->  | H18: =HuBil!Y18 ->  | I18: =IF(D18="","",HuBil!W18-HuBil!X18) ->  | J18: =IF(D18="","",HuBil!Y18-HuBil!Z18-HuBil!AA18) ->  | K18: =HuBil!Z18 -> 0 | L18: =HuBil!AB18 ->  | M18: =HuBil!AC18 ->  | N18: =HuBil!AD18 ->  | O18: 0 | Q18: =IF(F18>0,HuBil!AF18,"") ->  | R18: =HuBil!AG18 ->  | S18: 0 | T18: =HuBil!AI18 -> 0 | U18: =Düngung!G18 -> 0 | V18: =Düngung!CP18 -> 0 | W18: =Düngung!DB18 -> 0 | X18: =Düngung!DN18 -> 0 | Y18: 0 | Z18: 0 | AA18: =HuBil!AP18 ->  | AB18: =IF(D18="","",HuBil!V18*HuBil!Z18) ->  | AC18: =IF(D18="","",(HuBil!V18*HuBil!AA18)+(HuBil!U18*HuBil!X18)) ->  | AF18: =HuBil!BH18*55 -> 0 | AG18: 0 | AH18: 0 | AJ18: =IF(F18>0,VLOOKUP(C18,FA_Stamm!A:Y,IF($D$1=2,25,24),FALSE)*G18,"") ->  | AK18: =IF(F18>0,VLOOKUP(C18,FA_Stamm!A:AA,IF($D$1=2,27,26),FALSE)*H18,"") ->  | AN18: ='1_Eingabe_Humus'!F61*IF('1_Eingabe_Humus'!$J$36=2,0.4364,1) -> 0 | AO18: =IF(F18>0,Düngung!CR18*IF('1_Eingabe_Humus'!$J$36=2,0.4364,1),"") ->  | AP18: =IF(F18>0,Düngung!DD18*IF('1_Eingabe_Humus'!$J$36=2,0.4364,1),"") ->  | AQ18: =IF(F18>0,Düngung!DP18*IF('1_Eingabe_Humus'!$J$36=2,0.4364,1),"") ->  | AT18: =IF(F18>0,HuBil!Z18*VLOOKUP($C18,FA_Stamm,IF($D$1=2,27,26),FALSE),"") ->  | AU18: =IF(F18>0, (HuBil!X18*VLOOKUP($C18,FA_Stamm,IF($D$1=2,25,24),FALSE))+(HuBil!AA18*VLOOKUP($C18,FA_Stamm,IF($D$1=2,27,26),FALSE)),"") ->  | AZ18: =IF(F18>0,VLOOKUP(C18,FA_Stamm!A:AE,IF($D$1=2,29,28),FALSE)*G18,"") ->  | BA18: =IF(F18>0,VLOOKUP(C18,FA_Stamm!A:AE,IF($D$1=2,31,30),FALSE)*H18,"") ->  | BD18: ='1_Eingabe_Humus'!G61*IF('1_Eingabe_Humus'!$J$36=2,0.83,1) -> 0 | BE18: =Düngung!CS18*IF('1_Eingabe_Humus'!$J$36=2,0.83,1) -> 0 | BF18: =Düngung!DE18*IF('1_Eingabe_Humus'!$J$36=2,0.83,1) -> 0 | BG18: =Düngung!DQ18*IF('1_Eingabe_Humus'!$J$36=2,0.83,1) -> 0 | BJ18: =IF(F18>0,HuBil!Z18*VLOOKUP($C18,FA_Stamm,IF($D$1=2,31,30),FALSE),"") ->  | BK18: =IF(F18>0, (HuBil!X18*VLOOKUP($C18,FA_Stamm,IF($D$1=2,29,28),FALSE))+(HuBil!AA18*VLOOKUP($C18,FA_Stamm,IF($D$1=2,31,30),FALSE)),"") ->  | BM18: 0 | BN18: 0 | BT18: ='1_Eingabe_Humus'!#REF! ->  | BU18: =Düngung!CT18 -> 0 | BV18: =Düngung!DF18 -> 0 | BW18: =Düngung!DR18 -> 0 | BZ18: =IF(F18>0,HuBil!Z18*VLOOKUP($C18,FA_Stamm,62,FALSE),"") ->  | CA18: =IF(F18>0, (HuBil!X18*VLOOKUP($C18,FA_Stamm,61,FALSE))+(HuBil!AA18*VLOOKUP($C18,FA_Stamm,62,FALSE)),"") ->  | CC18: 0 | CD18: 0 | CJ18: 0 | CK18: =Düngung!CU18 -> 0 | CL18: =Düngung!DG18 -> 0 | CM18: =Düngung!DS18 -> 0 | CP18: =IF(F18>0,HuBil!Z18*VLOOKUP($C18,FA_Stamm,64,FALSE),"") ->  | CQ18: =IF(F18>0, (HuBil!X18*VLOOKUP($C18,FA_Stamm,63,FALSE))+(HuBil!AA18*VLOOKUP($C18,FA_Stamm,64,FALSE)),"") ->  | CS18: 0 | CT18: 0 | CZ18: =IF(ISNA(IF(INDEX('3_Mineraldüngung_Pflanzenschutz'!$I$6:$I$27,MATCH(D18,'3_Mineraldüngung_Pflanzenschutz'!$A$6:$A$27,0))="",0)),0, IF(INDEX('3_Mineraldüngung_Pflanzenschutz'!$I$6:$I$27,MATCH(D18,'3_Mineraldüngung_Pflanzenschutz'!$A$6:$A$27,0))="",0, (LARGE(INDEX('3_Mineraldüngung_Pflanzenschutz'!$I$6:$I$27,MATCH(D18,'3_Mineraldüngung_Pflanzenschutz'!$A$6:$A$27,0)),1)*'3_Mineraldüngung_Pflanzenschutz'!$J$5*0.588235294*IF('3_Mineraldüngung_Pflanzenschutz'!$D$5="in ha",VLOOKUP(D18,'3_Mineraldüngung_Pflanzenschutz'!$A$6:$D$27,4,FALSE)/F18,VLOOKUP(D18,'3_Mineraldüngung_Pflanzenschutz'!$A$6:$D$27,4,FALSE)/100)))) -> 0 | DA18: =Düngung!CV18 -> 0 | DB18: =Düngung!DH18 -> 0 | DC18: =Düngung!DT18 -> 0 | DF18: =IF(F18>0,HuBil!Z18*VLOOKUP($C18,FA_Stamm,66,FALSE),"") ->  | DG18: =IF(F18>0, (HuBil!X18*VLOOKUP($C18,FA_Stamm,65,FALSE))+(HuBil!AA18*VLOOKUP($C18,FA_Stamm,66,FALSE)),"") ->  | DI18: 0 | DJ18: 0 | DL18: =IF('1_Eingabe_Humus'!J25="HF",F18,0) -> 0
A19: 13 | B19: ='1_Eingabe_Humus'!B26 -> 1 | C19: =IF(D19="","",INDEX(FA_Stamm!A:A,MATCH(D19,FA_Stamm!B:B,0))) ->  | D19: =IF('1_Eingabe_Humus'!C26="","",'1_Eingabe_Humus'!C26) ->  | E19: ='1_Eingabe_Humus'!J26 ->  | F19: ='1_Eingabe_Humus'!F26 -> 0 | G19: =HuBil!W19 ->  | H19: =HuBil!Y19 ->  | I19: =IF(D19="","",HuBil!W19-HuBil!X19) ->  | J19: =IF(D19="","",HuBil!Y19-HuBil!Z19-HuBil!AA19) ->  | K19: =HuBil!Z19 -> 0 | L19: =HuBil!AB19 ->  | M19: =HuBil!AC19 ->  | N19: =HuBil!AD19 ->  | O19: 0 | Q19: =IF(F19>0,HuBil!AF19,"") ->  | R19: =HuBil!AG19 ->  | S19: 0 | T19: =HuBil!AI19 -> 0 | U19: =Düngung!G19 -> 0 | V19: =Düngung!CP19 -> 0 | W19: =Düngung!DB19 -> 0 | X19: =Düngung!DN19 -> 0 | Y19: 0 | Z19: 0 | AA19: =HuBil!AP19 ->  | AB19: =IF(D19="","",HuBil!V19*HuBil!Z19) ->  | AC19: =IF(D19="","",(HuBil!V19*HuBil!AA19)+(HuBil!U19*HuBil!X19)) ->  | AF19: =HuBil!BH19*55 -> 0 | AG19: 0 | AH19: 0 | AJ19: =IF(F19>0,VLOOKUP(C19,FA_Stamm!A:Y,IF($D$1=2,25,24),FALSE)*G19,"") ->  | AK19: =IF(F19>0,VLOOKUP(C19,FA_Stamm!A:AA,IF($D$1=2,27,26),FALSE)*H19,"") ->  | AN19: ='1_Eingabe_Humus'!F62*IF('1_Eingabe_Humus'!$J$36=2,0.4364,1) -> 0 | AO19: =IF(F19>0,Düngung!CR19*IF('1_Eingabe_Humus'!$J$36=2,0.4364,1),"") ->  | AP19: =IF(F19>0,Düngung!DD19*IF('1_Eingabe_Humus'!$J$36=2,0.4364,1),"") ->  | AQ19: =IF(F19>0,Düngung!DP19*IF('1_Eingabe_Humus'!$J$36=2,0.4364,1),"") ->  | AT19: =IF(F19>0,HuBil!Z19*VLOOKUP($C19,FA_Stamm,IF($D$1=2,27,26),FALSE),"") ->  | AU19: =IF(F19>0, (HuBil!X19*VLOOKUP($C19,FA_Stamm,IF($D$1=2,25,24),FALSE))+(HuBil!AA19*VLOOKUP($C19,FA_Stamm,IF($D$1=2,27,26),FALSE)),"") ->  | AZ19: =IF(F19>0,VLOOKUP(C19,FA_Stamm!A:AE,IF($D$1=2,29,28),FALSE)*G19,"") ->  | BA19: =IF(F19>0,VLOOKUP(C19,FA_Stamm!A:AE,IF($D$1=2,31,30),FALSE)*H19,"") ->  | BD19: ='1_Eingabe_Humus'!G62*IF('1_Eingabe_Humus'!$J$36=2,0.83,1) -> 0 | BE19: =Düngung!CS19*IF('1_Eingabe_Humus'!$J$36=2,0.83,1) -> 0 | BF19: =Düngung!DE19*IF('1_Eingabe_Humus'!$J$36=2,0.83,1) -> 0 | BG19: =Düngung!DQ19*IF('1_Eingabe_Humus'!$J$36=2,0.83,1) -> 0 | BJ19: =IF(F19>0,HuBil!Z19*VLOOKUP($C19,FA_Stamm,IF($D$1=2,31,30),FALSE),"") ->  | BK19: =IF(F19>0, (HuBil!X19*VLOOKUP($C19,FA_Stamm,IF($D$1=2,29,28),FALSE))+(HuBil!AA19*VLOOKUP($C19,FA_Stamm,IF($D$1=2,31,30),FALSE)),"") ->  | BM19: 0 | BN19: 0 | BT19: ='1_Eingabe_Humus'!#REF! ->  | BU19: =Düngung!CT19 -> 0 | BV19: =Düngung!DF19 -> 0 | BW19: =Düngung!DR19 -> 0 | BZ19: =IF(F19>0,HuBil!Z19*VLOOKUP($C19,FA_Stamm,62,FALSE),"") ->  | CA19: =IF(F19>0, (HuBil!X19*VLOOKUP($C19,FA_Stamm,61,FALSE))+(HuBil!AA19*VLOOKUP($C19,FA_Stamm,62,FALSE)),"") ->  | CC19: 0 | CD19: 0 | CJ19: 0 | CK19: =Düngung!CU19 -> 0 | CL19: =Düngung!DG19 -> 0 | CM19: =Düngung!DS19 -> 0 | CP19: =IF(F19>0,HuBil!Z19*VLOOKUP($C19,FA_Stamm,64,FALSE),"") ->  | CQ19: =IF(F19>0, (HuBil!X19*VLOOKUP($C19,FA_Stamm,63,FALSE))+(HuBil!AA19*VLOOKUP($C19,FA_Stamm,64,FALSE)),"") ->  | CS19: 0 | CT19: 0 | CZ19: =IF(ISNA(IF(INDEX('3_Mineraldüngung_Pflanzenschutz'!$I$6:$I$27,MATCH(D19,'3_Mineraldüngung_Pflanzenschutz'!$A$6:$A$27,0))="",0)),0, IF(INDEX('3_Mineraldüngung_Pflanzenschutz'!$I$6:$I$27,MATCH(D19,'3_Mineraldüngung_Pflanzenschutz'!$A$6:$A$27,0))="",0, (LARGE(INDEX('3_Mineraldüngung_Pflanzenschutz'!$I$6:$I$27,MATCH(D19,'3_Mineraldüngung_Pflanzenschutz'!$A$6:$A$27,0)),1)*'3_Mineraldüngung_Pflanzenschutz'!$J$5*0.588235294*IF('3_Mineraldüngung_Pflanzenschutz'!$D$5="in ha",VLOOKUP(D19,'3_Mineraldüngung_Pflanzenschutz'!$A$6:$D$27,4,FALSE)/F19,VLOOKUP(D19,'3_Mineraldüngung_Pflanzenschutz'!$A$6:$D$27,4,FALSE)/100)))) -> 0 | DA19: =Düngung!CV19 -> 0 | DB19: =Düngung!DH19 -> 0 | DC19: =Düngung!DT19 -> 0 | DF19: =IF(F19>0,HuBil!Z19*VLOOKUP($C19,FA_Stamm,66,FALSE),"") ->  | DG19: =IF(F19>0, (HuBil!X19*VLOOKUP($C19,FA_Stamm,65,FALSE))+(HuBil!AA19*VLOOKUP($C19,FA_Stamm,66,FALSE)),"") ->  | DI19: 0 | DJ19: 0 | DL19: =IF('1_Eingabe_Humus'!J26="HF",F19,0) -> 0
A20: 14 | B20: ='1_Eingabe_Humus'!B27 -> 1 | C20: =IF(D20="","",INDEX(FA_Stamm!A:A,MATCH(D20,FA_Stamm!B:B,0))) ->  | D20: =IF('1_Eingabe_Humus'!C27="","",'1_Eingabe_Humus'!C27) ->  | E20: ='1_Eingabe_Humus'!J27 ->  | F20: ='1_Eingabe_Humus'!F27 -> 0 | G20: =HuBil!W20 ->  | H20: =HuBil!Y20 ->  | I20: =IF(D20="","",HuBil!W20-HuBil!X20) ->  | J20: =IF(D20="","",HuBil!Y20-HuBil!Z20-HuBil!AA20) ->  | K20: =HuBil!Z20 -> 0 | L20: =HuBil!AB20 ->  | M20: =HuBil!AC20 ->  | N20: =HuBil!AD20 ->  | O20: 0 | Q20: =IF(F20>0,HuBil!AF20,"") ->  | R20: =HuBil!AG20 ->  | S20: 0 | T20: =HuBil!AI20 -> 0 | U20: =Düngung!G20 -> 0 | V20: =Düngung!CP20 -> 0 | W20: =Düngung!DB20 -> 0 | X20: =Düngung!DN20 -> 0 | Y20: 0 | Z20: 0 | AA20: =HuBil!AP20 ->  | AB20: =IF(D20="","",HuBil!V20*HuBil!Z20) ->  | AC20: =IF(D20="","",(HuBil!V20*HuBil!AA20)+(HuBil!U20*HuBil!X20)) ->  | AF20: =HuBil!BH20*55 -> 0 | AG20: 0 | AH20: 0 | AJ20: =IF(F20>0,VLOOKUP(C20,FA_Stamm!A:Y,IF($D$1=2,25,24),FALSE)*G20,"") ->  | AK20: =IF(F20>0,VLOOKUP(C20,FA_Stamm!A:AA,IF($D$1=2,27,26),FALSE)*H20,"") ->  | AN20: ='1_Eingabe_Humus'!F63*IF('1_Eingabe_Humus'!$J$36=2,0.4364,1) -> 0 | AO20: =IF(F20>0,Düngung!CR20*IF('1_Eingabe_Humus'!$J$36=2,0.4364,1),"") ->  | AP20: =IF(F20>0,Düngung!DD20*IF('1_Eingabe_Humus'!$J$36=2,0.4364,1),"") ->  | AQ20: =IF(F20>0,Düngung!DP20*IF('1_Eingabe_Humus'!$J$36=2,0.4364,1),"") ->  | AT20: =IF(F20>0,HuBil!Z20*VLOOKUP($C20,FA_Stamm,IF($D$1=2,27,26),FALSE),"") ->  | AU20: =IF(F20>0, (HuBil!X20*VLOOKUP($C20,FA_Stamm,IF($D$1=2,25,24),FALSE))+(HuBil!AA20*VLOOKUP($C20,FA_Stamm,IF($D$1=2,27,26),FALSE)),"") ->  | AZ20: =IF(F20>0,VLOOKUP(C20,FA_Stamm!A:AE,IF($D$1=2,29,28),FALSE)*G20,"") ->  | BA20: =IF(F20>0,VLOOKUP(C20,FA_Stamm!A:AE,IF($D$1=2,31,30),FALSE)*H20,"") ->  | BD20: ='1_Eingabe_Humus'!G63*IF('1_Eingabe_Humus'!$J$36=2,0.83,1) -> 0 | BE20: =Düngung!CS20*IF('1_Eingabe_Humus'!$J$36=2,0.83,1) -> 0 | BF20: =Düngung!DE20*IF('1_Eingabe_Humus'!$J$36=2,0.83,1) -> 0 | BG20: =Düngung!DQ20*IF('1_Eingabe_Humus'!$J$36=2,0.83,1) -> 0 | BJ20: =IF(F20>0,HuBil!Z20*VLOOKUP($C20,FA_Stamm,IF($D$1=2,31,30),FALSE),"") ->  | BK20: =IF(F20>0, (HuBil!X20*VLOOKUP($C20,FA_Stamm,IF($D$1=2,29,28),FALSE))+(HuBil!AA20*VLOOKUP($C20,FA_Stamm,IF($D$1=2,31,30),FALSE)),"") ->  | BM20: 0 | BN20: 0 | BT20: ='1_Eingabe_Humus'!#REF! ->  | BU20: =Düngung!CT20 -> 0 | BV20: =Düngung!DF20 -> 0 | BW20: =Düngung!DR20 -> 0 | BZ20: =IF(F20>0,HuBil!Z20*VLOOKUP($C20,FA_Stamm,62,FALSE),"") ->  | CA20: =IF(F20>0, (HuBil!X20*VLOOKUP($C20,FA_Stamm,61,FALSE))+(HuBil!AA20*VLOOKUP($C20,FA_Stamm,62,FALSE)),"") ->  | CC20: 0 | CD20: 0 | CJ20: 0 | CK20: =Düngung!CU20 -> 0 | CL20: =Düngung!DG20 -> 0 | CM20: =Düngung!DS20 -> 0 | CP20: =IF(F20>0,HuBil!Z20*VLOOKUP($C20,FA_Stamm,64,FALSE),"") ->  | CQ20: =IF(F20>0, (HuBil!X20*VLOOKUP($C20,FA_Stamm,63,FALSE))+(HuBil!AA20*VLOOKUP($C20,FA_Stamm,64,FALSE)),"") ->  | CS20: 0 | CT20: 0 | CZ20: =IF(ISNA(IF(INDEX('3_Mineraldüngung_Pflanzenschutz'!$I$6:$I$27,MATCH(D20,'3_Mineraldüngung_Pflanzenschutz'!$A$6:$A$27,0))="",0)),0, IF(INDEX('3_Mineraldüngung_Pflanzenschutz'!$I$6:$I$27,MATCH(D20,'3_Mineraldüngung_Pflanzenschutz'!$A$6:$A$27,0))="",0, (LARGE(INDEX('3_Mineraldüngung_Pflanzenschutz'!$I$6:$I$27,MATCH(D20,'3_Mineraldüngung_Pflanzenschutz'!$A$6:$A$27,0)),1)*'3_Mineraldüngung_Pflanzenschutz'!$J$5*0.588235294*IF('3_Mineraldüngung_Pflanzenschutz'!$D$5="in ha",VLOOKUP(D20,'3_Mineraldüngung_Pflanzenschutz'!$A$6:$D$27,4,FALSE)/F20,VLOOKUP(D20,'3_Mineraldüngung_Pflanzenschutz'!$A$6:$D$27,4,FALSE)/100)))) -> 0 | DA20: =Düngung!CV20 -> 0 | DB20: =Düngung!DH20 -> 0 | DC20: =Düngung!DT20 -> 0 | DF20: =IF(F20>0,HuBil!Z20*VLOOKUP($C20,FA_Stamm,66,FALSE),"") ->  | DG20: =IF(F20>0, (HuBil!X20*VLOOKUP($C20,FA_Stamm,65,FALSE))+(HuBil!AA20*VLOOKUP($C20,FA_Stamm,66,FALSE)),"") ->  | DI20: 0 | DJ20: 0 | DL20: =IF('1_Eingabe_Humus'!J27="HF",F20,0) -> 0
A21: 15 | B21: ='1_Eingabe_Humus'!B28 -> 1 | C21: =IF(D21="","",INDEX(FA_Stamm!A:A,MATCH(D21,FA_Stamm!B:B,0))) ->  | D21: =IF('1_Eingabe_Humus'!C28="","",'1_Eingabe_Humus'!C28) ->  | E21: ='1_Eingabe_Humus'!J28 ->  | F21: ='1_Eingabe_Humus'!F28 -> 0 | G21: =HuBil!W21 ->  | H21: =HuBil!Y21 ->  | I21: =IF(D21="","",HuBil!W21-HuBil!X21) ->  | J21: =IF(D21="","",HuBil!Y21-HuBil!Z21-HuBil!AA21) ->  | K21: =HuBil!Z21 -> 0 | L21: =HuBil!AB21 ->  | M21: =HuBil!AC21 ->  | N21: =HuBil!AD21 ->  | O21: 0 | Q21: =IF(F21>0,HuBil!AF21,"") ->  | R21: =HuBil!AG21 ->  | S21: 0 | T21: =HuBil!AI21 -> 0 | U21: =Düngung!G21 -> 0 | V21: =Düngung!CP21 -> 0 | W21: =Düngung!DB21 -> 0 | X21: =Düngung!DN21 -> 0 | Y21: 0 | Z21: 0 | AA21: =HuBil!AP21 ->  | AB21: =IF(D21="","",HuBil!V21*HuBil!Z21) ->  | AC21: =IF(D21="","",(HuBil!V21*HuBil!AA21)+(HuBil!U21*HuBil!X21)) ->  | AF21: =HuBil!BH21*55 -> 0 | AG21: 0 | AH21: 0 | AJ21: =IF(F21>0,VLOOKUP(C21,FA_Stamm!A:Y,IF($D$1=2,25,24),FALSE)*G21,"") ->  | AK21: =IF(F21>0,VLOOKUP(C21,FA_Stamm!A:AA,IF($D$1=2,27,26),FALSE)*H21,"") ->  | AN21: ='1_Eingabe_Humus'!F64*IF('1_Eingabe_Humus'!$J$36=2,0.4364,1) -> 0 | AO21: =IF(F21>0,Düngung!CR21*IF('1_Eingabe_Humus'!$J$36=2,0.4364,1),"") ->  | AP21: =IF(F21>0,Düngung!DD21*IF('1_Eingabe_Humus'!$J$36=2,0.4364,1),"") ->  | AQ21: =IF(F21>0,Düngung!DP21*IF('1_Eingabe_Humus'!$J$36=2,0.4364,1),"") ->  | AT21: =IF(F21>0,HuBil!Z21*VLOOKUP($C21,FA_Stamm,IF($D$1=2,27,26),FALSE),"") ->  | AU21: =IF(F21>0, (HuBil!X21*VLOOKUP($C21,FA_Stamm,IF($D$1=2,25,24),FALSE))+(HuBil!AA21*VLOOKUP($C21,FA_Stamm,IF($D$1=2,27,26),FALSE)),"") ->  | AZ21: =IF(F21>0,VLOOKUP(C21,FA_Stamm!A:AE,IF($D$1=2,29,28),FALSE)*G21,"") ->  | BA21: =IF(F21>0,VLOOKUP(C21,FA_Stamm!A:AE,IF($D$1=2,31,30),FALSE)*H21,"") ->  | BD21: ='1_Eingabe_Humus'!G64*IF('1_Eingabe_Humus'!$J$36=2,0.83,1) -> 0 | BE21: =Düngung!CS21*IF('1_Eingabe_Humus'!$J$36=2,0.83,1) -> 0 | BF21: =Düngung!DE21*IF('1_Eingabe_Humus'!$J$36=2,0.83,1) -> 0 | BG21: =Düngung!DQ21*IF('1_Eingabe_Humus'!$J$36=2,0.83,1) -> 0 | BJ21: =IF(F21>0,HuBil!Z21*VLOOKUP($C21,FA_Stamm,IF($D$1=2,31,30),FALSE),"") ->  | BK21: =IF(F21>0, (HuBil!X21*VLOOKUP($C21,FA_Stamm,IF($D$1=2,29,28),FALSE))+(HuBil!AA21*VLOOKUP($C21,FA_Stamm,IF($D$1=2,31,30),FALSE)),"") ->  | BM21: 0 | BN21: 0 | BT21: ='1_Eingabe_Humus'!#REF! ->  | BU21: =Düngung!CT21 -> 0 | BV21: =Düngung!DF21 -> 0 | BW21: =Düngung!DR21 -> 0 | BZ21: =IF(F21>0,HuBil!Z21*VLOOKUP($C21,FA_Stamm,62,FALSE),"") ->  | CA21: =IF(F21>0, (HuBil!X21*VLOOKUP($C21,FA_Stamm,61,FALSE))+(HuBil!AA21*VLOOKUP($C21,FA_Stamm,62,FALSE)),"") ->  | CC21: 0 | CD21: 0 | CJ21: 0 | CK21: =Düngung!CU21 -> 0 | CL21: =Düngung!DG21 -> 0 | CM21: =Düngung!DS21 -> 0 | CP21: =IF(F21>0,HuBil!Z21*VLOOKUP($C21,FA_Stamm,64,FALSE),"") ->  | CQ21: =IF(F21>0, (HuBil!X21*VLOOKUP($C21,FA_Stamm,63,FALSE))+(HuBil!AA21*VLOOKUP($C21,FA_Stamm,64,FALSE)),"") ->  | CS21: 0 | CT21: 0 | CZ21: =IF(ISNA(IF(INDEX('3_Mineraldüngung_Pflanzenschutz'!$I$6:$I$27,MATCH(D21,'3_Mineraldüngung_Pflanzenschutz'!$A$6:$A$27,0))="",0)),0, IF(INDEX('3_Mineraldüngung_Pflanzenschutz'!$I$6:$I$27,MATCH(D21,'3_Mineraldüngung_Pflanzenschutz'!$A$6:$A$27,0))="",0, (LARGE(INDEX('3_Mineraldüngung_Pflanzenschutz'!$I$6:$I$27,MATCH(D21,'3_Mineraldüngung_Pflanzenschutz'!$A$6:$A$27,0)),1)*'3_Mineraldüngung_Pflanzenschutz'!$J$5*0.588235294*IF('3_Mineraldüngung_Pflanzenschutz'!$D$5="in ha",VLOOKUP(D21,'3_Mineraldüngung_Pflanzenschutz'!$A$6:$D$27,4,FALSE)/F21,VLOOKUP(D21,'3_Mineraldüngung_Pflanzenschutz'!$A$6:$D$27,4,FALSE)/100)))) -> 0 | DA21: =Düngung!CV21 -> 0 | DB21: =Düngung!DH21 -> 0 | DC21: =Düngung!DT21 -> 0 | DF21: =IF(F21>0,HuBil!Z21*VLOOKUP($C21,FA_Stamm,66,FALSE),"") ->  | DG21: =IF(F21>0, (HuBil!X21*VLOOKUP($C21,FA_Stamm,65,FALSE))+(HuBil!AA21*VLOOKUP($C21,FA_Stamm,66,FALSE)),"") ->  | DI21: 0 | DJ21: 0 | DL21: =IF('1_Eingabe_Humus'!J28="HF",F21,0) -> 0
A22: 16 | B22: ='1_Eingabe_Humus'!B29 -> 1 | C22: =IF(D22="","",INDEX(FA_Stamm!A:A,MATCH(D22,FA_Stamm!B:B,0))) ->  | D22: =IF('1_Eingabe_Humus'!C29="","",'1_Eingabe_Humus'!C29) ->  | E22: ='1_Eingabe_Humus'!J29 ->  | F22: ='1_Eingabe_Humus'!F29 -> 0 | G22: =HuBil!W22 ->  | H22: =HuBil!Y22 ->  | I22: =IF(D22="","",HuBil!W22-HuBil!X22) ->  | J22: =IF(D22="","",HuBil!Y22-HuBil!Z22-HuBil!AA22) ->  | K22: =HuBil!Z22 -> 0 | L22: =HuBil!AB22 ->  | M22: =HuBil!AC22 ->  | N22: =HuBil!AD22 ->  | O22: 0 | Q22: =IF(F22>0,HuBil!AF22,"") ->  | R22: =HuBil!AG22 ->  | S22: 0 | T22: =HuBil!AI22 -> 0 | U22: =Düngung!G22 -> 0 | V22: =Düngung!CP22 -> 0 | W22: =Düngung!DB22 -> 0 | X22: =Düngung!DN22 -> 0 | Y22: 0 | Z22: 0 | AA22: =HuBil!AP22 ->  | AB22: =IF(D22="","",HuBil!V22*HuBil!Z22) ->  | AC22: =IF(D22="","",(HuBil!V22*HuBil!AA22)+(HuBil!U22*HuBil!X22)) ->  | AF22: =HuBil!BH22*55 -> 0 | AG22: 0 | AH22: 0 | AJ22: =IF(F22>0,VLOOKUP(C22,FA_Stamm!A:Y,IF($D$1=2,25,24),FALSE)*G22,"") ->  | AK22: =IF(F22>0,VLOOKUP(C22,FA_Stamm!A:AA,IF($D$1=2,27,26),FALSE)*H22,"") ->  | AN22: ='1_Eingabe_Humus'!F65*IF('1_Eingabe_Humus'!$J$36=2,0.4364,1) -> 0 | AO22: =IF(F22>0,Düngung!CR22*IF('1_Eingabe_Humus'!$J$36=2,0.4364,1),"") ->  | AP22: =IF(F22>0,Düngung!DD22*IF('1_Eingabe_Humus'!$J$36=2,0.4364,1),"") ->  | AQ22: =IF(F22>0,Düngung!DP22*IF('1_Eingabe_Humus'!$J$36=2,0.4364,1),"") ->  | AT22: =IF(F22>0,HuBil!Z22*VLOOKUP($C22,FA_Stamm,IF($D$1=2,27,26),FALSE),"") ->  | AU22: =IF(F22>0, (HuBil!X22*VLOOKUP($C22,FA_Stamm,IF($D$1=2,25,24),FALSE))+(HuBil!AA22*VLOOKUP($C22,FA_Stamm,IF($D$1=2,27,26),FALSE)),"") ->  | AZ22: =IF(F22>0,VLOOKUP(C22,FA_Stamm!A:AE,IF($D$1=2,29,28),FALSE)*G22,"") ->  | BA22: =IF(F22>0,VLOOKUP(C22,FA_Stamm!A:AE,IF($D$1=2,31,30),FALSE)*H22,"") ->  | BD22: ='1_Eingabe_Humus'!G65*IF('1_Eingabe_Humus'!$J$36=2,0.83,1) -> 0 | BE22: =Düngung!CS22*IF('1_Eingabe_Humus'!$J$36=2,0.83,1) -> 0 | BF22: =Düngung!DE22*IF('1_Eingabe_Humus'!$J$36=2,0.83,1) -> 0 | BG22: =Düngung!DQ22*IF('1_Eingabe_Humus'!$J$36=2,0.83,1) -> 0 | BJ22: =IF(F22>0,HuBil!Z22*VLOOKUP($C22,FA_Stamm,IF($D$1=2,31,30),FALSE),"") ->  | BK22: =IF(F22>0, (HuBil!X22*VLOOKUP($C22,FA_Stamm,IF($D$1=2,29,28),FALSE))+(HuBil!AA22*VLOOKUP($C22,FA_Stamm,IF($D$1=2,31,30),FALSE)),"") ->  | BM22: 0 | BN22: 0 | BT22: ='1_Eingabe_Humus'!#REF! ->  | BU22: =Düngung!CT22 -> 0 | BV22: =Düngung!DF22 -> 0 | BW22: =Düngung!DR22 -> 0 | BZ22: =IF(F22>0,HuBil!Z22*VLOOKUP($C22,FA_Stamm,62,FALSE),"") ->  | CA22: =IF(F22>0, (HuBil!X22*VLOOKUP($C22,FA_Stamm,61,FALSE))+(HuBil!AA22*VLOOKUP($C22,FA_Stamm,62,FALSE)),"") ->  | CC22: 0 | CD22: 0 | CJ22: 0 | CK22: =Düngung!CU22 -> 0 | CL22: =Düngung!DG22 -> 0 | CM22: =Düngung!DS22 -> 0 | CP22: =IF(F22>0,HuBil!Z22*VLOOKUP($C22,FA_Stamm,64,FALSE),"") ->  | CQ22: =IF(F22>0, (HuBil!X22*VLOOKUP($C22,FA_Stamm,63,FALSE))+(HuBil!AA22*VLOOKUP($C22,FA_Stamm,64,FALSE)),"") ->  | CS22: 0 | CT22: 0 | CZ22: =IF(ISNA(IF(INDEX('3_Mineraldüngung_Pflanzenschutz'!$I$6:$I$27,MATCH(D22,'3_Mineraldüngung_Pflanzenschutz'!$A$6:$A$27,0))="",0)),0, IF(INDEX('3_Mineraldüngung_Pflanzenschutz'!$I$6:$I$27,MATCH(D22,'3_Mineraldüngung_Pflanzenschutz'!$A$6:$A$27,0))="",0, (LARGE(INDEX('3_Mineraldüngung_Pflanzenschutz'!$I$6:$I$27,MATCH(D22,'3_Mineraldüngung_Pflanzenschutz'!$A$6:$A$27,0)),1)*'3_Mineraldüngung_Pflanzenschutz'!$J$5*0.588235294*IF('3_Mineraldüngung_Pflanzenschutz'!$D$5="in ha",VLOOKUP(D22,'3_Mineraldüngung_Pflanzenschutz'!$A$6:$D$27,4,FALSE)/F22,VLOOKUP(D22,'3_Mineraldüngung_Pflanzenschutz'!$A$6:$D$27,4,FALSE)/100)))) -> 0 | DA22: =Düngung!CV22 -> 0 | DB22: =Düngung!DH22 -> 0 | DC22: =Düngung!DT22 -> 0 | DF22: =IF(F22>0,HuBil!Z22*VLOOKUP($C22,FA_Stamm,66,FALSE),"") ->  | DG22: =IF(F22>0, (HuBil!X22*VLOOKUP($C22,FA_Stamm,65,FALSE))+(HuBil!AA22*VLOOKUP($C22,FA_Stamm,66,FALSE)),"") ->  | DI22: 0 | DJ22: 0 | DL22: =IF('1_Eingabe_Humus'!J29="HF",F22,0) -> 0
A23: 17 | B23: ='1_Eingabe_Humus'!B30 -> 1 | C23: =IF(D23="","",INDEX(FA_Stamm!A:A,MATCH(D23,FA_Stamm!B:B,0))) ->  | D23: =IF('1_Eingabe_Humus'!C30="","",'1_Eingabe_Humus'!C30) ->  | E23: ='1_Eingabe_Humus'!J30 ->  | F23: ='1_Eingabe_Humus'!F30 -> 0 | G23: =HuBil!W23 ->  | H23: =HuBil!Y23 ->  | I23: =IF(D23="","",HuBil!W23-HuBil!X23) ->  | J23: =IF(D23="","",HuBil!Y23-HuBil!Z23-HuBil!AA23) ->  | K23: =HuBil!Z23 -> 0 | L23: =HuBil!AB23 ->  | M23: =HuBil!AC23 ->  | N23: =HuBil!AD23 ->  | O23: 0 | Q23: =IF(F23>0,HuBil!AF23,"") ->  | R23: =HuBil!AG23 ->  | S23: 0 | T23: =HuBil!AI23 -> 0 | U23: =Düngung!G23 -> 0 | V23: =Düngung!CP23 -> 0 | W23: =Düngung!DB23 -> 0 | X23: =Düngung!DN23 -> 0 | Y23: 0 | Z23: 0 | AA23: =HuBil!AP23 ->  | AB23: =IF(D23="","",HuBil!V23*HuBil!Z23) ->  | AC23: =IF(D23="","",(HuBil!V23*HuBil!AA23)+(HuBil!U23*HuBil!X23)) ->  | AF23: =HuBil!BH23*55 -> 0 | AG23: 0 | AH23: 0 | AJ23: =IF(F23>0,VLOOKUP(C23,FA_Stamm!A:Y,IF($D$1=2,25,24),FALSE)*G23,"") ->  | AK23: =IF(F23>0,VLOOKUP(C23,FA_Stamm!A:AA,IF($D$1=2,27,26),FALSE)*H23,"") ->  | AN23: ='1_Eingabe_Humus'!F66*IF('1_Eingabe_Humus'!$J$36=2,0.4364,1) -> 0 | AO23: =IF(F23>0,Düngung!CR23*IF('1_Eingabe_Humus'!$J$36=2,0.4364,1),"") ->  | AP23: =IF(F23>0,Düngung!DD23*IF('1_Eingabe_Humus'!$J$36=2,0.4364,1),"") ->  | AQ23: =IF(F23>0,Düngung!DP23*IF('1_Eingabe_Humus'!$J$36=2,0.4364,1),"") ->  | AT23: =IF(F23>0,HuBil!Z23*VLOOKUP($C23,FA_Stamm,IF($D$1=2,27,26),FALSE),"") ->  | AU23: =IF(F23>0, (HuBil!X23*VLOOKUP($C23,FA_Stamm,IF($D$1=2,25,24),FALSE))+(HuBil!AA23*VLOOKUP($C23,FA_Stamm,IF($D$1=2,27,26),FALSE)),"") ->  | AZ23: =IF(F23>0,VLOOKUP(C23,FA_Stamm!A:AE,IF($D$1=2,29,28),FALSE)*G23,"") ->  | BA23: =IF(F23>0,VLOOKUP(C23,FA_Stamm!A:AE,IF($D$1=2,31,30),FALSE)*H23,"") ->  | BD23: ='1_Eingabe_Humus'!G66*IF('1_Eingabe_Humus'!$J$36=2,0.83,1) -> 0 | BE23: =Düngung!CS23*IF('1_Eingabe_Humus'!$J$36=2,0.83,1) -> 0 | BF23: =Düngung!DE23*IF('1_Eingabe_Humus'!$J$36=2,0.83,1) -> 0 | BG23: =Düngung!DQ23*IF('1_Eingabe_Humus'!$J$36=2,0.83,1) -> 0 | BJ23: =IF(F23>0,HuBil!Z23*VLOOKUP($C23,FA_Stamm,IF($D$1=2,31,30),FALSE),"") ->  | BK23: =IF(F23>0, (HuBil!X23*VLOOKUP($C23,FA_Stamm,IF($D$1=2,29,28),FALSE))+(HuBil!AA23*VLOOKUP($C23,FA_Stamm,IF($D$1=2,31,30),FALSE)),"") ->  | BM23: 0 | BN23: 0 | BT23: ='1_Eingabe_Humus'!#REF! ->  | BU23: =Düngung!CT23 -> 0 | BV23: =Düngung!DF23 -> 0 | BW23: =Düngung!DR23 -> 0 | BZ23: =IF(F23>0,HuBil!Z23*VLOOKUP($C23,FA_Stamm,62,FALSE),"") ->  | CA23: =IF(F23>0, (HuBil!X23*VLOOKUP($C23,FA_Stamm,61,FALSE))+(HuBil!AA23*VLOOKUP($C23,FA_Stamm,62,FALSE)),"") ->  | CC23: 0 | CD23: 0 | CJ23: 0 | CK23: =Düngung!CU23 -> 0 | CL23: =Düngung!DG23 -> 0 | CM23: =Düngung!DS23 -> 0 | CP23: =IF(F23>0,HuBil!Z23*VLOOKUP($C23,FA_Stamm,64,FALSE),"") ->  | CQ23: =IF(F23>0, (HuBil!X23*VLOOKUP($C23,FA_Stamm,63,FALSE))+(HuBil!AA23*VLOOKUP($C23,FA_Stamm,64,FALSE)),"") ->  | CS23: 0 | CT23: 0 | CZ23: =IF(ISNA(IF(INDEX('3_Mineraldüngung_Pflanzenschutz'!$I$6:$I$27,MATCH(D23,'3_Mineraldüngung_Pflanzenschutz'!$A$6:$A$27,0))="",0)),0, IF(INDEX('3_Mineraldüngung_Pflanzenschutz'!$I$6:$I$27,MATCH(D23,'3_Mineraldüngung_Pflanzenschutz'!$A$6:$A$27,0))="",0, (LARGE(INDEX('3_Mineraldüngung_Pflanzenschutz'!$I$6:$I$27,MATCH(D23,'3_Mineraldüngung_Pflanzenschutz'!$A$6:$A$27,0)),1)*'3_Mineraldüngung_Pflanzenschutz'!$J$5*0.588235294*IF('3_Mineraldüngung_Pflanzenschutz'!$D$5="in ha",VLOOKUP(D23,'3_Mineraldüngung_Pflanzenschutz'!$A$6:$D$27,4,FALSE)/F23,VLOOKUP(D23,'3_Mineraldüngung_Pflanzenschutz'!$A$6:$D$27,4,FALSE)/100)))) -> 0 | DA23: =Düngung!CV23 -> 0 | DB23: =Düngung!DH23 -> 0 | DC23: =Düngung!DT23 -> 0 | DF23: =IF(F23>0,HuBil!Z23*VLOOKUP($C23,FA_Stamm,66,FALSE),"") ->  | DG23: =IF(F23>0, (HuBil!X23*VLOOKUP($C23,FA_Stamm,65,FALSE))+(HuBil!AA23*VLOOKUP($C23,FA_Stamm,66,FALSE)),"") ->  | DI23: 0 | DJ23: 0 | DL23: =IF('1_Eingabe_Humus'!J30="HF",F23,0) -> 0
A24: 18 | B24: ='1_Eingabe_Humus'!B31 -> 1 | C24: =IF(D24="","",INDEX(FA_Stamm!A:A,MATCH(D24,FA_Stamm!B:B,0))) ->  | D24: =IF('1_Eingabe_Humus'!C31="","",'1_Eingabe_Humus'!C31) ->  | E24: ='1_Eingabe_Humus'!J31 ->  | F24: ='1_Eingabe_Humus'!F31 -> 0 | G24: =HuBil!W24 ->  | H24: =HuBil!Y24 ->  | I24: =IF(D24="","",HuBil!W24-HuBil!X24) ->  | J24: =IF(D24="","",HuBil!Y24-HuBil!Z24-HuBil!AA24) ->  | K24: =HuBil!Z24 -> 0 | L24: =HuBil!AB24 ->  | M24: =HuBil!AC24 ->  | N24: =HuBil!AD24 ->  | O24: 0 | Q24: =IF(F24>0,HuBil!AF24,"") ->  | R24: =HuBil!AG24 ->  | S24: 0 | T24: =HuBil!AI24 -> 0 | U24: =Düngung!G24 -> 0 | V24: =Düngung!CP24 -> 0 | W24: =Düngung!DB24 -> 0 | X24: =Düngung!DN24 -> 0 | Y24: 0 | Z24: 0 | AA24: =HuBil!AP24 ->  | AB24: =IF(D24="","",HuBil!V24*HuBil!Z24) ->  | AC24: =IF(D24="","",(HuBil!V24*HuBil!AA24)+(HuBil!U24*HuBil!X24)) ->  | AF24: =HuBil!BH24*55 -> 0 | AG24: 0 | AH24: 0 | AJ24: =IF(F24>0,VLOOKUP(C24,FA_Stamm!A:Y,IF($D$1=2,25,24),FALSE)*G24,"") ->  | AK24: =IF(F24>0,VLOOKUP(C24,FA_Stamm!A:AA,IF($D$1=2,27,26),FALSE)*H24,"") ->  | AN24: ='1_Eingabe_Humus'!F67*IF('1_Eingabe_Humus'!$J$36=2,0.4364,1) -> 0 | AO24: =IF(F24>0,Düngung!CR24*IF('1_Eingabe_Humus'!$J$36=2,0.4364,1),"") ->  | AP24: =IF(F24>0,Düngung!DD24*IF('1_Eingabe_Humus'!$J$36=2,0.4364,1),"") ->  | AQ24: =IF(F24>0,Düngung!DP24*IF('1_Eingabe_Humus'!$J$36=2,0.4364,1),"") ->  | AT24: =IF(F24>0,HuBil!Z24*VLOOKUP($C24,FA_Stamm,IF($D$1=2,27,26),FALSE),"") ->  | AU24: =IF(F24>0, (HuBil!X24*VLOOKUP($C24,FA_Stamm,IF($D$1=2,25,24),FALSE))+(HuBil!AA24*VLOOKUP($C24,FA_Stamm,IF($D$1=2,27,26),FALSE)),"") ->  | AZ24: =IF(F24>0,VLOOKUP(C24,FA_Stamm!A:AE,IF($D$1=2,29,28),FALSE)*G24,"") ->  | BA24: =IF(F24>0,VLOOKUP(C24,FA_Stamm!A:AE,IF($D$1=2,31,30),FALSE)*H24,"") ->  | BD24: ='1_Eingabe_Humus'!G67*IF('1_Eingabe_Humus'!$J$36=2,0.83,1) -> 0 | BE24: =Düngung!CS24*IF('1_Eingabe_Humus'!$J$36=2,0.83,1) -> 0 | BF24: =Düngung!DE24*IF('1_Eingabe_Humus'!$J$36=2,0.83,1) -> 0 | BG24: =Düngung!DQ24*IF('1_Eingabe_Humus'!$J$36=2,0.83,1) -> 0 | BJ24: =IF(F24>0,HuBil!Z24*VLOOKUP($C24,FA_Stamm,IF($D$1=2,31,30),FALSE),"") ->  | BK24: =IF(F24>0, (HuBil!X24*VLOOKUP($C24,FA_Stamm,IF($D$1=2,29,28),FALSE))+(HuBil!AA24*VLOOKUP($C24,FA_Stamm,IF($D$1=2,31,30),FALSE)),"") ->  | BM24: 0 | BN24: 0 | BT24: ='1_Eingabe_Humus'!#REF! ->  | BU24: =Düngung!CT24 -> 0 | BV24: =Düngung!DF24 -> 0 | BW24: =Düngung!DR24 -> 0 | BZ24: =IF(F24>0,HuBil!Z24*VLOOKUP($C24,FA_Stamm,62,FALSE),"") ->  | CA24: =IF(F24>0, (HuBil!X24*VLOOKUP($C24,FA_Stamm,61,FALSE))+(HuBil!AA24*VLOOKUP($C24,FA_Stamm,62,FALSE)),"") ->  | CC24: 0 | CD24: 0 | CJ24: 0 | CK24: =Düngung!CU24 -> 0 | CL24: =Düngung!DG24 -> 0 | CM24: =Düngung!DS24 -> 0 | CP24: =IF(F24>0,HuBil!Z24*VLOOKUP($C24,FA_Stamm,64,FALSE),"") ->  | CQ24: =IF(F24>0, (HuBil!X24*VLOOKUP($C24,FA_Stamm,63,FALSE))+(HuBil!AA24*VLOOKUP($C24,FA_Stamm,64,FALSE)),"") ->  | CS24: 0 | CT24: 0 | CZ24: =IF(ISNA(IF(INDEX('3_Mineraldüngung_Pflanzenschutz'!$I$6:$I$27,MATCH(D24,'3_Mineraldüngung_Pflanzenschutz'!$A$6:$A$27,0))="",0)),0, IF(INDEX('3_Mineraldüngung_Pflanzenschutz'!$I$6:$I$27,MATCH(D24,'3_Mineraldüngung_Pflanzenschutz'!$A$6:$A$27,0))="",0, (LARGE(INDEX('3_Mineraldüngung_Pflanzenschutz'!$I$6:$I$27,MATCH(D24,'3_Mineraldüngung_Pflanzenschutz'!$A$6:$A$27,0)),1)*'3_Mineraldüngung_Pflanzenschutz'!$J$5*0.588235294*IF('3_Mineraldüngung_Pflanzenschutz'!$D$5="in ha",VLOOKUP(D24,'3_Mineraldüngung_Pflanzenschutz'!$A$6:$D$27,4,FALSE)/F24,VLOOKUP(D24,'3_Mineraldüngung_Pflanzenschutz'!$A$6:$D$27,4,FALSE)/100)))) -> 0 | DA24: =Düngung!CV24 -> 0 | DB24: =Düngung!DH24 -> 0 | DC24: =Düngung!DT24 -> 0 | DF24: =IF(F24>0,HuBil!Z24*VLOOKUP($C24,FA_Stamm,66,FALSE),"") ->  | DG24: =IF(F24>0, (HuBil!X24*VLOOKUP($C24,FA_Stamm,65,FALSE))+(HuBil!AA24*VLOOKUP($C24,FA_Stamm,66,FALSE)),"") ->  | DI24: 0 | DJ24: 0 | DL24: =IF('1_Eingabe_Humus'!J31="HF",F24,0) -> 0
A25: 19 | B25: ='1_Eingabe_Humus'!B32 -> 1 | C25: =IF(D25="","",INDEX(FA_Stamm!A:A,MATCH(D25,FA_Stamm!B:B,0))) ->  | D25: =IF('1_Eingabe_Humus'!C32="","",'1_Eingabe_Humus'!C32) ->  | E25: ='1_Eingabe_Humus'!J32 ->  | F25: ='1_Eingabe_Humus'!F32 -> 0 | G25: =HuBil!W25 ->  | H25: =HuBil!Y25 ->  | I25: =IF(D25="","",HuBil!W25-HuBil!X25) ->  | J25: =IF(D25="","",HuBil!Y25-HuBil!Z25-HuBil!AA25) ->  | K25: =HuBil!Z25 -> 0 | L25: =HuBil!AB25 ->  | M25: =HuBil!AC25 ->  | N25: =HuBil!AD25 ->  | O25: 0 | Q25: =IF(F25>0,HuBil!AF25,"") ->  | R25: =HuBil!AG25 ->  | S25: 0 | T25: =HuBil!AI25 -> 0 | U25: =Düngung!G25 -> 0 | V25: =Düngung!CP25 -> 0 | W25: =Düngung!DB25 -> 0 | X25: =Düngung!DN25 -> 0 | Y25: 0 | Z25: 0 | AA25: =HuBil!AP25 ->  | AB25: =IF(D25="","",HuBil!V25*HuBil!Z25) ->  | AC25: =IF(D25="","",(HuBil!V25*HuBil!AA25)+(HuBil!U25*HuBil!X25)) ->  | AF25: =HuBil!BH25*55 -> 0 | AG25: 0 | AH25: 0 | AJ25: =IF(F25>0,VLOOKUP(C25,FA_Stamm!A:Y,IF($D$1=2,25,24),FALSE)*G25,"") ->  | AK25: =IF(F25>0,VLOOKUP(C25,FA_Stamm!A:AA,IF($D$1=2,27,26),FALSE)*H25,"") ->  | AN25: ='1_Eingabe_Humus'!F68*IF('1_Eingabe_Humus'!$J$36=2,0.4364,1) -> 0 | AO25: =IF(F25>0,Düngung!CR25*IF('1_Eingabe_Humus'!$J$36=2,0.4364,1),"") ->  | AP25: =IF(F25>0,Düngung!DD25*IF('1_Eingabe_Humus'!$J$36=2,0.4364,1),"") ->  | AQ25: =IF(F25>0,Düngung!DP25*IF('1_Eingabe_Humus'!$J$36=2,0.4364,1),"") ->  | AT25: =IF(F25>0,HuBil!Z25*VLOOKUP($C25,FA_Stamm,IF($D$1=2,27,26),FALSE),"") ->  | AU25: =IF(F25>0, (HuBil!X25*VLOOKUP($C25,FA_Stamm,IF($D$1=2,25,24),FALSE))+(HuBil!AA25*VLOOKUP($C25,FA_Stamm,IF($D$1=2,27,26),FALSE)),"") ->  | AZ25: =IF(F25>0,VLOOKUP(C25,FA_Stamm!A:AE,IF($D$1=2,29,28),FALSE)*G25,"") ->  | BA25: =IF(F25>0,VLOOKUP(C25,FA_Stamm!A:AE,IF($D$1=2,31,30),FALSE)*H25,"") ->  | BD25: ='1_Eingabe_Humus'!G68*IF('1_Eingabe_Humus'!$J$36=2,0.83,1) -> 0 | BE25: =Düngung!CS25*IF('1_Eingabe_Humus'!$J$36=2,0.83,1) -> 0 | BF25: =Düngung!DE25*IF('1_Eingabe_Humus'!$J$36=2,0.83,1) -> 0 | BG25: =Düngung!DQ25*IF('1_Eingabe_Humus'!$J$36=2,0.83,1) -> 0 | BJ25: =IF(F25>0,HuBil!Z25*VLOOKUP($C25,FA_Stamm,IF($D$1=2,31,30),FALSE),"") ->  | BK25: =IF(F25>0, (HuBil!X25*VLOOKUP($C25,FA_Stamm,IF($D$1=2,29,28),FALSE))+(HuBil!AA25*VLOOKUP($C25,FA_Stamm,IF($D$1=2,31,30),FALSE)),"") ->  | BM25: 0 | BN25: 0 | BT25: ='1_Eingabe_Humus'!#REF! ->  | BU25: =Düngung!CT25 -> 0 | BV25: =Düngung!DF25 -> 0 | BW25: =Düngung!DR25 -> 0 | BZ25: =IF(F25>0,HuBil!Z25*VLOOKUP($C25,FA_Stamm,62,FALSE),"") ->  | CA25: =IF(F25>0, (HuBil!X25*VLOOKUP($C25,FA_Stamm,61,FALSE))+(HuBil!AA25*VLOOKUP($C25,FA_Stamm,62,FALSE)),"") ->  | CC25: 0 | CD25: 0 | CJ25: 0 | CK25: =Düngung!CU25 -> 0 | CL25: =Düngung!DG25 -> 0 | CM25: =Düngung!DS25 -> 0 | CP25: =IF(F25>0,HuBil!Z25*VLOOKUP($C25,FA_Stamm,64,FALSE),"") ->  | CQ25: =IF(F25>0, (HuBil!X25*VLOOKUP($C25,FA_Stamm,63,FALSE))+(HuBil!AA25*VLOOKUP($C25,FA_Stamm,64,FALSE)),"") ->  | CS25: 0 | CT25: 0 | CZ25: =IF(ISNA(IF(INDEX('3_Mineraldüngung_Pflanzenschutz'!$I$6:$I$27,MATCH(D25,'3_Mineraldüngung_Pflanzenschutz'!$A$6:$A$27,0))="",0)),0, IF(INDEX('3_Mineraldüngung_Pflanzenschutz'!$I$6:$I$27,MATCH(D25,'3_Mineraldüngung_Pflanzenschutz'!$A$6:$A$27,0))="",0, (LARGE(INDEX('3_Mineraldüngung_Pflanzenschutz'!$I$6:$I$27,MATCH(D25,'3_Mineraldüngung_Pflanzenschutz'!$A$6:$A$27,0)),1)*'3_Mineraldüngung_Pflanzenschutz'!$J$5*0.588235294*IF('3_Mineraldüngung_Pflanzenschutz'!$D$5="in ha",VLOOKUP(D25,'3_Mineraldüngung_Pflanzenschutz'!$A$6:$D$27,4,FALSE)/F25,VLOOKUP(D25,'3_Mineraldüngung_Pflanzenschutz'!$A$6:$D$27,4,FALSE)/100)))) -> 0 | DA25: =Düngung!CV25 -> 0 | DB25: =Düngung!DH25 -> 0 | DC25: =Düngung!DT25 -> 0 | DF25: =IF(F25>0,HuBil!Z25*VLOOKUP($C25,FA_Stamm,66,FALSE),"") ->  | DG25: =IF(F25>0, (HuBil!X25*VLOOKUP($C25,FA_Stamm,65,FALSE))+(HuBil!AA25*VLOOKUP($C25,FA_Stamm,66,FALSE)),"") ->  | DI25: 0 | DJ25: 0 | DL25: =IF('1_Eingabe_Humus'!J32="HF",F25,0) -> 0
A26: 20 | B26: ='1_Eingabe_Humus'!B33 -> 0 | C26: =IF(D26="","",INDEX(FA_Stamm!A:A,MATCH(D26,FA_Stamm!B:B,0))) -> 32 | D26: =IF('1_Eingabe_Humus'!C33="","",'1_Eingabe_Humus'!C33) -> Grünland | E26: ='1_Eingabe_Humus'!J33 -> HF | F26: ='1_Eingabe_Humus'!F33 -> 0 | G26: =HuBil!W26 -> 0 | H26: =HuBil!Y26 -> 0 | I26: =IF(D26="","",HuBil!W26-HuBil!X26) -> 0 | J26: =IF(D26="","",HuBil!Y26-HuBil!Z26-HuBil!AA26) -> 0 | K26: =HuBil!Z26 -> 0 | L26: =HuBil!AB26 -> 0 | M26: =HuBil!AC26 -> 0 | N26: =HuBil!AD26 -> 0 | O26: 0 | Q26: =IF(F26>0,HuBil!AF26,"") ->  | R26: =IF(F26>0,HuBil!AG26,"") ->  | S26: =SUM(Q26:R26) -> 0 | T26: =HuBil!AI26 -> 0 | U26: =Düngung!G26 -> 0 | V26: =Düngung!CP26 -> 0 | W26: =Düngung!DB26 -> 0 | X26: =Düngung!DN26 -> 0 | Y26: 0 | Z26: 0 | AA26: =HuBil!AP26 -> 0 | AB26: =IF(D26="","",HuBil!V26*HuBil!Z26) -> 0 | AC26: =IF(D26="","",(HuBil!V26*HuBil!AA26)+(HuBil!U26*HuBil!X26)) -> 0 | AD26: 0 | AE26: =IF(D26="","",T26+U26+Y26+Z26+AA26+AD26) -> 0 | AF26: =HuBil!BH26*55 -> 0 | AG26: =IF(F26>0,AE26-O26,0) -> 0 | AH26: 0 | AJ26: =IF(F26>0,VLOOKUP(C26,FA_Stamm!A:Y,IF($D$1=2,25,24),FALSE)*G26,"") ->  | AK26: =IF(F26>0,VLOOKUP(C26,FA_Stamm!A:AA,IF($D$1=2,27,26),FALSE)*H26,"") ->  | AM26: =IF(F26>0,AL26-AU26,"") ->  | AN26: ='1_Eingabe_Humus'!F69*IF('1_Eingabe_Humus'!$J$36=2,0.4364,1) -> 0 | AO26: =IF(F26>0,Düngung!CR26*IF('1_Eingabe_Humus'!$J$36=2,0.4364,1),"") ->  | AP26: =IF(F26>0,Düngung!DD26*IF('1_Eingabe_Humus'!$J$36=2,0.4364,1),"") ->  | AQ26: =IF(F26>0,Düngung!DP26*IF('1_Eingabe_Humus'!$J$36=2,0.4364,1),"") ->  | AT26: =IF(F26>0,HuBil!Z26*VLOOKUP($C26,FA_Stamm,IF($D$1=2,27,26),FALSE),"") ->  | AU26: =IF(F26>0, (HuBil!X26*VLOOKUP($C26,FA_Stamm,IF($D$1=2,25,24),FALSE))+(HuBil!AA26*VLOOKUP($C26,FA_Stamm,IF($D$1=2,27,26),FALSE)),"") ->  | AZ26: =IF(F26>0,VLOOKUP(C26,FA_Stamm!A:AE,IF($D$1=2,29,28),FALSE)*G26,"") ->  | BA26: =IF(F26>0,VLOOKUP(C26,FA_Stamm!A:AE,IF($D$1=2,31,30),FALSE)*H26,"") ->  | BD26: ='1_Eingabe_Humus'!G69*IF('1_Eingabe_Humus'!$J$36=2,0.83,1) -> 0 | BE26: =Düngung!CS26*IF('1_Eingabe_Humus'!$J$36=2,0.83,1) -> 0 | BF26: =Düngung!DE26*IF('1_Eingabe_Humus'!$J$36=2,0.83,1) -> 0 | BG26: =Düngung!DQ26*IF('1_Eingabe_Humus'!$J$36=2,0.83,1) -> 0 | BJ26: =IF(F26>0,HuBil!Z26*VLOOKUP($C26,FA_Stamm,IF($D$1=2,31,30),FALSE),"") ->  | BK26: =IF(F26>0, (HuBil!X26*VLOOKUP($C26,FA_Stamm,IF($D$1=2,29,28),FALSE))+(HuBil!AA26*VLOOKUP($C26,FA_Stamm,IF($D$1=2,31,30),FALSE)),"") ->  | BM26: 0 | BN26: 0 | BO26: =IF(AND(F26>0,BM26>0),BC26/BM26*100,"") ->  | BT26: ='1_Eingabe_Humus'!#REF! ->  | BU26: =Düngung!CT26 -> 0 | BV26: =Düngung!DF26 -> 0 | BW26: =Düngung!DR26 -> 0 | BZ26: =IF(F26>0,HuBil!Z26*VLOOKUP($C26,FA_Stamm,62,FALSE),"") ->  | CA26: =IF(F26>0, (HuBil!X26*VLOOKUP($C26,FA_Stamm,61,FALSE))+(HuBil!AA26*VLOOKUP($C26,FA_Stamm,62,FALSE)),"") ->  | CC26: 0 | CD26: 0 | CJ26: 0 | CK26: =Düngung!CU26 -> 0 | CL26: =Düngung!DG26 -> 0 | CM26: =Düngung!DS26 -> 0 | CP26: =IF(F26>0,HuBil!Z26*VLOOKUP($C26,FA_Stamm,64,FALSE),"") ->  | CQ26: =IF(F26>0, (HuBil!X26*VLOOKUP($C26,FA_Stamm,63,FALSE))+(HuBil!AA26*VLOOKUP($C26,FA_Stamm,64,FALSE)),"") ->  | CS26: 0 | CT26: 0 | CZ26: =IF(ISNA(IF(INDEX('3_Mineraldüngung_Pflanzenschutz'!$I$6:$I$27,MATCH(D26,'3_Mineraldüngung_Pflanzenschutz'!$A$6:$A$27,0))="",0)),0, IF(INDEX('3_Mineraldüngung_Pflanzenschutz'!$I$6:$I$27,MATCH(D26,'3_Mineraldüngung_Pflanzenschutz'!$A$6:$A$27,0))="",0, (LARGE(INDEX('3_Mineraldüngung_Pflanzenschutz'!$I$6:$I$27,MATCH(D26,'3_Mineraldüngung_Pflanzenschutz'!$A$6:$A$27,0)),1)*'3_Mineraldüngung_Pflanzenschutz'!$J$5*0.588235294*IF('3_Mineraldüngung_Pflanzenschutz'!$D$5="in ha",VLOOKUP(D26,'3_Mineraldüngung_Pflanzenschutz'!$A$6:$D$27,4,FALSE)/F26,VLOOKUP(D26,'3_Mineraldüngung_Pflanzenschutz'!$A$6:$D$27,4,FALSE)/100)))) -> 0 | DA26: =Düngung!CV26 -> 0 | DB26: =Düngung!DH26 -> 0 | DC26: =Düngung!DT26 -> 0 | DF26: =IF(F26>0,HuBil!Z26*VLOOKUP($C26,FA_Stamm,66,FALSE),"") ->  | DG26: =IF(F26>0, (HuBil!X26*VLOOKUP($C26,FA_Stamm,65,FALSE))+(HuBil!AA26*VLOOKUP($C26,FA_Stamm,66,FALSE)),"") ->  | DI26: 0 | DJ26: 0 | DK26: =IF(F26>0,CY26/DI26*100,"") ->  | DL26: =IF('1_Eingabe_Humus'!J33="HF",F26,0) -> 0
B27: Ergebnis Ackerland | E27: ha | F27: =DL27 -> 20 | G27: =SUMPRODUCT(G7:G25,$F$7:$F$25)/$DL$27 -> 4 | H27: =SUMPRODUCT(H7:H25,$F$7:$F$25)/$DL$27 -> 0 | I27: 0.8 | J27: 0 | K27: 0 | L27: 3.2 | M27: 9.6 | N27: 0 | O27: 9.6 | P27: 1.92 | Q27: 0 | R27: 0 | S27: 0 | T27: 20 | U27: 0 | V27: 0 | W27: 0 | X27: 0 | Y27: 0 | Z27: 0 | AA27: 0.4085 | AB27: 0 | AC27: 7.68 | AD27: 7.68 | AE27: =SUMPRODUCT(AE7:AE25,$F$7:$F$25)/$DL$27 -> 28.0885 | AF27: 26.51 | AG27: =SUMPRODUCT(AG7:AG25,$F$7:$F$25)/$DL$27 -> 18.4885 | AH27: -8.0215 | AI27: 6.835537676 | AJ27: =SUMPRODUCT(AJ7:AJ25,$F$7:$F$25)/$DL$27 -> 1.4 | AK27: 0 | AL27: 1.4 | AM27: 0.28 | AN27: =(SUMPRODUCT(AN7:AN25,$F$7:$F$25)/$DL$27) -> 0 | AO27: =(SUMPRODUCT(AO7:AO25,$F$7:$F$25)/$DL$27) -> 0 | AP27: =(SUMPRODUCT(AP7:AP25,$F$7:$F$25)/$DL$27) -> 0 | AQ27: =(SUMPRODUCT(AQ7:AQ25,$F$7:$F$25)/$DL$27) -> 0 | AR27: 0 | AS27: 0.06235 | AT27: 0 | AU27: 1.12 | AV27: 1.12 | AW27: 1.18235 | AX27: -0.21765 | AY27: 23.68165095 | AZ27: 9.2 | BA27: 0 | BB27: 9.2 | BC27: 1.84 | BD27: 0 | BE27: 0 | BF27: 0 | BG27: 0 | BH27: 0 | BI27: 0.10105 | BJ27: 0 | BK27: 7.36 | BL27: 7.36 | BM27: 7.46105 | BN27: -1.73895 | BO27: 24.66140825 | BP27: 0.9714285714 | BQ27: 0 | BR27: 0.9714285714 | BS27: 0.1942857143 | BT27: =SUMPRODUCT(BT7:BT25,$F$7:$F$25)/$DL$27 ->  | BU27: 0 | BV27: 0 | BW27: 0 | BX27: 0 | BY27: 0.05221428571 | BZ27: 0 | CA27: 0.7771428571 | CB27: 0.7771428571 | CF27: 1 | CG27: 0 | CH27: 1 | CI27: 0.2 | CJ27: 0 | CK27: 0 | CL27: 0 | CM27: 0 | CN27: 0 | CO27: 0.05375 | CP27: 0 | CQ27: 0.8 | CR27: 0.8 | CS27: 0.85375 | CT27: 0.65375 | CU27: 23.42606149 | CV27: 0 | CW27: 0 | CX27: 0 | CY27: 0 | CZ27: 0 | DA27: 0 | DB27: 0 | DC27: 0 | DD27: 0 | DE27: 0 | DF27: 0 | DG27: 0 | DH27: 0 | DI27: 0 | DJ27: 0 | DL27: =SUM(DL7:DL25) -> 20
B28: Ergebnis Gesamtbetrieb | E28: ha | F28: =DL28 -> 20 | G28: =SUMPRODUCT(G7:G26,$F$7:$F$26)/$DL$28 -> 4 | H28: =SUMPRODUCT(H7:H26,$F$7:$F$26)/$DL$28 -> 0 | I28: 0.8 | J28: 0 | K28: 0 | L28: 3.2 | M28: 9.6 | N28: 0 | O28: 9.6 | P28: 1.92 | Q28: 0 | R28: 0 | S28: 0 | T28: 20 | U28: 0 | V28: 0 | W28: 0 | X28: 0 | Y28: 0 | Z28: 0 | AA28: 0.4085 | AB28: 0 | AC28: 7.68 | AD28: 7.68 | AE28: =SUMPRODUCT(AE7:AE26,$F$7:$F$26)/$DL$28 -> 28.0885 | AF28: 26.51 | AG28: 18.4885 | AH28: -8.0215 | AI28: 6.835537676 | AJ28: 1.4 | AK28: 0 | AL28: 1.4 | AM28: 0.28 | AN28: =(SUMPRODUCT(AN7:AN26,$F$7:$F$26)/$DL$28) -> 0 | AO28: =(SUMPRODUCT(AO7:AO26,$F$7:$F$26)/$DL$28) -> 0 | AP28: =(SUMPRODUCT(AP7:AP26,$F$7:$F$26)/$DL$28) -> 0 | AQ28: =(SUMPRODUCT(AQ7:AQ26,$F$7:$F$26)/$DL$28) -> 0 | AR28: 0 | AS28: 0.06235 | AT28: 0 | AU28: 1.12 | AV28: 1.12 | AW28: 1.18235 | AX28: -0.21765 | AY28: 23.68165095 | AZ28: 9.2 | BA28: 0 | BB28: 9.2 | BC28: 1.84 | BD28: 0 | BE28: 0 | BF28: 0 | BG28: 0 | BH28: 0 | BI28: 0.10105 | BJ28: 0 | BK28: 7.36 | BL28: 7.36 | BM28: 7.46105 | BN28: =SUMPRODUCT(BN7:BN26,$F$7:$F$26)/$DL$28 -> -1.73895 | BO28: 24.66140825 | BP28: 0.9714285714 | BQ28: 0 | BR28: 0.9714285714 | BS28: 0.1942857143 | BT28: =SUMPRODUCT(BT7:BT26,$F$7:$F$26)/$DL$28 ->  | BU28: 0 | BV28: 0 | BW28: 0 | BX28: 0 | BY28: 0.05221428571 | BZ28: 0 | CA28: 0.7771428571 | CB28: 0.7771428571 | CF28: 1 | CG28: 0 | CH28: 1 | CI28: 0.2 | CJ28: 0 | CK28: 0 | CL28: 0 | CM28: 0 | CN28: 0 | CO28: 0.05375 | CP28: 0 | CQ28: 0.8 | CR28: 0.8 | CS28: 0.85375 | CT28: 0.65375 | CU28: 23.42606149 | CV28: 0 | CW28: 0 | CX28: 0 | CY28: 0 | CZ28: 0 | DA28: 0 | DB28: 0 | DC28: 0 | DD28: 0 | DE28: 0 | DF28: 0 | DG28: 0 | DH28: 0 | DI28: 0 | DJ28: 0 | DL28: =SUM(DL7:DL26) -> 20
B30: 1 | C30: Fruchtfolge 1 | F30: =HuBil!F30 -> 20 | G30: =IF($F30>0,SUMPRODUCT(G$7:G$26,HuBil!$CB$7:$CB$26)/$F30,"") -> 4 | H30: =IF($F30>0,SUMPRODUCT(H$7:H$26,HuBil!$CB$7:$CB$26)/$F30,"") -> 0 | I30: =IF($F30>0,SUMPRODUCT(I$7:I$26,HuBil!$CB$7:$CB$26)/$F30,"") -> 0.8 | J30: =IF($F30>0,SUMPRODUCT(J$7:J$26,HuBil!$CB$7:$CB$26)/$F30,"") -> 0 | K30: =IF($F30>0,SUMPRODUCT(K$7:K$26,HuBil!$CB$7:$CB$26)/$F30,"") -> 0 | L30: =IF($F30>0,SUMPRODUCT(L$7:L$26,HuBil!$CB$7:$CB$26)/$F30,"") -> 3.2 | M30: =IF($F30>0,SUMPRODUCT(M$7:M$26,HuBil!$CB$7:$CB$26)/$F30,"") -> 9.6 | N30: =IF($F30>0,SUMPRODUCT(N$7:N$26,HuBil!$CB$7:$CB$26)/$F30,"") -> 0 | O30: =IF($F30>0,SUMPRODUCT(O$7:O$26,HuBil!$CB$7:$CB$26)/$F30,"") -> 9.6 | P30: =IF($F30>0,SUMPRODUCT(P$7:P$26,HuBil!$CB$7:$CB$26)/$F30,"") -> 1.92 | Q30: =IF($F30>0,SUMPRODUCT(Q$7:Q$26,HuBil!$CB$7:$CB$26)/$F30,"") -> 0 | R30: =IF($F30>0,SUMPRODUCT(R$7:R$26,HuBil!$CB$7:$CB$26)/$F30,"") -> 0 | S30: =IF($F30>0,SUMPRODUCT(S$7:S$26,HuBil!$CB$7:$CB$26)/$F30,"") -> 0 | T30: =IF($F30>0,SUMPRODUCT(T$7:T$26,HuBil!$CB$7:$CB$26)/$F30,"") -> 20 | U30: =IF($F30>0,SUMPRODUCT(U$7:U$26,HuBil!$CB$7:$CB$26)/$F30,"") -> 0 | V30: =IF($F30>0,SUMPRODUCT(V$7:V$26,HuBil!$CB$7:$CB$26)/$F30,"") -> 0 | W30: =IF($F30>0,SUMPRODUCT(W$7:W$26,HuBil!$CB$7:$CB$26)/$F30,"") -> 0 | X30: =IF($F30>0,SUMPRODUCT(X$7:X$26,HuBil!$CB$7:$CB$26)/$F30,"") -> 0 | Y30: =IF($F30>0,SUMPRODUCT(Y$7:Y$26,HuBil!$CB$7:$CB$26)/$F30,"") -> 0 | Z30: =IF($F30>0,SUMPRODUCT(Z$7:Z$26,HuBil!$CB$7:$CB$26)/$F30,"") -> 0 | AA30: =IF($F30>0,SUMPRODUCT(AA$7:AA$26,HuBil!$CB$7:$CB$26)/$F30,"") -> 0.4085 | AB30: =IF($F30>0,SUMPRODUCT(AB$7:AB$26,HuBil!$CB$7:$CB$26)/$F30,"") -> 0 | AC30: =IF($F30>0,SUMPRODUCT(AC$7:AC$26,HuBil!$CB$7:$CB$26)/$F30,"") -> 7.68 | AD30: =IF($F30>0,SUMPRODUCT(AD$7:AD$26,HuBil!$CB$7:$CB$26)/$F30,"") -> 7.68 | AE30: =IF($F30>0,SUMPRODUCT(AE$7:AE$26,HuBil!$CB$7:$CB$26)/$F30,"") -> 28.0885 | AF30: =IF($F30>0,SUMPRODUCT(AF$7:AF$26,HuBil!$CB$7:$CB$26)/$F30,"") -> 26.51 | AG30: =IF($F30>0,SUMPRODUCT(AG$7:AG$26,HuBil!$CB$7:$CB$26)/$F30,"") -> 18.4885 | AH30: =IF($F30>0,SUMPRODUCT(AH$7:AH$26,HuBil!$CB$7:$CB$26)/$F30,"") -> -8.0215 | AI30: =IF($F30>0,SUMPRODUCT(AI$7:AI$26,HuBil!$CB$7:$CB$26)/$F30,"") -> 6.835537676 | AJ30: =IF($F30>0,SUMPRODUCT(AJ$7:AJ$26,HuBil!$CB$7:$CB$26)/$F30,"") -> 1.4 | AK30: =IF($F30>0,SUMPRODUCT(AK$7:AK$26,HuBil!$CB$7:$CB$26)/$F30,"") -> 0 | AL30: =IF($F30>0,SUMPRODUCT(AL$7:AL$26,HuBil!$CB$7:$CB$26)/$F30,"") -> 1.4 | AM30: =IF($F30>0,SUMPRODUCT(AM$7:AM$26,HuBil!$CB$7:$CB$26)/$F30,"") -> 0.28 | AN30: =IF($F30>0,SUMPRODUCT(AN$7:AN$26,HuBil!$CB$7:$CB$26)/$F30,"") -> 0 | AO30: =IF($F30>0,(SUMPRODUCT(AO$7:AO$26,HuBil!$CB$7:$CB$26)/$F30),"") -> 0 | AP30: =IF($F30>0,(SUMPRODUCT(AP$7:AP$26,HuBil!$CB$7:$CB$26)/$F30),"") -> 0 | AQ30: =IF($F30>0,(SUMPRODUCT(AQ$7:AQ$26,HuBil!$CB$7:$CB$26)/$F30),"") -> 0 | AR30: =IF($F30>0,(SUMPRODUCT(AR$7:AR$26,HuBil!$CB$7:$CB$26)/$F30),"") -> 0 | AS30: =IF($F30>0,SUMPRODUCT(AS$7:AS$26,HuBil!$CB$7:$CB$26)/$F30,"") -> 0.06235 | AT30: =IF($F30>0,SUMPRODUCT(AT$7:AT$26,HuBil!$CB$7:$CB$26)/$F30,"") -> 0 | AU30: =IF($F30>0,SUMPRODUCT(AU$7:AU$26,HuBil!$CB$7:$CB$26)/$F30,"") -> 1.12 | AV30: =IF($F30>0,SUMPRODUCT(AV$7:AV$26,HuBil!$CB$7:$CB$26)/$F30,"") -> 1.12 | AW30: =IF($F30>0,SUMPRODUCT(AW$7:AW$26,HuBil!$CB$7:$CB$26)/$F30,"") -> 1.18235 | AX30: =IF($F30>0,SUMPRODUCT(AX$7:AX$26,HuBil!$CB$7:$CB$26)/$F30,"") -> -0.21765 | AY30: =IF($F30>0,SUMPRODUCT(AY$7:AY$26,HuBil!$CB$7:$CB$26)/$F30,"") -> 23.68165095 | AZ30: =IF($F30>0,SUMPRODUCT(AZ$7:AZ$26,HuBil!$CB$7:$CB$26)/$F30,"") -> 9.2 | BA30: =IF($F30>0,SUMPRODUCT(BA$7:BA$26,HuBil!$CB$7:$CB$26)/$F30,"") -> 0 | BB30: =IF($F30>0,SUMPRODUCT(BB$7:BB$26,HuBil!$CB$7:$CB$26)/$F30,"") -> 9.2 | BC30: =IF($F30>0,SUMPRODUCT(BC$7:BC$26,HuBil!$CB$7:$CB$26)/$F30,"") -> 1.84 | BD30: =IF($F30>0,SUMPRODUCT(BD$7:BD$26,HuBil!$CB$7:$CB$26)/$F30,"") -> 0 | BE30: =IF($F30>0,SUMPRODUCT(BE$7:BE$26,HuBil!$CB$7:$CB$26)/$F30,"") -> 0 | BF30: =IF($F30>0,SUMPRODUCT(BF$7:BF$26,HuBil!$CB$7:$CB$26)/$F30,"") -> 0 | BG30: =IF($F30>0,SUMPRODUCT(BG$7:BG$26,HuBil!$CB$7:$CB$26)/$F30,"") -> 0 | BH30: =IF($F30>0,SUMPRODUCT(BH$7:BH$26,HuBil!$CB$7:$CB$26)/$F30,"") -> 0 | BI30: =IF($F30>0,SUMPRODUCT(BI$7:BI$26,HuBil!$CB$7:$CB$26)/$F30,"") -> 0.10105 | BJ30: =IF($F30>0,SUMPRODUCT(BJ$7:BJ$26,HuBil!$CB$7:$CB$26)/$F30,"") -> 0 | BK30: =IF($F30>0,SUMPRODUCT(BK$7:BK$26,HuBil!$CB$7:$CB$26)/$F30,"") -> 7.36 | BL30: =IF($F30>0,SUMPRODUCT(BL$7:BL$26,HuBil!$CB$7:$CB$26)/$F30,"") -> 7.36 | BM30: =IF($F30>0,SUMPRODUCT(BM$7:BM$26,HuBil!$CB$7:$CB$26)/$F30,"") -> 7.46105 | BN30: =IF($F30>0,SUMPRODUCT(BN$7:BN$26,HuBil!$CB$7:$CB$26)/$F30,"") -> -1.73895 | BO30: =IF($F30>0,SUMPRODUCT(BO$7:BO$26,HuBil!$CB$7:$CB$26)/$F30,"") -> 24.66140825 | BP30: =IF($F30>0,SUMPRODUCT(BP$7:BP$26,HuBil!$CB$7:$CB$26)/$F30,"") -> 0.9714285714 | BQ30: =IF($F30>0,SUMPRODUCT(BQ$7:BQ$26,HuBil!$CB$7:$CB$26)/$F30,"") -> 0 | BR30: =IF($F30>0,SUMPRODUCT(BR$7:BR$26,HuBil!$CB$7:$CB$26)/$F30,"") -> 0.9714285714 | BS30: =IF($F30>0,SUMPRODUCT(BS$7:BS$26,HuBil!$CB$7:$CB$26)/$F30,"") -> 0.1942857143 | BT30: =IF($F30>0,SUMPRODUCT(BT$7:BT$26,HuBil!$CB$7:$CB$26)/$F30,"") ->  | BU30: =IF($F30>0,SUMPRODUCT(BU$7:BU$26,HuBil!$CB$7:$CB$26)/$F30,"") -> 0 | BV30: =IF($F30>0,SUMPRODUCT(BV$7:BV$26,HuBil!$CB$7:$CB$26)/$F30,"") -> 0 | BW30: =IF($F30>0,SUMPRODUCT(BW$7:BW$26,HuBil!$CB$7:$CB$26)/$F30,"") -> 0 | BX30: =IF($F30>0,SUMPRODUCT(BX$7:BX$26,HuBil!$CB$7:$CB$26)/$F30,"") -> 0 | BY30: =IF($F30>0,SUMPRODUCT(BY$7:BY$26,HuBil!$CB$7:$CB$26)/$F30,"") -> 0.05221428571 | BZ30: =IF($F30>0,SUMPRODUCT(BZ$7:BZ$26,HuBil!$CB$7:$CB$26)/$F30,"") -> 0 | CA30: =IF($F30>0,SUMPRODUCT(CA$7:CA$26,HuBil!$CB$7:$CB$26)/$F30,"") -> 0.7771428571 | CB30: =IF($F30>0,SUMPRODUCT(CB$7:CB$26,HuBil!$CB$7:$CB$26)/$F30,"") -> 0.7771428571 | CC30: =IF($F30>0,SUMPRODUCT(CC$7:CC$26,HuBil!$CB$7:$CB$26)/$F30,"") ->  | CD30: =IF($F30>0,SUMPRODUCT(CD$7:CD$26,HuBil!$CB$7:$CB$26)/$F30,"") ->  | CE30: =IF($F30>0,SUMPRODUCT(CE$7:CE$26,HuBil!$CB$7:$CB$26)/$F30,"") ->  | CF30: =IF($F30>0,SUMPRODUCT(CF$7:CF$26,HuBil!$CB$7:$CB$26)/$F30,"") -> 1 | CG30: =IF($F30>0,SUMPRODUCT(CG$7:CG$26,HuBil!$CB$7:$CB$26)/$F30,"") -> 0 | CH30: =IF($F30>0,SUMPRODUCT(CH$7:CH$26,HuBil!$CB$7:$CB$26)/$F30,"") -> 1 | CI30: =IF($F30>0,SUMPRODUCT(CI$7:CI$26,HuBil!$CB$7:$CB$26)/$F30,"") -> 0.2 | CJ30: =IF($F30>0,SUMPRODUCT(CJ$7:CJ$26,HuBil!$CB$7:$CB$26)/$F30,"") -> 0 | CK30: =IF($F30>0,SUMPRODUCT(CK$7:CK$26,HuBil!$CB$7:$CB$26)/$F30,"") -> 0 | CL30: =IF($F30>0,SUMPRODUCT(CL$7:CL$26,HuBil!$CB$7:$CB$26)/$F30,"") -> 0 | CM30: =IF($F30>0,SUMPRODUCT(CM$7:CM$26,HuBil!$CB$7:$CB$26)/$F30,"") -> 0 | CN30: =IF($F30>0,SUMPRODUCT(CN$7:CN$26,HuBil!$CB$7:$CB$26)/$F30,"") -> 0 | CO30: =IF($F30>0,SUMPRODUCT(CO$7:CO$26,HuBil!$CB$7:$CB$26)/$F30,"") -> 0.05375 | CP30: =IF($F30>0,SUMPRODUCT(CP$7:CP$26,HuBil!$CB$7:$CB$26)/$F30,"") -> 0 | CQ30: =IF($F30>0,SUMPRODUCT(CQ$7:CQ$26,HuBil!$CB$7:$CB$26)/$F30,"") -> 0.8 | CR30: =IF($F30>0,SUMPRODUCT(CR$7:CR$26,HuBil!$CB$7:$CB$26)/$F30,"") -> 0.8 | CS30: =IF($F30>0,SUMPRODUCT(CS$7:CS$26,HuBil!$CB$7:$CB$26)/$F30,"") -> 0.85375 | CT30: =IF($F30>0,SUMPRODUCT(CT$7:CT$26,HuBil!$CB$7:$CB$26)/$F30,"") -> 0.65375 | CU30: =IF($F30>0,SUMPRODUCT(CU$7:CU$26,HuBil!$CB$7:$CB$26)/$F30,"") -> 23.42606149 | CV30: =IF($F30>0,SUMPRODUCT(CV$7:CV$26,HuBil!$CB$7:$CB$26)/$F30,"") -> 0 | CW30: =IF($F30>0,SUMPRODUCT(CW$7:CW$26,HuBil!$CB$7:$CB$26)/$F30,"") -> 0 | CX30: =IF($F30>0,SUMPRODUCT(CX$7:CX$26,HuBil!$CB$7:$CB$26)/$F30,"") -> 0 | CY30: =IF($F30>0,SUMPRODUCT(CY$7:CY$26,HuBil!$CB$7:$CB$26)/$F30,"") -> 0 | CZ30: =IF($F30>0,SUMPRODUCT(CZ$7:CZ$26,HuBil!$CB$7:$CB$26)/$F30,"") -> 0 | DA30: =IF($F30>0,SUMPRODUCT(DA$7:DA$26,HuBil!$CB$7:$CB$26)/$F30,"") -> 0 | DB30: =IF($F30>0,SUMPRODUCT(DB$7:DB$26,HuBil!$CB$7:$CB$26)/$F30,"") -> 0 | DC30: =IF($F30>0,SUMPRODUCT(DC$7:DC$26,HuBil!$CB$7:$CB$26)/$F30,"") -> 0 | DD30: =IF($F30>0,SUMPRODUCT(DD$7:DD$26,HuBil!$CB$7:$CB$26)/$F30,"") -> 0 | DE30: =IF($F30>0,SUMPRODUCT(DE$7:DE$26,HuBil!$CB$7:$CB$26)/$F30,"") -> 0 | DF30: =IF($F30>0,SUMPRODUCT(DF$7:DF$26,HuBil!$CB$7:$CB$26)/$F30,"") -> 0 | DG30: =IF($F30>0,SUMPRODUCT(DG$7:DG$26,HuBil!$CB$7:$CB$26)/$F30,"") -> 0 | DH30: =IF($F30>0,SUMPRODUCT(DH$7:DH$26,HuBil!$CB$7:$CB$26)/$F30,"") -> 0 | DI30: =IF($F30>0,SUMPRODUCT(DI$7:DI$26,HuBil!$CB$7:$CB$26)/$F30,"") -> 0 | DJ30: =IF($F30>0,SUMPRODUCT(DJ$7:DJ$26,HuBil!$CB$7:$CB$26)/$F30,"") -> 0 | DK30: =IF($F30>0,SUMPRODUCT(DK$7:DK$26,HuBil!$CB$7:$CB$26)/$F30,"") -> 
B31: 2 | C31: Fruchtfolge 2 | F31: =HuBil!F31 -> 0 | G31: =IF($F31>0,SUMPRODUCT(G$7:G$26,HuBil!$CC$7:$CC$26)/$F31,"") ->  | H31: =IF($F31>0,SUMPRODUCT(H$7:H$26,HuBil!$CC$7:$CC$26)/$F31,"") ->  | I31: =IF($F31>0,SUMPRODUCT(I$7:I$26,HuBil!$CC$7:$CC$26)/$F31,"") ->  | J31: =IF($F31>0,SUMPRODUCT(J$7:J$26,HuBil!$CC$7:$CC$26)/$F31,"") ->  | K31: =IF($F31>0,SUMPRODUCT(K$7:K$26,HuBil!$CC$7:$CC$26)/$F31,"") ->  | L31: =IF($F31>0,SUMPRODUCT(L$7:L$26,HuBil!$CC$7:$CC$26)/$F31,"") ->  | M31: =IF($F31>0,SUMPRODUCT(M$7:M$26,HuBil!$CC$7:$CC$26)/$F31,"") ->  | N31: =IF($F31>0,SUMPRODUCT(N$7:N$26,HuBil!$CC$7:$CC$26)/$F31,"") ->  | O31: =IF($F31>0,SUMPRODUCT(O$7:O$26,HuBil!$CC$7:$CC$26)/$F31,"") ->  | P31: =IF($F31>0,SUMPRODUCT(P$7:P$26,HuBil!$CC$7:$CC$26)/$F31,"") ->  | Q31: =IF($F31>0,SUMPRODUCT(Q$7:Q$26,HuBil!$CC$7:$CC$26)/$F31,"") ->  | R31: =IF($F31>0,SUMPRODUCT(R$7:R$26,HuBil!$CC$7:$CC$26)/$F31,"") ->  | S31: =IF($F31>0,SUMPRODUCT(S$7:S$26,HuBil!$CC$7:$CC$26)/$F31,"") ->  | T31: =IF($F31>0,SUMPRODUCT(T$7:T$26,HuBil!$CC$7:$CC$26)/$F31,"") ->  | U31: =IF($F31>0,SUMPRODUCT(U$7:U$26,HuBil!$CC$7:$CC$26)/$F31,"") ->  | V31: =IF($F31>0,SUMPRODUCT(V$7:V$26,HuBil!$CC$7:$CC$26)/$F31,"") ->  | W31: =IF($F31>0,SUMPRODUCT(W$7:W$26,HuBil!$CC$7:$CC$26)/$F31,"") ->  | X31: =IF($F31>0,SUMPRODUCT(X$7:X$26,HuBil!$CC$7:$CC$26)/$F31,"") ->  | Y31: =IF($F31>0,SUMPRODUCT(Y$7:Y$26,HuBil!$CC$7:$CC$26)/$F31,"") ->  | Z31: =IF($F31>0,SUMPRODUCT(Z$7:Z$26,HuBil!$CC$7:$CC$26)/$F31,"") ->  | AA31: =IF($F31>0,SUMPRODUCT(AA$7:AA$26,HuBil!$CC$7:$CC$26)/$F31,"") ->  | AB31: =IF($F31>0,SUMPRODUCT(AB$7:AB$26,HuBil!$CC$7:$CC$26)/$F31,"") ->  | AC31: =IF($F31>0,SUMPRODUCT(AC$7:AC$26,HuBil!$CC$7:$CC$26)/$F31,"") ->  | AD31: =IF($F31>0,SUMPRODUCT(AD$7:AD$26,HuBil!$CC$7:$CC$26)/$F31,"") ->  | AE31: =IF($F31>0,SUMPRODUCT(AE$7:AE$26,HuBil!$CC$7:$CC$26)/$F31,"") ->  | AF31: =IF($F31>0,SUMPRODUCT(AF$7:AF$26,HuBil!$CC$7:$CC$26)/$F31,"") ->  | AG31: =IF($F31>0,SUMPRODUCT(AG$7:AG$26,HuBil!$CC$7:$CC$26)/$F31,"") ->  | AH31: =IF($F31>0,SUMPRODUCT(AH$7:AH$26,HuBil!$CC$7:$CC$26)/$F31,"") ->  | AI31: =IF($F31>0,SUMPRODUCT(AI$7:AI$26,HuBil!$CC$7:$CC$26)/$F31,"") ->  | AJ31: =IF($F31>0,SUMPRODUCT(AJ$7:AJ$26,HuBil!$CC$7:$CC$26)/$F31,"") ->  | AK31: =IF($F31>0,SUMPRODUCT(AK$7:AK$26,HuBil!$CC$7:$CC$26)/$F31,"") ->  | AL31: =IF($F31>0,SUMPRODUCT(AL$7:AL$26,HuBil!$CC$7:$CC$26)/$F31,"") ->  | AM31: =IF($F31>0,SUMPRODUCT(AM$7:AM$26,HuBil!$CC$7:$CC$26)/$F31,"") ->  | AN31: =IF($F31>0,SUMPRODUCT(AN$7:AN$26,HuBil!$CC$7:$CC$26)/$F31,"") ->  | AO31: =IF($F31>0,SUMPRODUCT(AO$7:AO$26,HuBil!$CC$7:$CC$26)/$F31,"") ->  | AP31: =IF($F31>0,SUMPRODUCT(AP$7:AP$26,HuBil!$CC$7:$CC$26)/$F31,"") ->  | AQ31: =IF($F31>0,SUMPRODUCT(AQ$7:AQ$26,HuBil!$CC$7:$CC$26)/$F31,"") ->  | AR31: =IF($F31>0,SUMPRODUCT(AR$7:AR$26,HuBil!$CC$7:$CC$26)/$F31,"") ->  | AS31: =IF($F31>0,SUMPRODUCT(AS$7:AS$26,HuBil!$CC$7:$CC$26)/$F31,"") ->  | AT31: =IF($F31>0,SUMPRODUCT(AT$7:AT$26,HuBil!$CC$7:$CC$26)/$F31,"") ->  | AU31: =IF($F31>0,SUMPRODUCT(AU$7:AU$26,HuBil!$CC$7:$CC$26)/$F31,"") ->  | AV31: =IF($F31>0,SUMPRODUCT(AV$7:AV$26,HuBil!$CC$7:$CC$26)/$F31,"") ->  | AW31: =IF($F31>0,SUMPRODUCT(AW$7:AW$26,HuBil!$CC$7:$CC$26)/$F31,"") ->  | AX31: =IF($F31>0,SUMPRODUCT(AX$7:AX$26,HuBil!$CC$7:$CC$26)/$F31,"") ->  | AY31: =IF($F31>0,SUMPRODUCT(AY$7:AY$26,HuBil!$CC$7:$CC$26)/$F31,"") ->  | AZ31: =IF($F31>0,SUMPRODUCT(AZ$7:AZ$26,HuBil!$CC$7:$CC$26)/$F31,"") ->  | BA31: =IF($F31>0,SUMPRODUCT(BA$7:BA$26,HuBil!$CC$7:$CC$26)/$F31,"") ->  | BB31: =IF($F31>0,SUMPRODUCT(BB$7:BB$26,HuBil!$CC$7:$CC$26)/$F31,"") ->  | BC31: =IF($F31>0,SUMPRODUCT(BC$7:BC$26,HuBil!$CC$7:$CC$26)/$F31,"") ->  | BD31: =IF($F31>0,SUMPRODUCT(BD$7:BD$26,HuBil!$CC$7:$CC$26)/$F31,"") ->  | BE31: =IF($F31>0,SUMPRODUCT(BE$7:BE$26,HuBil!$CC$7:$CC$26)/$F31,"") ->  | BF31: =IF($F31>0,SUMPRODUCT(BF$7:BF$26,HuBil!$CC$7:$CC$26)/$F31,"") ->  | BG31: =IF($F31>0,SUMPRODUCT(BG$7:BG$26,HuBil!$CC$7:$CC$26)/$F31,"") ->  | BH31: =IF($F31>0,SUMPRODUCT(BH$7:BH$26,HuBil!$CC$7:$CC$26)/$F31,"") ->  | BI31: =IF($F31>0,SUMPRODUCT(BI$7:BI$26,HuBil!$CC$7:$CC$26)/$F31,"") ->  | BJ31: =IF($F31>0,SUMPRODUCT(BJ$7:BJ$26,HuBil!$CC$7:$CC$26)/$F31,"") ->  | BK31: =IF($F31>0,SUMPRODUCT(BK$7:BK$26,HuBil!$CC$7:$CC$26)/$F31,"") ->  | BL31: =IF($F31>0,SUMPRODUCT(BL$7:BL$26,HuBil!$CC$7:$CC$26)/$F31,"") ->  | BM31: =IF($F31>0,SUMPRODUCT(BM$7:BM$26,HuBil!$CC$7:$CC$26)/$F31,"") ->  | BN31: =IF($F31>0,SUMPRODUCT(BN$7:BN$26,HuBil!$CC$7:$CC$26)/$F31,"") ->  | BO31: =IF($F31>0,SUMPRODUCT(BO$7:BO$26,HuBil!$CC$7:$CC$26)/$F31,"") ->  | BP31: =IF($F31>0,SUMPRODUCT(BP$7:BP$26,HuBil!$CC$7:$CC$26)/$F31,"") ->  | BQ31: =IF($F31>0,SUMPRODUCT(BQ$7:BQ$26,HuBil!$CC$7:$CC$26)/$F31,"") ->  | BR31: =IF($F31>0,SUMPRODUCT(BR$7:BR$26,HuBil!$CC$7:$CC$26)/$F31,"") ->  | BS31: =IF($F31>0,SUMPRODUCT(BS$7:BS$26,HuBil!$CC$7:$CC$26)/$F31,"") ->  | BT31: =IF($F31>0,SUMPRODUCT(BT$7:BT$26,HuBil!$CC$7:$CC$26)/$F31,"") ->  | BU31: =IF($F31>0,SUMPRODUCT(BU$7:BU$26,HuBil!$CC$7:$CC$26)/$F31,"") ->  | BV31: =IF($F31>0,SUMPRODUCT(BV$7:BV$26,HuBil!$CC$7:$CC$26)/$F31,"") ->  | BW31: =IF($F31>0,SUMPRODUCT(BW$7:BW$26,HuBil!$CC$7:$CC$26)/$F31,"") ->  | BX31: =IF($F31>0,SUMPRODUCT(BX$7:BX$26,HuBil!$CC$7:$CC$26)/$F31,"") ->  | BY31: =IF($F31>0,SUMPRODUCT(BY$7:BY$26,HuBil!$CC$7:$CC$26)/$F31,"") ->  | BZ31: =IF($F31>0,SUMPRODUCT(BZ$7:BZ$26,HuBil!$CC$7:$CC$26)/$F31,"") ->  | CA31: =IF($F31>0,SUMPRODUCT(CA$7:CA$26,HuBil!$CC$7:$CC$26)/$F31,"") ->  | CB31: =IF($F31>0,SUMPRODUCT(CB$7:CB$26,HuBil!$CC$7:$CC$26)/$F31,"") ->  | CC31: =IF($F31>0,SUMPRODUCT(CC$7:CC$26,HuBil!$CC$7:$CC$26)/$F31,"") ->  | CD31: =IF($F31>0,SUMPRODUCT(CD$7:CD$26,HuBil!$CC$7:$CC$26)/$F31,"") ->  | CE31: =IF($F31>0,SUMPRODUCT(CE$7:CE$26,HuBil!$CC$7:$CC$26)/$F31,"") ->  | CF31: =IF($F31>0,SUMPRODUCT(CF$7:CF$26,HuBil!$CC$7:$CC$26)/$F31,"") ->  | CG31: =IF($F31>0,SUMPRODUCT(CG$7:CG$26,HuBil!$CC$7:$CC$26)/$F31,"") ->  | CH31: =IF($F31>0,SUMPRODUCT(CH$7:CH$26,HuBil!$CC$7:$CC$26)/$F31,"") ->  | CI31: =IF($F31>0,SUMPRODUCT(CI$7:CI$26,HuBil!$CC$7:$CC$26)/$F31,"") ->  | CJ31: =IF($F31>0,SUMPRODUCT(CJ$7:CJ$26,HuBil!$CC$7:$CC$26)/$F31,"") ->  | CK31: =IF($F31>0,SUMPRODUCT(CK$7:CK$26,HuBil!$CC$7:$CC$26)/$F31,"") ->  | CL31: =IF($F31>0,SUMPRODUCT(CL$7:CL$26,HuBil!$CC$7:$CC$26)/$F31,"") ->  | CM31: =IF($F31>0,SUMPRODUCT(CM$7:CM$26,HuBil!$CC$7:$CC$26)/$F31,"") ->  | CN31: =IF($F31>0,SUMPRODUCT(CN$7:CN$26,HuBil!$CC$7:$CC$26)/$F31,"") ->  | CO31: =IF($F31>0,SUMPRODUCT(CO$7:CO$26,HuBil!$CC$7:$CC$26)/$F31,"") ->  | CP31: =IF($F31>0,SUMPRODUCT(CP$7:CP$26,HuBil!$CC$7:$CC$26)/$F31,"") ->  | CQ31: =IF($F31>0,SUMPRODUCT(CQ$7:CQ$26,HuBil!$CC$7:$CC$26)/$F31,"") ->  | CR31: =IF($F31>0,SUMPRODUCT(CR$7:CR$26,HuBil!$CC$7:$CC$26)/$F31,"") ->  | CS31: =IF($F31>0,SUMPRODUCT(CS$7:CS$26,HuBil!$CC$7:$CC$26)/$F31,"") ->  | CT31: =IF($F31>0,SUMPRODUCT(CT$7:CT$26,HuBil!$CC$7:$CC$26)/$F31,"") ->  | CU31: =IF($F31>0,SUMPRODUCT(CU$7:CU$26,HuBil!$CC$7:$CC$26)/$F31,"") ->  | CV31: =IF($F31>0,SUMPRODUCT(CV$7:CV$26,HuBil!$CC$7:$CC$26)/$F31,"") ->  | CW31: =IF($F31>0,SUMPRODUCT(CW$7:CW$26,HuBil!$CC$7:$CC$26)/$F31,"") ->  | CX31: =IF($F31>0,SUMPRODUCT(CX$7:CX$26,HuBil!$CC$7:$CC$26)/$F31,"") ->  | CY31: =IF($F31>0,SUMPRODUCT(CY$7:CY$26,HuBil!$CC$7:$CC$26)/$F31,"") ->  | CZ31: =IF($F31>0,SUMPRODUCT(CZ$7:CZ$26,HuBil!$CC$7:$CC$26)/$F31,"") ->  | DA31: =IF($F31>0,SUMPRODUCT(DA$7:DA$26,HuBil!$CC$7:$CC$26)/$F31,"") ->  | DB31: =IF($F31>0,SUMPRODUCT(DB$7:DB$26,HuBil!$CC$7:$CC$26)/$F31,"") ->  | DC31: =IF($F31>0,SUMPRODUCT(DC$7:DC$26,HuBil!$CC$7:$CC$26)/$F31,"") ->  | DD31: =IF($F31>0,SUMPRODUCT(DD$7:DD$26,HuBil!$CC$7:$CC$26)/$F31,"") ->  | DE31: =IF($F31>0,SUMPRODUCT(DE$7:DE$26,HuBil!$CC$7:$CC$26)/$F31,"") ->  | DF31: =IF($F31>0,SUMPRODUCT(DF$7:DF$26,HuBil!$CC$7:$CC$26)/$F31,"") ->  | DG31: =IF($F31>0,SUMPRODUCT(DG$7:DG$26,HuBil!$CC$7:$CC$26)/$F31,"") ->  | DH31: =IF($F31>0,SUMPRODUCT(DH$7:DH$26,HuBil!$CC$7:$CC$26)/$F31,"") ->  | DI31: =IF($F31>0,SUMPRODUCT(DI$7:DI$26,HuBil!$CC$7:$CC$26)/$F31,"") ->  | DJ31: =IF($F31>0,SUMPRODUCT(DJ$7:DJ$26,HuBil!$CC$7:$CC$26)/$F31,"") ->  | DK31: =IF($F31>0,SUMPRODUCT(DK$7:DK$26,HuBil!$CC$7:$CC$26)/$F31,"") -> 
B32: 3 | C32: Fruchtfolge 3 | F32: =HuBil!F32 -> 0 | G32: =IF($F32>0,SUMPRODUCT(G$7:G$26,HuBil!$CD$7:$CD$26)/$F32,"") ->  | H32: =IF($F32>0,SUMPRODUCT(H$7:H$26,HuBil!$CD$7:$CD$26)/$F32,"") ->  | I32: =IF($F32>0,SUMPRODUCT(I$7:I$26,HuBil!$CD$7:$CD$26)/$F32,"") ->  | J32: =IF($F32>0,SUMPRODUCT(J$7:J$26,HuBil!$CD$7:$CD$26)/$F32,"") ->  | K32: =IF($F32>0,SUMPRODUCT(K$7:K$26,HuBil!$CD$7:$CD$26)/$F32,"") ->  | L32: =IF($F32>0,SUMPRODUCT(L$7:L$26,HuBil!$CD$7:$CD$26)/$F32,"") ->  | M32: =IF($F32>0,SUMPRODUCT(M$7:M$26,HuBil!$CD$7:$CD$26)/$F32,"") ->  | N32: =IF($F32>0,SUMPRODUCT(N$7:N$26,HuBil!$CD$7:$CD$26)/$F32,"") ->  | O32: =IF($F32>0,SUMPRODUCT(O$7:O$26,HuBil!$CD$7:$CD$26)/$F32,"") ->  | P32: =IF($F32>0,SUMPRODUCT(P$7:P$26,HuBil!$CD$7:$CD$26)/$F32,"") ->  | Q32: =IF($F32>0,SUMPRODUCT(Q$7:Q$26,HuBil!$CD$7:$CD$26)/$F32,"") ->  | R32: =IF($F32>0,SUMPRODUCT(R$7:R$26,HuBil!$CD$7:$CD$26)/$F32,"") ->  | S32: =IF($F32>0,SUMPRODUCT(S$7:S$26,HuBil!$CD$7:$CD$26)/$F32,"") ->  | T32: =IF($F32>0,SUMPRODUCT(T$7:T$26,HuBil!$CD$7:$CD$26)/$F32,"") ->  | U32: =IF($F32>0,SUMPRODUCT(U$7:U$26,HuBil!$CD$7:$CD$26)/$F32,"") ->  | V32: =IF($F32>0,SUMPRODUCT(V$7:V$26,HuBil!$CD$7:$CD$26)/$F32,"") ->  | W32: =IF($F32>0,SUMPRODUCT(W$7:W$26,HuBil!$CD$7:$CD$26)/$F32,"") ->  | X32: =IF($F32>0,SUMPRODUCT(X$7:X$26,HuBil!$CD$7:$CD$26)/$F32,"") ->  | Y32: =IF($F32>0,SUMPRODUCT(Y$7:Y$26,HuBil!$CD$7:$CD$26)/$F32,"") ->  | Z32: =IF($F32>0,SUMPRODUCT(Z$7:Z$26,HuBil!$CD$7:$CD$26)/$F32,"") ->  | AA32: =IF($F32>0,SUMPRODUCT(AA$7:AA$26,HuBil!$CD$7:$CD$26)/$F32,"") ->  | AB32: =IF($F32>0,SUMPRODUCT(AB$7:AB$26,HuBil!$CD$7:$CD$26)/$F32,"") ->  | AC32: =IF($F32>0,SUMPRODUCT(AC$7:AC$26,HuBil!$CD$7:$CD$26)/$F32,"") ->  | AD32: =IF($F32>0,SUMPRODUCT(AD$7:AD$26,HuBil!$CD$7:$CD$26)/$F32,"") ->  | AE32: =IF($F32>0,SUMPRODUCT(AE$7:AE$26,HuBil!$CD$7:$CD$26)/$F32,"") ->  | AF32: =IF($F32>0,SUMPRODUCT(AF$7:AF$26,HuBil!$CD$7:$CD$26)/$F32,"") ->  | AG32: =IF($F32>0,SUMPRODUCT(AG$7:AG$26,HuBil!$CD$7:$CD$26)/$F32,"") ->  | AH32: =IF($F32>0,SUMPRODUCT(AH$7:AH$26,HuBil!$CD$7:$CD$26)/$F32,"") ->  | AI32: =IF($F32>0,SUMPRODUCT(AI$7:AI$26,HuBil!$CD$7:$CD$26)/$F32,"") ->  | AJ32: =IF($F32>0,SUMPRODUCT(AJ$7:AJ$26,HuBil!$CD$7:$CD$26)/$F32,"") ->  | AK32: =IF($F32>0,SUMPRODUCT(AK$7:AK$26,HuBil!$CD$7:$CD$26)/$F32,"") ->  | AL32: =IF($F32>0,SUMPRODUCT(AL$7:AL$26,HuBil!$CD$7:$CD$26)/$F32,"") ->  | AM32: =IF($F32>0,SUMPRODUCT(AM$7:AM$26,HuBil!$CD$7:$CD$26)/$F32,"") ->  | AN32: =IF($F32>0,SUMPRODUCT(AN$7:AN$26,HuBil!$CD$7:$CD$26)/$F32,"") ->  | AO32: =IF($F32>0,SUMPRODUCT(AO$7:AO$26,HuBil!$CD$7:$CD$26)/$F32,"") ->  | AP32: =IF($F32>0,SUMPRODUCT(AP$7:AP$26,HuBil!$CD$7:$CD$26)/$F32,"") ->  | AQ32: =IF($F32>0,SUMPRODUCT(AQ$7:AQ$26,HuBil!$CD$7:$CD$26)/$F32,"") ->  | AR32: =IF($F32>0,SUMPRODUCT(AR$7:AR$26,HuBil!$CD$7:$CD$26)/$F32,"") ->  | AS32: =IF($F32>0,SUMPRODUCT(AS$7:AS$26,HuBil!$CD$7:$CD$26)/$F32,"") ->  | AT32: =IF($F32>0,SUMPRODUCT(AT$7:AT$26,HuBil!$CD$7:$CD$26)/$F32,"") ->  | AU32: =IF($F32>0,SUMPRODUCT(AU$7:AU$26,HuBil!$CD$7:$CD$26)/$F32,"") ->  | AV32: =IF($F32>0,SUMPRODUCT(AV$7:AV$26,HuBil!$CD$7:$CD$26)/$F32,"") ->  | AW32: =IF($F32>0,SUMPRODUCT(AW$7:AW$26,HuBil!$CD$7:$CD$26)/$F32,"") ->  | AX32: =IF($F32>0,SUMPRODUCT(AX$7:AX$26,HuBil!$CD$7:$CD$26)/$F32,"") ->  | AY32: =IF($F32>0,SUMPRODUCT(AY$7:AY$26,HuBil!$CD$7:$CD$26)/$F32,"") ->  | AZ32: =IF($F32>0,SUMPRODUCT(AZ$7:AZ$26,HuBil!$CD$7:$CD$26)/$F32,"") ->  | BA32: =IF($F32>0,SUMPRODUCT(BA$7:BA$26,HuBil!$CD$7:$CD$26)/$F32,"") ->  | BB32: =IF($F32>0,SUMPRODUCT(BB$7:BB$26,HuBil!$CD$7:$CD$26)/$F32,"") ->  | BC32: =IF($F32>0,SUMPRODUCT(BC$7:BC$26,HuBil!$CD$7:$CD$26)/$F32,"") ->  | BD32: =IF($F32>0,SUMPRODUCT(BD$7:BD$26,HuBil!$CD$7:$CD$26)/$F32,"") ->  | BE32: =IF($F32>0,SUMPRODUCT(BE$7:BE$26,HuBil!$CD$7:$CD$26)/$F32,"") ->  | BF32: =IF($F32>0,SUMPRODUCT(BF$7:BF$26,HuBil!$CD$7:$CD$26)/$F32,"") ->  | BG32: =IF($F32>0,SUMPRODUCT(BG$7:BG$26,HuBil!$CD$7:$CD$26)/$F32,"") ->  | BH32: =IF($F32>0,SUMPRODUCT(BH$7:BH$26,HuBil!$CD$7:$CD$26)/$F32,"") ->  | BI32: =IF($F32>0,SUMPRODUCT(BI$7:BI$26,HuBil!$CD$7:$CD$26)/$F32,"") ->  | BJ32: =IF($F32>0,SUMPRODUCT(BJ$7:BJ$26,HuBil!$CD$7:$CD$26)/$F32,"") ->  | BK32: =IF($F32>0,SUMPRODUCT(BK$7:BK$26,HuBil!$CD$7:$CD$26)/$F32,"") ->  | BL32: =IF($F32>0,SUMPRODUCT(BL$7:BL$26,HuBil!$CD$7:$CD$26)/$F32,"") ->  | BM32: =IF($F32>0,SUMPRODUCT(BM$7:BM$26,HuBil!$CD$7:$CD$26)/$F32,"") ->  | BN32: =IF($F32>0,SUMPRODUCT(BN$7:BN$26,HuBil!$CD$7:$CD$26)/$F32,"") ->  | BO32: =IF($F32>0,SUMPRODUCT(BO$7:BO$26,HuBil!$CD$7:$CD$26)/$F32,"") ->  | BP32: =IF($F32>0,SUMPRODUCT(BP$7:BP$26,HuBil!$CD$7:$CD$26)/$F32,"") ->  | BQ32: =IF($F32>0,SUMPRODUCT(BQ$7:BQ$26,HuBil!$CD$7:$CD$26)/$F32,"") ->  | BR32: =IF($F32>0,SUMPRODUCT(BR$7:BR$26,HuBil!$CD$7:$CD$26)/$F32,"") ->  | BS32: =IF($F32>0,SUMPRODUCT(BS$7:BS$26,HuBil!$CD$7:$CD$26)/$F32,"") ->  | BT32: =IF($F32>0,SUMPRODUCT(BT$7:BT$26,HuBil!$CD$7:$CD$26)/$F32,"") ->  | BU32: =IF($F32>0,SUMPRODUCT(BU$7:BU$26,HuBil!$CD$7:$CD$26)/$F32,"") ->  | BV32: =IF($F32>0,SUMPRODUCT(BV$7:BV$26,HuBil!$CD$7:$CD$26)/$F32,"") ->  | BW32: =IF($F32>0,SUMPRODUCT(BW$7:BW$26,HuBil!$CD$7:$CD$26)/$F32,"") ->  | BX32: =IF($F32>0,SUMPRODUCT(BX$7:BX$26,HuBil!$CD$7:$CD$26)/$F32,"") ->  | BY32: =IF($F32>0,SUMPRODUCT(BY$7:BY$26,HuBil!$CD$7:$CD$26)/$F32,"") ->  | BZ32: =IF($F32>0,SUMPRODUCT(BZ$7:BZ$26,HuBil!$CD$7:$CD$26)/$F32,"") ->  | CA32: =IF($F32>0,SUMPRODUCT(CA$7:CA$26,HuBil!$CD$7:$CD$26)/$F32,"") ->  | CB32: =IF($F32>0,SUMPRODUCT(CB$7:CB$26,HuBil!$CD$7:$CD$26)/$F32,"") ->  | CC32: =IF($F32>0,SUMPRODUCT(CC$7:CC$26,HuBil!$CD$7:$CD$26)/$F32,"") ->  | CD32: =IF($F32>0,SUMPRODUCT(CD$7:CD$26,HuBil!$CD$7:$CD$26)/$F32,"") ->  | CE32: =IF($F32>0,SUMPRODUCT(CE$7:CE$26,HuBil!$CD$7:$CD$26)/$F32,"") ->  | CF32: =IF($F32>0,SUMPRODUCT(CF$7:CF$26,HuBil!$CD$7:$CD$26)/$F32,"") ->  | CG32: =IF($F32>0,SUMPRODUCT(CG$7:CG$26,HuBil!$CD$7:$CD$26)/$F32,"") ->  | CH32: =IF($F32>0,SUMPRODUCT(CH$7:CH$26,HuBil!$CD$7:$CD$26)/$F32,"") ->  | CI32: =IF($F32>0,SUMPRODUCT(CI$7:CI$26,HuBil!$CD$7:$CD$26)/$F32,"") ->  | CJ32: =IF($F32>0,SUMPRODUCT(CJ$7:CJ$26,HuBil!$CD$7:$CD$26)/$F32,"") ->  | CK32: =IF($F32>0,SUMPRODUCT(CK$7:CK$26,HuBil!$CD$7:$CD$26)/$F32,"") ->  | CL32: =IF($F32>0,SUMPRODUCT(CL$7:CL$26,HuBil!$CD$7:$CD$26)/$F32,"") ->  | CM32: =IF($F32>0,SUMPRODUCT(CM$7:CM$26,HuBil!$CD$7:$CD$26)/$F32,"") ->  | CN32: =IF($F32>0,SUMPRODUCT(CN$7:CN$26,HuBil!$CD$7:$CD$26)/$F32,"") ->  | CO32: =IF($F32>0,SUMPRODUCT(CO$7:CO$26,HuBil!$CD$7:$CD$26)/$F32,"") ->  | CP32: =IF($F32>0,SUMPRODUCT(CP$7:CP$26,HuBil!$CD$7:$CD$26)/$F32,"") ->  | CQ32: =IF($F32>0,SUMPRODUCT(CQ$7:CQ$26,HuBil!$CD$7:$CD$26)/$F32,"") ->  | CR32: =IF($F32>0,SUMPRODUCT(CR$7:CR$26,HuBil!$CD$7:$CD$26)/$F32,"") ->  | CS32: =IF($F32>0,SUMPRODUCT(CS$7:CS$26,HuBil!$CD$7:$CD$26)/$F32,"") ->  | CT32: =IF($F32>0,SUMPRODUCT(CT$7:CT$26,HuBil!$CD$7:$CD$26)/$F32,"") ->  | CU32: =IF($F32>0,SUMPRODUCT(CU$7:CU$26,HuBil!$CD$7:$CD$26)/$F32,"") ->  | CV32: =IF($F32>0,SUMPRODUCT(CV$7:CV$26,HuBil!$CD$7:$CD$26)/$F32,"") ->  | CW32: =IF($F32>0,SUMPRODUCT(CW$7:CW$26,HuBil!$CD$7:$CD$26)/$F32,"") ->  | CX32: =IF($F32>0,SUMPRODUCT(CX$7:CX$26,HuBil!$CD$7:$CD$26)/$F32,"") ->  | CY32: =IF($F32>0,SUMPRODUCT(CY$7:CY$26,HuBil!$CD$7:$CD$26)/$F32,"") ->  | CZ32: =IF($F32>0,SUMPRODUCT(CZ$7:CZ$26,HuBil!$CD$7:$CD$26)/$F32,"") ->  | DA32: =IF($F32>0,SUMPRODUCT(DA$7:DA$26,HuBil!$CD$7:$CD$26)/$F32,"") ->  | DB32: =IF($F32>0,SUMPRODUCT(DB$7:DB$26,HuBil!$CD$7:$CD$26)/$F32,"") ->  | DC32: =IF($F32>0,SUMPRODUCT(DC$7:DC$26,HuBil!$CD$7:$CD$26)/$F32,"") ->  | DD32: =IF($F32>0,SUMPRODUCT(DD$7:DD$26,HuBil!$CD$7:$CD$26)/$F32,"") ->  | DE32: =IF($F32>0,SUMPRODUCT(DE$7:DE$26,HuBil!$CD$7:$CD$26)/$F32,"") ->  | DF32: =IF($F32>0,SUMPRODUCT(DF$7:DF$26,HuBil!$CD$7:$CD$26)/$F32,"") ->  | DG32: =IF($F32>0,SUMPRODUCT(DG$7:DG$26,HuBil!$CD$7:$CD$26)/$F32,"") ->  | DH32: =IF($F32>0,SUMPRODUCT(DH$7:DH$26,HuBil!$CD$7:$CD$26)/$F32,"") ->  | DI32: =IF($F32>0,SUMPRODUCT(DI$7:DI$26,HuBil!$CD$7:$CD$26)/$F32,"") ->  | DJ32: =IF($F32>0,SUMPRODUCT(DJ$7:DJ$26,HuBil!$CD$7:$CD$26)/$F32,"") ->  | DK32: =IF($F32>0,SUMPRODUCT(DK$7:DK$26,HuBil!$CD$7:$CD$26)/$F32,"") -> 

Sheet HuBil (hidden)
C1: Typ | D1: ='1_Eingabe_Humus'!J6 -> 2 | E1: 1= konv | P1: 42 | T1: 16 | U1: 6 | V1: 8 | W1: 20 | Y1: 45 | AD1: 44 | AF1: 45 | AG1: 45; 46; 47 | AQ1: 43 | AR1: 50 | AU1: 52 | AZ1: 12
E2: 2= oeko | P2: 42 | T2: 17 | U2: 7 | V2: 9 | W2: 21 | Y2: 46 | AD2: 44 | AF2: 45 | AG2: 45; 46; 48 | AQ2: 43 | AR2: 51 | AU2: 52 | AZ2: 11
Q3: Ertrag | AC3: N-Entzug | AI3: Nlösl-Zufuhr | AU3: HU-Bruttobedarf | AX3: HU-mehrerleistung | BA3: Stroh-/Gründüngung | BC3: Humusersatzleistung | BD3: Humusersatzleistung | BH3: Humussaldo | BI3: VDLUFA
AU4: berechnet | AV4: Standard | AW4: korrigiert | AX4: berechnet | AY4: Standard | AZ4: korrigiert | BA4: Strohd | BB4: Gründ | BD4: Stallmist | BE4: Gülle | BF4: Sonstiges | BG4: Gesamt | BI4: Bedarf | BL4: Mehrer_1 | BM4: Mehrer_2 | BN4: Mehrer_Ges | BO4: Gründg. | BP4: Strohdg. | BQ4: Stallmist | BR4: Gülle | BS4: Sonst | BT4: Org. Düngung | BU4: Ersatz | BV4: Saldo | BW4: Saldo | BX4: Saldo | CB4: FF1 | CC4: FF2 | CD4: FF3 | CF4: Versorgungsstufen
A5: Zeile | B5: FF | C5: FANr | D5: Fruchtart | E5: Typ | F5: Anbaufläche | G5: Ackerzahl | H5: Ertrag HP | I5: Ertrag HP Anteil | J5: HP Abfuhr | K5: HP Gründ | L5: NP Abfuhr | M5: NP Gründ | N5: LegAnteil | O5: Immissionen | P5: sIm | Q5: Ertrag NP | R5: Abfuhr NP | S5: TS HP | T5: TS NP | U5: N-Geh HP | V5: N-Geh NP | W5: HP_TM-Ertrag | X5: HP_TM_Gründ | Y5: NP_TM-Ertrag | Z5: NP_Strod | AA5: NP_Gründ | AB5: Gründ_ges | AC5: N-Entzug HP | AD5: N-Entzug NP | AE5: N-Entzug Gesamt | AF5: N-Fix E | AG5: N-Fix EWR | AH5: N-Fix Ges | AI5: Immission | AJ5: N-Zufuhr MD | AK5: sMD | AL5: OD1 | AM5: OD 2 | AN5: OD 3 | AO5: N-Fix | AP5: N Saatg | AQ5: Zufuhr gesamt | AR5: sStM | AS5: delta Nmin | AT5: Bedarf Norg | AU5: k HZ | AV5: k HZ | AW5: k HZ | AX5: k HM | AY5: k HM | AZ5: k HM | BI5: Oberer W. | BJ5: Mittlerer W. | BK5: Unterer W. | BV5: Oberer W. | BW5: Mittlerer W. | BX5: Unterer W. | BY5: anzurechnen? | CA5: FA | CF5: HE - konv | CG5: =IF(BH27*580<-200,"A",IF(BH27*580<=-75,"B",IF(BH27*580<=100,"C",(IF(BH27*580<=300,"D","E"))))) -> D
D6: Auswahl | F6: ha | H6: dt FM/ha | I6: dt FM/ha | N6: % | O6: kg N/ha | P6: % | Q6: dt FM/ha | R6: dt FM/ha | U6: N % TM | V6: N % TM | W6: dt TM/ha | X6: dt TM/ha | Y6: dt TM/ha | Z6: dt TM/ha | AA6: dt TM/ha | AB6: dt TM/ha | AC6: kg N/ha | AD6: kg N/ha | AE6: kg N/ha | AF6: kg N/ha | AG6: kg N/ha | AH6: kg N/ha | AI6: kg N/ha | AJ6: kg N/ha | AK6: % | AL6: kg N/ha | AM6: kg N/ha | AN6: kg N/ha | AO6: kg N/ha | AP6: kg N/ha | AQ6: kg N/ha | AR6: % | AS6: kg N/ha | AT6: kg N/ha | AU6: HE/ha | AV6: HE/ha | AW6: HE/ha | AX6: HE/ha | AY6: HE/ha | AZ6: HE/ha | BA6: HE/ha | BB6: HE/ha | BC6: HE/ha | BD6: HE/ha | BE6: HE/ha | BF6: HE/ha | BG6: HE/ha | BH6: HE/ha | BI6: kg C/ ha | BJ6: kg C/ ha | BK6: kg C/ ha | BL6: kg C/ ha | BM6: kg C/ ha | BN6: kg C/ ha | BO6: kg C/ ha | BP6: kg C/ ha | BQ6: kg C/ ha | BR6: kg C/ ha | BS6: kg C/ ha | BT6: kg C/ ha | BU6: kg C/ha | BV6: kg C/ ha | BW6: kg C/ ha | BX6: kg C/ ha | BY6: ha | CB6: 1 | CC6: 2 | CD6: 3 | CF6: HE - öko | CG6: =IF(BH27*580<-200,"A",IF(BH27*580<=0,"B",IF(BH27*580<=300,"C",(IF(BH27*580<=500,"D","E"))))) -> C
